Workbook

Sheet Apoio
N2: Indicações
M3: 1- | N3: Utilizar o links (Guardar) e (Guardar e Sair) quando terminar.
N4: Este é um processo automatico que atribui o nome correcto ao ficheiro.
M6: 2- | N6: Ao criar o quadro competitivo deverá escolher as ABV (abreviaturas)
N7: e respectivo escalão nas celulas A4 ou B11.
N8: ABV | O8: Nome da Prova
N9: EH | O9: Equipas Homens
D10: Ano Letivo: | F10: 2017/2018 | I10: Criação de Novos Quadro Competitivos | N10: ES | O10: Equipas Senhoras
N11: EM-Juv | O11: Equipas Mistas - Juvenis
N12: PH-InfA | O12: Pares Homens - Infantis A
D13: Torneio | N13: PH-InfB | O13: Pares Homens - Infantis B
D14: =IF(ISERROR('Ficha de Inscrição'!J4),"Nome do Torneio",("Ténis de Mesa "&'Ficha de Inscrição'!A5&" de "&TEXT('Ficha de Inscrição'!J4,"dd-mm-aaaa"))) -> Ténis de Mesa Torneio Nº 4 de 17-01-2018 | N14: PH-Ini | O14: Pares Homens - Iniciados
N15: PH-Jun | O15: Pares Homens - Juniores
N16: PH-Juv | O16: Pares Homens - Juvenis
N17: PM-Ini | O17: Pares Mistos - Iniciados
N18: PS-InfA | O18: Pares Senhoras - Infantis A
N19: PS-InfB | O19: Pares Senhoras - Infantis B
N20: PS-Ini | O20: Pares Senhoras - Iniciados
D21: Lista de Participantes | F21: Contactos | G21: Calendário | N21: PS-Jun | O21: Pares Senhoras - Juniores
N22: PS-Juv | O22: Pares Senhoras - Juvenis
N23: SH-InfA | O23: Singulares Homens - Infantis A
N24: SH-InfB | O24: Singulares Homens - Infantis B
N25: SH-Ini | O25: Singulares Homens - Iniciados
N26: SH-Jun | O26: Singulares Homens - Juniores
D27: Guardar e Sair | F27: Guardar | N27: SH-Juv | O27: Singulares Homens - Juvenis
N28: SS-InfA | O28: Singulares Senhoras - Infantis A
N29: SS-InfB | O29: Singulares Senhoras - Infantis B
N30: SS-Ini | O30: Singulares Senhoras - Iniciados
N31: SS-Juv | O31: Singulares Senhoras - Juvenis
N32: SS-Jun | O32: Singulares Senhoras - Juniores
A33: Autor:Paulo Jorge Nobre dos Santos Águas
B56: Paulo Jorge Nobre dos Santos Águas
A500: Autor:Paulo Jorge Nobre dos Santos Águas

Sheet Ficha de Inscrição
C1: Direcção Regional de Educação do Algarve | T1: SS
C2: Badminton 2017/2018 | M2: SS | N2: SH | S2: Sexo | T2: SH
A3: Zona | C3: Nº Escola | D3: Escola Organizadora | J3: Data | M3: =COUNTIFS($G$9:$G$158,M9,$J$9:$J$158,$M$2) -> 6 | N3: =COUNTIFS($G$9:$G$158,M9,$J$9:$J$158,$N$2) -> 1 | O3: Infantis A
A4: =LOOKUP(D4,V6:Z50,Z6:Z50) -> 2 | C4: =LOOKUP(D4,V6:Z38,Y6:Y38) -> Nº | D4: ACav.Silva | J4: =VLOOKUP($A$5,$M$17:$R$52,6,0) -> 2018-01-17 | M4: =COUNTIFS($G$9:$G$158,M10,$J$9:$J$158,$M$2) -> 21 | N4: =COUNTIFS($G$9:$G$158,M10,$J$9:$J$158,$N$2) -> 15 | O4: Infantis B | S4: F | T4: PS
A5: Torneio Nº 4 | G5: Professor Organizador | I5: =VLOOKUP(D4,O17:Q56,3,0) -> Vanda Drago | M5: =COUNTIFS($G$9:$G$158,M11,$J$9:$J$158,$M$2) -> 5 | N5: =COUNTIFS($G$9:$G$158,M11,$J$9:$J$158,$N$2) -> 10 | O5: Iniciados | S5: M | T5: PH
M6: =COUNTIFS($G$9:$G$158,M12,$J$9:$J$158,$M$2) -> 0 | N6: =COUNTIFS($G$9:$G$158,M12,$J$9:$J$158,$N$2) -> 3 | O6: Juvenis | S6: Anos | V6: A Escola (Clique aqui p/ Escolher Nome da Lista) | W6: Abv | X6: Nome do Professor | Y6: Nº | Z6: Zn
J7: =SUBTOTAL(103,J9:J158) -> 61 | K7: =SUBTOTAL(103,K9:K158) -> 0 | M7: =COUNTIFS($G$9:$G$158,M13,$J$9:$J$158,$M$2) -> 0 | N7: =COUNTIFS($G$9:$G$158,M13,$J$9:$J$158,$N$2) -> 0 | O7: Juniores | S7: 1996 | V7: =O17 -> JCabanita | W7: =P17 -> JCC | X7: =Q17 -> Rosa Silva | Y7: 21 | Z7: 2
A8: # | B8: Nº | C8: Nome (1º e último) | D8: Escola | E8: Abv. | F8: Ano Nasc. | G8: Escalão | H8: Sexo | I8: Observações | J8: Insc. Prova | M8: Escalão | O8: Ano de Nascimento | P8: Sexo | S8: =S7+1 -> 1997 | V8: =O18 -> Emil.Costa | W8: EC | X8: Nídia Agostinho | Y8: 4 | Z8: 1
A9: 1 | C9: Laura Grade | D9: ACav.Silva | E9: ACV | F9: 2007 | G9: Infantis A | H9: F | J9: SS | M9: Infantis A | O9: =S19&"/"&S21 -> 2008/2010 | P9: Masc./Fem. | S9: =S8+1 -> 1998 | V9: =O19 -> JCarlosMaia | W9: JCM | X9: Luis Fernandes | Y9: 32 | Z9: 2
A10: 2 | C10: Iris Rodrigues | D10: ACav.Silva | E10: ACV | F10: 2005 | G10: Infantis B | H10: F | J10: SS | M10: Infantis B | O10: =S17&"/"&S18 -> 2006/2007 | P10: Masc./Fem. | S10: 1999 | V10: =O20 -> ACav.Silva | W10: ACav | X10: Vanda Drago | Y10: 30 | Z10: 2
A11: 3 | C11: Tânia Jesus | D11: ACav.Silva | E11: ACV | F11: 2005 | G11: Infantis B | H11: F | J11: SS | M11: Iniciados | O11: =S15&"/"&S16 -> 2004/2005 | P11: Masc./Fem. | S11: 2000 | V11: =O21 -> PNogueira | W11: PN | X11: Luís Brites | Y11: 9 | Z11: 1
A12: 4 | C12: Beatriz Coelho | D12: ACav.Silva | E12: ACV | F12: 2005 | G12: Infantis B | H12: F | J12: SS | M12: Juvenis | O12: =S12&"/"&S14 -> 2001/2003 | P12: Masc. /Fem. | S12: 2001 | V12: =O22 -> ASAgostinho | W12: ASA | X12: João Pereira | Y12: 13 | Z12: 1
A13: 5 | C13: Vitória Coelho | D13: ACav.Silva | E13: ACV | F13: 2006 | G13: Infantis B | H13: F | J13: SS | M13: Juniores | O13: =S8&"/"&S11 -> 1997/2000 | P13: Masc. /Fem. | S13: 2002 | V13: =O23 -> JCabanita | W13: JCC | X13: Rosa Silva | Y13: 14 | Z13: 1
A14: 6 | C14: Iara Nascimento | D14: ACav.Silva | E14: ACV | F14: 2006 | G14: Infantis B | H14: F | J14: SS | S14: =S13+1 -> 2003 | V14: =O24 -> Emil.Costa | W14: EC | X14: Nídia Agostinho | Y14: 18 | Z14: 2
A15: 7 | C15: Carolina Lima | D15: ACav.Silva | E15: ACV | F15: 2006 | G15: Infantis B | H15: F | J15: SS | S15: 2004 | V15: =O25 -> ACav.Silva | W15: ACav | X15: Vanda Drago | Y15: 16 | Z15: 1
A16: 8 | C16: Leonor Inácio | D16: ACav.Silva | E16: ACV | F16: 2006 | G16: Infantis B | H16: F | J16: SS | N16: Torneio Nº | O16: Escola | P16: Abv | Q16: Professor Responsável | R16: Data | S16: 2005 | V16: =O26 -> PNogueira | W16: PN | X16: Luís Brites | Y16: 20 | Z16: 2
A17: 9 | C17: Daniela Dias | D17: ACav.Silva | E17: ACV | F17: 2006 | G17: Infantis B | H17: F | J17: SS | M17: =CONCATENATE($N$16," ",N17) -> Torneio Nº 1 | N17: 1 | O17: JCabanita | P17: JCC | Q17: Rosa Silva | R17: 2018-01-17 | S17: 2006 | V17: =O27 -> PNogueira | W17: PN | X17: Luís Brites | Y17: 26 | Z17: 2
A18: 10 | C18: Carolina Rodrigues | D18: ACav.Silva | E18: ACV | F18: 2005 | G18: Infantis B | H18: F | J18: SS | M18: =CONCATENATE($N$16," ",N18) -> Torneio Nº 2 | N18: 2 | O18: Emil.Costa | P18: EC | Q18: Nídia Agostinho | R18: 2018-01-18 | S18: 2007 | V18: =O28 -> João da Rosa | W18: JR | X18: Hugo Guerreiro | Y18: 7 | Z18: 1
A19: 11 | C19: Catarina Perruca | D19: ACav.Silva | E19: ACV | F19: 2004 | G19: Iniciados | H19: F | J19: SS | M19: Torneio Nº 3 | N19: 3 | O19: JCarlosMaia | P19: JCM | Q19: Luis Fernandes | R19: 2018-01-17 | S19: 2008 | V19: =O29 -> FFLopes | W19: FFL | X19: José Cristina | Y19: 31 | Z19: 2
A20: 12 | C20: Inês Matos | D20: ACav.Silva | E20: ACV | F20: 2004 | G20: Iniciados | H20: F | J20: SS | M20: Torneio Nº 4 | N20: 4 | O20: ACav.Silva | P20: ACav | Q20: Vanda Drago | R20: 2018-01-17 | S20: 2009 | V20: =O30 -> FFLopes | W20: FFL | X20: José Cristina | Y20: 12 | Z20: 1
A21: 13 | C21: Jasmin Clarke | D21: ACav.Silva | E21: ACV | F21: 2003 | G21: Iniciados | H21: F | J21: SS | M21: Torneio Nº 5 | N21: 5 | O21: PNogueira | P21: PN | Q21: Luís Brites | R21: 2018-01-16 | S21: 2010 | V21: =O31 -> FFLopes | W21: FFL | X21: José Cristina | Y21: 11 | Z21: 1
A22: 14 | C22: Rafael Gonçalves | D22: ACav.Silva | E22: ACV | F22: 2004 | G22: Iniciados | H22: M | J22: SH | M22: Torneio Nº 6 | N22: 6 | O22: ASAgostinho | P22: ASA | Q22: João Pereira | R22: 2018-03-08 | V22: =O32 -> AJEusébio | W22: AJE | X22: José Cristina | Y22: 15 | Z22: 1
A23: 15 | C23: Daniel Pop | D23: ACav.Silva | E23: ACV | F23: 2004 | G23: Iniciados | H23: M | J23: SH | M23: Torneio Nº 7 | N23: 7 | O23: JCabanita | P23: JCC | Q23: Rosa Silva | R23: 2018-02-06 | S23: Torneio Nº 00 | V23: =O33 -> AJEusébio | W23: AJE | X23: José Cristina | Y23: 8 | Z23: 1
A24: 16 | C24: Renato Sobreira | D24: ACav.Silva | E24: ACV | F24: 2004 | G24: Iniciados | H24: M | J24: SH | M24: Torneio Nº 8 | N24: 8 | O24: Emil.Costa | P24: EC | Q24: Nídia Agostinho | R24: 2018-02-06 | S24: Torneio Nº 01 | V24: =O34 -> AJEusébio | W24: AJE | X24: José Cristina | Y24: 3 | Z24: 1
A25: 17 | C25: Simão Dias | D25: ACav.Silva | E25: ACV | F25: 2004 | G25: Iniciados | H25: M | J25: SH | M25: Torneio Nº 9 | N25: 9 | O25: ACav.Silva | P25: ACav | Q25: Vanda Drago | R25: 2018-03-08 | S25: Torneio Nº 02 | V25: =O35 -> DPacheco | W25: DP | X25: Carlos Oliveira | Y25: 25 | Z25: 2
A26: 18 | C26: Miguel Santos | D26: ACav.Silva | E26: ACV | F26: 2003 | G26: Iniciados | H26: M | J26: SH | M26: Torneio Nº 10 | N26: 10 | O26: PNogueira | P26: PN | Q26: Luís Brites | R26: 2018-02-06 | S26: Torneio Nº 03 | V26: =O36 -> DPacheco | W26: DP | X26: Carlos Oliveira | Y26: 23 | Z26: 2
A27: 19 | C27: Cristina Curnic | D27: DPacheco | E27: DP | F27: 2006 | G27: Infantis B | H27: F | J27: SS | M27: Torneio Nº 11 | N27: 11 | O27: PNogueira | P27: PN | Q27: Luís Brites | R27: 2018-03-08 | S27: Torneio Nº 04 | V27: =O37 -> PNogueira | W27: PN | X27: Luis Brites | Y27: 28 | Z27: 2
A28: 20 | C28: Jessica Rochefort | D28: DPacheco | E28: DP | F28: 2007 | G28: Infantis A | H28: F | J28: SS | M28: Torneio Nº 12 | N28: 12 | O28: João da Rosa | P28: JR | Q28: Hugo Guerreiro | R28: 2018-02-06 | S28: Torneio Nº 05 | V28: =O38 -> DNegrão | W28: DN | X28: João Marques | Y28: 17 | Z28: 2
A29: 21 | C29: Leonor Guerreiro | D29: DPacheco | E29: DP | F29: 2007 | G29: Infantis A | H29: F | J29: SS | M29: Torneio Nº 13 | N29: 13 | O29: FFLopes | P29: FFL | Q29: José Cristina | R29: 2018-01-16 | S29: Torneio Nº 06 | V29: =O39 -> Rio Arade | W29: RA | X29: Sandra Freitas | Y29: 10 | Z29: 1
A30: 22 | C30: Maira Kaushik | D30: DPacheco | E30: DP | F30: 2007 | G30: Infantis A | H30: F | J30: SS | M30: Torneio Nº 14 | N30: 14 | O30: FFLopes | P30: FFL | Q30: José Cristina | R30: 2018-02-07 | S30: Torneio Nº 07 | V30: =O40 -> S.Vicente | W30: SV | X30: Vitor Rito | Y30: 1 | Z30: 1
A31: 23 | C31: Tomás Guerreiro | D31: DPacheco | E31: DP | F31: 2007 | G31: Infantis A | H31: M | I31: Cass.Independente | J31: SH | M31: Torneio Nº 15 | N31: 15 | O31: FFLopes | P31: FFL | Q31: José Cristina | R31: 2018-03-07 | S31: Torneio Nº 08 | V31: =O41 -> St.António | W31: SA | X31: João Pimenta | Y31: 24 | Z31: 2
A32: 24 | C32: Sandro Revez | D32: DPacheco | E32: DP | F32: 2005 | G32: Infantis B | H32: M | J32: SH | M32: Torneio Nº 16 | N32: 16 | O32: AJEusébio | P32: AJE | Q32: José Cristina | R32: 2018-01-17 | S32: Torneio Nº 09 | V32: =O42 -> PNogueira | W32: PN | X32: Rui Marques | Y32: 19 | Z32: 2
A33: 25 | C33: Francisco Carvalho | D33: DPacheco | E33: DP | F33: 2006 | G33: Infantis B | H33: M | J33: SH | M33: Torneio Nº 17 | N33: 17 | O33: AJEusébio | P33: AJE | Q33: José Cristina | R33: 2018-02-06 | S33: Torneio Nº 10 | V33: =O43 -> Mex. Grande | W33: MG | X33: João Salgado | Y33: 5 | Z33: 1
A34: 26 | C34: Polina Lesyuk | D34: DPacheco | E34: DP | F34: 2007 | G34: Infantis A | H34: F | J34: SS | M34: Torneio Nº 18 | N34: 18 | O34: AJEusébio | P34: AJE | Q34: José Cristina | R34: 2018-03-08 | S34: Torneio Nº 11 | V34: =O44 -> PNogueira | W34: PN | X34: Luís Fernandes | Y34: 29 | Z34: 2
A35: 27 | C35: Violeta Pshenychnicova | D35: DPacheco | E35: DP | F35: 2007 | G35: Infantis A | H35: F | J35: SS | M35: Torneio Nº 19 | N35: 19 | O35: DPacheco | P35: DP | Q35: Carlos Oliveira | R35: 2018-02-06 | S35: Torneio Nº 12 | V35: =O45 -> ASAgostinho | W35: ASA | X35: Sónia Botelho | Y35: 22 | Z35: 2
A36: 28 | C36: Alexandre Malveiro | D36: DPacheco | E36: DP | F36: 2006 | G36: Infantis B | H36: M | J36: SH | M36: Torneio Nº 20 | N36: 20 | O36: DPacheco | P36: DP | Q36: Carlos Oliveira | R36: 2018-03-08 | S36: Torneio Nº 13 | V36: =O46 -> Emil. Costa | W36: EC | X36: José Cristina | Y36: 27 | Z36: 2
A37: 29 | C37: Afonso Brito | D37: DPacheco | E37: DP | F37: 2006 | G37: Infantis B | H37: M | J37: SH | M37: Torneio Nº 21 | N37: 21 | O37: PNogueira | P37: PN | Q37: Luis Brites | S37: Torneio Nº 14 | V37: =O47 -> Júlio Dantas | W37: JD | X37: Rita Correia | Y37: 2 | Z37: 1
A38: 30 | C38: Bárbara Fernandes | D38: DPacheco | E38: DP | F38: 2006 | G38: Infantis B | H38: F | J38: SS | M38: Torneio Nº 22 | N38: 22 | O38: DNegrão | P38: DN | Q38: João Marques | S38: Torneio Nº 15 | V38: =O48 -> D.José I | W38: DJI | X38: Joaquim Dionísio | Y38: 6 | Z38: 1
A39: 31 | C39: Elena Rafael | D39: DPacheco | E39: DP | F39: 2006 | G39: Infantis B | H39: F | J39: SS | M39: Torneio Nº 23 | N39: 23 | O39: Rio Arade | P39: RA | Q39: Sandra Freitas | S39: Torneio Nº 16
A40: 32 | C40: Valentim Boros | D40: DPacheco | E40: DP | F40: 2006 | G40: Infantis B | H40: M | J40: SH | M40: Torneio Nº 24 | N40: 24 | O40: S.Vicente | P40: SV | Q40: Vitor Rito | S40: Torneio Nº 17
A41: 33 | C41: Miguel Ponte | D41: DPacheco | E41: DP | F41: 2006 | G41: Infantis B | H41: M | J41: SH | M41: Torneio Nº 25 | N41: 25 | O41: St.António | P41: SA | Q41: João Pimenta | S41: Torneio Nº 18
A42: 34 | C42: Guilherme Ponte | D42: DPacheco | E42: DP | F42: 2006 | G42: Infantis B | H42: M | J42: SH | M42: Torneio Nº 26 | N42: 26 | O42: PNogueira | P42: PN | Q42: Rui Marques | S42: Reg. InfantisA e B
A43: 35 | C43: Loredana Junea | D43: DPacheco | E43: DP | F43: 2006 | G43: Infantis B | H43: F | J43: SS | M43: Torneio Nº 27 | N43: 27 | O43: Mex. Grande | P43: MG | Q43: João Salgado | S43: Reg. Iniciados
A44: 36 | C44: Luana Piedade | D44: DPacheco | E44: DP | F44: 2005 | G44: Infantis B | H44: F | J44: SS | M44: Torneio Nº 28 | N44: 28 | O44: PNogueira | P44: PN | Q44: Luís Fernandes | S44: Reg. Juvenis
A45: 37 | C45: Mário Silveira | D45: DPacheco | E45: DP | F45: 2004 | G45: Iniciados | H45: M | J45: SH | M45: Torneio Nº 29 | N45: 29 | O45: ASAgostinho | P45: ASA | Q45: Sónia Botelho | S45: Reg. Juniores
A46: 38 | C46: Paula Tijaro | D46: DPacheco | E46: DP | F46: 2006 | G46: Infantis B | H46: F | J46: SS | M46: Torneio Nº 30 | N46: 30 | O46: Emil. Costa | P46: EC | Q46: José Cristina
A47: 39 | C47: Daniel Espadinha | D47: DPacheco | E47: DP | F47: 2004 | G47: Iniciados | H47: M | J47: SH | M47: Torneio Nº 31 | N47: 31 | O47: Júlio Dantas | P47: JD | Q47: Rita Correia
A48: 40 | C48: Laura Gomes | D48: DPacheco | E48: DP | F48: 2005 | G48: Infantis B | H48: F | J48: SS | M48: Torneio Nº 32 | N48: 32 | O48: D.José I | P48: DJI | Q48: Joaquim Dionísio
A49: 41 | C49: Rui Bernardo | D49: DPacheco | E49: DP | F49: 2005 | G49: Infantis B | H49: M | J49: SH | M49: Torneio Nº 33 | N49: 33 | O49: ASAgostinho | P49: ASA | Q49: Nuno Martins
A50: 42 | C50: Alexandre Guerreiro | D50: DPacheco | E50: DP | F50: 2003 | G50: Iniciados | H50: M | J50: SH | M50: Torneio Nº 34 | N50: 34 | O50: D.José I | P50: DJI | Q50: Carla Paiva
A51: 43 | C51: João Alexandre | D51: DPacheco | E51: DP | F51: 2005 | G51: Infantis B | H51: M | J51: SH | M51: Torneio Nº 35 | N51: 35 | O51: ASAgostinho | P51: ASA | Q51: Nuno Martins
A52: 44 | C52: Carina Croitoru | D52: ASAgostinho | E52: ASA | F52: 2006 | G52: Infantis B | H52: F | J52: SS | M52: Torneio Nº 36 | N52: 36 | O52: D.José I | P52: DJI | Q52: Carla Paiva
A53: 45 | C53: Mário Delgado | D53: ASAgostinho | E53: ASA | F53: 2006 | G53: Infantis B | H53: M | J53: SH
A54: 46 | C54: Pedro Dionísio | D54: ASAgostinho | E54: ASA | F54: 2006 | G54: Infantis B | H54: M | J54: SH
A55: 47 | C55: António Correia | D55: ASAgostinho | E55: ASA | F55: 2006 | G55: Infantis B | H55: M | J55: SH
A56: 48 | C56: Jasmine Campbell | D56: ASAgostinho | E56: ASA | F56: 2006 | G56: Infantis B | H56: F | J56: SS
A57: 49 | C57: Eva Oliveira | D57: ASAgostinho | E57: ASA | F57: 2006 | G57: Infantis B | H57: F | J57: SS
A58: 50 | C58: Lara Carvalho | D58: ASAgostinho | E58: ASA | F58: 2006 | G58: Infantis B | H58: F | J58: SS
A59: 51 | C59: Jayden Fortes | D59: ASAgostinho | E59: ASA | F59: 2005 | G59: Infantis B | H59: M | J59: SH
A60: 52 | C60: Gustavo Estevão | D60: ASAgostinho | E60: ASA | F60: 2005 | G60: Infantis B | H60: M | J60: SH
A61: 53 | C61: Liliam Vogt | D61: ASAgostinho | E61: ASA | F61: 2005 | G61: Infantis B | H61: F | J61: SS
A62: 54 | C62: Diogo Esteves | D62: ASAgostinho | E62: ASA | F62: 2005 | G62: Infantis B | H62: M | J62: SH
A63: 55 | C63: Eduardo Contreras | D63: ASAgostinho | E63: ASA | F63: 2004 | G63: Iniciados | H63: M | J63: SH
A64: 56 | C64: Lia Teixeira | D64: ASAgostinho | E64: ASA | F64: 2004 | G64: Iniciados | H64: F | J64: SS
A65: 57 | C65: Adilson Cruz | D65: ASAgostinho | E65: ASA | F65: 2004 | G65: Iniciados | H65: M | J65: SH
A66: 58 | C66: Lucineia Sanches | D66: ASAgostinho | E66: ASA | F66: 2004 | G66: Iniciados | H66: F | J66: SS
A67: 59 | C67: Nuno Araújo | D67: ASAgostinho | E67: ASA | F67: 2002 | G67: Juvenis | H67: M | J67: SH
A68: 60 | C68: Pedro Luz | D68: ASAgostinho | E68: ASA | F68: 2001 | G68: Juvenis | H68: M | J68: SH
A69: 61 | C69: Gheorghe Tefan | D69: ASAgostinho | E69: ASA | F69: 2001 | G69: Juvenis | H69: M | J69: SH
A70: 62 | G70: =IF(F70="","",IF(F70>2005,"Infantis A",IF(F70>2003,"Infantis B",IF(F70>2001,"Iniciados",IF(F70>1998,"Juvenis","Juniores"))))) -> 
A71: 63
A72: 64
A73: 65 | G73: =IF(F73="","",IF(F73>2005,"Infantis A",IF(F73>2003,"Infantis B",IF(F73>2001,"Iniciados",IF(F73>1998,"Juvenis","Juniores"))))) -> 
A74: 66
A75: 67
A76: 68
A77: 69
A78: 70
A79: 71
A80: 72
A81: 73
A82: 74
A83: 75
A84: 76
A85: 77
A86: 78
A87: 79
A88: 80
A89: 81
A90: 82
A91: 83
A92: 84
A93: 85
A94: 86
A95: 87
A96: 88
A97: 89
A98: 90
A99: 91
A100: 92
A101: 93
A102: 94
A103: 95
A104: 96
A105: 97 | G105: =IF(F105="","",IF(F105>2005,"Infantis A",IF(F105>2003,"Infantis B",IF(F105>2001,"Iniciados",IF(F105>1998,"Juvenis","Juniores"))))) -> 
A106: 98
A107: 99
A108: 100
A109: 101
A110: 102
A111: 103
A112: 104
A113: 105
A114: 106
A115: 107
A116: 108
A117: 109
A118: 110
A119: 111
A120: 112
A121: 113
A122: 114
A123: 115
A124: 116
A125: 117
A126: 118 | F126: =IF(E126="","",IF(E126>2005,"Infantis A",IF(E126>2003,"Infantis B",IF(E126>2001,"Iniciados",IF(E126>1998,"Juvenis","Juniores"))))) -> 
A127: 119
A128: 120
A129: 121
A130: 122
A131: 123
A132: 124
A133: 125
A134: 126
A135: 127
A136: 128
A137: 129 | G137: =IF(F137="","",IF(F137>2005,"Infantis A",IF(F137>2003,"Infantis B",IF(F137>2001,"Iniciados",IF(F137>1998,"Juvenis","Juniores"))))) -> 
A138: 130
A139: 131
A140: 132
A141: 133
A142: 134
A143: 135
A144: 136
A145: 137
A146: 138
A147: 139
A148: 140
A149: 141
A150: 142
A151: 143
A152: 144 | F152: =IF(E152="","",IF(E152>2005,"Infantis A",IF(E152>2003,"Infantis B",IF(E152>2001,"Iniciados",IF(E152>1998,"Juvenis","Juniores"))))) -> 
A153: 145
A154: 146
A155: 147
A156: 148
A157: 149
A158: 150

Sheet q32eliminaçãodireta (hidden)
I1: Direcção Regional de Educação do Algarve
I2: =Apoio!D10 -> Ano Letivo: | J2: =Apoio!F10 -> 2017/2018 | BU2: =SUM(BU4:BU21) -> 0
BU3: =SUM(BU4:BU21) -> 0
I4: =Apoio!D14 -> Ténis de Mesa Torneio Nº 4 de 17-01-2018 | BU4: =IF(ISBLANK(#REF!),COUNTA(CF13:$CF$28),0) -> 0
A5: PH-Juv | C5: =LOOKUP(A5,Apoio!N10:N40,Apoio!O10:O40) -> Pares Homens - Juvenis | BU5: =IF(ISBLANK(CF13),COUNTA(CF14:$CF$28),0) -> 0
AM6: Ordenar p/ DG 3 | AQ6: Ordenar p/ GM 1 | AU6: Ordenar p/ GM 2 | AY6: Ordenar p/ GM 3 | BQ6: Vencedores | BR6: Derrotados | BU6: =IF(ISBLANK(#REF!),COUNTA(CF14:$CF$28),0) -> 0
A7: 1 | C7: =CF12 -> 0 | G7: =IF(ISBLANK(D7),"",SUM(IF(D7>D8,1,0)+(IF(E7>E8,1,0)+(IF(F7>F8,1,0))))) ->  | H7: P1 | I7: =IF(G7=G8,IF(C7="Bye",C8,IF(C8="Bye",C7)),(IF(ISBLANK(D7),"",IF(G7>G8,C7,C8)))) -> FALSE | N7: P17 | BQ7: =IF(#REF!<>"",IF(#REF!>#REF!,#REF!,IF(#REF!>#REF!,#REF!,"Empate")),"") ->  | BR7: =IF(#REF!<>"",IF(#REF!<#REF!,#REF!,IF(#REF!<#REF!,#REF!,"Empate")),"") ->  | BU7: =IF(ISBLANK(CF14),COUNTA(CF15:$CF$28),0) -> 0
A8: 2 | C8: =CF13 -> 0 | G8: =IF(ISBLANK(D7),"",SUM(IF(D8>D7,1,0)+(IF(E8>E7,1,0)+(IF(F8>F7,1,0))))) ->  | I8: =IF(I7=FALSE,"",I7) ->  | M8: =IF(ISBLANK(J8),"",SUM(IF(J8>J10,1,0)+(IF(K8>K10,1,0)+(IF(L8>L10,1,0))))) ->  | O8: =IF(M8=M10,IF(I8="Bye",I10,IF(I10="Bye",I8)),(IF(ISBLANK(J8),"",IF(M8>M10,I8,I10)))) -> FALSE | T8: P25
A9: 3 | C9: 0 | G9: =IF(ISBLANK(D9),"",SUM(IF(D9>D10,1,0)+(IF(E9>E10,1,0)+(IF(F9>F10,1,0))))) ->  | H9: P2 | I9: =IF(G9=G10,IF(C9="Bye",C10,IF(C10="Bye",C9)),(IF(ISBLANK(D9),"",IF(G9>G10,C9,C10)))) -> FALSE | K9: (V1) | O9: =IF(O8=FALSE,"",O8) ->  | S9: =IF(ISBLANK(P9),"",SUM(IF(P9>P13,1,0)+(IF(Q9>Q13,1,0)+(IF(R9>R13,1,0))))) ->  | AM9: =IF(AND(#REF!=AK9,AL9>#REF!),#REF!,AJ9) ->  | AN9: =VLOOKUP(AM9,H8:S9,9,FALSE) ->  | AO9: =VLOOKUP(AM9,H8:S9,8,FALSE) ->  | AP9: =VLOOKUP(AM9,H8:S9,6,FALSE) ->  | AQ9: =IF(AND(AN9=#REF!,AO9=#REF!,#REF!>AP9),#REF!,AM9) ->  | AR9: =VLOOKUP(AQ9,H8:S9,9,FALSE) ->  | AS9: =VLOOKUP(AQ9,H8:S9,8,FALSE) ->  | AT9: =VLOOKUP(AQ9,H8:S9,6,FALSE) ->  | AU9: =IF(AND(AR8=AR9,AS8=AS9,#REF!>AT8),AQ8,AQ9) ->  | AV9: =VLOOKUP(AU9,H8:S9,9,FALSE) ->  | AW9: =VLOOKUP(AU9,H8:S9,8,FALSE) ->  | AX9: =VLOOKUP(AU9,H8:S9,6,FALSE) ->  | AY9: =IF(AND(#REF!=AV9,#REF!=AW9,AX9>#REF!),#REF!,AU9) ->  | AZ9: =VLOOKUP(AY9,H8:S9,9,FALSE) ->  | BA9: =VLOOKUP(AY9,H8:S9,8,FALSE) ->  | BB9: =VLOOKUP(AY9,H8:S9,6,FALSE) ->  | BF9: =AY9 ->  | BG9: =VLOOKUP(BF9,H8:S9,2,FALSE) ->  | BH9: =VLOOKUP(BF9,H8:S9,3,FALSE) ->  | BI9: =VLOOKUP(BF9,H8:S9,4,FALSE) ->  | BJ9: =VLOOKUP(BF9,H8:S9,5,FALSE) ->  | BK9: =VLOOKUP(BF9,H8:S9,6,FALSE) ->  | BL9: =VLOOKUP(BF9,H8:S9,7,FALSE) ->  | BM9: =VLOOKUP(BF9,H8:S9,8,FALSE) ->  | BN9: =VLOOKUP(BF9,H8:S9,9,FALSE) ->  | BQ9: =IF(#REF!<>"",IF(#REF!>#REF!,#REF!,IF(#REF!>#REF!,#REF!,"Empate")),"") ->  | BR9: =IF(#REF!<>"",IF(#REF!<#REF!,#REF!,IF(#REF!<#REF!,#REF!,"Empate")),"") ->  | BU9: =IF(ISBLANK(CF16),COUNTA(CF17:$CF$28),0) -> 0 | DE9: PROCV($EU$12;$AE$9:$AI$13;2;FALSO)
A10: 4 | C10: 0 | G10: =IF(ISBLANK(D9),"",SUM(IF(D10>D9,1,0)+(IF(E10>E9,1,0)+(IF(F10>F9,1,0))))) ->  | I10: =IF(I9=FALSE,"",I9) ->  | M10: =IF(ISBLANK(J8),"",SUM(IF(J10>J8,1,0)+(IF(K10>K8,1,0)+(IF(L10>L8,1,0))))) ->  | U10: =IF(S9=S13,IF(O9="Bye",O13,IF(O13="Bye",O13)),(IF(ISBLANK(P9),"",IF(S9>S13,O9,O13)))) -> FALSE | Z10: P29 | BU10: =IF(ISBLANK(CF17),COUNTA(CF18:$CF$28),0) -> 0 | BW10: Classificação
A11: 5 | C11: 0 | G11: =IF(ISBLANK(D11),"",SUM(IF(D11>D12,1,0)+(IF(E11>E12,1,0)+(IF(F11>F12,1,0))))) ->  | H11: P3 | I11: =IF(G11=G12,IF(C11="Bye",C12,IF(C12="Bye",C11)),(IF(ISBLANK(D11),"",IF(G11>G12,C11,C12)))) -> FALSE | N11: P18 | O11: (V9) | U11: =IF(U10=FALSE,"",U10) ->  | Y11: =IF(ISBLANK(V11),"",SUM(IF(V11>V19,1,0)+(IF(W11>W19,1,0)+(IF(X11>X19,1,0))))) ->  | BQ11: =IF(#REF!<>"",IF(#REF!>#REF!,#REF!,IF(#REF!>#REF!,#REF!,"Empate")),"") ->  | BR11: =IF(#REF!<>"",IF(#REF!<#REF!,#REF!,IF(#REF!<#REF!,#REF!,"Empate")),"") ->  | BU11: =IF(ISBLANK(CF18),COUNTA(CF19:$CF$28),0) -> 0 | BW11: NºJ | BZ11: Nome | CA11: Pts | CD11: Ordem | CE11: Nº | CF11: Nome (1º e último) | CG11: Escola | CH11: Abv. | CI11: Ano Nasc. | CJ11: Escalão | CK11: Sexo | CL11: Observações | CM11: Insc. Prova | CP11: VENCIDO (P49) | CQ11: PM | CR11: PS | CS11: DIF | CT11: VENCIDO (P50) | CU11: PM | CV11: PM | CW11: DIF | CX11: VENCIDO (P51) | CY11: PM | CZ11: PS | DA11: DIF | DB11: VENCIDO (P52) | DC11: PM | DD11: PM | DE11: DIF | DF11: VENCIDO (P49) | DL11: PAULO JORGE NOBRE DOS SANTOS ÁGUAS
A12: 6 | C12: 0 | G12: =IF(ISBLANK(D11),"",SUM(IF(D12>D11,1,0)+(IF(E12>E11,1,0)+(IF(F12>F11,1,0))))) ->  | I12: =IF(I11=FALSE,"",I11) ->  | M12: =IF(ISBLANK(J12),"",SUM(IF(J12>J14,1,0)+(IF(K12>K14,1,0)+(IF(L12>L14,1,0))))) ->  | O12: =IF(M12=M14,IF(I12="Bye",I14,IF(I14="Bye",I12)),(IF(ISBLANK(J12),"",IF(M12>M14,I12,I14)))) -> FALSE | AM12: =IF(AND(AK12=#REF!,#REF!>AL12),#REF!,AJ12) ->  | AN12: =VLOOKUP(AM12,H12:S13,9,FALSE) ->  | AO12: =VLOOKUP(AM12,H12:S13,8,FALSE) ->  | AP12: =VLOOKUP(AM12,H12:S13,6,FALSE) ->  | AQ12: =IF(AND(AN12=#REF!,AO12=#REF!,#REF!>AP12),#REF!,AM12) ->  | AR12: =VLOOKUP(AQ12,H12:S13,9,FALSE) ->  | AS12: =VLOOKUP(AQ12,H12:S13,8,FALSE) ->  | AT12: =VLOOKUP(AQ12,H12:S13,6,FALSE) ->  | AU12: =IF(AND(AR12=AR13,AS12=AS13,AT13>AT12),AQ13,AQ12) ->  | AV12: =VLOOKUP(AU12,H12:S13,9,FALSE) ->  | AW12: =VLOOKUP(AU12,H12:S13,8,FALSE) ->  | AX12: =VLOOKUP(AU12,H12:S13,6,FALSE) ->  | AY12: =IF(AND(AV12=#REF!,AW12=#REF!,#REF!>AX12),#REF!,AU12) ->  | AZ12: =VLOOKUP(AY12,H12:S13,9,FALSE) ->  | BA12: =VLOOKUP(AY12,H12:S13,8,FALSE) ->  | BB12: =VLOOKUP(AY12,H12:S13,6,FALSE) ->  | BF12: =AY12 ->  | BG12: =VLOOKUP(BF12,H12:S13,2,FALSE) ->  | BH12: =VLOOKUP(BF12,H12:S13,3,FALSE) ->  | BI12: =VLOOKUP(BF12,H12:S13,4,FALSE) ->  | BJ12: =VLOOKUP(BF12,H12:S13,5,FALSE) ->  | BK12: =VLOOKUP(BF12,H12:S13,6,FALSE) ->  | BL12: =VLOOKUP(BF12,H12:S13,7,FALSE) ->  | BM12: =VLOOKUP(BF12,H12:S13,8,FALSE) ->  | BN12: =VLOOKUP(BF12,H12:S13,9,FALSE) ->  | BQ12: =IF(#REF!<>"",IF(#REF!>#REF!,#REF!,IF(#REF!>#REF!,#REF!,"Empate")),"") ->  | BR12: =IF(#REF!<>"",IF(#REF!<#REF!,#REF!,IF(#REF!<#REF!,#REF!,"Empate")),"") ->  | BU12: =IF(ISBLANK(CF19),COUNTA(CF20:$CF$28),0) -> 0 | BW12: 1º | BZ12: =AG23 ->  | CA12: 12 | CD12: 1 | CQ12: =VLOOKUP($CP$12,#REF!,2,FALSE) ->  | DE12: PROCV($FK$12;;2;FALSO) | DF12: =IF(#REF!=#REF!,IF(#REF!="Bye",#REF!,IF(#REF!="Bye",#REF!)),(IF(ISBLANK(#REF!),"",IF(#REF!>#REF!,#REF!,#REF!)))) -> 
A13: 7 | C13: 0 | G13: =IF(ISBLANK(D13),"",SUM(IF(D13>D14,1,0)+(IF(E13>E14,1,0)+(IF(F13>F14,1,0))))) ->  | H13: P4 | I13: =IF(G13=G14,IF(C13="Bye",C14,IF(C14="Bye",C13)),(IF(ISBLANK(D13),"",IF(G13>G14,C13,C14)))) -> FALSE | K13: (V2) | O13: =IF(O12=FALSE,"",O12) ->  | S13: =IF(ISBLANK(P13),"",SUM(IF(P13>P9,1,0)+(IF(Q13>Q9,1,0)+(IF(R13>R9,1,0))))) ->  | AM13: =IF(AND(#REF!=AK13,AL13>#REF!),#REF!,AJ13) ->  | AN13: =VLOOKUP(AM13,H12:S13,9,FALSE) ->  | AO13: =VLOOKUP(AM13,H12:S13,8,FALSE) ->  | AP13: =VLOOKUP(AM13,H12:S13,6,FALSE) ->  | AQ13: =IF(AND(AN13=#REF!,AO13=#REF!,#REF!>AP13),#REF!,AM13) ->  | AR13: =VLOOKUP(AQ13,H12:S13,9,FALSE) ->  | AS13: =VLOOKUP(AQ13,H12:S13,8,FALSE) ->  | AT13: =VLOOKUP(AQ13,H12:S13,6,FALSE) ->  | AU13: =IF(AND(AR12=AR13,AS12=AS13,#REF!>AT12),AQ12,AQ13) ->  | AV13: =VLOOKUP(AU13,H12:S13,9,FALSE) ->  | AW13: =VLOOKUP(AU13,H12:S13,8,FALSE) ->  | AX13: =VLOOKUP(AU13,H12:S13,6,FALSE) ->  | AY13: =IF(AND(#REF!=AV13,#REF!=AW13,AX13>#REF!),#REF!,AU13) ->  | AZ13: =VLOOKUP(AY13,H12:S13,9,FALSE) ->  | BA13: =VLOOKUP(AY13,H12:S13,8,FALSE) ->  | BB13: =VLOOKUP(AY13,H12:S13,6,FALSE) ->  | BF13: =AY13 ->  | BG13: =VLOOKUP(BF13,H12:S13,2,FALSE) ->  | BH13: =VLOOKUP(BF13,H12:S13,3,FALSE) ->  | BI13: =VLOOKUP(BF13,H12:S13,4,FALSE) ->  | BJ13: =VLOOKUP(BF13,H12:S13,5,FALSE) ->  | BK13: =VLOOKUP(BF13,H12:S13,6,FALSE) ->  | BL13: =VLOOKUP(BF13,H12:S13,7,FALSE) ->  | BM13: =VLOOKUP(BF13,H12:S13,8,FALSE) ->  | BN13: =VLOOKUP(BF13,H12:S13,9,FALSE) ->  | BQ13: =IF(#REF!<>"",IF(#REF!>#REF!,#REF!,IF(#REF!>#REF!,#REF!,"Empate")),"") ->  | BR13: =IF(#REF!<>"",IF(#REF!<#REF!,#REF!,IF(#REF!<#REF!,#REF!,"Empate")),"") ->  | BU13: =IF(ISBLANK(CF20),COUNTA(CF21:$CF$28),0) -> 0 | BW13: 2º | BZ13: =IF(BZ12=AA15,AA31,AA15) ->  | CA13: 11 | CD13: 2
A14: 8 | C14: 0 | G14: =IF(ISBLANK(D13),"",SUM(IF(D14>D13,1,0)+(IF(E14>E13,1,0)+(IF(F14>F13,1,0))))) ->  | I14: =IF(I13=FALSE,"",I13) ->  | M14: =IF(ISBLANK(J12),"",SUM(IF(J14>J12,1,0)+(IF(K14>K12,1,0)+(IF(L14>L12,1,0))))) ->  | AA14: =IF(Y11=Y19,IF(U11="Bye",U19,IF(U19="Bye",U19)),(IF(ISBLANK(V11),"",IF(Y11>Y19,U11,U19)))) -> FALSE | AF14: P31 | BU14: =IF(ISBLANK(CF21),COUNTA(CF22:$CF$28),0) -> 0 | BW14: 3º | BZ14: =AA23 ->  | CA14: 10 | CD14: 3 | DJ14: PM | DK14: PS | DL14: DIF
A15: 9 | C15: 0 | G15: =IF(ISBLANK(D15),"",SUM(IF(D15>D16,1,0)+(IF(E15>E16,1,0)+(IF(F15>F16,1,0))))) ->  | H15: P5 | I15: =IF(G15=G16,IF(C15="Bye",C16,IF(C16="Bye",C15)),(IF(ISBLANK(D15),"",IF(G15>G16,C15,C16)))) -> FALSE | N15: P19 | U15: (V13) | AA15: =IF(AA14=FALSE,"",AA14) ->  | AE15: =IF(ISBLANK(AB15),"",SUM(IF(AB15>AB31,1,0)+(IF(AC15>AC31,1,0)+(IF(AD15>AD31,1,0))))) ->  | BQ15: =IF(#REF!<>"",IF(#REF!>#REF!,#REF!,IF(#REF!>#REF!,#REF!,"Empate")),"") ->  | BR15: =IF(#REF!<>"",IF(#REF!<#REF!,#REF!,IF(#REF!<#REF!,#REF!,"Empate")),"") ->  | BU15: =IF(ISBLANK(CF22),COUNTA(CF23:$CF$28),0) -> 0 | BW15: 4º | BZ15: =AA27 ->  | CA15: 9 | CD15: 4 | CQ15: p49 | DE15: =IF(#REF!=#REF!,IF(#REF!="Bye",#REF!,IF(#REF!="Bye",#REF!)),(IF(ISBLANK(#REF!),"",IF(#REF!>#REF!,#REF!,#REF!)))) ->  | DF15: =#REF! ->  | DG15: =#REF! ->  | DH15: =#REF! ->  | DI15: =#REF! ->  | DJ15: =DG15+DH15+DI15 ->  | DK15: =DG16+DH16+DI16 ->  | DL15: =DJ15-DK15 -> 
A16: 10 | C16: 0 | G16: =IF(ISBLANK(D15),"",SUM(IF(D16>D15,1,0)+(IF(E16>E15,1,0)+(IF(F16>F15,1,0))))) ->  | I16: =IF(I15=FALSE,"",I15) ->  | M16: =IF(ISBLANK(J16),"",SUM(IF(J16>J18,1,0)+(IF(K16>K18,1,0)+(IF(L16>L18,1,0))))) ->  | O16: =IF(M16=M18,IF(I16="Bye",I18,IF(I18="Bye",I16)),(IF(ISBLANK(J16),"",IF(M16>M18,I16,I18)))) -> FALSE | T16: P26 | AM16: =IF(AND(AK16=#REF!,#REF!>AL16),#REF!,AJ16) ->  | AN16: =VLOOKUP(AM16,H16:S17,9,FALSE) ->  | AO16: =VLOOKUP(AM16,H16:S17,8,FALSE) ->  | AP16: =VLOOKUP(AM16,H16:S17,6,FALSE) ->  | AQ16: =IF(AND(AN16=#REF!,AO16=#REF!,#REF!>AP16),#REF!,AM16) ->  | AR16: =VLOOKUP(AQ16,H16:S17,9,FALSE) ->  | AS16: =VLOOKUP(AQ16,H16:S17,8,FALSE) ->  | AT16: =VLOOKUP(AQ16,H16:S17,6,FALSE) ->  | AU16: =IF(AND(AR16=AR17,AS16=AS17,AT17>AT16),AQ17,AQ16) ->  | AV16: =VLOOKUP(AU16,H16:S17,9,FALSE) ->  | AW16: =VLOOKUP(AU16,H16:S17,8,FALSE) ->  | AX16: =VLOOKUP(AU16,H16:S17,6,FALSE) ->  | AY16: =IF(AND(AV16=#REF!,AW16=#REF!,#REF!>AX16),#REF!,AU16) ->  | AZ16: =VLOOKUP(AY16,H16:S17,9,FALSE) ->  | BA16: =VLOOKUP(AY16,H16:S17,8,FALSE) ->  | BB16: =VLOOKUP(AY16,H16:S17,6,FALSE) ->  | BF16: =AY16 ->  | BG16: =VLOOKUP(BF16,H16:S17,2,FALSE) ->  | BH16: =VLOOKUP(BF16,H16:S17,3,FALSE) ->  | BI16: =VLOOKUP(BF16,H16:S17,4,FALSE) ->  | BJ16: =VLOOKUP(BF16,H16:S17,5,FALSE) ->  | BK16: =VLOOKUP(BF16,H16:S17,6,FALSE) ->  | BL16: =VLOOKUP(BF16,H16:S17,7,FALSE) ->  | BM16: =VLOOKUP(BF16,H16:S17,8,FALSE) ->  | BN16: =VLOOKUP(BF16,H16:S17,9,FALSE) ->  | BQ16: =IF(#REF!<>"",IF(#REF!>#REF!,#REF!,IF(#REF!>#REF!,#REF!,"Empate")),"") ->  | BR16: =IF(#REF!<>"",IF(#REF!<#REF!,#REF!,IF(#REF!<#REF!,#REF!,"Empate")),"") ->  | BU16: =IF(ISBLANK(CF23),COUNTA(CF24:$CF$28),0) -> 0 | BW16: 5º | BZ16: =IF(S9=S13,"",IF(S9>S13,O13,O9)) ->  | CA16: 8 | CD16: 5 | DF16: =#REF! ->  | DG16: =#REF! ->  | DH16: =#REF! ->  | DI16: =#REF! ->  | DK16: =DG15+DH15+DI15 -> 
A17: 11 | C17: 0 | G17: =IF(ISBLANK(D17),"",SUM(IF(D17>D18,1,0)+(IF(E17>E18,1,0)+(IF(F17>F18,1,0))))) ->  | H17: P6 | I17: =IF(G17=G18,IF(C17="Bye",C18,IF(C18="Bye",C17)),(IF(ISBLANK(D17),"",IF(G17>G18,C17,C18)))) -> FALSE | K17: (V3) | O17: =IF(O16=FALSE,"",O16) ->  | S17: =IF(ISBLANK(P17),"",SUM(IF(P17>P21,1,0)+(IF(Q17>Q21,1,0)+(IF(R17>R21,1,0))))) ->  | AM17: =IF(AND(#REF!=AK17,AL17>#REF!),#REF!,AJ17) ->  | AN17: =VLOOKUP(AM17,H16:S17,9,FALSE) ->  | AO17: =VLOOKUP(AM17,H16:S17,8,FALSE) ->  | AP17: =VLOOKUP(AM17,H16:S17,6,FALSE) ->  | AQ17: =IF(AND(AN17=#REF!,AO17=#REF!,#REF!>AP17),#REF!,AM17) ->  | AR17: =VLOOKUP(AQ17,H16:S17,9,FALSE) ->  | AS17: =VLOOKUP(AQ17,H16:S17,8,FALSE) ->  | AT17: =VLOOKUP(AQ17,H16:S17,6,FALSE) ->  | AU17: =IF(AND(AR16=AR17,AS16=AS17,#REF!>AT16),AQ16,AQ17) ->  | AV17: =VLOOKUP(AU17,H16:S17,9,FALSE) ->  | AW17: =VLOOKUP(AU17,H16:S17,8,FALSE) ->  | AX17: =VLOOKUP(AU17,H16:S17,6,FALSE) ->  | AY17: =IF(AND(#REF!=AV17,#REF!=AW17,AX17>#REF!),#REF!,AU17) ->  | AZ17: =VLOOKUP(AY17,H16:S17,9,FALSE) ->  | BA17: =VLOOKUP(AY17,H16:S17,8,FALSE) ->  | BB17: =VLOOKUP(AY17,H16:S17,6,FALSE) ->  | BF17: =AY17 ->  | BG17: =VLOOKUP(BF17,H16:S17,2,FALSE) ->  | BH17: =VLOOKUP(BF17,H16:S17,3,FALSE) ->  | BI17: =VLOOKUP(BF17,H16:S17,4,FALSE) ->  | BJ17: =VLOOKUP(BF17,H16:S17,5,FALSE) ->  | BK17: =VLOOKUP(BF17,H16:S17,6,FALSE) ->  | BL17: =VLOOKUP(BF17,H16:S17,7,FALSE) ->  | BM17: =VLOOKUP(BF17,H16:S17,8,FALSE) ->  | BN17: =VLOOKUP(BF17,H16:S17,9,FALSE) ->  | BQ17: =IF(#REF!<>"",IF(#REF!>#REF!,#REF!,IF(#REF!>#REF!,#REF!,"Empate")),"") ->  | BR17: =IF(#REF!<>"",IF(#REF!<#REF!,#REF!,IF(#REF!<#REF!,#REF!,"Empate")),"") ->  | BU17: =IF(ISBLANK(#REF!),COUNTA(CF24:$CF$28),0) -> 0 | BW17: 6º | BZ17: =IF(S17=S21,"",IF(S17>S21,O21,O17)) ->  | CA17: 8 | CD17: 6 | CQ17: P50 | DE17: P50 | DF17: =#REF! ->  | DG17: =#REF! ->  | DH17: =#REF! ->  | DI17: =#REF! ->  | DK17: =DG18+DH18+DI18 -> 
A18: 12 | C18: 0 | G18: =IF(ISBLANK(D17),"",SUM(IF(D18>D17,1,0)+(IF(E18>E17,1,0)+(IF(F18>F17,1,0))))) ->  | I18: =IF(I17=FALSE,"",I17) ->  | M18: =IF(ISBLANK(J16),"",SUM(IF(J18>J16,1,0)+(IF(K18>K16,1,0)+(IF(L18>L16,1,0))))) ->  | U18: =IF(S17=S21,IF(O17="Bye",O21,IF(O21="Bye",O21)),(IF(ISBLANK(P17),"",IF(S17>S21,O17,O21)))) -> FALSE | BU18: =IF(ISBLANK(CF25),COUNTA(CF26:$CF$28),0) -> 0 | BW18: 7º | BZ18: =IF(S25=S29,"",IF(S25>S29,O29,O25)) ->  | CA18: 8 | CD18: 7 | DF18: =#REF! ->  | DG18: =#REF! ->  | DH18: =#REF! ->  | DI18: =#REF! ->  | DK18: =DG17+DH17+DI17 -> 
A19: 13 | C19: 0 | G19: =IF(ISBLANK(D19),"",SUM(IF(D19>D20,1,0)+(IF(E19>E20,1,0)+(IF(F19>F20,1,0))))) ->  | H19: P7 | I19: =IF(G19=G20,IF(C19="Bye",C20,IF(C20="Bye",C19)),(IF(ISBLANK(D19),"",IF(G19>G20,C19,C20)))) -> FALSE | N19: P20 | O19: (V10) | U19: =IF(U18=FALSE,"",U18) ->  | Y19: =IF(ISBLANK(V19),"",SUM(IF(V19>V11,1,0)+(IF(W19>W11,1,0)+(IF(X19>X11,1,0))))) ->  | BQ19: =IF(#REF!<>"",IF(#REF!>#REF!,#REF!,IF(#REF!>#REF!,#REF!,"Empate")),"") ->  | BR19: =IF(#REF!<>"",IF(#REF!<#REF!,#REF!,IF(#REF!<#REF!,#REF!,"Empate")),"") ->  | BU19: =IF(ISBLANK(CF26),COUNTA(CF27:$CF$28),0) -> 0 | BW19: 8º | BZ19: =IF(S33=S37,"",IF(S33>S37,O37,O33)) ->  | CA19: 8 | CD19: 8 | CQ19: P51 | DE19: P51 | DF19: =#REF! ->  | DG19: =#REF! ->  | DH19: =#REF! ->  | DI19: =#REF! ->  | DK19: =DG20+DH20+DI20 -> 
A20: 14 | C20: 0 | G20: =IF(ISBLANK(D19),"",SUM(IF(D20>D19,1,0)+(IF(E20>E19,1,0)+(IF(F20>F19,1,0))))) ->  | I20: =IF(I19=FALSE,"",I19) ->  | M20: =IF(ISBLANK(J20),"",SUM(IF(J20>J22,1,0)+(IF(K20>K22,1,0)+(IF(L20>L22,1,0))))) ->  | O20: =IF(M20=M22,IF(I20="Bye",I22,IF(I22="Bye",I20)),(IF(ISBLANK(J20),"",IF(M20>M22,I20,I22)))) -> FALSE | AA20: (V15) | AM20: =IF(AND(AK20=#REF!,#REF!>AL20),#REF!,AJ20) ->  | AN20: =VLOOKUP(AM20,H20:S21,9,FALSE) ->  | AO20: =VLOOKUP(AM20,H20:S21,8,FALSE) ->  | AP20: =VLOOKUP(AM20,H20:S21,6,FALSE) ->  | AQ20: =IF(AND(AN20=#REF!,AO20=#REF!,#REF!>AP20),#REF!,AM20) ->  | AR20: =VLOOKUP(AQ20,H20:S21,9,FALSE) ->  | AS20: =VLOOKUP(AQ20,H20:S21,8,FALSE) ->  | AT20: =VLOOKUP(AQ20,H20:S21,6,FALSE) ->  | AU20: =IF(AND(AR20=AR21,AS20=AS21,AT21>AT20),AQ21,AQ20) ->  | AV20: =VLOOKUP(AU20,H20:S21,9,FALSE) ->  | AW20: =VLOOKUP(AU20,H20:S21,8,FALSE) ->  | AX20: =VLOOKUP(AU20,H20:S21,6,FALSE) ->  | AY20: =IF(AND(AV20=#REF!,AW20=#REF!,#REF!>AX20),#REF!,AU20) ->  | AZ20: =VLOOKUP(AY20,H20:S21,9,FALSE) ->  | BA20: =VLOOKUP(AY20,H20:S21,8,FALSE) ->  | BB20: =VLOOKUP(AY20,H20:S21,6,FALSE) ->  | BF20: =AY20 ->  | BG20: =VLOOKUP(BF20,H20:S21,2,FALSE) ->  | BH20: =VLOOKUP(BF20,H20:S21,3,FALSE) ->  | BI20: =VLOOKUP(BF20,H20:S21,4,FALSE) ->  | BJ20: =VLOOKUP(BF20,H20:S21,5,FALSE) ->  | BK20: =VLOOKUP(BF20,H20:S21,6,FALSE) ->  | BL20: =VLOOKUP(BF20,H20:S21,7,FALSE) ->  | BM20: =VLOOKUP(BF20,H20:S21,8,FALSE) ->  | BN20: =VLOOKUP(BF20,H20:S21,9,FALSE) ->  | BQ20: =IF(#REF!<>"",IF(#REF!>#REF!,#REF!,IF(#REF!>#REF!,#REF!,"Empate")),"") ->  | BR20: =IF(#REF!<>"",IF(#REF!<#REF!,#REF!,IF(#REF!<#REF!,#REF!,"Empate")),"") ->  | BU20: =IF(ISBLANK(CF27),COUNTA(CF28:$CF$28),0) -> 0 | BW20: 9º | BZ20: =IF(M8=S10,"",IF(M8>M10,I10,I8)) ->  | CA20: 6 | CD20: 9 | DF20: =#REF! ->  | DG20: =#REF! ->  | DH20: =#REF! ->  | DI20: =#REF! ->  | DK20: =DG19+DH19+DI19 -> 
A21: 15 | C21: 0 | G21: =IF(ISBLANK(D21),"",SUM(IF(D21>D22,1,0)+(IF(E21>E22,1,0)+(IF(F21>F22,1,0))))) ->  | H21: P8 | I21: =IF(G21=G22,IF(C21="Bye",C22,IF(C22="Bye",C21)),(IF(ISBLANK(D21),"",IF(G21>G22,C21,C22)))) -> FALSE | K21: (V4) | O21: =IF(O20=FALSE,"",O20) ->  | S21: =IF(ISBLANK(P21),"",SUM(IF(P21>P17,1,0)+(IF(Q21>Q17,1,0)+(IF(R21>R17,1,0))))) ->  | U21: =IF(Y11=Y19,IF(U11="Bye",U19,IF(U19="Bye",U11)),(IF(ISBLANK(V11),"",IF(Y11>Y19,U19,U11)))) -> FALSE | Y21: P33 | AM21: =IF(AND(#REF!=AK21,AL21>#REF!),#REF!,AJ21) ->  | AN21: =VLOOKUP(AM21,H20:S21,9,FALSE) ->  | AO21: =VLOOKUP(AM21,H20:S21,8,FALSE) ->  | AP21: =VLOOKUP(AM21,H20:S21,6,FALSE) ->  | AQ21: =IF(AND(AN21=#REF!,AO21=#REF!,#REF!>AP21),#REF!,AM21) ->  | AR21: =VLOOKUP(AQ21,H20:S21,9,FALSE) ->  | AS21: =VLOOKUP(AQ21,H20:S21,8,FALSE) ->  | AT21: =VLOOKUP(AQ21,H20:S21,6,FALSE) ->  | AU21: =IF(AND(AR20=AR21,AS20=AS21,#REF!>AT20),AQ20,AQ21) ->  | AV21: =VLOOKUP(AU21,H20:S21,9,FALSE) ->  | AW21: =VLOOKUP(AU21,H20:S21,8,FALSE) ->  | AX21: =VLOOKUP(AU21,H20:S21,6,FALSE) ->  | AY21: =IF(AND(#REF!=AV21,#REF!=AW21,AX21>#REF!),#REF!,AU21) ->  | AZ21: =VLOOKUP(AY21,H20:S21,9,FALSE) ->  | BA21: =VLOOKUP(AY21,H20:S21,8,FALSE) ->  | BB21: =VLOOKUP(AY21,H20:S21,6,FALSE) ->  | BF21: =AY21 ->  | BG21: =VLOOKUP(BF21,H20:S21,2,FALSE) ->  | BH21: =VLOOKUP(BF21,H20:S21,3,FALSE) ->  | BI21: =VLOOKUP(BF21,H20:S21,4,FALSE) ->  | BJ21: =VLOOKUP(BF21,H20:S21,5,FALSE) ->  | BK21: =VLOOKUP(BF21,H20:S21,6,FALSE) ->  | BL21: =VLOOKUP(BF21,H20:S21,7,FALSE) ->  | BM21: =VLOOKUP(BF21,H20:S21,8,FALSE) ->  | BN21: =VLOOKUP(BF21,H20:S21,9,FALSE) ->  | BQ21: =IF(#REF!<>"",IF(#REF!>#REF!,#REF!,IF(#REF!>#REF!,#REF!,"Empate")),"") ->  | BR21: =IF(#REF!<>"",IF(#REF!<#REF!,#REF!,IF(#REF!<#REF!,#REF!,"Empate")),"") ->  | BU21: =IF(ISBLANK(CF28),COUNTA(BX$86:$BX87),0) -> 0 | BW21: 10º | BZ21: =IF(M12=S14,"",IF(M12>M14,I14,I12)) ->  | CA21: 6 | CD21: 10 | CQ21: P52 | DE21: P52 | DF21: =#REF! ->  | DG21: =#REF! ->  | DH21: =#REF! ->  | DI21: =#REF! ->  | DK21: =DG22+DH22+DI22 -> 
A22: 16 | C22: 0 | G22: =IF(ISBLANK(D21),"",SUM(IF(D22>D21,1,0)+(IF(E22>E21,1,0)+(IF(F22>F21,1,0))))) ->  | I22: =IF(I21=FALSE,"",I21) ->  | M22: =IF(ISBLANK(J20),"",SUM(IF(J22>J20,1,0)+(IF(K22>K20,1,0)+(IF(L22>L20,1,0))))) ->  | U22: =IF(U21=FALSE,"",U21) ->  | Y22: =IF(ISBLANK(V22),"",SUM(IF(V22>V24,1,0)+(IF(W22>W24,1,0)+(IF(X22>X24,1,0))))) ->  | AA22: =IF(Y22=Y24,IF(U22="Bye",U24,IF(U24="Bye",U22)),(IF(ISBLANK(V22),"",IF(Y22>Y24,U22,U24)))) -> FALSE | AG22: P32 | BW22: 11º | BZ22: =IF(M16=M18,"",IF(M16>M18,I18,I16)) ->  | CA22: 6 | CD22: 11 | DF22: =#REF! ->  | DG22: =#REF! ->  | DH22: =#REF! ->  | DI22: =#REF! ->  | DK22: =DG21+DH21+DI21 -> 
A23: 17 | C23: 0 | G23: =IF(ISBLANK(D23),"",SUM(IF(D23>D24,1,0)+(IF(E23>E24,1,0)+(IF(F23>F24,1,0))))) ->  | H23: P9 | I23: =IF(G23=G24,IF(C23="Bye",C24,IF(C24="Bye",C23)),(IF(ISBLANK(D23),"",IF(G23>G24,C23,C24)))) -> FALSE | N23: P21 | U23: =IF(Y27=Y35,IF(U27="Bye",U35,IF(U35="Bye",U27)),(IF(ISBLANK(V27),"",IF(Y27>Y35,U35,U27)))) -> FALSE | W23: (V7) | AA23: =IF(AA22=FALSE,"",AA22) ->  | AG23: =IF(AE15=AE31,"",IF(AE15>AE31,AA15,AA31)) ->  | BQ23: =IF(#REF!<>"",IF(#REF!>#REF!,#REF!,IF(#REF!>#REF!,#REF!,"Empate")),"") ->  | BR23: =IF(#REF!<>"",IF(#REF!<#REF!,#REF!,IF(#REF!<#REF!,#REF!,"Empate")),"") ->  | BW23: 12º | BZ23: =IF(M20=M22,"",IF(M20>M22,I22,I20)) ->  | CA23: 6 | CD23: 12
A24: 18 | C24: 0 | G24: =IF(ISBLANK(D23),"",SUM(IF(D24>D23,1,0)+(IF(E24>E23,1,0)+(IF(F24>F23,1,0))))) ->  | I24: =IF(I23=FALSE,"",I23) ->  | M24: =IF(ISBLANK(J24),"",SUM(IF(J24>J26,1,0)+(IF(K24>K26,1,0)+(IF(L24>L26,1,0))))) ->  | O24: =IF(M24=M26,IF(I24="Bye",I26,IF(I26="Bye",I24)),(IF(ISBLANK(J24),"",IF(M24>M26,I24,I26)))) -> FALSE | S24: P27 | U24: =IF(U23=FALSE,"",U23) ->  | Y24: =IF(ISBLANK(V22),"",SUM(IF(V24>V22,1,0)+(IF(W24>W22,1,0)+(IF(X24>X22,1,0))))) ->  | AA24: 3ºCLASSICADO | AM24: =IF(AND(AK24=AK25,AL25>AL24),AJ25,AJ24) -> 0 | AN24: =VLOOKUP(AM24,H24:S25,9,FALSE) ->  | AO24: =VLOOKUP(AM24,H24:S25,8,FALSE) ->  | AP24: =VLOOKUP(AM24,H24:S25,6,FALSE) ->  | AQ24: =IF(AND(#REF!=AN24,#REF!=AO24,AP24>#REF!),#REF!,AM24) ->  | AR24: =VLOOKUP(AQ24,H24:S25,9,FALSE) ->  | AS24: =VLOOKUP(AQ24,H24:S25,8,FALSE) ->  | AT24: =VLOOKUP(AQ24,H24:S25,6,FALSE) ->  | AU24: =IF(AND(AR24=#REF!,AS24=#REF!,#REF!>AT24),#REF!,AQ24) ->  | AV24: =VLOOKUP(AU24,H24:S25,9,FALSE) ->  | AW24: =VLOOKUP(AU24,H24:S25,8,FALSE) ->  | AX24: =VLOOKUP(AU24,H24:S25,6,FALSE) ->  | AY24: =IF(AND(AV24=AV25,AW24=AW25,AX25>AX24),AU25,AU24) ->  | AZ24: =VLOOKUP(AY24,H24:S25,9,FALSE) ->  | BA24: =VLOOKUP(AY24,H24:S25,8,FALSE) ->  | BB24: =VLOOKUP(AY24,H24:S25,6,FALSE) ->  | BF24: =AY24 ->  | BG24: =VLOOKUP(BF24,H24:S25,2,FALSE) ->  | BH24: =VLOOKUP(BF24,H24:S25,3,FALSE) ->  | BI24: =VLOOKUP(BF24,H24:S25,4,FALSE) ->  | BJ24: =VLOOKUP(BF24,H24:S25,5,FALSE) ->  | BK24: =VLOOKUP(BF24,H24:S25,6,FALSE) ->  | BL24: =VLOOKUP(BF24,H24:S25,7,FALSE) ->  | BM24: =VLOOKUP(BF24,H24:S25,8,FALSE) ->  | BN24: =VLOOKUP(BF24,H24:S25,9,FALSE) ->  | BQ24: =IF(#REF!<>"",IF(#REF!>#REF!,#REF!,IF(#REF!>#REF!,#REF!,"Empate")),"") ->  | BR24: =IF(#REF!<>"",IF(#REF!<#REF!,#REF!,IF(#REF!<#REF!,#REF!,"Empate")),"") ->  | BW24: 13º | BZ24: =IF(M24=M26,"",IF(M24>M26,I26,I24)) ->  | CA24: 4 | CD24: 13
A25: 19 | C25: 0 | G25: =IF(ISBLANK(D25),"",SUM(IF(D25>D26,1,0)+(IF(E25>E26,1,0)+(IF(F25>F26,1,0))))) ->  | H25: P10 | I25: =IF(G25=G26,IF(C25="Bye",C26,IF(C26="Bye",C25)),(IF(ISBLANK(D25),"",IF(G25>G26,C25,C26)))) -> FALSE | K25: (V5) | O25: =IF(O24=FALSE,"",O24) ->  | S25: =IF(ISBLANK(P25),"",SUM(IF(P25>P29,1,0)+(IF(Q25>Q29,1,0)+(IF(R25>R29,1,0))))) ->  | AG25: =AG23 ->  | AM25: =IF(AND(AK24=AK25,AL25>AL24),AJ24,AJ25) -> 0 | AN25: =VLOOKUP(AM25,H24:S25,9,FALSE) ->  | AO25: =VLOOKUP(AM25,H24:S25,8,FALSE) ->  | AP25: =VLOOKUP(AM25,H24:S25,6,FALSE) ->  | AQ25: =IF(AND(AN25=#REF!,AO25=#REF!,#REF!>AP25),#REF!,AM25) ->  | AR25: =VLOOKUP(AQ25,H24:S25,9,FALSE) ->  | AS25: =VLOOKUP(AQ25,H24:S25,8,FALSE) ->  | AT25: =VLOOKUP(AQ25,H24:S25,6,FALSE) ->  | AU25: =IF(AND(#REF!=AR25,#REF!=AS25,AT24>#REF!),#REF!,AQ25) ->  | AV25: =VLOOKUP(AU25,H24:S25,9,FALSE) ->  | AW25: =VLOOKUP(AU25,H24:S25,8,FALSE) ->  | AX25: =VLOOKUP(AU25,H24:S25,6,FALSE) ->  | AY25: =IF(AND(AV24=AV25,AW24=AW25,AX25>AX24),AU24,AU25) ->  | AZ25: =VLOOKUP(AY25,H24:S25,9,FALSE) ->  | BA25: =VLOOKUP(AY25,H24:S25,8,FALSE) ->  | BB25: =VLOOKUP(AY25,H24:S25,6,FALSE) ->  | BF25: =AY25 ->  | BG25: =VLOOKUP(BF25,H24:S25,2,FALSE) ->  | BH25: =VLOOKUP(BF25,H24:S25,3,FALSE) ->  | BI25: =VLOOKUP(BF25,H24:S25,4,FALSE) ->  | BJ25: =VLOOKUP(BF25,H24:S25,5,FALSE) ->  | BK25: =VLOOKUP(BF25,H24:S25,6,FALSE) ->  | BL25: =VLOOKUP(BF25,H24:S25,7,FALSE) ->  | BM25: =VLOOKUP(BF25,H24:S25,8,FALSE) ->  | BN25: =VLOOKUP(BF25,H24:S25,9,FALSE) ->  | BQ25: =IF(#REF!<>"",IF(#REF!>#REF!,#REF!,IF(#REF!>#REF!,#REF!,"Empate")),"") ->  | BR25: =IF(#REF!<>"",IF(#REF!<#REF!,#REF!,IF(#REF!<#REF!,#REF!,"Empate")),"") ->  | BW25: 14º | BZ25: =IF(M28=M30,"",IF(M28>M30,I30,I28)) ->  | CA25: 4 | CD25: 14
A26: 20 | C26: 0 | G26: =IF(ISBLANK(D25),"",SUM(IF(D26>D25,1,0)+(IF(E26>E25,1,0)+(IF(F26>F25,1,0))))) ->  | I26: =IF(I25=FALSE,"",I25) ->  | M26: =IF(ISBLANK(J24),"",SUM(IF(J26>J24,1,0)+(IF(K26>K24,1,0)+(IF(L26>L24,1,0))))) ->  | U26: =IF(S25=S29,IF(O25="Bye",O29,IF(O29="Bye",O29)),(IF(ISBLANK(P25),"",IF(S25>S29,O25,O29)))) -> FALSE | Z26: P30 | AA26: =IF(Y22=Y24,IF(U22="Bye",U24,IF(U24="Bye",U22)),(IF(ISBLANK(V22),"",IF(Y22>Y24,U24,U22)))) -> FALSE | AG26: CAMPEÃO | BW26: 15º | BZ26: =IF(M32=M34,"",IF(M32>M34,I34,I32)) ->  | CA26: 4 | CD26: 15
A27: 21 | C27: 0 | G27: =IF(ISBLANK(D27),"",SUM(IF(D27>D28,1,0)+(IF(E27>E28,1,0)+(IF(F27>F28,1,0))))) ->  | H27: P11 | I27: =IF(G27=G28,IF(C27="Bye",C28,IF(C28="Bye",C27)),(IF(ISBLANK(D27),"",IF(G27>G28,C27,C28)))) -> FALSE | N27: P22 | O27: (V11) | U27: =IF(U26=FALSE,"",U26) ->  | Y27: =IF(ISBLANK(V27),"",SUM(IF(V27>V35,1,0)+(IF(W27>W35,1,0)+(IF(X27>X35,1,0))))) ->  | AA27: =IF(AA26=FALSE,"",AA26) ->  | BQ27: =IF(#REF!<>"",IF(#REF!>#REF!,#REF!,IF(#REF!>#REF!,#REF!,"Empate")),"") ->  | BR27: =IF(#REF!<>"",IF(#REF!<#REF!,#REF!,IF(#REF!<#REF!,#REF!,"Empate")),"") ->  | BW27: 16º | BZ27: =IF(M36=M38,"",IF(M36>M38,I38,I36)) ->  | CA27: 4 | CD27: 16
A28: 22 | C28: 0 | G28: =IF(ISBLANK(D27),"",SUM(IF(D28>D27,1,0)+(IF(E28>E27,1,0)+(IF(F28>F27,1,0))))) ->  | I28: =IF(I27=FALSE,"",I27) ->  | M28: =IF(ISBLANK(J28),"",SUM(IF(J28>J30,1,0)+(IF(K28>K30,1,0)+(IF(L28>L30,1,0))))) ->  | O28: =IF(M28=M30,IF(I28="Bye",I30,IF(I30="Bye",I28)),(IF(ISBLANK(J28),"",IF(M28>M30,I28,I30)))) -> FALSE | AA28: 4ºCLASSICADO | AM28: =IF(AND(AK28=#REF!,#REF!>AL28),#REF!,AJ28) ->  | AN28: =VLOOKUP(AM28,H28:S29,9,FALSE) ->  | AO28: =VLOOKUP(AM28,H28:S29,8,FALSE) ->  | AP28: =VLOOKUP(AM28,H28:S29,6,FALSE) ->  | AQ28: =IF(AND(AN28=#REF!,AO28=#REF!,#REF!>AP28),#REF!,AM28) ->  | AR28: =VLOOKUP(AQ28,H28:S29,9,FALSE) ->  | AS28: =VLOOKUP(AQ28,H28:S29,8,FALSE) ->  | AT28: =VLOOKUP(AQ28,H28:S29,6,FALSE) ->  | AU28: =IF(AND(AR28=AR29,AS28=AS29,AT29>AT28),AQ29,AQ28) ->  | AV28: =VLOOKUP(AU28,H28:S29,9,FALSE) ->  | AW28: =VLOOKUP(AU28,H28:S29,8,FALSE) ->  | AX28: =VLOOKUP(AU28,H28:S29,6,FALSE) ->  | AY28: =IF(AND(AV28=#REF!,AW28=#REF!,#REF!>AX28),#REF!,AU28) ->  | AZ28: =VLOOKUP(AY28,H28:S29,9,FALSE) ->  | BA28: =VLOOKUP(AY28,H28:S29,8,FALSE) ->  | BB28: =VLOOKUP(AY28,H28:S29,6,FALSE) ->  | BF28: =AY28 ->  | BG28: =VLOOKUP(BF28,H28:S29,2,FALSE) ->  | BH28: =VLOOKUP(BF28,H28:S29,3,FALSE) ->  | BI28: =VLOOKUP(BF28,H28:S29,4,FALSE) ->  | BJ28: =VLOOKUP(BF28,H28:S29,5,FALSE) ->  | BK28: =VLOOKUP(BF28,H28:S29,6,FALSE) ->  | BL28: =VLOOKUP(BF28,H28:S29,7,FALSE) ->  | BM28: =VLOOKUP(BF28,H28:S29,8,FALSE) ->  | BN28: =VLOOKUP(BF28,H28:S29,9,FALSE) ->  | BQ28: =IF(#REF!<>"",IF(#REF!>#REF!,#REF!,IF(#REF!>#REF!,#REF!,"Empate")),"") ->  | BR28: =IF(#REF!<>"",IF(#REF!<#REF!,#REF!,IF(#REF!<#REF!,#REF!,"Empate")),"") ->  | BW28: 17º | BZ28: =IF(G7=G8,"",IF(G7>G8,C8,C7)) ->  | CA28: 2 | CD28: 17
A29: 23 | C29: 0 | G29: =IF(ISBLANK(D29),"",SUM(IF(D29>D30,1,0)+(IF(E29>E30,1,0)+(IF(F29>F30,1,0))))) ->  | H29: P12 | I29: =IF(G29=G30,IF(C29="Bye",C30,IF(C30="Bye",C29)),(IF(ISBLANK(D29),"",IF(G29>G30,C29,C30)))) -> FALSE | K29: (V6) | O29: =IF(O28=FALSE,"",O28) ->  | S29: =IF(ISBLANK(P29),"",SUM(IF(P29>P25,1,0)+(IF(Q29>Q25,1,0)+(IF(R29>R25,1,0))))) ->  | AM29: =IF(AND(#REF!=AK29,AL29>#REF!),#REF!,AJ29) ->  | AN29: =VLOOKUP(AM29,H28:S29,9,FALSE) ->  | AO29: =VLOOKUP(AM29,H28:S29,8,FALSE) ->  | AP29: =VLOOKUP(AM29,H28:S29,6,FALSE) ->  | AQ29: =IF(AND(AN29=#REF!,AO29=#REF!,#REF!>AP29),#REF!,AM29) ->  | AR29: =VLOOKUP(AQ29,H28:S29,9,FALSE) ->  | AS29: =VLOOKUP(AQ29,H28:S29,8,FALSE) ->  | AT29: =VLOOKUP(AQ29,H28:S29,6,FALSE) ->  | AU29: =IF(AND(AR28=AR29,AS28=AS29,#REF!>AT28),AQ28,AQ29) ->  | AV29: =VLOOKUP(AU29,H28:S29,9,FALSE) ->  | AW29: =VLOOKUP(AU29,H28:S29,8,FALSE) ->  | AX29: =VLOOKUP(AU29,H28:S29,6,FALSE) ->  | AY29: =IF(AND(#REF!=AV29,#REF!=AW29,AX29>#REF!),#REF!,AU29) ->  | AZ29: =VLOOKUP(AY29,H28:S29,9,FALSE) ->  | BA29: =VLOOKUP(AY29,H28:S29,8,FALSE) ->  | BB29: =VLOOKUP(AY29,H28:S29,6,FALSE) ->  | BF29: =AY29 ->  | BG29: =VLOOKUP(BF29,H28:S29,2,FALSE) ->  | BH29: =VLOOKUP(BF29,H28:S29,3,FALSE) ->  | BI29: =VLOOKUP(BF29,H28:S29,4,FALSE) ->  | BJ29: =VLOOKUP(BF29,H28:S29,5,FALSE) ->  | BK29: =VLOOKUP(BF29,H28:S29,6,FALSE) ->  | BL29: =VLOOKUP(BF29,H28:S29,7,FALSE) ->  | BM29: =VLOOKUP(BF29,H28:S29,8,FALSE) ->  | BN29: =VLOOKUP(BF29,H28:S29,9,FALSE) ->  | BQ29: =IF(#REF!<>"",IF(#REF!>#REF!,#REF!,IF(#REF!>#REF!,#REF!,"Empate")),"") ->  | BR29: =IF(#REF!<>"",IF(#REF!<#REF!,#REF!,IF(#REF!<#REF!,#REF!,"Empate")),"") ->  | BW29: 18º | BZ29: =IF(G9=G10,"",IF(G9>G10,C10,C9)) ->  | CA29: 2 | CD29: 18
A30: 24 | C30: 0 | G30: =IF(ISBLANK(D29),"",SUM(IF(D30>D29,1,0)+(IF(E30>E29,1,0)+(IF(F30>F29,1,0))))) ->  | I30: =IF(I29=FALSE,"",I29) ->  | M30: =IF(ISBLANK(J28),"",SUM(IF(J30>J28,1,0)+(IF(K30>K28,1,0)+(IF(L30>L28,1,0))))) ->  | AA30: =IF(Y27=Y35,IF(U27="Bye",U35,IF(U35="Bye",U35)),(IF(ISBLANK(V27),"",IF(Y27>Y35,U27,U35)))) -> FALSE | BW30: 19º | BZ30: =IF(G11=G12,"",IF(G11>G12,C12,C11)) ->  | CA30: 2 | CD30: 19
A31: 25 | C31: 0 | G31: =IF(ISBLANK(D31),"",SUM(IF(D31>D32,1,0)+(IF(E31>E32,1,0)+(IF(F31>F32,1,0))))) ->  | H31: P13 | I31: =IF(G31=G32,IF(C31="Bye",C32,IF(C32="Bye",C31)),(IF(ISBLANK(D31),"",IF(G31>G32,C31,C32)))) -> FALSE | N31: P23 | U31: (V14) | AA31: =IF(AA30=FALSE,"",AA30) ->  | AE31: =IF(ISBLANK(AB31),"",SUM(IF(AB31>AB15,1,0)+(IF(AC31>AC15,1,0)+(IF(AD31>AD15,1,0))))) ->  | BQ31: =IF(#REF!<>"",IF(#REF!>#REF!,#REF!,IF(#REF!>#REF!,#REF!,"Empate")),"") ->  | BR31: =IF(#REF!<>"",IF(#REF!<#REF!,#REF!,IF(#REF!<#REF!,#REF!,"Empate")),"") ->  | BW31: 20º | BZ31: =IF(G13=G14,"",IF(G13>G14,C14,C13)) ->  | CA31: 2 | CD31: 20
A32: 26 | C32: 0 | G32: =IF(ISBLANK(D31),"",SUM(IF(D32>D31,1,0)+(IF(E32>E31,1,0)+(IF(F32>F31,1,0))))) ->  | I32: =IF(I31=FALSE,"",I31) ->  | M32: =IF(ISBLANK(J32),"",SUM(IF(J32>J34,1,0)+(IF(K32>K34,1,0)+(IF(L32>L34,1,0))))) ->  | O32: =IF(M32=M34,IF(I32="Bye",I34,IF(I34="Bye",I32)),(IF(ISBLANK(J32),"",IF(M32>M34,I32,I34)))) -> FALSE | T32: P28 | AM32: =IF(AND(AK32=#REF!,#REF!>AL32),#REF!,AJ32) ->  | AN32: =VLOOKUP(AM32,H32:S33,9,FALSE) ->  | AO32: =VLOOKUP(AM32,H32:S33,8,FALSE) ->  | AP32: =VLOOKUP(AM32,H32:S33,6,FALSE) ->  | AQ32: =IF(AND(AN32=#REF!,AO32=#REF!,#REF!>AP32),#REF!,AM32) ->  | AR32: =VLOOKUP(AQ32,H32:S33,9,FALSE) ->  | AS32: =VLOOKUP(AQ32,H32:S33,8,FALSE) ->  | AT32: =VLOOKUP(AQ32,H32:S33,6,FALSE) ->  | AU32: =IF(AND(AR32=AR33,AS32=AS33,AT33>AT32),AQ33,AQ32) ->  | AV32: =VLOOKUP(AU32,H32:S33,9,FALSE) ->  | AW32: =VLOOKUP(AU32,H32:S33,8,FALSE) ->  | AX32: =VLOOKUP(AU32,H32:S33,6,FALSE) ->  | AY32: =IF(AND(AV32=#REF!,AW32=#REF!,#REF!>AX32),#REF!,AU32) ->  | AZ32: =VLOOKUP(AY32,H32:S33,9,FALSE) ->  | BA32: =VLOOKUP(AY32,H32:S33,8,FALSE) ->  | BB32: =VLOOKUP(AY32,H32:S33,6,FALSE) ->  | BF32: =AY32 ->  | BG32: =VLOOKUP(BF32,H32:S33,2,FALSE) ->  | BH32: =VLOOKUP(BF32,H32:S33,3,FALSE) ->  | BI32: =VLOOKUP(BF32,H32:S33,4,FALSE) ->  | BJ32: =VLOOKUP(BF32,H32:S33,5,FALSE) ->  | BK32: =VLOOKUP(BF32,H32:S33,6,FALSE) ->  | BL32: =VLOOKUP(BF32,H32:S33,7,FALSE) ->  | BM32: =VLOOKUP(BF32,H32:S33,8,FALSE) ->  | BN32: =VLOOKUP(BF32,H32:S33,9,FALSE) ->  | BQ32: =IF(#REF!<>"",IF(#REF!>#REF!,#REF!,IF(#REF!>#REF!,#REF!,"Empate")),"") ->  | BR32: =IF(#REF!<>"",IF(#REF!<#REF!,#REF!,IF(#REF!<#REF!,#REF!,"Empate")),"") ->  | BW32: 21º | BZ32: =IF(G15=G16,"",IF(G15>G16,C16,C15)) ->  | CA32: 2 | CD32: 21
A33: 27 | C33: 0 | G33: =IF(ISBLANK(D33),"",SUM(IF(D33>D34,1,0)+(IF(E33>E34,1,0)+(IF(F33>F34,1,0))))) ->  | H33: P14 | I33: =IF(G33=G34,IF(C33="Bye",C34,IF(C34="Bye",C33)),(IF(ISBLANK(D33),"",IF(G33>G34,C33,C34)))) -> FALSE | K33: (V7) | O33: =IF(O32=FALSE,"",O32) ->  | S33: =IF(ISBLANK(P33),"",SUM(IF(P33>P37,1,0)+(IF(Q33>Q37,1,0)+(IF(R33>R37,1,0))))) ->  | AM33: =IF(AND(#REF!=AK33,AL33>#REF!),#REF!,AJ33) ->  | AN33: =VLOOKUP(AM33,H32:S33,9,FALSE) ->  | AO33: =VLOOKUP(AM33,H32:S33,8,FALSE) ->  | AP33: =VLOOKUP(AM33,H32:S33,6,FALSE) ->  | AQ33: =IF(AND(AN33=#REF!,AO33=#REF!,#REF!>AP33),#REF!,AM33) ->  | AR33: =VLOOKUP(AQ33,H32:S33,9,FALSE) ->  | AS33: =VLOOKUP(AQ33,H32:S33,8,FALSE) ->  | AT33: =VLOOKUP(AQ33,H32:S33,6,FALSE) ->  | AU33: =IF(AND(AR32=AR33,AS32=AS33,#REF!>AT32),AQ32,AQ33) ->  | AV33: =VLOOKUP(AU33,H32:S33,9,FALSE) ->  | AW33: =VLOOKUP(AU33,H32:S33,8,FALSE) ->  | AX33: =VLOOKUP(AU33,H32:S33,6,FALSE) ->  | AY33: =IF(AND(#REF!=AV33,#REF!=AW33,AX33>#REF!),#REF!,AU33) ->  | AZ33: =VLOOKUP(AY33,H32:S33,9,FALSE) ->  | BA33: =VLOOKUP(AY33,H32:S33,8,FALSE) ->  | BB33: =VLOOKUP(AY33,H32:S33,6,FALSE) ->  | BF33: =AY33 ->  | BG33: =VLOOKUP(BF33,H32:S33,2,FALSE) ->  | BH33: =VLOOKUP(BF33,H32:S33,3,FALSE) ->  | BI33: =VLOOKUP(BF33,H32:S33,4,FALSE) ->  | BJ33: =VLOOKUP(BF33,H32:S33,5,FALSE) ->  | BK33: =VLOOKUP(BF33,H32:S33,6,FALSE) ->  | BL33: =VLOOKUP(BF33,H32:S33,7,FALSE) ->  | BM33: =VLOOKUP(BF33,H32:S33,8,FALSE) ->  | BN33: =VLOOKUP(BF33,H32:S33,9,FALSE) ->  | BQ33: =IF(#REF!<>"",IF(#REF!>#REF!,#REF!,IF(#REF!>#REF!,#REF!,"Empate")),"") ->  | BR33: =IF(#REF!<>"",IF(#REF!<#REF!,#REF!,IF(#REF!<#REF!,#REF!,"Empate")),"") ->  | BW33: 22º | BZ33: =IF(G17=G18,"",IF(G17>G18,C18,C17)) ->  | CA33: 2 | CD33: 22
A34: 28 | C34: 0 | G34: =IF(ISBLANK(D33),"",SUM(IF(D34>D33,1,0)+(IF(E34>E33,1,0)+(IF(F34>F33,1,0))))) ->  | I34: =IF(I33=FALSE,"",I33) ->  | M34: =IF(ISBLANK(J32),"",SUM(IF(J34>J32,1,0)+(IF(K34>K32,1,0)+(IF(L34>L32,1,0))))) ->  | U34: =IF(S33=S37,IF(O33="Bye",O37,IF(O37="Bye",O37)),(IF(ISBLANK(P33),"",IF(S33>S37,O33,O37)))) -> FALSE | BW34: 23º | BZ34: =IF(G19=G20,"",IF(G19>G20,C20,C19)) ->  | CA34: 2 | CD34: 23
A35: 29 | C35: 0 | G35: =IF(ISBLANK(D35),"",SUM(IF(D35>D36,1,0)+(IF(E35>E36,1,0)+(IF(F35>F36,1,0))))) ->  | H35: P15 | I35: =IF(G35=G36,IF(C35="Bye",C36,IF(C36="Bye",C35)),(IF(ISBLANK(D35),"",IF(G35>G36,C35,C36)))) -> FALSE | N35: P24 | O35: (V12) | U35: =IF(U34=FALSE,"",U34) ->  | Y35: =IF(ISBLANK(V35),"",SUM(IF(V35>V27,1,0)+(IF(W35>W27,1,0)+(IF(X35>X27,1,0))))) ->  | BQ35: =IF(#REF!<>"",IF(#REF!>#REF!,#REF!,IF(#REF!>#REF!,#REF!,"Empate")),"") ->  | BR35: =IF(#REF!<>"",IF(#REF!<#REF!,#REF!,IF(#REF!<#REF!,#REF!,"Empate")),"") ->  | BW35: 24º | BZ35: =IF(G21=G22,"",IF(G21>G22,C22,C21)) ->  | CA35: 2 | CD35: 24
A36: 30 | C36: 0 | G36: =IF(ISBLANK(D35),"",SUM(IF(D36>D35,1,0)+(IF(E36>E35,1,0)+(IF(F36>F35,1,0))))) ->  | I36: =IF(I35=FALSE,"",I35) ->  | M36: =IF(ISBLANK(J36),"",SUM(IF(J36>J38,1,0)+(IF(K36>K38,1,0)+(IF(L36>L38,1,0))))) ->  | O36: =IF(M36=M38,IF(I36="Bye",I38,IF(I38="Bye",I36)),(IF(ISBLANK(J36),"",IF(M36>M38,I36,I38)))) -> FALSE | AM36: =IF(AND(AK36=#REF!,#REF!>AL36),#REF!,AJ36) ->  | AN36: =VLOOKUP(AM36,H36:S37,9,FALSE) ->  | AO36: =VLOOKUP(AM36,H36:S37,8,FALSE) ->  | AP36: =VLOOKUP(AM36,H36:S37,6,FALSE) ->  | AQ36: =IF(AND(AN36=#REF!,AO36=#REF!,#REF!>AP36),#REF!,AM36) ->  | AR36: =VLOOKUP(AQ36,H36:S37,9,FALSE) ->  | AS36: =VLOOKUP(AQ36,H36:S37,8,FALSE) ->  | AT36: =VLOOKUP(AQ36,H36:S37,6,FALSE) ->  | AU36: =IF(AND(AR36=AR37,AS36=AS37,AT37>AT36),AQ37,AQ36) ->  | AV36: =VLOOKUP(AU36,H36:S37,9,FALSE) ->  | AW36: =VLOOKUP(AU36,H36:S37,8,FALSE) ->  | AX36: =VLOOKUP(AU36,H36:S37,6,FALSE) ->  | AY36: =IF(AND(AV36=#REF!,AW36=#REF!,#REF!>AX36),#REF!,AU36) ->  | AZ36: =VLOOKUP(AY36,H36:S37,9,FALSE) ->  | BA36: =VLOOKUP(AY36,H36:S37,8,FALSE) ->  | BB36: =VLOOKUP(AY36,H36:S37,6,FALSE) ->  | BF36: =AY36 ->  | BG36: =VLOOKUP(BF36,H36:S37,2,FALSE) ->  | BH36: =VLOOKUP(BF36,H36:S37,3,FALSE) ->  | BI36: =VLOOKUP(BF36,H36:S37,4,FALSE) ->  | BJ36: =VLOOKUP(BF36,H36:S37,5,FALSE) ->  | BK36: =VLOOKUP(BF36,H36:S37,6,FALSE) ->  | BL36: =VLOOKUP(BF36,H36:S37,7,FALSE) ->  | BM36: =VLOOKUP(BF36,H36:S37,8,FALSE) ->  | BN36: =VLOOKUP(BF36,H36:S37,9,FALSE) ->  | BQ36: =IF(#REF!<>"",IF(#REF!>#REF!,#REF!,IF(#REF!>#REF!,#REF!,"Empate")),"") ->  | BR36: =IF(#REF!<>"",IF(#REF!<#REF!,#REF!,IF(#REF!<#REF!,#REF!,"Empate")),"") ->  | BW36: 25º | BZ36: =IF(G23=G24,"",IF(G23>G24,C24,C23)) ->  | CA36: 1 | CD36: 25
A37: 31 | C37: 0 | G37: =IF(ISBLANK(D37),"",SUM(IF(D37>D38,1,0)+(IF(E37>E38,1,0)+(IF(F37>F38,1,0))))) ->  | H37: P16 | I37: =IF(G37=G38,IF(C37="Bye",C38,IF(C38="Bye",C37)),(IF(ISBLANK(D37),"",IF(G37>G38,C37,C38)))) -> FALSE | K37: (V8) | O37: =IF(O36=FALSE,"",O36) ->  | S37: =IF(ISBLANK(P37),"",SUM(IF(P37>P33,1,0)+(IF(Q37>Q33,1,0)+(IF(R37>R33,1,0))))) ->  | AM37: =IF(AND(#REF!=AK37,AL37>#REF!),#REF!,AJ37) ->  | AN37: =VLOOKUP(AM37,H36:S37,9,FALSE) ->  | AO37: =VLOOKUP(AM37,H36:S37,8,FALSE) ->  | AP37: =VLOOKUP(AM37,H36:S37,6,FALSE) ->  | AQ37: =IF(AND(AN37=#REF!,AO37=#REF!,#REF!>AP37),#REF!,AM37) ->  | AR37: =VLOOKUP(AQ37,H36:S37,9,FALSE) ->  | AS37: =VLOOKUP(AQ37,H36:S37,8,FALSE) ->  | AT37: =VLOOKUP(AQ37,H36:S37,6,FALSE) ->  | AU37: =IF(AND(AR36=AR37,AS36=AS37,#REF!>AT36),AQ36,AQ37) ->  | AV37: =VLOOKUP(AU37,H36:S37,9,FALSE) ->  | AW37: =VLOOKUP(AU37,H36:S37,8,FALSE) ->  | AX37: =VLOOKUP(AU37,H36:S37,6,FALSE) ->  | AY37: =IF(AND(#REF!=AV37,#REF!=AW37,AX37>#REF!),#REF!,AU37) ->  | AZ37: =VLOOKUP(AY37,H36:S37,9,FALSE) ->  | BA37: =VLOOKUP(AY37,H36:S37,8,FALSE) ->  | BB37: =VLOOKUP(AY37,H36:S37,6,FALSE) ->  | BF37: =AY37 ->  | BG37: =VLOOKUP(BF37,H36:S37,2,FALSE) ->  | BH37: =VLOOKUP(BF37,H36:S37,3,FALSE) ->  | BI37: =VLOOKUP(BF37,H36:S37,4,FALSE) ->  | BJ37: =VLOOKUP(BF37,H36:S37,5,FALSE) ->  | BK37: =VLOOKUP(BF37,H36:S37,6,FALSE) ->  | BL37: =VLOOKUP(BF37,H36:S37,7,FALSE) ->  | BM37: =VLOOKUP(BF37,H36:S37,8,FALSE) ->  | BN37: =VLOOKUP(BF37,H36:S37,9,FALSE) ->  | BQ37: =IF(#REF!<>"",IF(#REF!>#REF!,#REF!,IF(#REF!>#REF!,#REF!,"Empate")),"") ->  | BR37: =IF(#REF!<>"",IF(#REF!<#REF!,#REF!,IF(#REF!<#REF!,#REF!,"Empate")),"") ->  | BW37: 26º | BZ37: =IF(G25=G26,"",IF(G25>G26,C26,C25)) ->  | CA37: 1 | CD37: 26
A38: 32 | C38: 0 | G38: =IF(ISBLANK(D37),"",SUM(IF(D38>D37,1,0)+(IF(E38>E37,1,0)+(IF(F38>F37,1,0))))) ->  | I38: =IF(I37=FALSE,"",I37) ->  | M38: =IF(ISBLANK(J36),"",SUM(IF(J38>J36,1,0)+(IF(K38>K36,1,0)+(IF(L38>L36,1,0))))) ->  | BW38: 27º | BZ38: =IF(G27=G28,"",IF(G27>G28,C28,C27)) ->  | CA38: 1 | CD38: 27
BW39: 28º | BZ39: =IF(G29=G30,"",IF(G29>G30,C30,C29)) ->  | CA39: 1 | CD39: 28
BW40: 29º | BZ40: =IF(G31=G32,"",IF(G31>G32,C32,C31)) ->  | CA40: 1 | CD40: 29
BW41: 30º | BZ41: =IF(G33=G34,"",IF(G33>G34,C34,C33)) ->  | CA41: 1 | CD41: 30
BW42: 31º | BZ42: =IF(G35=G36,"",IF(G35>G36,C36,C35)) ->  | CA42: 1 | CD42: 31
BW43: 32º | BZ43: =IF(G37=G38,"",IF(G37>G38,C38,C37)) ->  | CA43: 1 | CD43: 32
BZ88: =IF(BU2>0,#REF!,"") -> 

Sheet ELIMINAÇÃODIRETAQ64 (hidden)
J1: Direcção Regional de Educação do Algarve | AB1: ="Escola: "&'[1]Ficha de Inscrição'!$D$4 -> Escola: EB23 Dr A.C. Contreiras
J2: ="Ano Lectivo "&[1]Apoio!$F$10 -> Ano Lectivo 2016/2017 | BV2: =SUM(BV4:BV21) -> 0
BV3: =SUM(BV4:BV21) -> 0
A4: PH-Juv | C4: =LOOKUP(A4,Apoio!N9:N39,Apoio!O9:O39) -> Pares Homens - Juvenis | BV4: =IF(ISBLANK(#REF!),COUNTA(CG13:$CG$28),0) -> 0
BV5: =IF(ISBLANK(CG13),COUNTA(CG14:$CG$28),0) -> 0
AN6: Ordenar p/ DG 3 | AR6: Ordenar p/ GM 1 | AV6: Ordenar p/ GM 2 | AZ6: Ordenar p/ GM 3 | BR6: Vencedores | BS6: Derrotados | BV6: =IF(ISBLANK(#REF!),COUNTA(CG14:$CG$28),0) -> 0
B7: 1 | D7: =CG12 -> 0 | H7: =IF(ISBLANK(E7),"",SUM(IF(E7>E8,1,0)+(IF(F7>F8,1,0)+(IF(G7>G8,1,0))))) ->  | I7: P1 | J7: =IF(H7=H8,IF(D7="Bye",D8,IF(D8="Bye",D7)),(IF(ISBLANK(E7),"",IF(H7>H8,D7,D8)))) -> FALSE | N7: P33 | BR7: =IF(#REF!<>"",IF(#REF!>#REF!,#REF!,IF(#REF!>#REF!,#REF!,"Empate")),"") ->  | BS7: =IF(#REF!<>"",IF(#REF!<#REF!,#REF!,IF(#REF!<#REF!,#REF!,"Empate")),"") ->  | BV7: =IF(ISBLANK(CG14),COUNTA(CG15:$CG$28),0) -> 0
B8: 2 | D8: 0 | H8: =IF(ISBLANK(E7),"",SUM(IF(E8>E7,1,0)+(IF(F8>F7,1,0)+(IF(G8>G7,1,0))))) ->  | J8: =IF(J7=FALSE,"",J7) ->  | N8: =IF(ISBLANK(K8),"",SUM(IF(K8>K10,1,0)+(IF(L8>L10,1,0)+(IF(M8>M10,1,0))))) ->  | P8: =IF(N8=N10,IF(J8="Bye",J10,IF(J10="Bye",J8)),(IF(ISBLANK(K8),"",IF(N8>N10,J8,J10)))) -> FALSE | T8: P49
B9: 3 | D9: 0 | H9: =IF(ISBLANK(E9),"",SUM(IF(E9>E10,1,0)+(IF(F9>F10,1,0)+(IF(G9>G10,1,0))))) ->  | I9: P2 | J9: =IF(H9=H10,IF(D9="Bye",D10,IF(D10="Bye",D9)),(IF(ISBLANK(E9),"",IF(H9>H10,D9,D10)))) -> FALSE | L9: (V2) | P9: =IF(P8=FALSE,"",P8) ->  | T9: =IF(ISBLANK(Q9),"",SUM(IF(Q9>Q13,1,0)+(IF(R9>R13,1,0)+(IF(S9>S13,1,0))))) ->  | AN9: =IF(AND(#REF!=AL9,AM9>#REF!),#REF!,AK9) ->  | AO9: =VLOOKUP(AN9,I8:T9,9,FALSE) ->  | AP9: =VLOOKUP(AN9,I8:T9,8,FALSE) ->  | AQ9: =VLOOKUP(AN9,I8:T9,6,FALSE) ->  | AR9: =IF(AND(AO9=#REF!,AP9=#REF!,#REF!>AQ9),#REF!,AN9) ->  | AS9: =VLOOKUP(AR9,I8:T9,9,FALSE) ->  | AT9: =VLOOKUP(AR9,I8:T9,8,FALSE) ->  | AU9: =VLOOKUP(AR9,I8:T9,6,FALSE) ->  | AV9: =IF(AND(AS8=AS9,AT8=AT9,#REF!>AU8),AR8,AR9) ->  | AW9: =VLOOKUP(AV9,I8:T9,9,FALSE) ->  | AX9: =VLOOKUP(AV9,I8:T9,8,FALSE) ->  | AY9: =VLOOKUP(AV9,I8:T9,6,FALSE) ->  | AZ9: =IF(AND(#REF!=AW9,#REF!=AX9,AY9>#REF!),#REF!,AV9) ->  | BA9: =VLOOKUP(AZ9,I8:T9,9,FALSE) ->  | BB9: =VLOOKUP(AZ9,I8:T9,8,FALSE) ->  | BC9: =VLOOKUP(AZ9,I8:T9,6,FALSE) ->  | BG9: =AZ9 ->  | BH9: =VLOOKUP(BG9,I8:T9,2,FALSE) ->  | BI9: =VLOOKUP(BG9,I8:T9,3,FALSE) ->  | BJ9: =VLOOKUP(BG9,I8:T9,4,FALSE) ->  | BK9: =VLOOKUP(BG9,I8:T9,5,FALSE) ->  | BL9: =VLOOKUP(BG9,I8:T9,6,FALSE) ->  | BM9: =VLOOKUP(BG9,I8:T9,7,FALSE) ->  | BN9: =VLOOKUP(BG9,I8:T9,8,FALSE) ->  | BO9: =VLOOKUP(BG9,I8:T9,9,FALSE) ->  | BR9: =IF(#REF!<>"",IF(#REF!>#REF!,#REF!,IF(#REF!>#REF!,#REF!,"Empate")),"") ->  | BS9: =IF(#REF!<>"",IF(#REF!<#REF!,#REF!,IF(#REF!<#REF!,#REF!,"Empate")),"") ->  | BV9: =IF(ISBLANK(CG16),COUNTA(CG17:$CG$28),0) -> 0 | DF9: PROCV($EU$12;$AE$9:$AI$13;2;FALSO)
B10: 4 | D10: 0 | H10: =IF(ISBLANK(E9),"",SUM(IF(E10>E9,1,0)+(IF(F10>F9,1,0)+(IF(G10>G9,1,0))))) ->  | J10: =IF(J9=FALSE,"",J9) ->  | N10: =IF(ISBLANK(K8),"",SUM(IF(K10>K8,1,0)+(IF(L10>L8,1,0)+(IF(M10>M8,1,0))))) ->  | V10: =IF(T9=T13,IF(P9="Bye",P13,IF(P13="Bye",P13)),(IF(ISBLANK(Q9),"",IF(T9>T13,P9,P13)))) -> FALSE | Z10: P57 | BV10: =IF(ISBLANK(CG17),COUNTA(CG18:$CG$28),0) -> 0 | BX10: Classificação
B11: 5 | D11: 0 | H11: =IF(ISBLANK(E11),"",SUM(IF(E11>E12,1,0)+(IF(F11>F12,1,0)+(IF(G11>G12,1,0))))) ->  | I11: P3 | J11: =IF(H11=H12,IF(D11="Bye",D12,IF(D12="Bye",D11)),(IF(ISBLANK(E11),"",IF(H11>H12,D11,D12)))) -> FALSE | N11: P34 | P11: (V18) | V11: =IF(V10=FALSE,"",V10) ->  | Z11: =IF(ISBLANK(W11),"",SUM(IF(W11>W19,1,0)+(IF(X11>X19,1,0)+(IF(Y11>Y19,1,0))))) ->  | BR11: =IF(#REF!<>"",IF(#REF!>#REF!,#REF!,IF(#REF!>#REF!,#REF!,"Empate")),"") ->  | BS11: =IF(#REF!<>"",IF(#REF!<#REF!,#REF!,IF(#REF!<#REF!,#REF!,"Empate")),"") ->  | BV11: =IF(ISBLANK(CG18),COUNTA(CG19:$CG$28),0) -> 0 | BX11: NºJ | CA11: Nome | CB11: Pts | CE11: Ordem | CF11: Nº | CG11: Nome (1º e último) | CH11: Escola | CI11: Abv. | CJ11: Ano Nasc. | CK11: Escalão | CL11: Sexo | CM11: Observações | CN11: Insc. Prova | CQ11: VENCIDO (P49) | CR11: PM | CS11: PS | CT11: DIF | CU11: VENCIDO (P50) | CV11: PM | CW11: PM | CX11: DIF | CY11: VENCIDO (P51) | CZ11: PM | DA11: PS | DB11: DIF | DC11: VENCIDO (P52) | DD11: PM | DE11: PM | DF11: DIF | DG11: VENCIDO (P49) | DM11: PAULO JORGE NOBRE DOS SANTOS ÁGUAS
B12: 6 | D12: 0 | H12: =IF(ISBLANK(E11),"",SUM(IF(E12>E11,1,0)+(IF(F12>F11,1,0)+(IF(G12>G11,1,0))))) ->  | J12: =IF(J11=FALSE,"",J11) ->  | N12: =IF(ISBLANK(K12),"",SUM(IF(K12>K14,1,0)+(IF(L12>L14,1,0)+(IF(M12>M14,1,0))))) ->  | P12: =IF(N12=N14,IF(J12="Bye",J14,IF(J14="Bye",J12)),(IF(ISBLANK(K12),"",IF(N12>N14,J12,J14)))) -> FALSE | AN12: =IF(AND(AL12=#REF!,#REF!>AM12),#REF!,AK12) ->  | AO12: =VLOOKUP(AN12,I12:T13,9,FALSE) ->  | AP12: =VLOOKUP(AN12,I12:T13,8,FALSE) ->  | AQ12: =VLOOKUP(AN12,I12:T13,6,FALSE) ->  | AR12: =IF(AND(AO12=#REF!,AP12=#REF!,#REF!>AQ12),#REF!,AN12) ->  | AS12: =VLOOKUP(AR12,I12:T13,9,FALSE) ->  | AT12: =VLOOKUP(AR12,I12:T13,8,FALSE) ->  | AU12: =VLOOKUP(AR12,I12:T13,6,FALSE) ->  | AV12: =IF(AND(AS12=AS13,AT12=AT13,AU13>AU12),AR13,AR12) ->  | AW12: =VLOOKUP(AV12,I12:T13,9,FALSE) ->  | AX12: =VLOOKUP(AV12,I12:T13,8,FALSE) ->  | AY12: =VLOOKUP(AV12,I12:T13,6,FALSE) ->  | AZ12: =IF(AND(AW12=#REF!,AX12=#REF!,#REF!>AY12),#REF!,AV12) ->  | BA12: =VLOOKUP(AZ12,I12:T13,9,FALSE) ->  | BB12: =VLOOKUP(AZ12,I12:T13,8,FALSE) ->  | BC12: =VLOOKUP(AZ12,I12:T13,6,FALSE) ->  | BG12: =AZ12 ->  | BH12: =VLOOKUP(BG12,I12:T13,2,FALSE) ->  | BI12: =VLOOKUP(BG12,I12:T13,3,FALSE) ->  | BJ12: =VLOOKUP(BG12,I12:T13,4,FALSE) ->  | BK12: =VLOOKUP(BG12,I12:T13,5,FALSE) ->  | BL12: =VLOOKUP(BG12,I12:T13,6,FALSE) ->  | BM12: =VLOOKUP(BG12,I12:T13,7,FALSE) ->  | BN12: =VLOOKUP(BG12,I12:T13,8,FALSE) ->  | BO12: =VLOOKUP(BG12,I12:T13,9,FALSE) ->  | BR12: =IF(#REF!<>"",IF(#REF!>#REF!,#REF!,IF(#REF!>#REF!,#REF!,"Empate")),"") ->  | BS12: =IF(#REF!<>"",IF(#REF!<#REF!,#REF!,IF(#REF!<#REF!,#REF!,"Empate")),"") ->  | BV12: =IF(ISBLANK(CG19),COUNTA(CG20:$CG$28),0) -> 0 | BX12: 1º | CA12: =$AH$39 ->  | CB12: 12 | CE12: 1 | CR12: =VLOOKUP($CQ$12,#REF!,2,FALSE) ->  | DF12: PROCV($FK$12;;2;FALSO) | DG12: =IF(#REF!=#REF!,IF(#REF!="Bye",#REF!,IF(#REF!="Bye",#REF!)),(IF(ISBLANK(#REF!),"",IF(#REF!>#REF!,#REF!,#REF!)))) -> 
B13: 7 | D13: 0 | H13: =IF(ISBLANK(E13),"",SUM(IF(E13>E14,1,0)+(IF(F13>F14,1,0)+(IF(G13>G14,1,0))))) ->  | I13: P4 | J13: =IF(H13=H14,IF(D13="Bye",D14,IF(D14="Bye",D13)),(IF(ISBLANK(E13),"",IF(H13>H14,D13,D14)))) -> FALSE | L13: (V1) | P13: =IF(P12=FALSE,"",P12) ->  | T13: =IF(ISBLANK(Q13),"",SUM(IF(Q13>Q9,1,0)+(IF(R13>R9,1,0)+(IF(S13>S9,1,0))))) ->  | AN13: =IF(AND(#REF!=AL13,AM13>#REF!),#REF!,AK13) ->  | AO13: =VLOOKUP(AN13,I12:T13,9,FALSE) ->  | AP13: =VLOOKUP(AN13,I12:T13,8,FALSE) ->  | AQ13: =VLOOKUP(AN13,I12:T13,6,FALSE) ->  | AR13: =IF(AND(AO13=#REF!,AP13=#REF!,#REF!>AQ13),#REF!,AN13) ->  | AS13: =VLOOKUP(AR13,I12:T13,9,FALSE) ->  | AT13: =VLOOKUP(AR13,I12:T13,8,FALSE) ->  | AU13: =VLOOKUP(AR13,I12:T13,6,FALSE) ->  | AV13: =IF(AND(AS12=AS13,AT12=AT13,#REF!>AU12),AR12,AR13) ->  | AW13: =VLOOKUP(AV13,I12:T13,9,FALSE) ->  | AX13: =VLOOKUP(AV13,I12:T13,8,FALSE) ->  | AY13: =VLOOKUP(AV13,I12:T13,6,FALSE) ->  | AZ13: =IF(AND(#REF!=AW13,#REF!=AX13,AY13>#REF!),#REF!,AV13) ->  | BA13: =VLOOKUP(AZ13,I12:T13,9,FALSE) ->  | BB13: =VLOOKUP(AZ13,I12:T13,8,FALSE) ->  | BC13: =VLOOKUP(AZ13,I12:T13,6,FALSE) ->  | BG13: =AZ13 ->  | BH13: =VLOOKUP(BG13,I12:T13,2,FALSE) ->  | BI13: =VLOOKUP(BG13,I12:T13,3,FALSE) ->  | BJ13: =VLOOKUP(BG13,I12:T13,4,FALSE) ->  | BK13: =VLOOKUP(BG13,I12:T13,5,FALSE) ->  | BL13: =VLOOKUP(BG13,I12:T13,6,FALSE) ->  | BM13: =VLOOKUP(BG13,I12:T13,7,FALSE) ->  | BN13: =VLOOKUP(BG13,I12:T13,8,FALSE) ->  | BO13: =VLOOKUP(BG13,I12:T13,9,FALSE) ->  | BR13: =IF(#REF!<>"",IF(#REF!>#REF!,#REF!,IF(#REF!>#REF!,#REF!,"Empate")),"") ->  | BS13: =IF(#REF!<>"",IF(#REF!<#REF!,#REF!,IF(#REF!<#REF!,#REF!,"Empate")),"") ->  | BV13: =IF(ISBLANK(CG20),COUNTA(CG21:$CG$28),0) -> 0 | BX13: 2º | CA13: =IF($CA$12=$AH$23,$AH$55,$AH$23) ->  | CB13: 11 | CE13: 2
B14: 8 | D14: 0 | H14: =IF(ISBLANK(E13),"",SUM(IF(E14>E13,1,0)+(IF(F14>F13,1,0)+(IF(G14>G13,1,0))))) ->  | J14: =IF(J13=FALSE,"",J13) ->  | N14: =IF(ISBLANK(K12),"",SUM(IF(K14>K12,1,0)+(IF(L14>L12,1,0)+(IF(M14>M12,1,0))))) ->  | AB14: =IF(Z11=Z19,IF(V11="Bye",V19,IF(V19="Bye",V19)),(IF(ISBLANK(W11),"",IF(Z11>Z19,V11,V19)))) -> FALSE | AF14: P61 | BV14: =IF(ISBLANK(CG21),COUNTA(CG22:$CG$28),0) -> 0 | BX14: 3º | CA14: =$AB$39 ->  | CB14: 10 | CE14: 3 | DK14: PM | DL14: PS | DM14: DIF
B15: 9 | D15: 0 | H15: =IF(ISBLANK(E15),"",SUM(IF(E15>E16,1,0)+(IF(F15>F16,1,0)+(IF(G15>G16,1,0))))) ->  | I15: P5 | J15: =IF(H15=H16,IF(D15="Bye",D16,IF(D16="Bye",D15)),(IF(ISBLANK(E15),"",IF(H15>H16,D15,D16)))) -> FALSE | N15: P35 | V15: (V26) | AB15: =IF(AB14=FALSE,"",AB14) ->  | AF15: =IF(ISBLANK(AC15),"",SUM(IF(AC15>AC31,1,0)+(IF(AD15>AD31,1,0)+(IF(AE15>AE31,1,0))))) ->  | BR15: =IF(#REF!<>"",IF(#REF!>#REF!,#REF!,IF(#REF!>#REF!,#REF!,"Empate")),"") ->  | BS15: =IF(#REF!<>"",IF(#REF!<#REF!,#REF!,IF(#REF!<#REF!,#REF!,"Empate")),"") ->  | BV15: =IF(ISBLANK(CG22),COUNTA(CG23:$CG$28),0) -> 0 | BX15: 4º | CA15: =$AB$42 ->  | CB15: 9 | CE15: 4 | CR15: p49 | DF15: =IF(#REF!=#REF!,IF(#REF!="Bye",#REF!,IF(#REF!="Bye",#REF!)),(IF(ISBLANK(#REF!),"",IF(#REF!>#REF!,#REF!,#REF!)))) ->  | DG15: =#REF! ->  | DH15: =#REF! ->  | DI15: =#REF! ->  | DJ15: =#REF! ->  | DK15: =DH15+DI15+DJ15 ->  | DL15: =DH16+DI16+DJ16 ->  | DM15: =DK15-DL15 -> 
B16: 10 | D16: 0 | H16: =IF(ISBLANK(E15),"",SUM(IF(E16>E15,1,0)+(IF(F16>F15,1,0)+(IF(G16>G15,1,0))))) ->  | J16: =IF(J15=FALSE,"",J15) ->  | N16: =IF(ISBLANK(K16),"",SUM(IF(K16>K18,1,0)+(IF(L16>L18,1,0)+(IF(M16>M18,1,0))))) ->  | P16: =IF(N16=N18,IF(J16="Bye",J18,IF(J18="Bye",J16)),(IF(ISBLANK(K16),"",IF(N16>N18,J16,J18)))) -> FALSE | T16: P50 | AN16: =IF(AND(AL16=#REF!,#REF!>AM16),#REF!,AK16) ->  | AO16: =VLOOKUP(AN16,I16:T17,9,FALSE) ->  | AP16: =VLOOKUP(AN16,I16:T17,8,FALSE) ->  | AQ16: =VLOOKUP(AN16,I16:T17,6,FALSE) ->  | AR16: =IF(AND(AO16=#REF!,AP16=#REF!,#REF!>AQ16),#REF!,AN16) ->  | AS16: =VLOOKUP(AR16,I16:T17,9,FALSE) ->  | AT16: =VLOOKUP(AR16,I16:T17,8,FALSE) ->  | AU16: =VLOOKUP(AR16,I16:T17,6,FALSE) ->  | AV16: =IF(AND(AS16=AS17,AT16=AT17,AU17>AU16),AR17,AR16) ->  | AW16: =VLOOKUP(AV16,I16:T17,9,FALSE) ->  | AX16: =VLOOKUP(AV16,I16:T17,8,FALSE) ->  | AY16: =VLOOKUP(AV16,I16:T17,6,FALSE) ->  | AZ16: =IF(AND(AW16=#REF!,AX16=#REF!,#REF!>AY16),#REF!,AV16) ->  | BA16: =VLOOKUP(AZ16,I16:T17,9,FALSE) ->  | BB16: =VLOOKUP(AZ16,I16:T17,8,FALSE) ->  | BC16: =VLOOKUP(AZ16,I16:T17,6,FALSE) ->  | BG16: =AZ16 ->  | BH16: =VLOOKUP(BG16,I16:T17,2,FALSE) ->  | BI16: =VLOOKUP(BG16,I16:T17,3,FALSE) ->  | BJ16: =VLOOKUP(BG16,I16:T17,4,FALSE) ->  | BK16: =VLOOKUP(BG16,I16:T17,5,FALSE) ->  | BL16: =VLOOKUP(BG16,I16:T17,6,FALSE) ->  | BM16: =VLOOKUP(BG16,I16:T17,7,FALSE) ->  | BN16: =VLOOKUP(BG16,I16:T17,8,FALSE) ->  | BO16: =VLOOKUP(BG16,I16:T17,9,FALSE) ->  | BR16: =IF(#REF!<>"",IF(#REF!>#REF!,#REF!,IF(#REF!>#REF!,#REF!,"Empate")),"") ->  | BS16: =IF(#REF!<>"",IF(#REF!<#REF!,#REF!,IF(#REF!<#REF!,#REF!,"Empate")),"") ->  | BV16: =IF(ISBLANK(CG23),COUNTA(CG24:$CG$28),0) -> 0 | BX16: 5º | CA16: =IF($Z$11=$Z$19,"",IF($Z$11>$Z$19,$V$19,$V$11)) ->  | CB16: 8 | CE16: 5 | DG16: =#REF! ->  | DH16: =#REF! ->  | DI16: =#REF! ->  | DJ16: =#REF! ->  | DL16: =DH15+DI15+DJ15 -> 
B17: 11 | D17: 0 | H17: =IF(ISBLANK(E17),"",SUM(IF(E17>E18,1,0)+(IF(F17>F18,1,0)+(IF(G17>G18,1,0))))) ->  | I17: P6 | J17: =IF(H17=H18,IF(D17="Bye",D18,IF(D18="Bye",D17)),(IF(ISBLANK(E17),"",IF(H17>H18,D17,D18)))) -> FALSE | L17: (V4) | P17: =IF(P16=FALSE,"",P16) ->  | T17: =IF(ISBLANK(Q17),"",SUM(IF(Q17>Q21,1,0)+(IF(R17>R21,1,0)+(IF(S17>S21,1,0))))) ->  | AN17: =IF(AND(#REF!=AL17,AM17>#REF!),#REF!,AK17) ->  | AO17: =VLOOKUP(AN17,I16:T17,9,FALSE) ->  | AP17: =VLOOKUP(AN17,I16:T17,8,FALSE) ->  | AQ17: =VLOOKUP(AN17,I16:T17,6,FALSE) ->  | AR17: =IF(AND(AO17=#REF!,AP17=#REF!,#REF!>AQ17),#REF!,AN17) ->  | AS17: =VLOOKUP(AR17,I16:T17,9,FALSE) ->  | AT17: =VLOOKUP(AR17,I16:T17,8,FALSE) ->  | AU17: =VLOOKUP(AR17,I16:T17,6,FALSE) ->  | AV17: =IF(AND(AS16=AS17,AT16=AT17,#REF!>AU16),AR16,AR17) ->  | AW17: =VLOOKUP(AV17,I16:T17,9,FALSE) ->  | AX17: =VLOOKUP(AV17,I16:T17,8,FALSE) ->  | AY17: =VLOOKUP(AV17,I16:T17,6,FALSE) ->  | AZ17: =IF(AND(#REF!=AW17,#REF!=AX17,AY17>#REF!),#REF!,AV17) ->  | BA17: =VLOOKUP(AZ17,I16:T17,9,FALSE) ->  | BB17: =VLOOKUP(AZ17,I16:T17,8,FALSE) ->  | BC17: =VLOOKUP(AZ17,I16:T17,6,FALSE) ->  | BG17: =AZ17 ->  | BH17: =VLOOKUP(BG17,I16:T17,2,FALSE) ->  | BI17: =VLOOKUP(BG17,I16:T17,3,FALSE) ->  | BJ17: =VLOOKUP(BG17,I16:T17,4,FALSE) ->  | BK17: =VLOOKUP(BG17,I16:T17,5,FALSE) ->  | BL17: =VLOOKUP(BG17,I16:T17,6,FALSE) ->  | BM17: =VLOOKUP(BG17,I16:T17,7,FALSE) ->  | BN17: =VLOOKUP(BG17,I16:T17,8,FALSE) ->  | BO17: =VLOOKUP(BG17,I16:T17,9,FALSE) ->  | BR17: =IF(#REF!<>"",IF(#REF!>#REF!,#REF!,IF(#REF!>#REF!,#REF!,"Empate")),"") ->  | BS17: =IF(#REF!<>"",IF(#REF!<#REF!,#REF!,IF(#REF!<#REF!,#REF!,"Empate")),"") ->  | BV17: =IF(ISBLANK(#REF!),COUNTA(CG24:$CG$28),0) -> 0 | BX17: 6º | CA17: =IF($Z$27=$Z$35,"",IF($Z$27>$Z$35,$V$35,$V$27)) ->  | CB17: 8 | CE17: 6 | CR17: P50 | DF17: P50 | DG17: =#REF! ->  | DH17: =#REF! ->  | DI17: =#REF! ->  | DJ17: =#REF! ->  | DL17: =DH18+DI18+DJ18 -> 
B18: 12 | D18: 0 | H18: =IF(ISBLANK(E17),"",SUM(IF(E18>E17,1,0)+(IF(F18>F17,1,0)+(IF(G18>G17,1,0))))) ->  | J18: =IF(J17=FALSE,"",J17) ->  | N18: =IF(ISBLANK(K16),"",SUM(IF(K18>K16,1,0)+(IF(L18>L16,1,0)+(IF(M18>M16,1,0))))) ->  | V18: =IF(T17=T21,IF(P17="Bye",P21,IF(P21="Bye",P21)),(IF(ISBLANK(Q17),"",IF(T17>T21,P17,P21)))) -> FALSE | BV18: =IF(ISBLANK(CG25),COUNTA(CG26:$CG$28),0) -> 0 | BX18: 7º | CA18: =IF($Z$43=$Z$51,"",IF($Z$43>$Z$51,$V$51,$V$43)) ->  | CB18: 8 | CE18: 7 | DG18: =#REF! ->  | DH18: =#REF! ->  | DI18: =#REF! ->  | DJ18: =#REF! ->  | DL18: =DH17+DI17+DJ17 -> 
B19: 13 | D19: 0 | H19: =IF(ISBLANK(E19),"",SUM(IF(E19>E20,1,0)+(IF(F19>F20,1,0)+(IF(G19>G20,1,0))))) ->  | I19: P7 | J19: =IF(H19=H20,IF(D19="Bye",D20,IF(D20="Bye",D19)),(IF(ISBLANK(E19),"",IF(H19>H20,D19,D20)))) -> FALSE | N19: P36 | P19: (V17) | V19: =IF(V18=FALSE,"",V18) ->  | Z19: =IF(ISBLANK(W19),"",SUM(IF(W19>W11,1,0)+(IF(X19>X11,1,0)+(IF(Y19>Y11,1,0))))) ->  | BR19: =IF(#REF!<>"",IF(#REF!>#REF!,#REF!,IF(#REF!>#REF!,#REF!,"Empate")),"") ->  | BS19: =IF(#REF!<>"",IF(#REF!<#REF!,#REF!,IF(#REF!<#REF!,#REF!,"Empate")),"") ->  | BV19: =IF(ISBLANK(CG26),COUNTA(CG27:$CG$28),0) -> 0 | BX19: 8º | CA19: =IF($Z$59=$Z$67,"",IF($Z$59>$Z$67,$V$67,$V$59)) ->  | CB19: 8 | CE19: 8 | CR19: P51 | DF19: P51 | DG19: =#REF! ->  | DH19: =#REF! ->  | DI19: =#REF! ->  | DJ19: =#REF! ->  | DL19: =DH20+DI20+DJ20 -> 
B20: 14 | D20: 0 | H20: =IF(ISBLANK(E19),"",SUM(IF(E20>E19,1,0)+(IF(F20>F19,1,0)+(IF(G20>G19,1,0))))) ->  | J20: =IF(J19=FALSE,"",J19) ->  | N20: =IF(ISBLANK(K20),"",SUM(IF(K20>K22,1,0)+(IF(L20>L22,1,0)+(IF(M20>M22,1,0))))) ->  | P20: =IF(N20=N22,IF(J20="Bye",J22,IF(J22="Bye",J20)),(IF(ISBLANK(K20),"",IF(N20>N22,J20,J22)))) -> FALSE | AN20: =IF(AND(AL20=#REF!,#REF!>AM20),#REF!,AK20) ->  | AO20: =VLOOKUP(AN20,I20:T21,9,FALSE) ->  | AP20: =VLOOKUP(AN20,I20:T21,8,FALSE) ->  | AQ20: =VLOOKUP(AN20,I20:T21,6,FALSE) ->  | AR20: =IF(AND(AO20=#REF!,AP20=#REF!,#REF!>AQ20),#REF!,AN20) ->  | AS20: =VLOOKUP(AR20,I20:T21,9,FALSE) ->  | AT20: =VLOOKUP(AR20,I20:T21,8,FALSE) ->  | AU20: =VLOOKUP(AR20,I20:T21,6,FALSE) ->  | AV20: =IF(AND(AS20=AS21,AT20=AT21,AU21>AU20),AR21,AR20) ->  | AW20: =VLOOKUP(AV20,I20:T21,9,FALSE) ->  | AX20: =VLOOKUP(AV20,I20:T21,8,FALSE) ->  | AY20: =VLOOKUP(AV20,I20:T21,6,FALSE) ->  | AZ20: =IF(AND(AW20=#REF!,AX20=#REF!,#REF!>AY20),#REF!,AV20) ->  | BA20: =VLOOKUP(AZ20,I20:T21,9,FALSE) ->  | BB20: =VLOOKUP(AZ20,I20:T21,8,FALSE) ->  | BC20: =VLOOKUP(AZ20,I20:T21,6,FALSE) ->  | BG20: =AZ20 ->  | BH20: =VLOOKUP(BG20,I20:T21,2,FALSE) ->  | BI20: =VLOOKUP(BG20,I20:T21,3,FALSE) ->  | BJ20: =VLOOKUP(BG20,I20:T21,4,FALSE) ->  | BK20: =VLOOKUP(BG20,I20:T21,5,FALSE) ->  | BL20: =VLOOKUP(BG20,I20:T21,6,FALSE) ->  | BM20: =VLOOKUP(BG20,I20:T21,7,FALSE) ->  | BN20: =VLOOKUP(BG20,I20:T21,8,FALSE) ->  | BO20: =VLOOKUP(BG20,I20:T21,9,FALSE) ->  | BR20: =IF(#REF!<>"",IF(#REF!>#REF!,#REF!,IF(#REF!>#REF!,#REF!,"Empate")),"") ->  | BS20: =IF(#REF!<>"",IF(#REF!<#REF!,#REF!,IF(#REF!<#REF!,#REF!,"Empate")),"") ->  | BV20: =IF(ISBLANK(CG27),COUNTA(CG28:$CG$28),0) -> 0 | BX20: 9º | CA20: =IF($T$9=$T$13,"",IF($T$9>$T$13,$P$13,$P$9)) ->  | CB20: 6 | CE20: 9 | CP20: 115 | DG20: =#REF! ->  | DH20: =#REF! ->  | DI20: =#REF! ->  | DJ20: =#REF! ->  | DL20: =DH19+DI19+DJ19 -> 
B21: 15 | D21: 0 | H21: =IF(ISBLANK(E21),"",SUM(IF(E21>E22,1,0)+(IF(F21>F22,1,0)+(IF(G21>G22,1,0))))) ->  | I21: P8 | J21: =IF(H21=H22,IF(D21="Bye",D22,IF(D22="Bye",D21)),(IF(ISBLANK(E21),"",IF(H21>H22,D21,D22)))) -> FALSE | L21: (V3) | P21: =IF(P20=FALSE,"",P20) ->  | T21: =IF(ISBLANK(Q21),"",SUM(IF(Q21>Q17,1,0)+(IF(R21>R17,1,0)+(IF(S21>S17,1,0))))) ->  | AN21: =IF(AND(#REF!=AL21,AM21>#REF!),#REF!,AK21) ->  | AO21: =VLOOKUP(AN21,I20:T21,9,FALSE) ->  | AP21: =VLOOKUP(AN21,I20:T21,8,FALSE) ->  | AQ21: =VLOOKUP(AN21,I20:T21,6,FALSE) ->  | AR21: =IF(AND(AO21=#REF!,AP21=#REF!,#REF!>AQ21),#REF!,AN21) ->  | AS21: =VLOOKUP(AR21,I20:T21,9,FALSE) ->  | AT21: =VLOOKUP(AR21,I20:T21,8,FALSE) ->  | AU21: =VLOOKUP(AR21,I20:T21,6,FALSE) ->  | AV21: =IF(AND(AS20=AS21,AT20=AT21,#REF!>AU20),AR20,AR21) ->  | AW21: =VLOOKUP(AV21,I20:T21,9,FALSE) ->  | AX21: =VLOOKUP(AV21,I20:T21,8,FALSE) ->  | AY21: =VLOOKUP(AV21,I20:T21,6,FALSE) ->  | AZ21: =IF(AND(#REF!=AW21,#REF!=AX21,AY21>#REF!),#REF!,AV21) ->  | BA21: =VLOOKUP(AZ21,I20:T21,9,FALSE) ->  | BB21: =VLOOKUP(AZ21,I20:T21,8,FALSE) ->  | BC21: =VLOOKUP(AZ21,I20:T21,6,FALSE) ->  | BG21: =AZ21 ->  | BH21: =VLOOKUP(BG21,I20:T21,2,FALSE) ->  | BI21: =VLOOKUP(BG21,I20:T21,3,FALSE) ->  | BJ21: =VLOOKUP(BG21,I20:T21,4,FALSE) ->  | BK21: =VLOOKUP(BG21,I20:T21,5,FALSE) ->  | BL21: =VLOOKUP(BG21,I20:T21,6,FALSE) ->  | BM21: =VLOOKUP(BG21,I20:T21,7,FALSE) ->  | BN21: =VLOOKUP(BG21,I20:T21,8,FALSE) ->  | BO21: =VLOOKUP(BG21,I20:T21,9,FALSE) ->  | BR21: =IF(#REF!<>"",IF(#REF!>#REF!,#REF!,IF(#REF!>#REF!,#REF!,"Empate")),"") ->  | BS21: =IF(#REF!<>"",IF(#REF!<#REF!,#REF!,IF(#REF!<#REF!,#REF!,"Empate")),"") ->  | BV21: =IF(ISBLANK(CG28),COUNTA(BY$86:$BY87),0) -> 0 | BX21: 10º | CA21: =IF($T$17=$T$21,"",IF($T$17>$T$21,$P$21,$P$17)) ->  | CB21: 6 | CE21: 10 | CP21: 116 | CR21: P52 | DF21: P52 | DG21: =#REF! ->  | DH21: =#REF! ->  | DI21: =#REF! ->  | DJ21: =#REF! ->  | DL21: =DH22+DI22+DJ22 -> 
B22: 16 | D22: 0 | H22: =IF(ISBLANK(E21),"",SUM(IF(E22>E21,1,0)+(IF(F22>F21,1,0)+(IF(G22>G21,1,0))))) ->  | J22: =IF(J21=FALSE,"",J21) ->  | N22: =IF(ISBLANK(K20),"",SUM(IF(K22>K20,1,0)+(IF(L22>L20,1,0)+(IF(M22>M20,1,0))))) ->  | AL22: P63 | BX22: 11º | CA22: =IF($T$25=$T$29,"",IF($T$25>$T$29,$P$29,$P$25)) ->  | CB22: 6 | CE22: 11 | CP22: 117 | DG22: =#REF! ->  | DH22: =#REF! ->  | DI22: =#REF! ->  | DJ22: =#REF! ->  | DL22: =DH21+DI21+DJ21 -> 
B23: 17 | D23: 0 | H23: =IF(ISBLANK(E23),"",SUM(IF(E23>E24,1,0)+(IF(F23>F24,1,0)+(IF(G23>G24,1,0))))) ->  | I23: P9 | J23: =IF(H23=H24,IF(D23="Bye",D24,IF(D24="Bye",D23)),(IF(ISBLANK(E23),"",IF(H23>H24,D23,D24)))) -> FALSE | N23: P37 | AB23: (V30) | AH23: =IF(AF15=AF31,"",IF(AF15>AF31,AB15,AB31)) ->  | AL23: =IF(ISBLANK(AI23),"",SUM(IF(AI23>AI55,1,0)+(IF(AJ23>AJ55,1,0)+(IF(AK23>AK55,1,0))))) ->  | BR23: =IF(#REF!<>"",IF(#REF!>#REF!,#REF!,IF(#REF!>#REF!,#REF!,"Empate")),"") ->  | BS23: =IF(#REF!<>"",IF(#REF!<#REF!,#REF!,IF(#REF!<#REF!,#REF!,"Empate")),"") ->  | BX23: 12º | CA23: =IF($T$33=$T$37,"",IF($T$33>$T$37,$P$37,$P$33)) ->  | CB23: 6 | CE23: 12 | CP23: 118
B24: 18 | D24: 0 | H24: =IF(ISBLANK(E23),"",SUM(IF(E24>E23,1,0)+(IF(F24>F23,1,0)+(IF(G24>G23,1,0))))) ->  | J24: =IF(J23=FALSE,"",J23) ->  | N24: =IF(ISBLANK(K24),"",SUM(IF(K24>K26,1,0)+(IF(L24>L26,1,0)+(IF(M24>M26,1,0))))) ->  | P24: =IF(N24=N26,IF(J24="Bye",J26,IF(J26="Bye",J24)),(IF(ISBLANK(K24),"",IF(N24>N26,J24,J26)))) -> FALSE | T24: P51 | AH24: (V31) | AN24: =IF(AND(AL24=AL25,AM25>AM24),AK25,AK24) -> 0 | AO24: =VLOOKUP(AN24,I24:T25,9,FALSE) ->  | AP24: =VLOOKUP(AN24,I24:T25,8,FALSE) ->  | AQ24: =VLOOKUP(AN24,I24:T25,6,FALSE) ->  | AR24: =IF(AND(#REF!=AO24,#REF!=AP24,AQ24>#REF!),#REF!,AN24) ->  | AS24: =VLOOKUP(AR24,I24:T25,9,FALSE) ->  | AT24: =VLOOKUP(AR24,I24:T25,8,FALSE) ->  | AU24: =VLOOKUP(AR24,I24:T25,6,FALSE) ->  | AV24: =IF(AND(AS24=#REF!,AT24=#REF!,#REF!>AU24),#REF!,AR24) ->  | AW24: =VLOOKUP(AV24,I24:T25,9,FALSE) ->  | AX24: =VLOOKUP(AV24,I24:T25,8,FALSE) ->  | AY24: =VLOOKUP(AV24,I24:T25,6,FALSE) ->  | AZ24: =IF(AND(AW24=AW25,AX24=AX25,AY25>AY24),AV25,AV24) ->  | BA24: =VLOOKUP(AZ24,I24:T25,9,FALSE) ->  | BB24: =VLOOKUP(AZ24,I24:T25,8,FALSE) ->  | BC24: =VLOOKUP(AZ24,I24:T25,6,FALSE) ->  | BG24: =AZ24 ->  | BH24: =VLOOKUP(BG24,I24:T25,2,FALSE) ->  | BI24: =VLOOKUP(BG24,I24:T25,3,FALSE) ->  | BJ24: =VLOOKUP(BG24,I24:T25,4,FALSE) ->  | BK24: =VLOOKUP(BG24,I24:T25,5,FALSE) ->  | BL24: =VLOOKUP(BG24,I24:T25,6,FALSE) ->  | BM24: =VLOOKUP(BG24,I24:T25,7,FALSE) ->  | BN24: =VLOOKUP(BG24,I24:T25,8,FALSE) ->  | BO24: =VLOOKUP(BG24,I24:T25,9,FALSE) ->  | BR24: =IF(#REF!<>"",IF(#REF!>#REF!,#REF!,IF(#REF!>#REF!,#REF!,"Empate")),"") ->  | BS24: =IF(#REF!<>"",IF(#REF!<#REF!,#REF!,IF(#REF!<#REF!,#REF!,"Empate")),"") ->  | BX24: 13º | CA24: =IF($T$41=$T$45,"",IF($T$41>$T$45,$P$45,$P$41)) ->  | CB24: 4 | CE24: 13 | CP24: 109
B25: 19 | D25: 0 | H25: =IF(ISBLANK(E25),"",SUM(IF(E25>E26,1,0)+(IF(F25>F26,1,0)+(IF(G25>G26,1,0))))) ->  | I25: P10 | J25: =IF(H25=H26,IF(D25="Bye",D26,IF(D26="Bye",D25)),(IF(ISBLANK(E25),"",IF(H25>H26,D25,D26)))) -> FALSE | L25: (V6) | P25: =IF(P24=FALSE,"",P24) ->  | T25: =IF(ISBLANK(Q25),"",SUM(IF(Q25>Q29,1,0)+(IF(R25>R29,1,0)+(IF(S25>S29,1,0))))) ->  | AN25: =IF(AND(AL24=AL25,AM25>AM24),AK24,AK25) -> 0 | AO25: =VLOOKUP(AN25,I24:T25,9,FALSE) ->  | AP25: =VLOOKUP(AN25,I24:T25,8,FALSE) ->  | AQ25: =VLOOKUP(AN25,I24:T25,6,FALSE) ->  | AR25: =IF(AND(AO25=#REF!,AP25=#REF!,#REF!>AQ25),#REF!,AN25) ->  | AS25: =VLOOKUP(AR25,I24:T25,9,FALSE) ->  | AT25: =VLOOKUP(AR25,I24:T25,8,FALSE) ->  | AU25: =VLOOKUP(AR25,I24:T25,6,FALSE) ->  | AV25: =IF(AND(#REF!=AS25,#REF!=AT25,AU24>#REF!),#REF!,AR25) ->  | AW25: =VLOOKUP(AV25,I24:T25,9,FALSE) ->  | AX25: =VLOOKUP(AV25,I24:T25,8,FALSE) ->  | AY25: =VLOOKUP(AV25,I24:T25,6,FALSE) ->  | AZ25: =IF(AND(AW24=AW25,AX24=AX25,AY25>AY24),AV24,AV25) ->  | BA25: =VLOOKUP(AZ25,I24:T25,9,FALSE) ->  | BB25: =VLOOKUP(AZ25,I24:T25,8,FALSE) ->  | BC25: =VLOOKUP(AZ25,I24:T25,6,FALSE) ->  | BG25: =AZ25 ->  | BH25: =VLOOKUP(BG25,I24:T25,2,FALSE) ->  | BI25: =VLOOKUP(BG25,I24:T25,3,FALSE) ->  | BJ25: =VLOOKUP(BG25,I24:T25,4,FALSE) ->  | BK25: =VLOOKUP(BG25,I24:T25,5,FALSE) ->  | BL25: =VLOOKUP(BG25,I24:T25,6,FALSE) ->  | BM25: =VLOOKUP(BG25,I24:T25,7,FALSE) ->  | BN25: =VLOOKUP(BG25,I24:T25,8,FALSE) ->  | BO25: =VLOOKUP(BG25,I24:T25,9,FALSE) ->  | BR25: =IF(#REF!<>"",IF(#REF!>#REF!,#REF!,IF(#REF!>#REF!,#REF!,"Empate")),"") ->  | BS25: =IF(#REF!<>"",IF(#REF!<#REF!,#REF!,IF(#REF!<#REF!,#REF!,"Empate")),"") ->  | BX25: 14º | CA25: =IF($T$49=$T$53,"",IF($T$49>$T$53,$P$53,$P$49)) ->  | CB25: 4 | CE25: 14 | CP25: 110
B26: 20 | D26: 0 | H26: =IF(ISBLANK(E25),"",SUM(IF(E26>E25,1,0)+(IF(F26>F25,1,0)+(IF(G26>G25,1,0))))) ->  | J26: =IF(J25=FALSE,"",J25) ->  | N26: =IF(ISBLANK(K24),"",SUM(IF(K26>K24,1,0)+(IF(L26>L24,1,0)+(IF(M26>M24,1,0))))) ->  | V26: =IF(T25=T29,IF(P25="Bye",P29,IF(P29="Bye",P29)),(IF(ISBLANK(Q25),"",IF(T25>T29,P25,P29)))) -> FALSE | Z26: P58 | BX26: 15º | CA26: =IF($T$57=$T$61,"",IF($T$57>$T$61,$P$61,$P$57)) ->  | CB26: 4 | CE26: 15 | CP26: 111
B27: 21 | D27: 0 | H27: =IF(ISBLANK(E27),"",SUM(IF(E27>E28,1,0)+(IF(F27>F28,1,0)+(IF(G27>G28,1,0))))) ->  | I27: P11 | J27: =IF(H27=H28,IF(D27="Bye",D28,IF(D28="Bye",D27)),(IF(ISBLANK(E27),"",IF(H27>H28,D27,D28)))) -> FALSE | N27: P38 | P27: (V20) | V27: =IF(V26=FALSE,"",V26) ->  | Z27: =IF(ISBLANK(W27),"",SUM(IF(W27>W35,1,0)+(IF(X27>X35,1,0)+(IF(Y27>Y35,1,0))))) ->  | BR27: =IF(#REF!<>"",IF(#REF!>#REF!,#REF!,IF(#REF!>#REF!,#REF!,"Empate")),"") ->  | BS27: =IF(#REF!<>"",IF(#REF!<#REF!,#REF!,IF(#REF!<#REF!,#REF!,"Empate")),"") ->  | BX27: 16º | CA27: =IF($T$65=$T$69,"",IF($T$65>$T$69,$P$69,$P$65)) ->  | CB27: 4 | CE27: 16 | CP27: 112
B28: 22 | D28: 0 | H28: =IF(ISBLANK(E27),"",SUM(IF(E28>E27,1,0)+(IF(F28>F27,1,0)+(IF(G28>G27,1,0))))) ->  | J28: =IF(J27=FALSE,"",J27) ->  | N28: =IF(ISBLANK(K28),"",SUM(IF(K28>K30,1,0)+(IF(L28>L30,1,0)+(IF(M28>M30,1,0))))) ->  | P28: =IF(N28=N30,IF(J28="Bye",J30,IF(J30="Bye",J28)),(IF(ISBLANK(K28),"",IF(N28>N30,J28,J30)))) -> FALSE | AN28: =IF(AND(AL28=#REF!,#REF!>AM28),#REF!,AK28) ->  | AO28: =VLOOKUP(AN28,I28:T29,9,FALSE) ->  | AP28: =VLOOKUP(AN28,I28:T29,8,FALSE) ->  | AQ28: =VLOOKUP(AN28,I28:T29,6,FALSE) ->  | AR28: =IF(AND(AO28=#REF!,AP28=#REF!,#REF!>AQ28),#REF!,AN28) ->  | AS28: =VLOOKUP(AR28,I28:T29,9,FALSE) ->  | AT28: =VLOOKUP(AR28,I28:T29,8,FALSE) ->  | AU28: =VLOOKUP(AR28,I28:T29,6,FALSE) ->  | AV28: =IF(AND(AS28=AS29,AT28=AT29,AU29>AU28),AR29,AR28) ->  | AW28: =VLOOKUP(AV28,I28:T29,9,FALSE) ->  | AX28: =VLOOKUP(AV28,I28:T29,8,FALSE) ->  | AY28: =VLOOKUP(AV28,I28:T29,6,FALSE) ->  | AZ28: =IF(AND(AW28=#REF!,AX28=#REF!,#REF!>AY28),#REF!,AV28) ->  | BA28: =VLOOKUP(AZ28,I28:T29,9,FALSE) ->  | BB28: =VLOOKUP(AZ28,I28:T29,8,FALSE) ->  | BC28: =VLOOKUP(AZ28,I28:T29,6,FALSE) ->  | BG28: =AZ28 ->  | BH28: =VLOOKUP(BG28,I28:T29,2,FALSE) ->  | BI28: =VLOOKUP(BG28,I28:T29,3,FALSE) ->  | BJ28: =VLOOKUP(BG28,I28:T29,4,FALSE) ->  | BK28: =VLOOKUP(BG28,I28:T29,5,FALSE) ->  | BL28: =VLOOKUP(BG28,I28:T29,6,FALSE) ->  | BM28: =VLOOKUP(BG28,I28:T29,7,FALSE) ->  | BN28: =VLOOKUP(BG28,I28:T29,8,FALSE) ->  | BO28: =VLOOKUP(BG28,I28:T29,9,FALSE) ->  | BR28: =IF(#REF!<>"",IF(#REF!>#REF!,#REF!,IF(#REF!>#REF!,#REF!,"Empate")),"") ->  | BS28: =IF(#REF!<>"",IF(#REF!<#REF!,#REF!,IF(#REF!<#REF!,#REF!,"Empate")),"") ->  | BX28: 17º | CA28: =IF($N$8=$N$10,"",IF($N$8>$N$10,$J$10,$J$8)) ->  | CB28: 2 | CE28: 17 | CP28: P101
B29: 23 | D29: 0 | H29: =IF(ISBLANK(E29),"",SUM(IF(E29>E30,1,0)+(IF(F29>F30,1,0)+(IF(G29>G30,1,0))))) ->  | I29: P12 | J29: =IF(H29=H30,IF(D29="Bye",D30,IF(D30="Bye",D29)),(IF(ISBLANK(E29),"",IF(H29>H30,D29,D30)))) -> FALSE | L29: (V5) | P29: =IF(P28=FALSE,"",P28) ->  | T29: =IF(ISBLANK(Q29),"",SUM(IF(Q29>Q25,1,0)+(IF(R29>R25,1,0)+(IF(S29>S25,1,0))))) ->  | AN29: =IF(AND(#REF!=AL29,AM29>#REF!),#REF!,AK29) ->  | AO29: =VLOOKUP(AN29,I28:T29,9,FALSE) ->  | AP29: =VLOOKUP(AN29,I28:T29,8,FALSE) ->  | AQ29: =VLOOKUP(AN29,I28:T29,6,FALSE) ->  | AR29: =IF(AND(AO29=#REF!,AP29=#REF!,#REF!>AQ29),#REF!,AN29) ->  | AS29: =VLOOKUP(AR29,I28:T29,9,FALSE) ->  | AT29: =VLOOKUP(AR29,I28:T29,8,FALSE) ->  | AU29: =VLOOKUP(AR29,I28:T29,6,FALSE) ->  | AV29: =IF(AND(AS28=AS29,AT28=AT29,#REF!>AU28),AR28,AR29) ->  | AW29: =VLOOKUP(AV29,I28:T29,9,FALSE) ->  | AX29: =VLOOKUP(AV29,I28:T29,8,FALSE) ->  | AY29: =VLOOKUP(AV29,I28:T29,6,FALSE) ->  | AZ29: =IF(AND(#REF!=AW29,#REF!=AX29,AY29>#REF!),#REF!,AV29) ->  | BA29: =VLOOKUP(AZ29,I28:T29,9,FALSE) ->  | BB29: =VLOOKUP(AZ29,I28:T29,8,FALSE) ->  | BC29: =VLOOKUP(AZ29,I28:T29,6,FALSE) ->  | BG29: =AZ29 ->  | BH29: =VLOOKUP(BG29,I28:T29,2,FALSE) ->  | BI29: =VLOOKUP(BG29,I28:T29,3,FALSE) ->  | BJ29: =VLOOKUP(BG29,I28:T29,4,FALSE) ->  | BK29: =VLOOKUP(BG29,I28:T29,5,FALSE) ->  | BL29: =VLOOKUP(BG29,I28:T29,6,FALSE) ->  | BM29: =VLOOKUP(BG29,I28:T29,7,FALSE) ->  | BN29: =VLOOKUP(BG29,I28:T29,8,FALSE) ->  | BO29: =VLOOKUP(BG29,I28:T29,9,FALSE) ->  | BR29: =IF(#REF!<>"",IF(#REF!>#REF!,#REF!,IF(#REF!>#REF!,#REF!,"Empate")),"") ->  | BS29: =IF(#REF!<>"",IF(#REF!<#REF!,#REF!,IF(#REF!<#REF!,#REF!,"Empate")),"") ->  | BX29: 18º | CA29: =IF($N$12=$N$14,"",IF($N$12>$N$14,$J$14,$J$12)) ->  | CB29: 2 | CE29: 18 | CP29: P102
B30: 24 | D30: 0 | H30: =IF(ISBLANK(E29),"",SUM(IF(E30>E29,1,0)+(IF(F30>F29,1,0)+(IF(G30>G29,1,0))))) ->  | J30: =IF(J29=FALSE,"",J29) ->  | N30: =IF(ISBLANK(K28),"",SUM(IF(K30>K28,1,0)+(IF(L30>L28,1,0)+(IF(M30>M28,1,0))))) ->  | AB30: =IF(Z27=Z35,IF(V27="Bye",V35,IF(V35="Bye",V35)),(IF(ISBLANK(W27),"",IF(Z27>Z35,V27,V35)))) -> FALSE | BX30: 19º | CA30: =IF($N$16=$N$18,"",IF($N$16>$N$18,$J$18,$J$16)) ->  | CB30: 2 | CE30: 19 | CP30: P103
B31: 25 | D31: 0 | H31: =IF(ISBLANK(E31),"",SUM(IF(E31>E32,1,0)+(IF(F31>F32,1,0)+(IF(G31>G32,1,0))))) ->  | I31: P13 | J31: =IF(H31=H32,IF(D31="Bye",D32,IF(D32="Bye",D31)),(IF(ISBLANK(E31),"",IF(H31>H32,D31,D32)))) -> FALSE | N31: P39 | V31: (V25) | AB31: =IF(AB30=FALSE,"",AB30) ->  | AF31: =IF(ISBLANK(AC31),"",SUM(IF(AC31>AC15,1,0)+(IF(AD31>AD15,1,0)+(IF(AE31>AE15,1,0))))) ->  | BR31: =IF(#REF!<>"",IF(#REF!>#REF!,#REF!,IF(#REF!>#REF!,#REF!,"Empate")),"") ->  | BS31: =IF(#REF!<>"",IF(#REF!<#REF!,#REF!,IF(#REF!<#REF!,#REF!,"Empate")),"") ->  | BX31: 20º | CA31: =IF($N$20=$N$22,"",IF($N$20>$N$22,$J$22,$J$20)) ->  | CB31: 2 | CE31: 20 | CP31: 104
B32: 26 | D32: 0 | H32: =IF(ISBLANK(E31),"",SUM(IF(E32>E31,1,0)+(IF(F32>F31,1,0)+(IF(G32>G31,1,0))))) ->  | J32: =IF(J31=FALSE,"",J31) ->  | N32: =IF(ISBLANK(K32),"",SUM(IF(K32>K34,1,0)+(IF(L32>L34,1,0)+(IF(M32>M34,1,0))))) ->  | P32: =IF(N32=N34,IF(J32="Bye",J34,IF(J34="Bye",J32)),(IF(ISBLANK(K32),"",IF(N32>N34,J32,J34)))) -> FALSE | T32: P52 | AN32: =IF(AND(AL32=#REF!,#REF!>AM32),#REF!,AK32) ->  | AO32: =VLOOKUP(AN32,I32:T33,9,FALSE) ->  | AP32: =VLOOKUP(AN32,I32:T33,8,FALSE) ->  | AQ32: =VLOOKUP(AN32,I32:T33,6,FALSE) ->  | AR32: =IF(AND(AO32=#REF!,AP32=#REF!,#REF!>AQ32),#REF!,AN32) ->  | AS32: =VLOOKUP(AR32,I32:T33,9,FALSE) ->  | AT32: =VLOOKUP(AR32,I32:T33,8,FALSE) ->  | AU32: =VLOOKUP(AR32,I32:T33,6,FALSE) ->  | AV32: =IF(AND(AS32=AS33,AT32=AT33,AU33>AU32),AR33,AR32) ->  | AW32: =VLOOKUP(AV32,I32:T33,9,FALSE) ->  | AX32: =VLOOKUP(AV32,I32:T33,8,FALSE) ->  | AY32: =VLOOKUP(AV32,I32:T33,6,FALSE) ->  | AZ32: =IF(AND(AW32=#REF!,AX32=#REF!,#REF!>AY32),#REF!,AV32) ->  | BA32: =VLOOKUP(AZ32,I32:T33,9,FALSE) ->  | BB32: =VLOOKUP(AZ32,I32:T33,8,FALSE) ->  | BC32: =VLOOKUP(AZ32,I32:T33,6,FALSE) ->  | BG32: =AZ32 ->  | BH32: =VLOOKUP(BG32,I32:T33,2,FALSE) ->  | BI32: =VLOOKUP(BG32,I32:T33,3,FALSE) ->  | BJ32: =VLOOKUP(BG32,I32:T33,4,FALSE) ->  | BK32: =VLOOKUP(BG32,I32:T33,5,FALSE) ->  | BL32: =VLOOKUP(BG32,I32:T33,6,FALSE) ->  | BM32: =VLOOKUP(BG32,I32:T33,7,FALSE) ->  | BN32: =VLOOKUP(BG32,I32:T33,8,FALSE) ->  | BO32: =VLOOKUP(BG32,I32:T33,9,FALSE) ->  | BR32: =IF(#REF!<>"",IF(#REF!>#REF!,#REF!,IF(#REF!>#REF!,#REF!,"Empate")),"") ->  | BS32: =IF(#REF!<>"",IF(#REF!<#REF!,#REF!,IF(#REF!<#REF!,#REF!,"Empate")),"") ->  | BX32: 21º | CA32: =IF($N$24=$N$26,"",IF($N$24>$N$26,$J$26,$J$24)) ->  | CB32: 2 | CE32: 21 | CP32: 105
B33: 27 | D33: 0 | H33: =IF(ISBLANK(E33),"",SUM(IF(E33>E34,1,0)+(IF(F33>F34,1,0)+(IF(G33>G34,1,0))))) ->  | I33: P14 | J33: =IF(H33=H34,IF(D33="Bye",D34,IF(D34="Bye",D33)),(IF(ISBLANK(E33),"",IF(H33>H34,D33,D34)))) -> FALSE | L33: (V8) | P33: =IF(P32=FALSE,"",P32) ->  | T33: =IF(ISBLANK(Q33),"",SUM(IF(Q33>Q37,1,0)+(IF(R33>R37,1,0)+(IF(S33>S37,1,0))))) ->  | AN33: =IF(AND(#REF!=AL33,AM33>#REF!),#REF!,AK33) ->  | AO33: =VLOOKUP(AN33,I32:T33,9,FALSE) ->  | AP33: =VLOOKUP(AN33,I32:T33,8,FALSE) ->  | AQ33: =VLOOKUP(AN33,I32:T33,6,FALSE) ->  | AR33: =IF(AND(AO33=#REF!,AP33=#REF!,#REF!>AQ33),#REF!,AN33) ->  | AS33: =VLOOKUP(AR33,I32:T33,9,FALSE) ->  | AT33: =VLOOKUP(AR33,I32:T33,8,FALSE) ->  | AU33: =VLOOKUP(AR33,I32:T33,6,FALSE) ->  | AV33: =IF(AND(AS32=AS33,AT32=AT33,#REF!>AU32),AR32,AR33) ->  | AW33: =VLOOKUP(AV33,I32:T33,9,FALSE) ->  | AX33: =VLOOKUP(AV33,I32:T33,8,FALSE) ->  | AY33: =VLOOKUP(AV33,I32:T33,6,FALSE) ->  | AZ33: =IF(AND(#REF!=AW33,#REF!=AX33,AY33>#REF!),#REF!,AV33) ->  | BA33: =VLOOKUP(AZ33,I32:T33,9,FALSE) ->  | BB33: =VLOOKUP(AZ33,I32:T33,8,FALSE) ->  | BC33: =VLOOKUP(AZ33,I32:T33,6,FALSE) ->  | BG33: =AZ33 ->  | BH33: =VLOOKUP(BG33,I32:T33,2,FALSE) ->  | BI33: =VLOOKUP(BG33,I32:T33,3,FALSE) ->  | BJ33: =VLOOKUP(BG33,I32:T33,4,FALSE) ->  | BK33: =VLOOKUP(BG33,I32:T33,5,FALSE) ->  | BL33: =VLOOKUP(BG33,I32:T33,6,FALSE) ->  | BM33: =VLOOKUP(BG33,I32:T33,7,FALSE) ->  | BN33: =VLOOKUP(BG33,I32:T33,8,FALSE) ->  | BO33: =VLOOKUP(BG33,I32:T33,9,FALSE) ->  | BR33: =IF(#REF!<>"",IF(#REF!>#REF!,#REF!,IF(#REF!>#REF!,#REF!,"Empate")),"") ->  | BS33: =IF(#REF!<>"",IF(#REF!<#REF!,#REF!,IF(#REF!<#REF!,#REF!,"Empate")),"") ->  | BX33: 22º | CA33: =IF($N$28=$N$30,"",IF($N$28>$N$30,$J$30,$J$28)) ->  | CB33: 2 | CE33: 22 | CP33: 106
B34: 28 | D34: 0 | H34: =IF(ISBLANK(E33),"",SUM(IF(E34>E33,1,0)+(IF(F34>F33,1,0)+(IF(G34>G33,1,0))))) ->  | J34: =IF(J33=FALSE,"",J33) ->  | N34: =IF(ISBLANK(K32),"",SUM(IF(K34>K32,1,0)+(IF(L34>L32,1,0)+(IF(M34>M32,1,0))))) ->  | V34: =IF(T33=T37,IF(P33="Bye",P37,IF(P37="Bye",P37)),(IF(ISBLANK(Q33),"",IF(T33>T37,P33,P37)))) -> FALSE | BX34: 23º | CA34: =IF($N$32=$N$34,"",IF($N$32>$N$34,$J$34,$J$32)) ->  | CB34: 2 | CE34: 23 | CP34: 107
B35: 29 | D35: 0 | H35: =IF(ISBLANK(E35),"",SUM(IF(E35>E36,1,0)+(IF(F35>F36,1,0)+(IF(G35>G36,1,0))))) ->  | I35: P15 | J35: =IF(H35=H36,IF(D35="Bye",D36,IF(D36="Bye",D35)),(IF(ISBLANK(E35),"",IF(H35>H36,D35,D36)))) -> FALSE | N35: P40 | P35: (V19) | V35: =IF(V34=FALSE,"",V34) ->  | Z35: =IF(ISBLANK(W35),"",SUM(IF(W35>W27,1,0)+(IF(X35>X27,1,0)+(IF(Y35>Y27,1,0))))) ->  | BR35: =IF(#REF!<>"",IF(#REF!>#REF!,#REF!,IF(#REF!>#REF!,#REF!,"Empate")),"") ->  | BS35: =IF(#REF!<>"",IF(#REF!<#REF!,#REF!,IF(#REF!<#REF!,#REF!,"Empate")),"") ->  | BX35: 24º | CA35: =IF($N$36=$N$38,"",IF($N$36>$N$38,$J$38,$J$36)) ->  | CB35: 2 | CE35: 24 | CP35: 108
B36: 30 | D36: 0 | H36: =IF(ISBLANK(E35),"",SUM(IF(E36>E35,1,0)+(IF(F36>F35,1,0)+(IF(G36>G35,1,0))))) ->  | J36: =IF(J35=FALSE,"",J35) ->  | N36: =IF(ISBLANK(K36),"",SUM(IF(K36>K38,1,0)+(IF(L36>L38,1,0)+(IF(M36>M38,1,0))))) ->  | P36: =IF(N36=N38,IF(J36="Bye",J38,IF(J38="Bye",J36)),(IF(ISBLANK(K36),"",IF(N36>N38,J36,J38)))) -> FALSE | AN36: =IF(AND(AL36=#REF!,#REF!>AM36),#REF!,AK36) ->  | AO36: =VLOOKUP(AN36,I36:T37,9,FALSE) ->  | AP36: =VLOOKUP(AN36,I36:T37,8,FALSE) ->  | AQ36: =VLOOKUP(AN36,I36:T37,6,FALSE) ->  | AR36: =IF(AND(AO36=#REF!,AP36=#REF!,#REF!>AQ36),#REF!,AN36) ->  | AS36: =VLOOKUP(AR36,I36:T37,9,FALSE) ->  | AT36: =VLOOKUP(AR36,I36:T37,8,FALSE) ->  | AU36: =VLOOKUP(AR36,I36:T37,6,FALSE) ->  | AV36: =IF(AND(AS36=AS37,AT36=AT37,AU37>AU36),AR37,AR36) ->  | AW36: =VLOOKUP(AV36,I36:T37,9,FALSE) ->  | AX36: =VLOOKUP(AV36,I36:T37,8,FALSE) ->  | AY36: =VLOOKUP(AV36,I36:T37,6,FALSE) ->  | AZ36: =IF(AND(AW36=#REF!,AX36=#REF!,#REF!>AY36),#REF!,AV36) ->  | BA36: =VLOOKUP(AZ36,I36:T37,9,FALSE) ->  | BB36: =VLOOKUP(AZ36,I36:T37,8,FALSE) ->  | BC36: =VLOOKUP(AZ36,I36:T37,6,FALSE) ->  | BG36: =AZ36 ->  | BH36: =VLOOKUP(BG36,I36:T37,2,FALSE) ->  | BI36: =VLOOKUP(BG36,I36:T37,3,FALSE) ->  | BJ36: =VLOOKUP(BG36,I36:T37,4,FALSE) ->  | BK36: =VLOOKUP(BG36,I36:T37,5,FALSE) ->  | BL36: =VLOOKUP(BG36,I36:T37,6,FALSE) ->  | BM36: =VLOOKUP(BG36,I36:T37,7,FALSE) ->  | BN36: =VLOOKUP(BG36,I36:T37,8,FALSE) ->  | BO36: =VLOOKUP(BG36,I36:T37,9,FALSE) ->  | BR36: =IF(#REF!<>"",IF(#REF!>#REF!,#REF!,IF(#REF!>#REF!,#REF!,"Empate")),"") ->  | BS36: =IF(#REF!<>"",IF(#REF!<#REF!,#REF!,IF(#REF!<#REF!,#REF!,"Empate")),"") ->  | BX36: 25º | CA36: =IF($N$40=$N$42,"",IF($N$40>$N$42,$J$42,$J$40)) ->  | CB36: 1 | CE36: 25 | CP36: 89
B37: 31 | D37: 0 | H37: =IF(ISBLANK(E37),"",SUM(IF(E37>E38,1,0)+(IF(F37>F38,1,0)+(IF(G37>G38,1,0))))) ->  | I37: P16 | J37: =IF(H37=H38,IF(D37="Bye",D38,IF(D38="Bye",D37)),(IF(ISBLANK(E37),"",IF(H37>H38,D37,D38)))) -> FALSE | L37: (V7) | P37: =IF(P36=FALSE,"",P36) ->  | T37: =IF(ISBLANK(Q37),"",SUM(IF(Q37>Q33,1,0)+(IF(R37>R33,1,0)+(IF(S37>S33,1,0))))) ->  | V37: =IF(AF15=AF31,IF(AB15="Bye",AB31,IF(AB31="Bye",AB15)),(IF(ISBLANK(AC15),"",IF(AF15>AF31,AB31,AB15)))) -> FALSE | Z37: P64 | AB37: (V19) | AN37: =IF(AND(#REF!=AL37,AM37>#REF!),#REF!,AK37) ->  | AO37: =VLOOKUP(AN37,I36:T37,9,FALSE) ->  | AP37: =VLOOKUP(AN37,I36:T37,8,FALSE) ->  | AQ37: =VLOOKUP(AN37,I36:T37,6,FALSE) ->  | AR37: =IF(AND(AO37=#REF!,AP37=#REF!,#REF!>AQ37),#REF!,AN37) ->  | AS37: =VLOOKUP(AR37,I36:T37,9,FALSE) ->  | AT37: =VLOOKUP(AR37,I36:T37,8,FALSE) ->  | AU37: =VLOOKUP(AR37,I36:T37,6,FALSE) ->  | AV37: =IF(AND(AS36=AS37,AT36=AT37,#REF!>AU36),AR36,AR37) ->  | AW37: =VLOOKUP(AV37,I36:T37,9,FALSE) ->  | AX37: =VLOOKUP(AV37,I36:T37,8,FALSE) ->  | AY37: =VLOOKUP(AV37,I36:T37,6,FALSE) ->  | AZ37: =IF(AND(#REF!=AW37,#REF!=AX37,AY37>#REF!),#REF!,AV37) ->  | BA37: =VLOOKUP(AZ37,I36:T37,9,FALSE) ->  | BB37: =VLOOKUP(AZ37,I36:T37,8,FALSE) ->  | BC37: =VLOOKUP(AZ37,I36:T37,6,FALSE) ->  | BG37: =AZ37 ->  | BH37: =VLOOKUP(BG37,I36:T37,2,FALSE) ->  | BI37: =VLOOKUP(BG37,I36:T37,3,FALSE) ->  | BJ37: =VLOOKUP(BG37,I36:T37,4,FALSE) ->  | BK37: =VLOOKUP(BG37,I36:T37,5,FALSE) ->  | BL37: =VLOOKUP(BG37,I36:T37,6,FALSE) ->  | BM37: =VLOOKUP(BG37,I36:T37,7,FALSE) ->  | BN37: =VLOOKUP(BG37,I36:T37,8,FALSE) ->  | BO37: =VLOOKUP(BG37,I36:T37,9,FALSE) ->  | BR37: =IF(#REF!<>"",IF(#REF!>#REF!,#REF!,IF(#REF!>#REF!,#REF!,"Empate")),"") ->  | BS37: =IF(#REF!<>"",IF(#REF!<#REF!,#REF!,IF(#REF!<#REF!,#REF!,"Empate")),"") ->  | BX37: 26º | CA37: =IF($N$44=$N$46,"",IF($N$44>$N$46,$J$46,$J$44)) ->  | CB37: 1 | CE37: 26 | CP37: 90
B38: 32 | D38: 0 | H38: =IF(ISBLANK(E37),"",SUM(IF(E38>E37,1,0)+(IF(F38>F37,1,0)+(IF(G38>G37,1,0))))) ->  | J38: =IF(J37=FALSE,"",J37) ->  | N38: =IF(ISBLANK(K36),"",SUM(IF(K38>K36,1,0)+(IF(L38>L36,1,0)+(IF(M38>M36,1,0))))) ->  | V38: =IF(V37=FALSE,"",V37) ->  | Z38: =IF(ISBLANK(W38),"",SUM(IF(W38>W40,1,0)+(IF(X38>X40,1,0)+(IF(Y38>Y40,1,0))))) ->  | AB38: =IF(Z38=Z40,IF(V38="Bye",V40,IF(V40="Bye",V38)),(IF(ISBLANK(W38),"",IF(Z38>Z40,V38,V40)))) -> FALSE | AH38: QUADRO FINAL | BX38: 27º | CA38: =IF($N$48=$N$50,"",IF($N$48>$N$50,$J$50,$J$48)) ->  | CB38: 1 | CE38: 27 | CP38: 91
B39: 33 | D39: 0 | H39: =IF(ISBLANK(E39),"",SUM(IF(E39>E40,1,0)+(IF(F39>F40,1,0)+(IF(G39>G40,1,0))))) ->  | I39: P17 | J39: =IF(H39=H40,IF(D39="Bye",D40,IF(D40="Bye",D39)),(IF(ISBLANK(E39),"",IF(H39>H40,D39,D40)))) -> FALSE | N39: P41 | V39: =IF(AF47=AF63,IF(AB47="Bye",AB63,IF(AB63="Bye",AB47)),(IF(ISBLANK(AC47),"",IF(AF47>AF63,AB63,AB47)))) -> FALSE | X39: (V7) | AB39: =IF(AB38=FALSE,"",AB38) ->  | AH39: =IF($AL$23=$AL$55,"",IF($AL$23>$AL$55,$AH$23,$AH$55)) ->  | BX39: 28º | CA39: =IF($N$52=$N$54,"",IF($N$52>$N$54,$J$54,$J$52)) ->  | CB39: 1 | CE39: 28 | CP39: 92
B40: 34 | D40: 0 | H40: =IF(ISBLANK(E39),"",SUM(IF(E40>E39,1,0)+(IF(F40>F39,1,0)+(IF(G40>G39,1,0))))) ->  | J40: =IF(J39=FALSE,"",J39) ->  | N40: =IF(ISBLANK(K40),"",SUM(IF(K40>K42,1,0)+(IF(L40>L42,1,0)+(IF(M40>M42,1,0))))) ->  | P40: =IF(N40=N42,IF(J40="Bye",J42,IF(J42="Bye",J40)),(IF(ISBLANK(K40),"",IF(N40>N42,J40,J42)))) -> FALSE | T40: P53 | V40: =IF(V39=FALSE,"",V39) ->  | Z40: =IF(ISBLANK(W38),"",SUM(IF(W40>W38,1,0)+(IF(X40>X38,1,0)+(IF(Y40>Y38,1,0))))) ->  | AB40: 3ºCLASSICADO | AH40: CAMPEÃO | BX40: 29º | CA40: =IF($N$56=$N$58,"",IF($N$56>$N$58,$J$58,$J$56)) ->  | CB40: 1 | CE40: 29 | CP40: 93
B41: 35 | D41: 0 | H41: =IF(ISBLANK(E41),"",SUM(IF(E41>E42,1,0)+(IF(F41>F42,1,0)+(IF(G41>G42,1,0))))) ->  | I41: P18 | J41: =IF(H41=H42,IF(D41="Bye",D42,IF(D42="Bye",D41)),(IF(ISBLANK(E41),"",IF(H41>H42,D41,D42)))) -> FALSE | L41: (V10) | P41: =IF(P40=FALSE,"",P40) ->  | T41: =IF(ISBLANK(Q41),"",SUM(IF(Q41>Q45,1,0)+(IF(R41>R45,1,0)+(IF(S41>S45,1,0))))) ->  | AB41: =IF(Z38=Z40,IF(V38="Bye",V40,IF(V40="Bye",V38)),(IF(ISBLANK(W38),"",IF(Z38>Z40,V40,V38)))) -> FALSE | BX41: 30º | CA41: =IF($N$60=$N$62,"",IF($N$60>$N$62,$J$62,$J$60)) ->  | CB41: 1 | CE41: 30 | CP41: 94
B42: 36 | D42: 0 | H42: =IF(ISBLANK(E41),"",SUM(IF(E42>E41,1,0)+(IF(F42>F41,1,0)+(IF(G42>G41,1,0))))) ->  | J42: =IF(J41=FALSE,"",J41) ->  | N42: =IF(ISBLANK(K40),"",SUM(IF(K42>K40,1,0)+(IF(L42>L40,1,0)+(IF(M42>M40,1,0))))) ->  | V42: =IF(T41=T45,IF(P41="Bye",P45,IF(P45="Bye",P45)),(IF(ISBLANK(Q41),"",IF(T41>T45,P41,P45)))) -> FALSE | Z42: P59 | AB42: =IF(AB41=FALSE,"",AB41) ->  | BX42: 31º | CA42: =IF($N$64=$N$66,"",IF($N$64>$N$66,$J$66,$J$64)) ->  | CB42: 1 | CE42: 31 | CP42: 95
B43: 37 | D43: 0 | H43: =IF(ISBLANK(E43),"",SUM(IF(E43>E44,1,0)+(IF(F43>F44,1,0)+(IF(G43>G44,1,0))))) ->  | I43: P19 | J43: =IF(H43=H44,IF(D43="Bye",D44,IF(D44="Bye",D43)),(IF(ISBLANK(E43),"",IF(H43>H44,D43,D44)))) -> FALSE | N43: P42 | P43: (V22) | V43: =IF(V42=FALSE,"",V42) ->  | Z43: =IF(ISBLANK(W43),"",SUM(IF(W43>W51,1,0)+(IF(X43>X51,1,0)+(IF(Y43>Y51,1,0))))) ->  | AB43: 4ºCLASSICADO | BX43: 32º | CA43: =IF($N$68=$N$70,"",IF($N$68>$N$70,$J$70,$J$68)) ->  | CB43: 1 | CE43: 32 | CP43: 96
B44: 38 | D44: 0 | H44: =IF(ISBLANK(E43),"",SUM(IF(E44>E43,1,0)+(IF(F44>F43,1,0)+(IF(G44>G43,1,0))))) ->  | J44: =IF(J43=FALSE,"",J43) ->  | N44: =IF(ISBLANK(K44),"",SUM(IF(K44>K46,1,0)+(IF(L44>L46,1,0)+(IF(M44>M46,1,0))))) ->  | P44: =IF(N44=N46,IF(J44="Bye",J46,IF(J46="Bye",J44)),(IF(ISBLANK(K44),"",IF(N44>N46,J44,J46)))) -> FALSE | BX44: 33º | CA44: =IF($H$7=$H$8,"",IF($H$7>$H$8,$D$8,$D$7)) ->  | CB44: 1 | CE44: 33 | CP44: 65
B45: 39 | D45: 0 | H45: =IF(ISBLANK(E45),"",SUM(IF(E45>E46,1,0)+(IF(F45>F46,1,0)+(IF(G45>G46,1,0))))) ->  | I45: P20 | J45: =IF(H45=H46,IF(D45="Bye",D46,IF(D46="Bye",D45)),(IF(ISBLANK(E45),"",IF(H45>H46,D45,D46)))) -> FALSE | L45: (V9) | P45: =IF(P44=FALSE,"",P44) ->  | T45: =IF(ISBLANK(Q45),"",SUM(IF(Q45>Q41,1,0)+(IF(R45>R41,1,0)+(IF(S45>S41,1,0))))) ->  | BX45: 34º | CA45: =IF($H$9=$H$10,"",IF($H$9>$H$10,$D$10,$D$9)) ->  | CB45: 1 | CE45: 34 | CP45: 66
B46: 40 | D46: 0 | H46: =IF(ISBLANK(E45),"",SUM(IF(E46>E45,1,0)+(IF(F46>F45,1,0)+(IF(G46>G45,1,0))))) ->  | J46: =IF(J45=FALSE,"",J45) ->  | N46: =IF(ISBLANK(K44),"",SUM(IF(K46>K44,1,0)+(IF(L46>L44,1,0)+(IF(M46>M44,1,0))))) ->  | AB46: =IF(Z43=Z51,IF(V43="Bye",V51,IF(V51="Bye",V51)),(IF(ISBLANK(W43),"",IF(Z43>Z51,V43,V51)))) -> FALSE | AF46: P62 | BX46: 35º | CA46: =IF($H$11=$H$12,"",IF($H$11>$H$12,$D$12,$D$11)) ->  | CB46: 1 | CE46: 35 | CP46: 67
B47: 41 | D47: 0 | H47: =IF(ISBLANK(E47),"",SUM(IF(E47>E48,1,0)+(IF(F47>F48,1,0)+(IF(G47>G48,1,0))))) ->  | I47: P21 | J47: =IF(H47=H48,IF(D47="Bye",D48,IF(D48="Bye",D47)),(IF(ISBLANK(E47),"",IF(H47>H48,D47,D48)))) -> FALSE | N47: P43 | V47: (V28) | AB47: =IF(AB46=FALSE,"",AB46) ->  | AF47: =IF(ISBLANK(AC47),"",SUM(IF(AC47>AC63,1,0)+(IF(AD47>AD63,1,0)+(IF(AE47>AE63,1,0))))) ->  | BX47: 36º | CA47: =IF($H$13=$H$14,"",IF($H$13>$H$14,$D$14,$D$13)) ->  | CB47: 1 | CE47: 36 | CP47: 68
B48: 42 | D48: 0 | H48: =IF(ISBLANK(E47),"",SUM(IF(E48>E47,1,0)+(IF(F48>F47,1,0)+(IF(G48>G47,1,0))))) ->  | J48: =IF(J47=FALSE,"",J47) ->  | N48: =IF(ISBLANK(K48),"",SUM(IF(K48>K50,1,0)+(IF(L48>L50,1,0)+(IF(M48>M50,1,0))))) ->  | P48: =IF(N48=N50,IF(J48="Bye",J50,IF(J50="Bye",J48)),(IF(ISBLANK(K48),"",IF(N48>N50,J48,J50)))) -> FALSE | T48: P54 | BX48: 37º | CA48: =IF($H$15=$H$16,"",IF($H$15>$H$16,$D$16,$D$15)) ->  | CB48: 1 | CE48: 37 | CP48: 69
B49: 43 | D49: 0 | H49: =IF(ISBLANK(E49),"",SUM(IF(E49>E50,1,0)+(IF(F49>F50,1,0)+(IF(G49>G50,1,0))))) ->  | I49: P22 | J49: =IF(H49=H50,IF(D49="Bye",D50,IF(D50="Bye",D49)),(IF(ISBLANK(E49),"",IF(H49>H50,D49,D50)))) -> FALSE | L49: (V12) | P49: =IF(P48=FALSE,"",P48) ->  | T49: =IF(ISBLANK(Q49),"",SUM(IF(Q49>Q53,1,0)+(IF(R49>R53,1,0)+(IF(S49>S53,1,0))))) ->  | BX49: 38º | CA49: =IF($H$17=$H$18,"",IF($H$17>$H$18,$D$18,$D$17)) ->  | CB49: 1 | CE49: 38 | CP49: 70
B50: 44 | D50: 0 | H50: =IF(ISBLANK(E49),"",SUM(IF(E50>E49,1,0)+(IF(F50>F49,1,0)+(IF(G50>G49,1,0))))) ->  | J50: =IF(J49=FALSE,"",J49) ->  | N50: =IF(ISBLANK(K48),"",SUM(IF(K50>K48,1,0)+(IF(L50>L48,1,0)+(IF(M50>M48,1,0))))) ->  | V50: =IF(T49=T53,IF(P49="Bye",P53,IF(P53="Bye",P53)),(IF(ISBLANK(Q49),"",IF(T49>T53,P49,P53)))) -> FALSE | BX50: 39º | CA50: =IF($H$19=$H$20,"",IF($H$19>$H$20,$D$20,$D$19)) ->  | CB50: 1 | CE50: 39 | CP50: 71
B51: 45 | D51: 0 | H51: =IF(ISBLANK(E51),"",SUM(IF(E51>E52,1,0)+(IF(F51>F52,1,0)+(IF(G51>G52,1,0))))) ->  | I51: P23 | J51: =IF(H51=H52,IF(D51="Bye",D52,IF(D52="Bye",D51)),(IF(ISBLANK(E51),"",IF(H51>H52,D51,D52)))) -> FALSE | N51: P44 | P51: (V21) | V51: =IF(V50=FALSE,"",V50) ->  | Z51: =IF(ISBLANK(W51),"",SUM(IF(W51>W43,1,0)+(IF(X51>X43,1,0)+(IF(Y51>Y43,1,0))))) ->  | BX51: 40º | CA51: =IF($H$21=$H$22,"",IF($H$21>$H$22,$D$22,$D$21)) ->  | CB51: 1 | CE51: 40 | CP51: 72
B52: 46 | D52: 0 | H52: =IF(ISBLANK(E51),"",SUM(IF(E52>E51,1,0)+(IF(F52>F51,1,0)+(IF(G52>G51,1,0))))) ->  | J52: =IF(J51=FALSE,"",J51) ->  | N52: =IF(ISBLANK(K52),"",SUM(IF(K52>K54,1,0)+(IF(L52>L54,1,0)+(IF(M52>M54,1,0))))) ->  | P52: =IF(N52=N54,IF(J52="Bye",J54,IF(J54="Bye",J52)),(IF(ISBLANK(K52),"",IF(N52>N54,J52,J54)))) -> FALSE | BX52: 41º | CA52: =IF($H$23=$H$24,"",IF($H$23>$H$24,$D$24,$D$23)) ->  | CB52: 1 | CE52: 41 | CP52: 73
B53: 47 | D53: 0 | H53: =IF(ISBLANK(E53),"",SUM(IF(E53>E54,1,0)+(IF(F53>F54,1,0)+(IF(G53>G54,1,0))))) ->  | I53: P24 | J53: =IF(H53=H54,IF(D53="Bye",D54,IF(D54="Bye",D53)),(IF(ISBLANK(E53),"",IF(H53>H54,D53,D54)))) -> FALSE | L53: (V11) | P53: =IF(P52=FALSE,"",P52) ->  | T53: =IF(ISBLANK(Q53),"",SUM(IF(Q53>Q49,1,0)+(IF(R53>R49,1,0)+(IF(S53>S49,1,0))))) ->  | BX53: 42º | CA53: =IF($H$25=$H$26,"",IF($H$25>$H$26,$D$26,$D$25)) ->  | CB53: 1 | CE53: 42 | CP53: 74
B54: 48 | D54: 0 | H54: =IF(ISBLANK(E53),"",SUM(IF(E54>E53,1,0)+(IF(F54>F53,1,0)+(IF(G54>G53,1,0))))) ->  | J54: =IF(J53=FALSE,"",J53) ->  | N54: =IF(ISBLANK(K52),"",SUM(IF(K54>K52,1,0)+(IF(L54>L52,1,0)+(IF(M54>M52,1,0))))) ->  | BX54: 43º | CA54: =IF($H$27=$H$28,"",IF($H$27>$H$28,$D$28,$D$27)) ->  | CB54: 1 | CE54: 43 | CP54: 75
B55: 49 | D55: 0 | H55: =IF(ISBLANK(E55),"",SUM(IF(E55>E56,1,0)+(IF(F55>F56,1,0)+(IF(G55>G56,1,0))))) ->  | I55: P25 | J55: =IF(H55=H56,IF(D55="Bye",D56,IF(D56="Bye",D55)),(IF(ISBLANK(E55),"",IF(H55>H56,D55,D56)))) -> FALSE | N55: P45 | AB55: (V29) | AH55: =IF(AF47=AF63,"",IF(AF47>AF63,AB47,AB63)) ->  | AL55: =IF(ISBLANK(AI55),"",SUM(IF(AI55>AI23,1,0)+(IF(AJ55>AJ23,1,0)+(IF(AK55>AK23,1,0))))) ->  | BX55: 44º | CA55: =IF($H$29=$H$30,"",IF($H$29>$H$30,$D$30,$D$29)) ->  | CB55: 1 | CE55: 44 | CP55: 76
B56: 50 | D56: 0 | H56: =IF(ISBLANK(E55),"",SUM(IF(E56>E55,1,0)+(IF(F56>F55,1,0)+(IF(G56>G55,1,0))))) ->  | J56: =IF(J55=FALSE,"",J55) ->  | N56: =IF(ISBLANK(K56),"",SUM(IF(K56>K58,1,0)+(IF(L56>L58,1,0)+(IF(M56>M58,1,0))))) ->  | P56: =IF(N56=N58,IF(J56="Bye",J58,IF(J58="Bye",J56)),(IF(ISBLANK(K56),"",IF(N56>N58,J56,J58)))) -> FALSE | T56: P55 | AH56: (V31) | BX56: 45º | CA56: =IF($H$31=$H$32,"",IF($H$31>$H$32,$D$32,$D$31)) ->  | CB56: 1 | CE56: 45 | CP56: 77
B57: 51 | D57: 0 | H57: =IF(ISBLANK(E57),"",SUM(IF(E57>E58,1,0)+(IF(F57>F58,1,0)+(IF(G57>G58,1,0))))) ->  | I57: P26 | J57: =IF(H57=H58,IF(D57="Bye",D58,IF(D58="Bye",D57)),(IF(ISBLANK(E57),"",IF(H57>H58,D57,D58)))) -> FALSE | L57: (V14) | P57: =IF(P56=FALSE,"",P56) ->  | T57: =IF(ISBLANK(Q57),"",SUM(IF(Q57>Q61,1,0)+(IF(R57>R61,1,0)+(IF(S57>S61,1,0))))) ->  | BX57: 46º | CA57: =IF($H$33=$H$34,"",IF($H$33>$H$34,$D$34,$D$33)) ->  | CB57: 1 | CE57: 46 | CP57: 78
B58: 52 | D58: 0 | H58: =IF(ISBLANK(E57),"",SUM(IF(E58>E57,1,0)+(IF(F58>F57,1,0)+(IF(G58>G57,1,0))))) ->  | J58: =IF(J57=FALSE,"",J57) ->  | N58: =IF(ISBLANK(K56),"",SUM(IF(K58>K56,1,0)+(IF(L58>L56,1,0)+(IF(M58>M56,1,0))))) ->  | V58: =IF(T57=T61,IF(P57="Bye",P61,IF(P61="Bye",P61)),(IF(ISBLANK(Q57),"",IF(T57>T61,P57,P61)))) -> FALSE | Z58: P60 | BX58: 47º | CA58: =IF($H$35=$H$36,"",IF($H$35>$H$36,$D$36,$D$35)) ->  | CB58: 1 | CE58: 47 | CP58: 79
B59: 53 | D59: 0 | H59: =IF(ISBLANK(E59),"",SUM(IF(E59>E60,1,0)+(IF(F59>F60,1,0)+(IF(G59>G60,1,0))))) ->  | I59: P27 | J59: =IF(H59=H60,IF(D59="Bye",D60,IF(D60="Bye",D59)),(IF(ISBLANK(E59),"",IF(H59>H60,D59,D60)))) -> FALSE | N59: P46 | P59: (V24) | V59: =IF(V58=FALSE,"",V58) ->  | Z59: =IF(ISBLANK(W59),"",SUM(IF(W59>W67,1,0)+(IF(X59>X67,1,0)+(IF(Y59>Y67,1,0))))) ->  | BX59: 48º | CA59: =IF($H$37=$H$38,"",IF($H$37>$H$38,$D$38,$D$37)) ->  | CB59: 1 | CE59: 48 | CP59: 80
B60: 54 | D60: 0 | H60: =IF(ISBLANK(E59),"",SUM(IF(E60>E59,1,0)+(IF(F60>F59,1,0)+(IF(G60>G59,1,0))))) ->  | J60: =IF(J59=FALSE,"",J59) ->  | N60: =IF(ISBLANK(K60),"",SUM(IF(K60>K62,1,0)+(IF(L60>L62,1,0)+(IF(M60>M62,1,0))))) ->  | P60: =IF(N60=N62,IF(J60="Bye",J62,IF(J62="Bye",J60)),(IF(ISBLANK(K60),"",IF(N60>N62,J60,J62)))) -> FALSE | BX60: 49º | CA60: =IF($H$39=$H$40,"",IF($H$39>$H$40,$D$40,$D$39)) ->  | CB60: 1 | CE60: 49 | CP60: 49
B61: 55 | D61: 0 | H61: =IF(ISBLANK(E61),"",SUM(IF(E61>E62,1,0)+(IF(F61>F62,1,0)+(IF(G61>G62,1,0))))) ->  | I61: P28 | J61: =IF(H61=H62,IF(D61="Bye",D62,IF(D62="Bye",D61)),(IF(ISBLANK(E61),"",IF(H61>H62,D61,D62)))) -> FALSE | L61: (V13) | P61: =IF(P60=FALSE,"",P60) ->  | T61: =IF(ISBLANK(Q61),"",SUM(IF(Q61>Q57,1,0)+(IF(R61>R57,1,0)+(IF(S61>S57,1,0))))) ->  | BX61: 50º | CA61: =IF($H$41=$H$42,"",IF($H$41>$H$42,$D$42,$D$41)) ->  | CB61: 1 | CE61: 50 | CP61: 50
B62: 56 | D62: 0 | H62: =IF(ISBLANK(E61),"",SUM(IF(E62>E61,1,0)+(IF(F62>F61,1,0)+(IF(G62>G61,1,0))))) ->  | J62: =IF(J61=FALSE,"",J61) ->  | N62: =IF(ISBLANK(K60),"",SUM(IF(K62>K60,1,0)+(IF(L62>L60,1,0)+(IF(M62>M60,1,0))))) ->  | AB62: =IF(Z59=Z67,IF(V59="Bye",V67,IF(V67="Bye",V67)),(IF(ISBLANK(W59),"",IF(Z59>Z67,V59,V67)))) -> FALSE | BX62: 51º | CA62: =IF($H$43=$H$44,"",IF($H$43>$H$44,$D$44,$D$43)) ->  | CB62: 1 | CE62: 51 | CP62: 51
B63: 57 | D63: 0 | H63: =IF(ISBLANK(E63),"",SUM(IF(E63>E64,1,0)+(IF(F63>F64,1,0)+(IF(G63>G64,1,0))))) ->  | I63: P29 | J63: =IF(H63=H64,IF(D63="Bye",D64,IF(D64="Bye",D63)),(IF(ISBLANK(E63),"",IF(H63>H64,D63,D64)))) -> FALSE | N63: P47 | V63: (V27) | AB63: =IF(AB62=FALSE,"",AB62) ->  | AF63: =IF(ISBLANK(AC63),"",SUM(IF(AC63>AC47,1,0)+(IF(AD63>AD47,1,0)+(IF(AE63>AE47,1,0))))) ->  | BX63: 52º | CA63: =IF($H$45=$H$46,"",IF($H$45>$H$46,$D$46,$D$45)) ->  | CB63: 1 | CE63: 52 | CP63: 52
B64: 58 | D64: 0 | H64: =IF(ISBLANK(E63),"",SUM(IF(E64>E63,1,0)+(IF(F64>F63,1,0)+(IF(G64>G63,1,0))))) ->  | J64: =IF(J63=FALSE,"",J63) ->  | N64: =IF(ISBLANK(K64),"",SUM(IF(K64>K66,1,0)+(IF(L64>L66,1,0)+(IF(M64>M66,1,0))))) ->  | P64: =IF(N64=N66,IF(J64="Bye",J66,IF(J66="Bye",J64)),(IF(ISBLANK(K64),"",IF(N64>N66,J64,J66)))) -> FALSE | T64: P56 | BX64: 53º | CA64: =IF($H$47=$H$48,"",IF($H$47>$H$48,$D$48,$D$47)) ->  | CB64: 1 | CE64: 53 | CP64: 53
B65: 59 | D65: =CG70 -> 0 | H65: =IF(ISBLANK(E65),"",SUM(IF(E65>E66,1,0)+(IF(F65>F66,1,0)+(IF(G65>G66,1,0))))) ->  | I65: P30 | J65: =IF(H65=H66,IF(D65="Bye",D66,IF(D66="Bye",D65)),(IF(ISBLANK(E65),"",IF(H65>H66,D65,D66)))) -> FALSE | L65: (V16) | P65: =IF(P64=FALSE,"",P64) ->  | T65: =IF(ISBLANK(Q65),"",SUM(IF(Q65>Q69,1,0)+(IF(R65>R69,1,0)+(IF(S65>S69,1,0))))) ->  | BX65: 54º | CA65: =IF($H$49=$H$50,"",IF($H$49>$H$50,$D$50,$D$49)) ->  | CB65: 1 | CE65: 54 | CP65: 54
B66: 60 | D66: 0 | H66: =IF(ISBLANK(E65),"",SUM(IF(E66>E65,1,0)+(IF(F66>F65,1,0)+(IF(G66>G65,1,0))))) ->  | J66: =IF(J65=FALSE,"",J65) ->  | N66: =IF(ISBLANK(K64),"",SUM(IF(K66>K64,1,0)+(IF(L66>L64,1,0)+(IF(M66>M64,1,0))))) ->  | V66: =IF(T65=T69,IF(P65="Bye",P69,IF(P69="Bye",P69)),(IF(ISBLANK(Q65),"",IF(T65>T69,P65,P69)))) -> FALSE | BX66: 55º | CA66: =IF($H$51=$H$52,"",IF($H$51>$H$52,$D$52,$D$51)) ->  | CB66: 1 | CE66: 55 | CP66: 55
B67: 61 | D67: 0 | H67: =IF(ISBLANK(E67),"",SUM(IF(E67>E68,1,0)+(IF(F67>F68,1,0)+(IF(G67>G68,1,0))))) ->  | I67: P31 | J67: =IF(H67=H68,IF(D67="Bye",D68,IF(D68="Bye",D67)),(IF(ISBLANK(E67),"",IF(H67>H68,D67,D68)))) -> FALSE | N67: P48 | P67: (V23) | V67: =IF(V66=FALSE,"",V66) ->  | Z67: =IF(ISBLANK(W67),"",SUM(IF(W67>W59,1,0)+(IF(X67>X59,1,0)+(IF(Y67>Y59,1,0))))) ->  | BX67: 56º | CA67: =IF($H$53=$H$54,"",IF($H$53>$H$54,$D$54,$D$53)) ->  | CB67: 1 | CE67: 56 | CP67: 56
B68: 62 | D68: 0 | H68: =IF(ISBLANK(E67),"",SUM(IF(E68>E67,1,0)+(IF(F68>F67,1,0)+(IF(G68>G67,1,0))))) ->  | J68: =IF(J67=FALSE,"",J67) ->  | N68: =IF(ISBLANK(K68),"",SUM(IF(K68>K70,1,0)+(IF(L68>L70,1,0)+(IF(M68>M70,1,0))))) ->  | P68: =IF(N68=N70,IF(J68="Bye",J70,IF(J70="Bye",J68)),(IF(ISBLANK(K68),"",IF(N68>N70,J68,J70)))) -> FALSE | BX68: 57º | CA68: =IF($H$55=$H$56,"",IF($H$55>$H$56,$D$56,$D$55)) ->  | CB68: 1 | CE68: 57 | CP68: 57
B69: 63 | D69: 0 | H69: =IF(ISBLANK(E69),"",SUM(IF(E69>E70,1,0)+(IF(F69>F70,1,0)+(IF(G69>G70,1,0))))) ->  | I69: P32 | J69: =IF(H69=H70,IF(D69="Bye",D70,IF(D70="Bye",D69)),(IF(ISBLANK(E69),"",IF(H69>H70,D69,D70)))) -> FALSE | L69: (V15) | P69: =IF(P68=FALSE,"",P68) ->  | T69: =IF(ISBLANK(Q69),"",SUM(IF(Q69>Q65,1,0)+(IF(R69>R65,1,0)+(IF(S69>S65,1,0))))) ->  | BX69: 58º | CA69: =IF($H$57=$H$58,"",IF($H$57>$H$58,$D$58,$D$57)) ->  | CB69: 1 | CE69: 58 | CP69: 58
B70: 64 | D70: 0 | H70: =IF(ISBLANK(E69),"",SUM(IF(E70>E69,1,0)+(IF(F70>F69,1,0)+(IF(G70>G69,1,0))))) ->  | J70: =IF(J69=FALSE,"",J69) ->  | N70: =IF(ISBLANK(K68),"",SUM(IF(K70>K68,1,0)+(IF(L70>L68,1,0)+(IF(M70>M68,1,0))))) ->  | BX70: 59º | CA70: =IF($H$59=$H$60,"",IF($H$59>$H$60,$D$60,$D$59)) ->  | CB70: 1 | CE70: 59 | CP70: 59
BX71: 60º | CA71: =IF($H$61=$H$62,"",IF($H$61>$H$62,$D$62,$D$61)) ->  | CB71: 1 | CE71: 60 | CP71: 60
BX72: 61º | CA72: =IF($H$63=$H$64,"",IF($H$63>$H$64,$D$64,$D$63)) ->  | CB72: 1 | CE72: 61 | CP72: 61
BX73: 62º | CA73: =IF($H$65=$H$66,"",IF($H$65>$H$66,$D$66,$D$65)) ->  | CB73: 1 | CE73: 62 | CP73: 62
BX74: 63º | CA74: =IF($H$67=$H$68,"",IF($H$67>$H$68,$D$68,$D$67)) ->  | CB74: 1 | CE74: 63 | CP74: 63
BX75: 64º | CA75: =IF($H$69=$H$70,"",IF($H$69>$H$70,$D$70,$D$69)) ->  | CB75: 1 | CE75: 64 | CP75: 64

Sheet T642derrota (hidden)
L1: Direcção Regional de Educação do Algarve
L2: ="Ano Lectivo "&[1]Apoio!$F$10 -> Ano Lectivo 2016/2017 | EC2: =SUM(EC4:EC21) -> 0
BR3: ='[1]Ficha de Inscrição'!$A$5 -> Torneio Nº 7 | EC3: =SUM(EC4:EC21) -> 0
A4: PH-Juv | C4: =LOOKUP(A4,Apoio!N9:N39,Apoio!O9:O39) -> Pares Homens - Juvenis | S4: ="Escola: "&'[1]Ficha de Inscrição'!$D$4 -> Escola: EB23 Dr A.C. Contreiras | EC4: =IF(ISBLANK(#REF!),COUNTA(EN13:$EN$28),0) -> 0
L5: =IF(U11=U19,IF(Y11="Bye",Y19,IF(Y19="Bye",Y11)),(IF(ISBLANK(V11),"",IF(U11>U19,Y19,Y11)))) -> FALSE | EC5: =IF(ISBLANK(EN13),COUNTA(EN14:$EN$28),0) -> 0
CU6: Ordenar p/ DG 3 | CY6: Ordenar p/ GM 1 | DC6: Ordenar p/ GM 2 | DG6: Ordenar p/ GM 3 | DY6: Vencedores | DZ6: Derrotados | EC6: =IF(ISBLANK(#REF!),COUNTA(EN14:$EN$28),0) -> 0
AY7: =IF(BB8=BB10,IF(BF8="Bye",BF10,IF(BF10="Bye",BF8)),(IF(ISBLANK(BC8),"",IF(BB8>BB10,BF8,BF10)))) -> FALSE | BF7: =IF(BO7=BO8,IF(BK7="Bye",BK8,IF(BK8="Bye",BK7)),(IF(ISBLANK(BL7),"",IF(BO7>BO8,BK8,BK7)))) -> FALSE | BI7: 1 | BK7: =EN12 -> 0 | BO7: =IF(ISBLANK(BL7),"",SUM(IF(BL7>BL8,1,0)+(IF(BM7>BM8,1,0)+(IF(BN7>BN8,1,0))))) ->  | BP7: P1 | BQ7: =IF(BO7=BO8,IF(BK7="Bye",BK8,IF(BK8="Bye",BK7)),(IF(ISBLANK(BL7),"",IF(BO7>BO8,BK7,BK8)))) -> FALSE | BU7: P33 | DY7: =IF(#REF!<>"",IF(#REF!>L7,#REF!,IF(L7>#REF!,F7,"Empate")),"") ->  | DZ7: =IF(#REF!<>"",IF(#REF!<L7,#REF!,IF(L7<#REF!,F7,"Empate")),"") ->  | EC7: =IF(ISBLANK(EN14),COUNTA(EN15:$EN$28),0) -> 0
AL8: =IF(AO9=AO13,IF(AS9="Bye",AS13,IF(AS13="Bye",AS9)),(IF(ISBLANK(AP9),"",IF(AO9>AO13,AS9,AS13)))) -> FALSE | AS8: =IF(AU8=AU10,IF(AY8="Bye",AY10,IF(AY10="Bye",AY8)),(IF(ISBLANK(AV8),"",IF(AU8>AU10,AY8,AY10)))) -> FALSE | AU8: =IF(ISBLANK(AV8),"",SUM(IF(AV8>AV10,1,0)+(IF(AW8>AW10,1,0)+(IF(AX8>AX10,1,0))))) ->  | AY8: =IF(AY7=FALSE,"",AY7) ->  | BB8: =IF(ISBLANK(BC8),"",SUM(IF(BC8>BC10,1,0)+(IF(BD8>BD10,1,0)+(IF(BE8>BE10,1,0))))) ->  | BF8: =IF(BF7=FALSE,"",BF7) ->  | BI8: 2 | BK8: 0 | BO8: =IF(ISBLANK(BL7),"",SUM(IF(BL8>BL7,1,0)+(IF(BM8>BM7,1,0)+(IF(BN8>BN7,1,0))))) ->  | BQ8: =IF(BQ7=FALSE,"",BQ7) ->  | BU8: =IF(ISBLANK(BR8),"",SUM(IF(BR8>BR10,1,0)+(IF(BS8>BS10,1,0)+(IF(BT8>BT10,1,0))))) ->  | BW8: =IF(BU8=BU10,IF(BQ8="Bye",BQ10,IF(BQ10="Bye",BQ8)),(IF(ISBLANK(BR8),"",IF(BU8>BU10,BQ8,BQ10)))) -> FALSE | CA8: P81
AH9: =IF(ISBLANK(AI9),"",SUM(IF(AI9>AI13,1,0)+(IF(AJ9>AJ13,1,0)+(IF(AK9>AK13,1,0))))) ->  | AL9: =IF(AL8=FALSE,"",AL8) ->  | AO9: =IF(ISBLANK(AP9),"",SUM(IF(AP9>AP13,1,0)+(IF(AQ9>AQ13,1,0)+(IF(AR9>AR13,1,0))))) ->  | AS9: =IF(AS8=FALSE,"",AS8) ->  | AW9: P65 | AY9: =IF(BU12=BU14,IF(BQ12="Bye",BQ14,IF(BQ14="Bye",BQ12)),(IF(ISBLANK(BR12),"",IF(BU12>BU14,BQ14,BQ12)))) -> FALSE | BD9: P49 | BF9: =IF(BO9=BO10,IF(BK9="Bye",BK10,IF(BK10="Bye",BK9)),(IF(ISBLANK(BL9),"",IF(BO9>BO10,BK10,BK9)))) -> FALSE | BI9: 3 | BK9: 0 | BO9: =IF(ISBLANK(BL9),"",SUM(IF(BL9>BL10,1,0)+(IF(BM9>BM10,1,0)+(IF(BN9>BN10,1,0))))) ->  | BP9: P2 | BQ9: =IF(BO9=BO10,IF(BK9="Bye",BK10,IF(BK10="Bye",BK9)),(IF(ISBLANK(BL9),"",IF(BO9>BO10,BK9,BK10)))) -> FALSE | BS9: (V2) | BW9: =IF(BW8=FALSE,"",BW8) ->  | CA9: =IF(ISBLANK(BX9),"",SUM(IF(BX9>BX13,1,0)+(IF(BY9>BY13,1,0)+(IF(BZ9>BZ13,1,0))))) ->  | CU9: =IF(AND(#REF!=CS9,CT9>#REF!),#REF!,CR9) ->  | CV9: =VLOOKUP(CU9,BP8:CA9,9,FALSE) ->  | CW9: =VLOOKUP(CU9,BP8:CA9,8,FALSE) ->  | CX9: =VLOOKUP(CU9,BP8:CA9,6,FALSE) ->  | CY9: =IF(AND(CV9=#REF!,CW9=#REF!,#REF!>CX9),#REF!,CU9) ->  | CZ9: =VLOOKUP(CY9,BP8:CA9,9,FALSE) ->  | DA9: =VLOOKUP(CY9,BP8:CA9,8,FALSE) ->  | DB9: =VLOOKUP(CY9,BP8:CA9,6,FALSE) ->  | DC9: =IF(AND(CZ8=CZ9,DA8=DA9,#REF!>DB8),CY8,CY9) ->  | DD9: =VLOOKUP(DC9,BP8:CA9,9,FALSE) ->  | DE9: =VLOOKUP(DC9,BP8:CA9,8,FALSE) ->  | DF9: =VLOOKUP(DC9,BP8:CA9,6,FALSE) ->  | DG9: =IF(AND(#REF!=DD9,#REF!=DE9,DF9>#REF!),#REF!,DC9) ->  | DH9: =VLOOKUP(DG9,BP8:CA9,9,FALSE) ->  | DI9: =VLOOKUP(DG9,BP8:CA9,8,FALSE) ->  | DJ9: =VLOOKUP(DG9,BP8:CA9,6,FALSE) ->  | DN9: =DG9 ->  | DO9: =VLOOKUP(DN9,BP8:CA9,2,FALSE) ->  | DP9: =VLOOKUP(DN9,BP8:CA9,3,FALSE) ->  | DQ9: =VLOOKUP(DN9,BP8:CA9,4,FALSE) ->  | DR9: =VLOOKUP(DN9,BP8:CA9,5,FALSE) ->  | DS9: =VLOOKUP(DN9,BP8:CA9,6,FALSE) ->  | DT9: =VLOOKUP(DN9,BP8:CA9,7,FALSE) ->  | DU9: =VLOOKUP(DN9,BP8:CA9,8,FALSE) ->  | DV9: =VLOOKUP(DN9,BP8:CA9,9,FALSE) ->  | DY9: =IF(T9<>"",IF(T9>#REF!,N9,IF(#REF!>T9,#REF!,"Empate")),"") ->  | DZ9: =IF(T9<>"",IF(T9<#REF!,N9,IF(#REF!<T9,#REF!,"Empate")),"") ->  | EC9: =IF(ISBLANK(EN16),COUNTA(EN17:$EN$28),0) -> 0 | FM9: PROCV($EU$12;$AE$9:$AI$13;2;FALSO)
Y10: =IF(AB11=AB19,IF(AF11="Bye",AF19,IF(AF19="Bye",AF11)),(IF(ISBLANK(AC11),"",IF(AB11>AB19,AF11,AF19)))) -> FALSE | AF10: =IF(AH9=AH13,IF(AL9="Bye",AL13,IF(AL13="Bye",AL9)),(IF(ISBLANK(AI9),"",IF(AH9>AH13,AL9,AL13)))) -> FALSE | AU10: =IF(ISBLANK(AV8),"",SUM(IF(AV10>AV8,1,0)+(IF(AW10>AW8,1,0)+(IF(AX10>AX8,1,0))))) ->  | AY10: =IF(AY9=FALSE,"",AY9) ->  | AZ10: (V1) | BB10: =IF(ISBLANK(BC8),"",SUM(IF(BC10>BC8,1,0)+(IF(BD10>BD8,1,0)+(IF(BE10>BE8,1,0))))) ->  | BF10: =IF(BF9=FALSE,"",BF9) ->  | BI10: 4 | BK10: 0 | BO10: =IF(ISBLANK(BL9),"",SUM(IF(BL10>BL9,1,0)+(IF(BM10>BM9,1,0)+(IF(BN10>BN9,1,0))))) ->  | BQ10: =IF(BQ9=FALSE,"",BQ9) ->  | BU10: =IF(ISBLANK(BR8),"",SUM(IF(BR10>BR8,1,0)+(IF(BS10>BS8,1,0)+(IF(BT10>BT8,1,0))))) ->  | CC10: =IF(CA9=CA13,IF(BW9="Bye",BW13,IF(BW13="Bye",BW13)),(IF(ISBLANK(BX9),"",IF(CA9>CA13,BW9,BW13)))) -> FALSE | CG10: P97 | EC10: =IF(ISBLANK(EN17),COUNTA(EN18:$EN$28),0) -> 0 | EE10: Classificação
U11: =IF(ISBLANK(V11),"",SUM(IF(V11>V19,1,0)+(IF(W11>W19,1,0)+(IF(X11>X19,1,0))))) ->  | Y11: =IF(Y10=FALSE,"",Y10) ->  | AB11: =IF(ISBLANK(AC11),"",SUM(IF(AC11>AC19,1,0)+(IF(AD11>AD19,1,0)+(IF(AE11>AE19,1,0))))) ->  | AF11: =IF(AF10=FALSE,"",AF10) ->  | AH11: P101 | AO11: P89 | AY11: =IF(BB12=BB14,IF(BF12="Bye",BF14,IF(BF14="Bye",BF12)),(IF(ISBLANK(BC12),"",IF(BB12>BB14,BF12,BF14)))) -> FALSE | BF11: =IF(BO11=BO12,IF(BK11="Bye",BK12,IF(BK12="Bye",BK11)),(IF(ISBLANK(BL11),"",IF(BO11>BO12,BK12,BK11)))) -> FALSE | BI11: 5 | BK11: 0 | BO11: =IF(ISBLANK(BL11),"",SUM(IF(BL11>BL12,1,0)+(IF(BM11>BM12,1,0)+(IF(BN11>BN12,1,0))))) ->  | BP11: P3 | BQ11: =IF(BO11=BO12,IF(BK11="Bye",BK12,IF(BK12="Bye",BK11)),(IF(ISBLANK(BL11),"",IF(BO11>BO12,BK11,BK12)))) -> FALSE | BU11: P34 | BW11: (V18) | CC11: =IF(CC10=FALSE,"",CC10) ->  | CG11: =IF(ISBLANK(CD11),"",SUM(IF(CD11>CD19,1,0)+(IF(CE11>CE19,1,0)+(IF(CF11>CF19,1,0))))) ->  | DY11: =IF(#REF!<>"",IF(#REF!>L11,#REF!,IF(L11>#REF!,F11,"Empate")),"") ->  | DZ11: =IF(#REF!<>"",IF(#REF!<L11,#REF!,IF(L11<#REF!,F11,"Empate")),"") ->  | EC11: =IF(ISBLANK(EN18),COUNTA(EN19:$EN$28),0) -> 0 | EE11: NºJ | EH11: Nome | EI11: Pts | EL11: Ordem | EM11: Nº | EN11: Nome (1º e último) | EO11: Escola | EP11: Abv. | EQ11: Ano Nasc. | ER11: Escalão | ES11: Sexo | ET11: Observações | EU11: Insc. Prova | EX11: VENCIDO (P49) | EY11: PM | EZ11: PS | FA11: DIF | FB11: VENCIDO (P50) | FC11: PM | FD11: PM | FE11: DIF | FF11: VENCIDO (P51) | FG11: PM | FH11: PS | FI11: DIF | FJ11: VENCIDO (P52) | FK11: PM | FL11: PM | FM11: DIF | FN11: VENCIDO (P49) | FT11: PAULO JORGE NOBRE DOS SANTOS ÁGUAS
AL12: =IF(CA17=CA21,IF(BW17="Bye",BW21,IF(BW21="Bye",BW21)),(IF(ISBLANK(BX17),"",IF(CA17>CA21,BW21,BW17)))) -> FALSE | AS12: =IF(AU12=AU14,IF(AY12="Bye",AY14,IF(AY14="Bye",AY12)),(IF(ISBLANK(AV12),"",IF(AU12>AU14,AY12,AY14)))) -> FALSE | AU12: =IF(ISBLANK(AV12),"",SUM(IF(AV12>AV14,1,0)+(IF(AW12>AW14,1,0)+(IF(AX12>AX14,1,0))))) ->  | AY12: =IF(AY11=FALSE,"",AY11) ->  | BB12: =IF(ISBLANK(BC12),"",SUM(IF(BC12>BC14,1,0)+(IF(BD12>BD14,1,0)+(IF(BE12>BE14,1,0))))) ->  | BF12: =IF(BF11=FALSE,"",BF11) ->  | BI12: 6 | BK12: 0 | BO12: =IF(ISBLANK(BL11),"",SUM(IF(BL12>BL11,1,0)+(IF(BM12>BM11,1,0)+(IF(BN12>BN11,1,0))))) ->  | BQ12: =IF(BQ11=FALSE,"",BQ11) ->  | BU12: =IF(ISBLANK(BR12),"",SUM(IF(BR12>BR14,1,0)+(IF(BS12>BS14,1,0)+(IF(BT12>BT14,1,0))))) ->  | BW12: =IF(BU12=BU14,IF(BQ12="Bye",BQ14,IF(BQ14="Bye",BQ12)),(IF(ISBLANK(BR12),"",IF(BU12>BU14,BQ12,BQ14)))) -> FALSE | CU12: =IF(AND(CS12=#REF!,#REF!>CT12),#REF!,CR12) ->  | CV12: =VLOOKUP(CU12,BP12:CA13,9,FALSE) ->  | CW12: =VLOOKUP(CU12,BP12:CA13,8,FALSE) ->  | CX12: =VLOOKUP(CU12,BP12:CA13,6,FALSE) ->  | CY12: =IF(AND(CV12=#REF!,CW12=#REF!,#REF!>CX12),#REF!,CU12) ->  | CZ12: =VLOOKUP(CY12,BP12:CA13,9,FALSE) ->  | DA12: =VLOOKUP(CY12,BP12:CA13,8,FALSE) ->  | DB12: =VLOOKUP(CY12,BP12:CA13,6,FALSE) ->  | DC12: =IF(AND(CZ12=CZ13,DA12=DA13,DB13>DB12),CY13,CY12) ->  | DD12: =VLOOKUP(DC12,BP12:CA13,9,FALSE) ->  | DE12: =VLOOKUP(DC12,BP12:CA13,8,FALSE) ->  | DF12: =VLOOKUP(DC12,BP12:CA13,6,FALSE) ->  | DG12: =IF(AND(DD12=#REF!,DE12=#REF!,#REF!>DF12),#REF!,DC12) ->  | DH12: =VLOOKUP(DG12,BP12:CA13,9,FALSE) ->  | DI12: =VLOOKUP(DG12,BP12:CA13,8,FALSE) ->  | DJ12: =VLOOKUP(DG12,BP12:CA13,6,FALSE) ->  | DN12: =DG12 ->  | DO12: =VLOOKUP(DN12,BP12:CA13,2,FALSE) ->  | DP12: =VLOOKUP(DN12,BP12:CA13,3,FALSE) ->  | DQ12: =VLOOKUP(DN12,BP12:CA13,4,FALSE) ->  | DR12: =VLOOKUP(DN12,BP12:CA13,5,FALSE) ->  | DS12: =VLOOKUP(DN12,BP12:CA13,6,FALSE) ->  | DT12: =VLOOKUP(DN12,BP12:CA13,7,FALSE) ->  | DU12: =VLOOKUP(DN12,BP12:CA13,8,FALSE) ->  | DV12: =VLOOKUP(DN12,BP12:CA13,9,FALSE) ->  | DY12: =IF(L12<>"",IF(L12>#REF!,F12,IF(#REF!>L12,#REF!,"Empate")),"") ->  | DZ12: =IF(L12<>"",IF(L12<#REF!,F12,IF(#REF!<L12,#REF!,"Empate")),"") ->  | EC12: =IF(ISBLANK(EN19),COUNTA(EN20:$EN$28),0) -> 0 | EE12: 1º | EH12: =CO32 ->  | EI12: 12 | EL12: 1 | EY12: =VLOOKUP($EX$12,$AH$9:$AL$13,2,FALSE) ->  | FM12: PROCV($FK$12;;2;FALSO) | FN12: =IF(AH13=AH9,IF(AL13="Bye",AL9,IF(AL9="Bye",AL13)),(IF(ISBLANK(AI9),"",IF(AH13>AH9,AL9,AL13)))) -> FALSE
AH13: =IF(ISBLANK(AI9),"",SUM(IF(AI13>AI9,1,0)+(IF(AJ13>AJ9,1,0)+(IF(AK13>AK9,1,0))))) ->  | AL13: =IF(AL12=FALSE,"",AL12) ->  | AM13: (V17) | AO13: =IF(ISBLANK(AP13),"",SUM(IF(AP13>AP9,1,0)+(IF(AQ13>AQ9,1,0)+(IF(AR13>AR9,1,0))))) ->  | AS13: =IF(AS12=FALSE,"",AS12) ->  | AW13: P66 | AY13: =IF(BU8=BU10,IF(BQ8="Bye",BQ10,IF(BQ10="Bye",BQ8)),(IF(ISBLANK(BR8),"",IF(BU8>BU10,BQ10,BQ8)))) -> FALSE | BD13: P50 | BF13: =IF(BO13=BO14,IF(BK13="Bye",BK14,IF(BK14="Bye",BK13)),(IF(ISBLANK(BL13),"",IF(BO13>BO14,BK14,BK13)))) -> FALSE | BI13: 7 | BK13: 0 | BO13: =IF(ISBLANK(BL13),"",SUM(IF(BL13>BL14,1,0)+(IF(BM13>BM14,1,0)+(IF(BN13>BN14,1,0))))) ->  | BP13: P4 | BQ13: =IF(BO13=BO14,IF(BK13="Bye",BK14,IF(BK14="Bye",BK13)),(IF(ISBLANK(BL13),"",IF(BO13>BO14,BK13,BK14)))) -> FALSE | BS13: (V1) | BW13: =IF(BW12=FALSE,"",BW12) ->  | CA13: =IF(ISBLANK(BX13),"",SUM(IF(BX13>BX9,1,0)+(IF(BY13>BY9,1,0)+(IF(BZ13>BZ9,1,0))))) ->  | CU13: =IF(AND(#REF!=CS13,CT13>#REF!),#REF!,CR13) ->  | CV13: =VLOOKUP(CU13,BP12:CA13,9,FALSE) ->  | CW13: =VLOOKUP(CU13,BP12:CA13,8,FALSE) ->  | CX13: =VLOOKUP(CU13,BP12:CA13,6,FALSE) ->  | CY13: =IF(AND(CV13=#REF!,CW13=#REF!,#REF!>CX13),#REF!,CU13) ->  | CZ13: =VLOOKUP(CY13,BP12:CA13,9,FALSE) ->  | DA13: =VLOOKUP(CY13,BP12:CA13,8,FALSE) ->  | DB13: =VLOOKUP(CY13,BP12:CA13,6,FALSE) ->  | DC13: =IF(AND(CZ12=CZ13,DA12=DA13,#REF!>DB12),CY12,CY13) ->  | DD13: =VLOOKUP(DC13,BP12:CA13,9,FALSE) ->  | DE13: =VLOOKUP(DC13,BP12:CA13,8,FALSE) ->  | DF13: =VLOOKUP(DC13,BP12:CA13,6,FALSE) ->  | DG13: =IF(AND(#REF!=DD13,#REF!=DE13,DF13>#REF!),#REF!,DC13) ->  | DH13: =VLOOKUP(DG13,BP12:CA13,9,FALSE) ->  | DI13: =VLOOKUP(DG13,BP12:CA13,8,FALSE) ->  | DJ13: =VLOOKUP(DG13,BP12:CA13,6,FALSE) ->  | DN13: =DG13 ->  | DO13: =VLOOKUP(DN13,BP12:CA13,2,FALSE) ->  | DP13: =VLOOKUP(DN13,BP12:CA13,3,FALSE) ->  | DQ13: =VLOOKUP(DN13,BP12:CA13,4,FALSE) ->  | DR13: =VLOOKUP(DN13,BP12:CA13,5,FALSE) ->  | DS13: =VLOOKUP(DN13,BP12:CA13,6,FALSE) ->  | DT13: =VLOOKUP(DN13,BP12:CA13,7,FALSE) ->  | DU13: =VLOOKUP(DN13,BP12:CA13,8,FALSE) ->  | DV13: =VLOOKUP(DN13,BP12:CA13,9,FALSE) ->  | DY13: =IF(T13<>"",IF(T13>#REF!,N13,IF(#REF!>T13,#REF!,"Empate")),"") ->  | DZ13: =IF(T13<>"",IF(T13<#REF!,N13,IF(#REF!<T13,#REF!,"Empate")),"") ->  | EC13: =IF(ISBLANK(EN20),COUNTA(EN21:$EN$28),0) -> 0 | EE13: 2º | EH13: =IF(EH12=CO37,CO40,CO37) ->  | EI13: 11 | EL13: 2
L14: =IF(O15=O31,IF(S15="Bye",S31,IF(S31="Bye",S15)),(IF(ISBLANK(P15),"",IF(O15>O31,S15,S31)))) -> FALSE | S14: =IF(U11=U19,IF(Y11="Bye",Y19,IF(Y19="Bye",Y11)),(IF(ISBLANK(V11),"",IF(U11>U19,Y11,Y19)))) -> FALSE | U14: Vencedor | AB14: Vencedor | AU14: =IF(ISBLANK(AV12),"",SUM(IF(AV14>AV12,1,0)+(IF(AW14>AW12,1,0)+(IF(AX14>AX12,1,0))))) ->  | AY14: =IF(AY13=FALSE,"",AY13) ->  | AZ14: (V2) | BB14: =IF(ISBLANK(BC12),"",SUM(IF(BC14>BC12,1,0)+(IF(BD14>BD12,1,0)+(IF(BE14>BE12,1,0))))) ->  | BF14: =IF(BF13=FALSE,"",BF13) ->  | BI14: 8 | BK14: 0 | BO14: =IF(ISBLANK(BL13),"",SUM(IF(BL14>BL13,1,0)+(IF(BM14>BM13,1,0)+(IF(BN14>BN13,1,0))))) ->  | BQ14: =IF(BQ13=FALSE,"",BQ13) ->  | BU14: =IF(ISBLANK(BR12),"",SUM(IF(BR14>BR12,1,0)+(IF(BS14>BS12,1,0)+(IF(BT14>BT12,1,0))))) ->  | CI14: =IF(CG11=CG19,IF(CC11="Bye",CC19,IF(CC19="Bye",CC19)),(IF(ISBLANK(CD11),"",IF(CG11>CG19,CC11,CC19)))) -> FALSE | CM14: P113 | EC14: =IF(ISBLANK(EN21),COUNTA(EN22:$EN$28),0) -> 0 | EE14: 3º | EH14: =O39 ->  | EI14: 10 | EL14: 3 | FR14: PM | FS14: PS | FT14: DIF
H15: =IF(ISBLANK(I15),"",SUM(IF(I15>I31,1,0)+(IF(J15>J31,1,0)+(IF(K15>K31,1,0))))) ->  | L15: =IF(L14=FALSE,"",L14) ->  | O15: =IF(ISBLANK(P15),"",SUM(IF(P15>P31,1,0)+(IF(Q15>Q31,1,0)+(IF(R15>R31,1,0))))) ->  | S15: =IF(S14=FALSE,"",S14) ->  | Y15: P115 | AF15: P109 | AY15: =IF(BB16=BB18,IF(BF16="Bye",BF18,IF(BF18="Bye",BF16)),(IF(ISBLANK(BC16),"",IF(BB16>BB18,BF16,BF18)))) -> FALSE | BF15: =IF(BO15=BO16,IF(BK15="Bye",BK16,IF(BK16="Bye",BK15)),(IF(ISBLANK(BL15),"",IF(BO15>BO16,BK16,BK15)))) -> FALSE | BI15: 9 | BK15: 0 | BO15: =IF(ISBLANK(BL15),"",SUM(IF(BL15>BL16,1,0)+(IF(BM15>BM16,1,0)+(IF(BN15>BN16,1,0))))) ->  | BP15: P5 | BQ15: =IF(BO15=BO16,IF(BK15="Bye",BK16,IF(BK16="Bye",BK15)),(IF(ISBLANK(BL15),"",IF(BO15>BO16,BK15,BK16)))) -> FALSE | BU15: P35 | CC15: (V26) | CI15: =IF(CI14=FALSE,"",CI14) ->  | CM15: =IF(ISBLANK(CJ15),"",SUM(IF(CJ15>CJ31,1,0)+(IF(CK15>CK31,1,0)+(IF(CL15>CL31,1,0))))) ->  | CO15: FINALÍSSIMA | DY15: =IF(#REF!<>"",IF(#REF!>L15,#REF!,IF(L15>#REF!,F15,"Empate")),"") ->  | DZ15: =IF(#REF!<>"",IF(#REF!<L15,#REF!,IF(L15<#REF!,F15,"Empate")),"") ->  | EC15: =IF(ISBLANK(EN22),COUNTA(EN23:$EN$28),0) -> 0 | EE15: 4º | EH15: =U39 ->  | EI15: 9 | EL15: 4 | EY15: p49 | FM15: =IF(AH13=AH9,IF(AL13="Bye",AL9,IF(AL9="Bye",AL13)),(IF(ISBLANK(AI9),"",IF(AH13>AH9,AL9,AL13)))) -> FALSE | FN15: =$AL$9 ->  | FO15: =$AK$9 -> 0 | FP15: =$AJ$9 -> 0 | FQ15: =$AI$9 -> 0 | FR15: =FO15+FP15+FQ15 -> 0 | FS15: =FO16+FP16+FQ16 -> 0 | FT15: =FR15-FS15 -> 0
AL16: =IF(AO17=AO21,IF(AS17="Bye",AS21,IF(AS21="Bye",AS17)),(IF(ISBLANK(AP17),"",IF(AO17>AO21,AS17,AS21)))) -> FALSE | AS16: =IF(AU16=AU18,IF(AY16="Bye",AY18,IF(AY18="Bye",AY16)),(IF(ISBLANK(AV16),"",IF(AU16>AU18,AY16,AY18)))) -> FALSE | AU16: =IF(ISBLANK(AV16),"",SUM(IF(AV16>AV18,1,0)+(IF(AW16>AW18,1,0)+(IF(AX16>AX18,1,0))))) ->  | AY16: =IF(AY15=FALSE,"",AY15) ->  | BB16: =IF(ISBLANK(BC16),"",SUM(IF(BC16>BC18,1,0)+(IF(BD16>BD18,1,0)+(IF(BE16>BE18,1,0))))) ->  | BF16: =IF(BF15=FALSE,"",BF15) ->  | BI16: 10 | BK16: 0 | BO16: =IF(ISBLANK(BL15),"",SUM(IF(BL16>BL15,1,0)+(IF(BM16>BM15,1,0)+(IF(BN16>BN15,1,0))))) ->  | BQ16: =IF(BQ15=FALSE,"",BQ15) ->  | BU16: =IF(ISBLANK(BR16),"",SUM(IF(BR16>BR18,1,0)+(IF(BS16>BS18,1,0)+(IF(BT16>BT18,1,0))))) ->  | BW16: =IF(BU16=BU18,IF(BQ16="Bye",BQ18,IF(BQ18="Bye",BQ16)),(IF(ISBLANK(BR16),"",IF(BU16>BU18,BQ16,BQ18)))) -> FALSE | CA16: P82 | CS16: P128 | CU16: =IF(AND(CS16=#REF!,#REF!>CT16),#REF!,CR16) ->  | CV16: =VLOOKUP(CU16,BP16:CA17,9,FALSE) ->  | CW16: =VLOOKUP(CU16,BP16:CA17,8,FALSE) ->  | CX16: =VLOOKUP(CU16,BP16:CA17,6,FALSE) ->  | CY16: =IF(AND(CV16=#REF!,CW16=#REF!,#REF!>CX16),#REF!,CU16) ->  | CZ16: =VLOOKUP(CY16,BP16:CA17,9,FALSE) ->  | DA16: =VLOOKUP(CY16,BP16:CA17,8,FALSE) ->  | DB16: =VLOOKUP(CY16,BP16:CA17,6,FALSE) ->  | DC16: =IF(AND(CZ16=CZ17,DA16=DA17,DB17>DB16),CY17,CY16) ->  | DD16: =VLOOKUP(DC16,BP16:CA17,9,FALSE) ->  | DE16: =VLOOKUP(DC16,BP16:CA17,8,FALSE) ->  | DF16: =VLOOKUP(DC16,BP16:CA17,6,FALSE) ->  | DG16: =IF(AND(DD16=#REF!,DE16=#REF!,#REF!>DF16),#REF!,DC16) ->  | DH16: =VLOOKUP(DG16,BP16:CA17,9,FALSE) ->  | DI16: =VLOOKUP(DG16,BP16:CA17,8,FALSE) ->  | DJ16: =VLOOKUP(DG16,BP16:CA17,6,FALSE) ->  | DN16: =DG16 ->  | DO16: =VLOOKUP(DN16,BP16:CA17,2,FALSE) ->  | DP16: =VLOOKUP(DN16,BP16:CA17,3,FALSE) ->  | DQ16: =VLOOKUP(DN16,BP16:CA17,4,FALSE) ->  | DR16: =VLOOKUP(DN16,BP16:CA17,5,FALSE) ->  | DS16: =VLOOKUP(DN16,BP16:CA17,6,FALSE) ->  | DT16: =VLOOKUP(DN16,BP16:CA17,7,FALSE) ->  | DU16: =VLOOKUP(DN16,BP16:CA17,8,FALSE) ->  | DV16: =VLOOKUP(DN16,BP16:CA17,9,FALSE) ->  | DY16: =IF(L16<>"",IF(L16>#REF!,F16,IF(#REF!>L16,#REF!,"Empate")),"") ->  | DZ16: =IF(L16<>"",IF(L16<#REF!,F16,IF(#REF!<L16,#REF!,"Empate")),"") ->  | EC16: =IF(ISBLANK(EN23),COUNTA(EN24:$EN$28),0) -> 0 | EE16: 5º | EH16: =F43 ->  | EI16: 8 | EL16: 5 | FN16: =$AL$13 ->  | FO16: =$AK$13 -> 0 | FP16: =$AJ$13 -> 0 | FQ16: =$AI$13 -> 0 | FR16: 0 | FS16: =FO15+FP15+FQ15 -> 0 | FT16: 0
AH17: =IF(ISBLANK(AI17),"",SUM(IF(AI17>AI21,1,0)+(IF(AJ17>AJ21,1,0)+(IF(AK17>AK21,1,0))))) ->  | AL17: =IF(AL16=FALSE,"",AL16) ->  | AO17: =IF(ISBLANK(AP17),"",SUM(IF(AP17>AP21,1,0)+(IF(AQ17>AQ21,1,0)+(IF(AR17>AR21,1,0))))) ->  | AS17: =IF(AS16=FALSE,"",AS16) ->  | AW17: P67 | AY17: =IF(BU20=BU22,IF(BQ20="Bye",BQ22,IF(BQ22="Bye",BQ20)),(IF(ISBLANK(BR20),"",IF(BU20>BU22,BQ22,BQ20)))) -> FALSE | BD17: P51 | BF17: =IF(BO17=BO18,IF(BK17="Bye",BK18,IF(BK18="Bye",BK17)),(IF(ISBLANK(BL17),"",IF(BO17>BO18,BK18,BK17)))) -> FALSE | BI17: 11 | BK17: 0 | BO17: =IF(ISBLANK(BL17),"",SUM(IF(BL17>BL18,1,0)+(IF(BM17>BM18,1,0)+(IF(BN17>BN18,1,0))))) ->  | BP17: P6 | BQ17: =IF(BO17=BO18,IF(BK17="Bye",BK18,IF(BK18="Bye",BK17)),(IF(ISBLANK(BL17),"",IF(BO17>BO18,BK17,BK18)))) -> FALSE | BS17: (V4) | BW17: =IF(BW16=FALSE,"",BW16) ->  | CA17: =IF(ISBLANK(BX17),"",SUM(IF(BX17>BX21,1,0)+(IF(BY17>BY21,1,0)+(IF(BZ17>BZ21,1,0))))) ->  | CO17: =IF(CS37=CS40,"",IF(CS37>CS40,"",CO37)) ->  | CS17: =IF(ISBLANK(CP17),"",SUM(IF(CP17>CP19,1,0)+(IF(CQ17>CQ19,1,0)+(IF(CR17>CR19,1,0))))) ->  | CU17: =IF(AND(#REF!=CS17,CT17>#REF!),#REF!,CR17) ->  | CV17: =VLOOKUP(CU17,BP16:CA17,9,FALSE) ->  | CW17: =VLOOKUP(CU17,BP16:CA17,8,FALSE) ->  | CX17: =VLOOKUP(CU17,BP16:CA17,6,FALSE) ->  | CY17: =IF(AND(CV17=#REF!,CW17=#REF!,#REF!>CX17),#REF!,CU17) ->  | CZ17: =VLOOKUP(CY17,BP16:CA17,9,FALSE) ->  | DA17: =VLOOKUP(CY17,BP16:CA17,8,FALSE) ->  | DB17: =VLOOKUP(CY17,BP16:CA17,6,FALSE) ->  | DC17: =IF(AND(CZ16=CZ17,DA16=DA17,#REF!>DB16),CY16,CY17) ->  | DD17: =VLOOKUP(DC17,BP16:CA17,9,FALSE) ->  | DE17: =VLOOKUP(DC17,BP16:CA17,8,FALSE) ->  | DF17: =VLOOKUP(DC17,BP16:CA17,6,FALSE) ->  | DG17: =IF(AND(#REF!=DD17,#REF!=DE17,DF17>#REF!),#REF!,DC17) ->  | DH17: =VLOOKUP(DG17,BP16:CA17,9,FALSE) ->  | DI17: =VLOOKUP(DG17,BP16:CA17,8,FALSE) ->  | DJ17: =VLOOKUP(DG17,BP16:CA17,6,FALSE) ->  | DN17: =DG17 ->  | DO17: =VLOOKUP(DN17,BP16:CA17,2,FALSE) ->  | DP17: =VLOOKUP(DN17,BP16:CA17,3,FALSE) ->  | DQ17: =VLOOKUP(DN17,BP16:CA17,4,FALSE) ->  | DR17: =VLOOKUP(DN17,BP16:CA17,5,FALSE) ->  | DS17: =VLOOKUP(DN17,BP16:CA17,6,FALSE) ->  | DT17: =VLOOKUP(DN17,BP16:CA17,7,FALSE) ->  | DU17: =VLOOKUP(DN17,BP16:CA17,8,FALSE) ->  | DV17: =VLOOKUP(DN17,BP16:CA17,9,FALSE) ->  | DY17: =IF(T17<>"",IF(T17>#REF!,N17,IF(#REF!>T17,#REF!,"Empate")),"") ->  | DZ17: =IF(T17<>"",IF(T17<#REF!,N17,IF(#REF!<T17,#REF!,"Empate")),"") ->  | EC17: =IF(ISBLANK(#REF!),COUNTA(EN24:$EN$28),0) -> 0 | EE17: 6º | EH17: =S43 ->  | EI17: 8 | EL17: 6 | EY17: P50 | FM17: P50 | FN17: =$AL$17 ->  | FO17: =$AK$17 -> 0 | FP17: =$AJ$17 -> 0 | FQ17: =$AI$17 -> 0 | FR17: 0 | FS17: =FO18+FP18+FQ18 -> 0 | FT17: 0
Y18: =IF(CG27=CG35,IF(CC27="Bye",CC35,IF(CC35="Bye",CC35)),(IF(ISBLANK(CD27),"",IF(CG27>CG35,CC35,CC27)))) -> FALSE | AF18: =IF(AH17=AH21,IF(AL17="Bye",AL21,IF(AL21="Bye",AL17)),(IF(ISBLANK(AI17),"",IF(AH17>AH21,AL17,AL21)))) -> FALSE | AU18: =IF(ISBLANK(AV16),"",SUM(IF(AV18>AV16,1,0)+(IF(AW18>AW16,1,0)+(IF(AX18>AX16,1,0))))) ->  | AY18: =IF(AY17=FALSE,"",AY17) ->  | AZ18: (V3) | BB18: =IF(ISBLANK(BC16),"",SUM(IF(BC18>BC16,1,0)+(IF(BD18>BD16,1,0)+(IF(BE18>BE16,1,0))))) ->  | BF18: =IF(BF17=FALSE,"",BF17) ->  | BI18: 12 | BK18: 0 | BO18: =IF(ISBLANK(BL17),"",SUM(IF(BL18>BL17,1,0)+(IF(BM18>BM17,1,0)+(IF(BN18>BN17,1,0))))) ->  | BQ18: =IF(BQ17=FALSE,"",BQ17) ->  | BU18: =IF(ISBLANK(BR16),"",SUM(IF(BR18>BR16,1,0)+(IF(BS18>BS16,1,0)+(IF(BT18>BT16,1,0))))) ->  | CC18: =IF(CA17=CA21,IF(BW17="Bye",BW21,IF(BW21="Bye",BW21)),(IF(ISBLANK(BX17),"",IF(CA17>CA21,BW17,BW21)))) -> FALSE | EC18: =IF(ISBLANK(EN25),COUNTA(EN26:$EN$28),0) -> 0 | EE18: 7º | EH18: =F35 ->  | EI18: 8 | EL18: 7 | FN18: =$AL$21 ->  | FO18: =$AK$21 -> 0 | FP18: =$AJ$21 -> 0 | FQ18: =$AI$21 -> 0 | FR18: 0 | FS18: =FO17+FP17+FQ17 -> 0 | FT18: 0
U19: =IF(ISBLANK(V19),"",SUM(IF(V19>V11,1,0)+(IF(W19>W11,1,0)+(IF(X19>X11,1,0))))) ->  | Y19: =IF(Y18=FALSE,"",Y18) ->  | Z19: (V25) | AB19: =IF(ISBLANK(AC19),"",SUM(IF(AC19>AC11,1,0)+(IF(AD19>AD11,1,0)+(IF(AE19>AE11,1,0))))) ->  | AF19: =IF(AF18=FALSE,"",AF18) ->  | AH19: P102 | AO19: P90 | AY19: =IF(BB20=BB22,IF(BF20="Bye",BF22,IF(BF22="Bye",BF20)),(IF(ISBLANK(BC20),"",IF(BB20>BB22,BF20,BF22)))) -> FALSE | BF19: =IF(BO19=BO20,IF(BK19="Bye",BK20,IF(BK20="Bye",BK19)),(IF(ISBLANK(BL19),"",IF(BO19>BO20,BK20,BK19)))) -> FALSE | BI19: 13 | BK19: 0 | BO19: =IF(ISBLANK(BL19),"",SUM(IF(BL19>BL20,1,0)+(IF(BM19>BM20,1,0)+(IF(BN19>BN20,1,0))))) ->  | BP19: P7 | BQ19: =IF(BO19=BO20,IF(BK19="Bye",BK20,IF(BK20="Bye",BK19)),(IF(ISBLANK(BL19),"",IF(BO19>BO20,BK19,BK20)))) -> FALSE | BU19: P36 | BW19: (V17) | CC19: =IF(CC18=FALSE,"",CC18) ->  | CG19: =IF(ISBLANK(CD19),"",SUM(IF(CD19>CD11,1,0)+(IF(CE19>CE11,1,0)+(IF(CF19>CF11,1,0))))) ->  | CO19: =IF($CS$37=$CS$40,"",IF($CS$37>$CS$40,"",$CO$40)) ->  | CS19: =IF(ISBLANK(CP19),"",SUM(IF(CP19>CP17,1,0)+(IF(CQ19>CQ17,1,0)+(IF(CR19>CR17,1,0))))) ->  | DY19: =IF(#REF!<>"",IF(#REF!>L19,#REF!,IF(L19>#REF!,F19,"Empate")),"") ->  | DZ19: =IF(#REF!<>"",IF(#REF!<L19,#REF!,IF(L19<#REF!,F19,"Empate")),"") ->  | EC19: =IF(ISBLANK(EN26),COUNTA(EN27:$EN$28),0) -> 0 | EE19: 8º | EH19: =S35 ->  | EI19: 8 | EL19: 8 | EY19: P51 | FM19: P51 | FN19: =$AL$25 ->  | FO19: =$AI$25 -> 0 | FP19: =$AJ$25 -> 0 | FQ19: =$AK$25 -> 0 | FR19: 0 | FS19: =FO20+FP20+FQ20 -> 0 | FT19: 0
AL20: =IF(CA9=CA13,IF(BW9="Bye",BW13,IF(BW13="Bye",BW13)),(IF(ISBLANK(BX9),"",IF(CA9>CA13,BW13,BW9)))) -> FALSE | AS20: =IF(AU20=AU22,IF(AY20="Bye",AY22,IF(AY22="Bye",AY20)),(IF(ISBLANK(AV20),"",IF(AU20>AU22,AY20,AY22)))) -> FALSE | AU20: =IF(ISBLANK(AV20),"",SUM(IF(AV20>AV22,1,0)+(IF(AW20>AW22,1,0)+(IF(AX20>AX22,1,0))))) ->  | AY20: =IF(AY19=FALSE,"",AY19) ->  | BB20: =IF(ISBLANK(BC20),"",SUM(IF(BC20>BC22,1,0)+(IF(BD20>BD22,1,0)+(IF(BE20>BE22,1,0))))) ->  | BF20: =IF(BF19=FALSE,"",BF19) ->  | BI20: 14 | BK20: 0 | BO20: =IF(ISBLANK(BL19),"",SUM(IF(BL20>BL19,1,0)+(IF(BM20>BM19,1,0)+(IF(BN20>BN19,1,0))))) ->  | BQ20: =IF(BQ19=FALSE,"",BQ19) ->  | BU20: =IF(ISBLANK(BR20),"",SUM(IF(BR20>BR22,1,0)+(IF(BS20>BS22,1,0)+(IF(BT20>BT22,1,0))))) ->  | BW20: =IF(BU20=BU22,IF(BQ20="Bye",BQ22,IF(BQ22="Bye",BQ20)),(IF(ISBLANK(BR20),"",IF(BU20>BU22,BQ20,BQ22)))) -> FALSE | CU20: =IF(AND(CS20=#REF!,#REF!>CT20),#REF!,CR20) ->  | CV20: =VLOOKUP(CU20,BP20:CA21,9,FALSE) ->  | CW20: =VLOOKUP(CU20,BP20:CA21,8,FALSE) ->  | CX20: =VLOOKUP(CU20,BP20:CA21,6,FALSE) ->  | CY20: =IF(AND(CV20=#REF!,CW20=#REF!,#REF!>CX20),#REF!,CU20) ->  | CZ20: =VLOOKUP(CY20,BP20:CA21,9,FALSE) ->  | DA20: =VLOOKUP(CY20,BP20:CA21,8,FALSE) ->  | DB20: =VLOOKUP(CY20,BP20:CA21,6,FALSE) ->  | DC20: =IF(AND(CZ20=CZ21,DA20=DA21,DB21>DB20),CY21,CY20) ->  | DD20: =VLOOKUP(DC20,BP20:CA21,9,FALSE) ->  | DE20: =VLOOKUP(DC20,BP20:CA21,8,FALSE) ->  | DF20: =VLOOKUP(DC20,BP20:CA21,6,FALSE) ->  | DG20: =IF(AND(DD20=#REF!,DE20=#REF!,#REF!>DF20),#REF!,DC20) ->  | DH20: =VLOOKUP(DG20,BP20:CA21,9,FALSE) ->  | DI20: =VLOOKUP(DG20,BP20:CA21,8,FALSE) ->  | DJ20: =VLOOKUP(DG20,BP20:CA21,6,FALSE) ->  | DN20: =DG20 ->  | DO20: =VLOOKUP(DN20,BP20:CA21,2,FALSE) ->  | DP20: =VLOOKUP(DN20,BP20:CA21,3,FALSE) ->  | DQ20: =VLOOKUP(DN20,BP20:CA21,4,FALSE) ->  | DR20: =VLOOKUP(DN20,BP20:CA21,5,FALSE) ->  | DS20: =VLOOKUP(DN20,BP20:CA21,6,FALSE) ->  | DT20: =VLOOKUP(DN20,BP20:CA21,7,FALSE) ->  | DU20: =VLOOKUP(DN20,BP20:CA21,8,FALSE) ->  | DV20: =VLOOKUP(DN20,BP20:CA21,9,FALSE) ->  | DY20: =IF(L20<>"",IF(L20>#REF!,F20,IF(#REF!>L20,#REF!,"Empate")),"") ->  | DZ20: =IF(L20<>"",IF(L20<#REF!,F20,IF(#REF!<L20,#REF!,"Empate")),"") ->  | EC20: =IF(ISBLANK(EN27),COUNTA(EN28:$EN$28),0) -> 0 | EE20: 9º | EH20: =IF(U11=U19,"",IF(U11>U19,Y19,Y11)) ->  | EI20: 6 | EL20: 9 | EW20: 115 | FN20: =$AL$29 ->  | FO20: =$AI$29 -> 0 | FP20: =$AJ$29 -> 0 | FQ20: =$AK$29 -> 0 | FR20: 0 | FS20: =FO19+FP19+FQ19 -> 0 | FT20: 0
AH21: =IF(ISBLANK(AI17),"",SUM(IF(AI21>AI17,1,0)+(IF(AJ21>AJ17,1,0)+(IF(AK21>AK17,1,0))))) ->  | AL21: =IF(AL20=FALSE,"",AL20) ->  | AM21: (V18) | AO21: =IF(ISBLANK(AP21),"",SUM(IF(AP21>AP17,1,0)+(IF(AQ21>AQ17,1,0)+(IF(AR21>AR17,1,0))))) ->  | AS21: =IF(AS20=FALSE,"",AS20) ->  | AW21: P68 | AY21: =IF(BU16=BU18,IF(BQ16="Bye",BQ18,IF(BQ18="Bye",BQ16)),(IF(ISBLANK(BR16),"",IF(BU16>BU18,BQ18,BQ16)))) -> FALSE | BD21: P52 | BF21: =IF(BO21=BO22,IF(BK21="Bye",BK22,IF(BK22="Bye",BK21)),(IF(ISBLANK(BL21),"",IF(BO21>BO22,BK22,BK21)))) -> FALSE | BI21: 15 | BK21: 0 | BO21: =IF(ISBLANK(BL21),"",SUM(IF(BL21>BL22,1,0)+(IF(BM21>BM22,1,0)+(IF(BN21>BN22,1,0))))) ->  | BP21: P8 | BQ21: =IF(BO21=BO22,IF(BK21="Bye",BK22,IF(BK22="Bye",BK21)),(IF(ISBLANK(BL21),"",IF(BO21>BO22,BK21,BK22)))) -> FALSE | BS21: (V3) | BW21: =IF(BW20=FALSE,"",BW20) ->  | CA21: =IF(ISBLANK(BX21),"",SUM(IF(BX21>BX17,1,0)+(IF(BY21>BY17,1,0)+(IF(BZ21>BZ17,1,0))))) ->  | CU21: =IF(AND(#REF!=CS21,CT21>#REF!),#REF!,CR21) ->  | CV21: =VLOOKUP(CU21,BP20:CA21,9,FALSE) ->  | CW21: =VLOOKUP(CU21,BP20:CA21,8,FALSE) ->  | CX21: =VLOOKUP(CU21,BP20:CA21,6,FALSE) ->  | CY21: =IF(AND(CV21=#REF!,CW21=#REF!,#REF!>CX21),#REF!,CU21) ->  | CZ21: =VLOOKUP(CY21,BP20:CA21,9,FALSE) ->  | DA21: =VLOOKUP(CY21,BP20:CA21,8,FALSE) ->  | DB21: =VLOOKUP(CY21,BP20:CA21,6,FALSE) ->  | DC21: =IF(AND(CZ20=CZ21,DA20=DA21,#REF!>DB20),CY20,CY21) ->  | DD21: =VLOOKUP(DC21,BP20:CA21,9,FALSE) ->  | DE21: =VLOOKUP(DC21,BP20:CA21,8,FALSE) ->  | DF21: =VLOOKUP(DC21,BP20:CA21,6,FALSE) ->  | DG21: =IF(AND(#REF!=DD21,#REF!=DE21,DF21>#REF!),#REF!,DC21) ->  | DH21: =VLOOKUP(DG21,BP20:CA21,9,FALSE) ->  | DI21: =VLOOKUP(DG21,BP20:CA21,8,FALSE) ->  | DJ21: =VLOOKUP(DG21,BP20:CA21,6,FALSE) ->  | DN21: =DG21 ->  | DO21: =VLOOKUP(DN21,BP20:CA21,2,FALSE) ->  | DP21: =VLOOKUP(DN21,BP20:CA21,3,FALSE) ->  | DQ21: =VLOOKUP(DN21,BP20:CA21,4,FALSE) ->  | DR21: =VLOOKUP(DN21,BP20:CA21,5,FALSE) ->  | DS21: =VLOOKUP(DN21,BP20:CA21,6,FALSE) ->  | DT21: =VLOOKUP(DN21,BP20:CA21,7,FALSE) ->  | DU21: =VLOOKUP(DN21,BP20:CA21,8,FALSE) ->  | DV21: =VLOOKUP(DN21,BP20:CA21,9,FALSE) ->  | DY21: =IF(T21<>"",IF(T21>#REF!,N21,IF(#REF!>T21,#REF!,"Empate")),"") ->  | DZ21: =IF(T21<>"",IF(T21<#REF!,N21,IF(#REF!<T21,#REF!,"Empate")),"") ->  | EC21: =IF(ISBLANK(EN28),COUNTA(EF$86:$EF87),0) -> 0 | EE21: 10º | EH21: =IF(U27=U35,"",IF(U27>U35,Y35,Y27)) ->  | EI21: 6 | EL21: 10 | EW21: 116 | EY21: P52 | FM21: P52 | FN21: =$AL$33 ->  | FO21: =$AI$33 -> 0 | FP21: =$AJ$33 -> 0 | FQ21: =$AK$33 -> 0 | FR21: 0 | FS21: =FO22+FP22+FQ22 -> 0 | FT21: 0
B22: P126 | F22: =IF(H15=H31,IF(L15="Bye",L31,IF(L39="Bye",L15)),(IF(ISBLANK(I15),"",IF(H15>H31,L15,L31)))) -> FALSE | H22: Vencedor | O22: Vencedor | AU22: =IF(ISBLANK(AV20),"",SUM(IF(AV22>AV20,1,0)+(IF(AW22>AW20,1,0)+(IF(AX22>AX20,1,0))))) ->  | AY22: =IF(AY21=FALSE,"",AY21) ->  | AZ22: (V4) | BB22: =IF(ISBLANK(BC20),"",SUM(IF(BC22>BC20,1,0)+(IF(BD22>BD20,1,0)+(IF(BE22>BE20,1,0))))) ->  | BF22: =IF(BF21=FALSE,"",BF21) ->  | BI22: 16 | BK22: 0 | BO22: =IF(ISBLANK(BL21),"",SUM(IF(BL22>BL21,1,0)+(IF(BM22>BM21,1,0)+(IF(BN22>BN21,1,0))))) ->  | BQ22: =IF(BQ21=FALSE,"",BQ21) ->  | BU22: =IF(ISBLANK(BR20),"",SUM(IF(BR22>BR20,1,0)+(IF(BS22>BS20,1,0)+(IF(BT22>BT20,1,0))))) ->  | CS22: P123 | EE22: 11º | EH22: =IF(U43=U51,"",IF(U43>U51,Y51,Y43)) ->  | EI22: 6 | EL22: 11 | EW22: 117 | FN22: =$AL$37 ->  | FO22: =$AI$37 -> 0 | FP22: =$AJ$37 -> 0 | FQ22: =$AK$37 -> 0 | FR22: 0 | FS22: =FO21+FP21+FQ21 -> 0 | FT22: 0
B23: =IF(ISBLANK(C23),"",SUM(IF(C23>C55,1,0)+(IF(D23>D55,1,0)+(IF(E23>E55,1,0))))) ->  | F23: =IF(F22=FALSE,"",F22) ->  | L23: P124 | S23: P119 | AY23: =IF(BB24=BB26,IF(BF24="Bye",BF26,IF(BF26="Bye",BF24)),(IF(ISBLANK(BC24),"",IF(BB24>BB26,BF24,BF26)))) -> FALSE | BF23: =IF(BO23=BO24,IF(BK23="Bye",BK24,IF(BK24="Bye",BK23)),(IF(ISBLANK(BL23),"",IF(BO23>BO24,BK24,BK23)))) -> FALSE | BI23: 17 | BK23: 0 | BO23: =IF(ISBLANK(BL23),"",SUM(IF(BL23>BL24,1,0)+(IF(BM23>BM24,1,0)+(IF(BN23>BN24,1,0))))) ->  | BP23: P9 | BQ23: =IF(BO23=BO24,IF(BK23="Bye",BK24,IF(BK24="Bye",BK23)),(IF(ISBLANK(BL23),"",IF(BO23>BO24,BK23,BK24)))) -> FALSE | BU23: P37 | CI23: (V30) | CO23: =IF(CM15=CM31,"",IF(CM15>CM31,CI15,CI31)) ->  | CS23: =IF(ISBLANK(CP23),"",SUM(IF(CP23>CP55,1,0)+(IF(CQ23>CQ55,1,0)+(IF(CR23>CR55,1,0))))) ->  | DY23: =IF(#REF!<>"",IF(#REF!>L23,#REF!,IF(L23>#REF!,F23,"Empate")),"") ->  | DZ23: =IF(#REF!<>"",IF(#REF!<L23,#REF!,IF(L23<#REF!,F23,"Empate")),"") ->  | EE23: 12º | EH23: =IF(U59=U67,"",IF(U59>U67,Y67,Y59)) ->  | EI23: 6 | EL23: 12 | EW23: 118
F24: Vencedor - Jogo V29- V31 | AL24: =IF(AO25=AO29,IF(AS25="Bye",AS29,IF(AS29="Bye",AS25)),(IF(ISBLANK(AP25),"",IF(AO25>AO29,AS25,AS29)))) -> FALSE | AS24: =IF(AU24=AU26,IF(AY24="Bye",AY26,IF(AY26="Bye",AY24)),(IF(ISBLANK(AV24),"",IF(AU24>AU26,AY24,AY26)))) -> FALSE | AU24: =IF(ISBLANK(AV24),"",SUM(IF(AV24>AV26,1,0)+(IF(AW24>AW26,1,0)+(IF(AX24>AX26,1,0))))) ->  | AY24: =IF(AY23=FALSE,"",AY23) ->  | BB24: =IF(ISBLANK(BC24),"",SUM(IF(BC24>BC26,1,0)+(IF(BD24>BD26,1,0)+(IF(BE24>BE26,1,0))))) ->  | BF24: =IF(BF23=FALSE,"",BF23) ->  | BI24: 18 | BK24: 0 | BO24: =IF(ISBLANK(BL23),"",SUM(IF(BL24>BL23,1,0)+(IF(BM24>BM23,1,0)+(IF(BN24>BN23,1,0))))) ->  | BQ24: =IF(BQ23=FALSE,"",BQ23) ->  | BU24: =IF(ISBLANK(BR24),"",SUM(IF(BR24>BR26,1,0)+(IF(BS24>BS26,1,0)+(IF(BT24>BT26,1,0))))) ->  | BW24: =IF(BU24=BU26,IF(BQ24="Bye",BQ26,IF(BQ26="Bye",BQ24)),(IF(ISBLANK(BR24),"",IF(BU24>BU26,BQ24,BQ26)))) -> FALSE | CA24: P83 | CO24: (V31) | CU24: =IF(AND(CS24=CS25,CT25>CT24),CR25,CR24) -> 0 | CV24: =VLOOKUP(CU24,BP24:CA25,9,FALSE) ->  | CW24: =VLOOKUP(CU24,BP24:CA25,8,FALSE) ->  | CX24: =VLOOKUP(CU24,BP24:CA25,6,FALSE) ->  | CY24: =IF(AND(#REF!=CV24,#REF!=CW24,CX24>#REF!),#REF!,CU24) ->  | CZ24: =VLOOKUP(CY24,BP24:CA25,9,FALSE) ->  | DA24: =VLOOKUP(CY24,BP24:CA25,8,FALSE) ->  | DB24: =VLOOKUP(CY24,BP24:CA25,6,FALSE) ->  | DC24: =IF(AND(CZ24=#REF!,DA24=#REF!,#REF!>DB24),#REF!,CY24) ->  | DD24: =VLOOKUP(DC24,BP24:CA25,9,FALSE) ->  | DE24: =VLOOKUP(DC24,BP24:CA25,8,FALSE) ->  | DF24: =VLOOKUP(DC24,BP24:CA25,6,FALSE) ->  | DG24: =IF(AND(DD24=DD25,DE24=DE25,DF25>DF24),DC25,DC24) ->  | DH24: =VLOOKUP(DG24,BP24:CA25,9,FALSE) ->  | DI24: =VLOOKUP(DG24,BP24:CA25,8,FALSE) ->  | DJ24: =VLOOKUP(DG24,BP24:CA25,6,FALSE) ->  | DN24: =DG24 ->  | DO24: =VLOOKUP(DN24,BP24:CA25,2,FALSE) ->  | DP24: =VLOOKUP(DN24,BP24:CA25,3,FALSE) ->  | DQ24: =VLOOKUP(DN24,BP24:CA25,4,FALSE) ->  | DR24: =VLOOKUP(DN24,BP24:CA25,5,FALSE) ->  | DS24: =VLOOKUP(DN24,BP24:CA25,6,FALSE) ->  | DT24: =VLOOKUP(DN24,BP24:CA25,7,FALSE) ->  | DU24: =VLOOKUP(DN24,BP24:CA25,8,FALSE) ->  | DV24: =VLOOKUP(DN24,BP24:CA25,9,FALSE) ->  | DY24: =IF(#REF!<>"",IF(#REF!>T24,#REF!,IF(T24>#REF!,N24,"Empate")),"") ->  | DZ24: =IF(#REF!<>"",IF(#REF!<T24,#REF!,IF(T24<#REF!,N24,"Empate")),"") ->  | EE24: 13º | EH24: =IF(AB11=AB19,"",IF(AB11>AB19,AF19,AF11)) ->  | EI24: 4 | EL24: 13 | EW24: 109
AH25: =IF(ISBLANK(AI25),"",SUM(IF(AI25>AI29,1,0)+(IF(AJ25>AJ29,1,0)+(IF(AK25>AK29,1,0))))) ->  | AL25: =IF(AL24=FALSE,"",AL24) ->  | AO25: =IF(ISBLANK(AP25),"",SUM(IF(AP25>AP29,1,0)+(IF(AQ25>AQ29,1,0)+(IF(AR25>AR29,1,0))))) ->  | AS25: =IF(AS24=FALSE,"",AS24) ->  | AW25: P69 | AY25: =IF(BU28=BU30,IF(BQ28="Bye",BQ30,IF(BQ30="Bye",BQ28)),(IF(ISBLANK(BR28),"",IF(BU28>BU30,BQ30,BQ28)))) -> FALSE | BD25: P53 | BF25: =IF(BO25=BO26,IF(BK25="Bye",BK26,IF(BK26="Bye",BK25)),(IF(ISBLANK(BL25),"",IF(BO25>BO26,BK26,BK25)))) -> FALSE | BI25: 19 | BK25: 0 | BO25: =IF(ISBLANK(BL25),"",SUM(IF(BL25>BL26,1,0)+(IF(BM25>BM26,1,0)+(IF(BN25>BN26,1,0))))) ->  | BP25: P10 | BQ25: =IF(BO25=BO26,IF(BK25="Bye",BK26,IF(BK26="Bye",BK25)),(IF(ISBLANK(BL25),"",IF(BO25>BO26,BK25,BK26)))) -> FALSE | BS25: (V6) | BW25: =IF(BW24=FALSE,"",BW24) ->  | CA25: =IF(ISBLANK(BX25),"",SUM(IF(BX25>BX29,1,0)+(IF(BY25>BY29,1,0)+(IF(BZ25>BZ29,1,0))))) ->  | CU25: =IF(AND(CS24=CS25,CT25>CT24),CR24,CR25) -> 0 | CV25: =VLOOKUP(CU25,BP24:CA25,9,FALSE) ->  | CW25: =VLOOKUP(CU25,BP24:CA25,8,FALSE) ->  | CX25: =VLOOKUP(CU25,BP24:CA25,6,FALSE) ->  | CY25: =IF(AND(CV25=#REF!,CW25=#REF!,#REF!>CX25),#REF!,CU25) ->  | CZ25: =VLOOKUP(CY25,BP24:CA25,9,FALSE) ->  | DA25: =VLOOKUP(CY25,BP24:CA25,8,FALSE) ->  | DB25: =VLOOKUP(CY25,BP24:CA25,6,FALSE) ->  | DC25: =IF(AND(#REF!=CZ25,#REF!=DA25,DB24>#REF!),#REF!,CY25) ->  | DD25: =VLOOKUP(DC25,BP24:CA25,9,FALSE) ->  | DE25: =VLOOKUP(DC25,BP24:CA25,8,FALSE) ->  | DF25: =VLOOKUP(DC25,BP24:CA25,6,FALSE) ->  | DG25: =IF(AND(DD24=DD25,DE24=DE25,DF25>DF24),DC24,DC25) ->  | DH25: =VLOOKUP(DG25,BP24:CA25,9,FALSE) ->  | DI25: =VLOOKUP(DG25,BP24:CA25,8,FALSE) ->  | DJ25: =VLOOKUP(DG25,BP24:CA25,6,FALSE) ->  | DN25: =DG25 ->  | DO25: =VLOOKUP(DN25,BP24:CA25,2,FALSE) ->  | DP25: =VLOOKUP(DN25,BP24:CA25,3,FALSE) ->  | DQ25: =VLOOKUP(DN25,BP24:CA25,4,FALSE) ->  | DR25: =VLOOKUP(DN25,BP24:CA25,5,FALSE) ->  | DS25: =VLOOKUP(DN25,BP24:CA25,6,FALSE) ->  | DT25: =VLOOKUP(DN25,BP24:CA25,7,FALSE) ->  | DU25: =VLOOKUP(DN25,BP24:CA25,8,FALSE) ->  | DV25: =VLOOKUP(DN25,BP24:CA25,9,FALSE) ->  | DY25: =IF(T25<>"",IF(T25>#REF!,N25,IF(#REF!>T25,#REF!,"Empate")),"") ->  | DZ25: =IF(T25<>"",IF(T25<#REF!,N25,IF(#REF!<T25,#REF!,"Empate")),"") ->  | EE25: 14º | EH25: =IF(AB27=AB35,"",IF(AB27>AB35,AF35,AF27)) ->  | EI25: 4 | EL25: 14 | EW25: 110
Y26: =IF(AB27=AB35,IF(AF27="Bye",AF35,IF(AF35="Bye",AF27)),(IF(ISBLANK(AC27),"",IF(AB27>AB35,AF27,AF35)))) -> FALSE | AF26: =IF(AH25=AH29,IF(AL25="Bye",AL29,IF(AL29="Bye",AL25)),(IF(ISBLANK(AI25),"",IF(AH25>AH29,AL25,AL29)))) -> FALSE | AU26: =IF(ISBLANK(AV24),"",SUM(IF(AV26>AV24,1,0)+(IF(AW26>AW24,1,0)+(IF(AX26>AX24,1,0))))) ->  | AY26: =IF(AY25=FALSE,"",AY25) ->  | AZ26: (V5) | BB26: =IF(ISBLANK(BC24),"",SUM(IF(BC26>BC24,1,0)+(IF(BD26>BD24,1,0)+(IF(BE26>BE24,1,0))))) ->  | BF26: =IF(BF25=FALSE,"",BF25) ->  | BI26: 20 | BK26: 0 | BO26: =IF(ISBLANK(BL25),"",SUM(IF(BL26>BL25,1,0)+(IF(BM26>BM25,1,0)+(IF(BN26>BN25,1,0))))) ->  | BQ26: =IF(BQ25=FALSE,"",BQ25) ->  | BU26: =IF(ISBLANK(BR24),"",SUM(IF(BR26>BR24,1,0)+(IF(BS26>BS24,1,0)+(IF(BT26>BT24,1,0))))) ->  | CC26: =IF(CA25=CA29,IF(BW25="Bye",BW29,IF(BW29="Bye",BW29)),(IF(ISBLANK(BX25),"",IF(CA25>CA29,BW25,BW29)))) -> FALSE | CG26: P98 | EE26: 15º | EH26: =IF(AB43=AB51,"",IF(AB43>AB51,AF51,AF43)) ->  | EI26: 4 | EL26: 15 | EW26: 111
U27: =IF(ISBLANK(V27),"",SUM(IF(V27>V35,1,0)+(IF(W27>W35,1,0)+(IF(X27>X35,1,0))))) ->  | Y27: =IF(Y26=FALSE,"",Y26) ->  | AB27: =IF(ISBLANK(AC27),"",SUM(IF(AC27>AC35,1,0)+(IF(AD27>AD35,1,0)+(IF(AE27>AE35,1,0))))) ->  | AF27: =IF(AF26=FALSE,"",AF26) ->  | AH27: P103 | AO27: P91 | AY27: =IF(BB28=BB30,IF(BF28="Bye",BF30,IF(BF30="Bye",BF28)),(IF(ISBLANK(BC28),"",IF(BB28>BB30,BF28,BF30)))) -> FALSE | BF27: =IF(BO27=BO28,IF(BK27="Bye",BK28,IF(BK28="Bye",BK27)),(IF(ISBLANK(BL27),"",IF(BO27>BO28,BK28,BK27)))) -> FALSE | BI27: 21 | BK27: 0 | BO27: =IF(ISBLANK(BL27),"",SUM(IF(BL27>BL28,1,0)+(IF(BM27>BM28,1,0)+(IF(BN27>BN28,1,0))))) ->  | BP27: P11 | BQ27: =IF(BO27=BO28,IF(BK27="Bye",BK28,IF(BK28="Bye",BK27)),(IF(ISBLANK(BL27),"",IF(BO27>BO28,BK27,BK28)))) -> FALSE | BU27: P38 | BW27: (V20) | CC27: =IF(CC26=FALSE,"",CC26) ->  | CG27: =IF(ISBLANK(CD27),"",SUM(IF(CD27>CD35,1,0)+(IF(CE27>CE35,1,0)+(IF(CF27>CF35,1,0))))) ->  | DY27: =IF(#REF!<>"",IF(#REF!>L27,#REF!,IF(L27>#REF!,F27,"Empate")),"") ->  | DZ27: =IF(#REF!<>"",IF(#REF!<L27,#REF!,IF(L27<#REF!,F27,"Empate")),"") ->  | EE27: 16º | EH27: =IF(AB59=AB67,"",IF(AB59>AB67,AF67,AF59)) ->  | EI27: 4 | EL27: 16 | EW27: 112
AL28: =IF(CA33=CA37,IF(BW33="Bye",BW37,IF(BW37="Bye",BW37)),(IF(ISBLANK(BX33),"",IF(CA33>CA37,BW37,BW33)))) -> FALSE | AS28: =IF(AU28=AU30,IF(AY28="Bye",AY30,IF(AY30="Bye",AY28)),(IF(ISBLANK(AV28),"",IF(AU28>AU30,AY28,AY30)))) -> FALSE | AU28: =IF(ISBLANK(AV28),"",SUM(IF(AV28>AV30,1,0)+(IF(AW28>AW30,1,0)+(IF(AX28>AX30,1,0))))) ->  | AY28: =IF(AY27=FALSE,"",AY27) ->  | BB28: =IF(ISBLANK(BC28),"",SUM(IF(BC28>BC30,1,0)+(IF(BD28>BD30,1,0)+(IF(BE28>BE30,1,0))))) ->  | BF28: =IF(BF27=FALSE,"",BF27) ->  | BI28: 22 | BK28: 0 | BO28: =IF(ISBLANK(BL27),"",SUM(IF(BL28>BL27,1,0)+(IF(BM28>BM27,1,0)+(IF(BN28>BN27,1,0))))) ->  | BQ28: =IF(BQ27=FALSE,"",BQ27) ->  | BU28: =IF(ISBLANK(BR28),"",SUM(IF(BR28>BR30,1,0)+(IF(BS28>BS30,1,0)+(IF(BT28>BT30,1,0))))) ->  | BW28: =IF(BU28=BU30,IF(BQ28="Bye",BQ30,IF(BQ30="Bye",BQ28)),(IF(ISBLANK(BR28),"",IF(BU28>BU30,BQ28,BQ30)))) -> FALSE | CU28: =IF(AND(CS28=#REF!,#REF!>CT28),#REF!,CR28) ->  | CV28: =VLOOKUP(CU28,BP28:CA29,9,FALSE) ->  | CW28: =VLOOKUP(CU28,BP28:CA29,8,FALSE) ->  | CX28: =VLOOKUP(CU28,BP28:CA29,6,FALSE) ->  | CY28: =IF(AND(CV28=#REF!,CW28=#REF!,#REF!>CX28),#REF!,CU28) ->  | CZ28: =VLOOKUP(CY28,BP28:CA29,9,FALSE) ->  | DA28: =VLOOKUP(CY28,BP28:CA29,8,FALSE) ->  | DB28: =VLOOKUP(CY28,BP28:CA29,6,FALSE) ->  | DC28: =IF(AND(CZ28=CZ29,DA28=DA29,DB29>DB28),CY29,CY28) ->  | DD28: =VLOOKUP(DC28,BP28:CA29,9,FALSE) ->  | DE28: =VLOOKUP(DC28,BP28:CA29,8,FALSE) ->  | DF28: =VLOOKUP(DC28,BP28:CA29,6,FALSE) ->  | DG28: =IF(AND(DD28=#REF!,DE28=#REF!,#REF!>DF28),#REF!,DC28) ->  | DH28: =VLOOKUP(DG28,BP28:CA29,9,FALSE) ->  | DI28: =VLOOKUP(DG28,BP28:CA29,8,FALSE) ->  | DJ28: =VLOOKUP(DG28,BP28:CA29,6,FALSE) ->  | DN28: =DG28 ->  | DO28: =VLOOKUP(DN28,BP28:CA29,2,FALSE) ->  | DP28: =VLOOKUP(DN28,BP28:CA29,3,FALSE) ->  | DQ28: =VLOOKUP(DN28,BP28:CA29,4,FALSE) ->  | DR28: =VLOOKUP(DN28,BP28:CA29,5,FALSE) ->  | DS28: =VLOOKUP(DN28,BP28:CA29,6,FALSE) ->  | DT28: =VLOOKUP(DN28,BP28:CA29,7,FALSE) ->  | DU28: =VLOOKUP(DN28,BP28:CA29,8,FALSE) ->  | DV28: =VLOOKUP(DN28,BP28:CA29,9,FALSE) ->  | DY28: =IF(L28<>"",IF(L28>#REF!,F28,IF(#REF!>L28,#REF!,"Empate")),"") ->  | DZ28: =IF(L28<>"",IF(L28<#REF!,F28,IF(#REF!<L28,#REF!,"Empate")),"") ->  | EE28: 17º | EH28: =IF(AH9=AH13,"",IF(AH9>AH13,AL13,AL9)) ->  | EI28: 2 | EL28: 17 | EW28: P101
AH29: =IF(ISBLANK(AI25),"",SUM(IF(AI29>AI25,1,0)+(IF(AJ29>AJ25,1,0)+(IF(AK29>AK25,1,0))))) ->  | AL29: =IF(AL28=FALSE,"",AL28) ->  | AM29: (V19) | AO29: =IF(ISBLANK(AP29),"",SUM(IF(AP29>AP25,1,0)+(IF(AQ29>AQ25,1,0)+(IF(AR29>AR25,1,0))))) ->  | AS29: =IF(AS28=FALSE,"",AS28) ->  | AW29: P70 | AY29: =IF(BU24=BU26,IF(BQ24="Bye",BQ26,IF(BQ26="Bye",BQ24)),(IF(ISBLANK(BR24),"",IF(BU24>BU26,BQ26,BQ24)))) -> FALSE | BD29: P54 | BF29: =IF(BO29=BO30,IF(BK29="Bye",BK30,IF(BK30="Bye",BK29)),(IF(ISBLANK(BL29),"",IF(BO29>BO30,BK30,BK29)))) -> FALSE | BI29: 23 | BK29: 0 | BO29: =IF(ISBLANK(BL29),"",SUM(IF(BL29>BL30,1,0)+(IF(BM29>BM30,1,0)+(IF(BN29>BN30,1,0))))) ->  | BP29: P12 | BQ29: =IF(BO29=BO30,IF(BK29="Bye",BK30,IF(BK30="Bye",BK29)),(IF(ISBLANK(BL29),"",IF(BO29>BO30,BK29,BK30)))) -> FALSE | BS29: (V5) | BW29: =IF(BW28=FALSE,"",BW28) ->  | CA29: =IF(ISBLANK(BX29),"",SUM(IF(BX29>BX25,1,0)+(IF(BY29>BY25,1,0)+(IF(BZ29>BZ25,1,0))))) ->  | CU29: =IF(AND(#REF!=CS29,CT29>#REF!),#REF!,CR29) ->  | CV29: =VLOOKUP(CU29,BP28:CA29,9,FALSE) ->  | CW29: =VLOOKUP(CU29,BP28:CA29,8,FALSE) ->  | CX29: =VLOOKUP(CU29,BP28:CA29,6,FALSE) ->  | CY29: =IF(AND(CV29=#REF!,CW29=#REF!,#REF!>CX29),#REF!,CU29) ->  | CZ29: =VLOOKUP(CY29,BP28:CA29,9,FALSE) ->  | DA29: =VLOOKUP(CY29,BP28:CA29,8,FALSE) ->  | DB29: =VLOOKUP(CY29,BP28:CA29,6,FALSE) ->  | DC29: =IF(AND(CZ28=CZ29,DA28=DA29,#REF!>DB28),CY28,CY29) ->  | DD29: =VLOOKUP(DC29,BP28:CA29,9,FALSE) ->  | DE29: =VLOOKUP(DC29,BP28:CA29,8,FALSE) ->  | DF29: =VLOOKUP(DC29,BP28:CA29,6,FALSE) ->  | DG29: =IF(AND(#REF!=DD29,#REF!=DE29,DF29>#REF!),#REF!,DC29) ->  | DH29: =VLOOKUP(DG29,BP28:CA29,9,FALSE) ->  | DI29: =VLOOKUP(DG29,BP28:CA29,8,FALSE) ->  | DJ29: =VLOOKUP(DG29,BP28:CA29,6,FALSE) ->  | DN29: =DG29 ->  | DO29: =VLOOKUP(DN29,BP28:CA29,2,FALSE) ->  | DP29: =VLOOKUP(DN29,BP28:CA29,3,FALSE) ->  | DQ29: =VLOOKUP(DN29,BP28:CA29,4,FALSE) ->  | DR29: =VLOOKUP(DN29,BP28:CA29,5,FALSE) ->  | DS29: =VLOOKUP(DN29,BP28:CA29,6,FALSE) ->  | DT29: =VLOOKUP(DN29,BP28:CA29,7,FALSE) ->  | DU29: =VLOOKUP(DN29,BP28:CA29,8,FALSE) ->  | DV29: =VLOOKUP(DN29,BP28:CA29,9,FALSE) ->  | DY29: =IF(T29<>"",IF(T29>#REF!,N29,IF(#REF!>T29,#REF!,"Empate")),"") ->  | DZ29: =IF(T29<>"",IF(T29<#REF!,N29,IF(#REF!<T29,#REF!,"Empate")),"") ->  | EE29: 18º | EH29: =IF(AH17=AH21,"",IF(AH17>AH21,AL21,AL17)) ->  | EI29: 2 | EL29: 18 | EW29: P102
L30: =IF(CM47=CM63,IF(CI47="Bye",CI63,IF(CI63="Bye",CI63)),(IF(ISBLANK(CJ47),"",IF(CM47>CM63,CI63,CI47)))) -> FALSE | S30: =IF(U27=U35,IF(Y27="Bye",Y35,IF(Y35="Bye",Y27)),(IF(ISBLANK(V27),"",IF(U27>U35,Y27,Y35)))) -> FALSE | U30: Vencedor | AB30: Vencedor | AU30: =IF(ISBLANK(AV28),"",SUM(IF(AV30>AV28,1,0)+(IF(AW30>AW28,1,0)+(IF(AX30>AX28,1,0))))) ->  | AY30: =IF(AY29=FALSE,"",AY29) ->  | AZ30: (V6) | BB30: =IF(ISBLANK(BC28),"",SUM(IF(BC30>BC28,1,0)+(IF(BD30>BD28,1,0)+(IF(BE30>BE28,1,0))))) ->  | BF30: =IF(BF29=FALSE,"",BF29) ->  | BI30: 24 | BK30: 0 | BO30: =IF(ISBLANK(BL29),"",SUM(IF(BL30>BL29,1,0)+(IF(BM30>BM29,1,0)+(IF(BN30>BN29,1,0))))) ->  | BQ30: =IF(BQ29=FALSE,"",BQ29) ->  | BU30: =IF(ISBLANK(BR28),"",SUM(IF(BR30>BR28,1,0)+(IF(BS30>BS28,1,0)+(IF(BT30>BT28,1,0))))) ->  | CI30: =IF(CG27=CG35,IF(CC27="Bye",CC35,IF(CC35="Bye",CC35)),(IF(ISBLANK(CD27),"",IF(CG27>CG35,CC27,CC35)))) -> FALSE | EE30: 19º | EH30: =IF(AH25=AH29,"",IF(AH25>AH29,AL29,AL25)) ->  | EI30: 2 | EL30: 19 | EW30: P103
H31: =IF(ISBLANK(I31),"",SUM(IF(I31>I15,1,0)+(IF(J31>J15,1,0)+(IF(K31>K15,1,0))))) ->  | L31: =IF(L30=FALSE,"",L30) ->  | M31: (V29) | O31: =IF(ISBLANK(P31),"",SUM(IF(P31>P15,1,0)+(IF(Q31>Q15,1,0)+(IF(R31>R15,1,0))))) ->  | S31: =IF(S30=FALSE,"",S30) ->  | Y31: P116 | AF31: P110 | AY31: =IF(BB32=BB34,IF(BF32="Bye",BF34,IF(BF34="Bye",BF32)),(IF(ISBLANK(BC32),"",IF(BB32>BB34,BF32,BF34)))) -> FALSE | BF31: =IF(BO31=BO32,IF(BK31="Bye",BK32,IF(BK32="Bye",BK31)),(IF(ISBLANK(BL31),"",IF(BO31>BO32,BK32,BK31)))) -> FALSE | BI31: 25 | BK31: 0 | BO31: =IF(ISBLANK(BL31),"",SUM(IF(BL31>BL32,1,0)+(IF(BM31>BM32,1,0)+(IF(BN31>BN32,1,0))))) ->  | BP31: P13 | BQ31: =IF(BO31=BO32,IF(BK31="Bye",BK32,IF(BK32="Bye",BK31)),(IF(ISBLANK(BL31),"",IF(BO31>BO32,BK31,BK32)))) -> FALSE | BU31: P39 | CC31: (V25) | CI31: =IF(CI30=FALSE,"",CI30) ->  | CM31: =IF(ISBLANK(CJ31),"",SUM(IF(CJ31>CJ15,1,0)+(IF(CK31>CK15,1,0)+(IF(CL31>CL15,1,0))))) ->  | DY31: =IF(#REF!<>"",IF(#REF!>L31,#REF!,IF(L31>#REF!,F31,"Empate")),"") ->  | DZ31: =IF(#REF!<>"",IF(#REF!<L31,#REF!,IF(L31<#REF!,F31,"Empate")),"") ->  | EE31: 20º | EH31: =IF(AH33=AH37,"",IF(AH33>AH37,AL37,AL33)) ->  | EI31: 2 | EL31: 20 | EW31: 104
L32: =IF(H11=H27,IF(L11="Bye",L27,IF(L27="Bye",L11)),(IF(ISBLANK(I11),"",IF(H11>H27,L27,L11)))) -> FALSE | AL32: =IF(AO33=AO37,IF(AS33="Bye",AS37,IF(AS37="Bye",AS33)),(IF(ISBLANK(AP33),"",IF(AO33>AO37,AS33,AS37)))) -> FALSE | AS32: =IF(AU32=AU34,IF(AY32="Bye",AY34,IF(AY34="Bye",AY32)),(IF(ISBLANK(AV32),"",IF(AU32>AU34,AY32,AY34)))) -> FALSE | AU32: =IF(ISBLANK(AV32),"",SUM(IF(AV32>AV34,1,0)+(IF(AW32>AW34,1,0)+(IF(AX32>AX34,1,0))))) ->  | AY32: =IF(AY31=FALSE,"",AY31) ->  | BB32: =IF(ISBLANK(BC32),"",SUM(IF(BC32>BC34,1,0)+(IF(BD32>BD34,1,0)+(IF(BE32>BE34,1,0))))) ->  | BF32: =IF(BF31=FALSE,"",BF31) ->  | BI32: 26 | BK32: 0 | BO32: =IF(ISBLANK(BL31),"",SUM(IF(BL32>BL31,1,0)+(IF(BM32>BM31,1,0)+(IF(BN32>BN31,1,0))))) ->  | BQ32: =IF(BQ31=FALSE,"",BQ31) ->  | BU32: =IF(ISBLANK(BR32),"",SUM(IF(BR32>BR34,1,0)+(IF(BS32>BS34,1,0)+(IF(BT32>BT34,1,0))))) ->  | BW32: =IF(BU32=BU34,IF(BQ32="Bye",BQ34,IF(BQ34="Bye",BQ32)),(IF(ISBLANK(BR32),"",IF(BU32>BU34,BQ32,BQ34)))) -> FALSE | CA32: P84 | CO32: =IF(CS37=CS40,"",IF(CS37>CS40,CO37,IF(CS17=CS19,"",IF(CS17<CS19,CO19,CO17)))) ->  | CU32: =IF(AND(CS32=#REF!,#REF!>CT32),#REF!,CR32) ->  | CV32: =VLOOKUP(CU32,BP32:CA33,9,FALSE) ->  | CW32: =VLOOKUP(CU32,BP32:CA33,8,FALSE) ->  | CX32: =VLOOKUP(CU32,BP32:CA33,6,FALSE) ->  | CY32: =IF(AND(CV32=#REF!,CW32=#REF!,#REF!>CX32),#REF!,CU32) ->  | CZ32: =VLOOKUP(CY32,BP32:CA33,9,FALSE) ->  | DA32: =VLOOKUP(CY32,BP32:CA33,8,FALSE) ->  | DB32: =VLOOKUP(CY32,BP32:CA33,6,FALSE) ->  | DC32: =IF(AND(CZ32=CZ33,DA32=DA33,DB33>DB32),CY33,CY32) ->  | DD32: =VLOOKUP(DC32,BP32:CA33,9,FALSE) ->  | DE32: =VLOOKUP(DC32,BP32:CA33,8,FALSE) ->  | DF32: =VLOOKUP(DC32,BP32:CA33,6,FALSE) ->  | DG32: =IF(AND(DD32=#REF!,DE32=#REF!,#REF!>DF32),#REF!,DC32) ->  | DH32: =VLOOKUP(DG32,BP32:CA33,9,FALSE) ->  | DI32: =VLOOKUP(DG32,BP32:CA33,8,FALSE) ->  | DJ32: =VLOOKUP(DG32,BP32:CA33,6,FALSE) ->  | DN32: =DG32 ->  | DO32: =VLOOKUP(DN32,BP32:CA33,2,FALSE) ->  | DP32: =VLOOKUP(DN32,BP32:CA33,3,FALSE) ->  | DQ32: =VLOOKUP(DN32,BP32:CA33,4,FALSE) ->  | DR32: =VLOOKUP(DN32,BP32:CA33,5,FALSE) ->  | DS32: =VLOOKUP(DN32,BP32:CA33,6,FALSE) ->  | DT32: =VLOOKUP(DN32,BP32:CA33,7,FALSE) ->  | DU32: =VLOOKUP(DN32,BP32:CA33,8,FALSE) ->  | DV32: =VLOOKUP(DN32,BP32:CA33,9,FALSE) ->  | DY32: =IF(L32<>"",IF(L32>#REF!,F32,IF(#REF!>L32,#REF!,"Empate")),"") ->  | DZ32: =IF(L32<>"",IF(L32<#REF!,F32,IF(#REF!<L32,#REF!,"Empate")),"") ->  | EE32: 21º | EH32: =IF(AH41=AH45,"",IF(AH41>AH45,AL45,AL41)) ->  | EI32: 2 | EL32: 21 | EW32: 105
L33: =IF(O15=O31,IF(S15="Bye",S31,IF(S31="Bye",S15)),(IF(ISBLANK(P15),"",IF(O15>O31,S31,S15)))) -> FALSE | AH33: =IF(ISBLANK(AI33),"",SUM(IF(AI33>AI37,1,0)+(IF(AJ33>AJ37,1,0)+(IF(AK33>AK37,1,0))))) ->  | AL33: =IF(AL32=FALSE,"",AL32) ->  | AO33: =IF(ISBLANK(AP33),"",SUM(IF(AP33>AP37,1,0)+(IF(AQ33>AQ37,1,0)+(IF(AR33>AR37,1,0))))) ->  | AS33: =IF(AS32=FALSE,"",AS32) ->  | AW33: P71 | AY33: =IF(BU36=BU38,IF(BQ36="Bye",BQ38,IF(BQ38="Bye",BQ36)),(IF(ISBLANK(BR36),"",IF(BU36>BU38,BQ38,BQ36)))) -> FALSE | BD33: P55 | BF33: =IF(BO33=BO34,IF(BK33="Bye",BK34,IF(BK34="Bye",BK33)),(IF(ISBLANK(BL33),"",IF(BO33>BO34,BK34,BK33)))) -> FALSE | BI33: 27 | BK33: 0 | BO33: =IF(ISBLANK(BL33),"",SUM(IF(BL33>BL34,1,0)+(IF(BM33>BM34,1,0)+(IF(BN33>BN34,1,0))))) ->  | BP33: P14 | BQ33: =IF(BO33=BO34,IF(BK33="Bye",BK34,IF(BK34="Bye",BK33)),(IF(ISBLANK(BL33),"",IF(BO33>BO34,BK33,BK34)))) -> FALSE | BS33: (V8) | BW33: =IF(BW32=FALSE,"",BW32) ->  | CA33: =IF(ISBLANK(BX33),"",SUM(IF(BX33>BX37,1,0)+(IF(BY33>BY37,1,0)+(IF(BZ33>BZ37,1,0))))) ->  | CO33: CAMPEÃO | CU33: =IF(AND(#REF!=CS33,CT33>#REF!),#REF!,CR33) ->  | CV33: =VLOOKUP(CU33,BP32:CA33,9,FALSE) ->  | CW33: =VLOOKUP(CU33,BP32:CA33,8,FALSE) ->  | CX33: =VLOOKUP(CU33,BP32:CA33,6,FALSE) ->  | CY33: =IF(AND(CV33=#REF!,CW33=#REF!,#REF!>CX33),#REF!,CU33) ->  | CZ33: =VLOOKUP(CY33,BP32:CA33,9,FALSE) ->  | DA33: =VLOOKUP(CY33,BP32:CA33,8,FALSE) ->  | DB33: =VLOOKUP(CY33,BP32:CA33,6,FALSE) ->  | DC33: =IF(AND(CZ32=CZ33,DA32=DA33,#REF!>DB32),CY32,CY33) ->  | DD33: =VLOOKUP(DC33,BP32:CA33,9,FALSE) ->  | DE33: =VLOOKUP(DC33,BP32:CA33,8,FALSE) ->  | DF33: =VLOOKUP(DC33,BP32:CA33,6,FALSE) ->  | DG33: =IF(AND(#REF!=DD33,#REF!=DE33,DF33>#REF!),#REF!,DC33) ->  | DH33: =VLOOKUP(DG33,BP32:CA33,9,FALSE) ->  | DI33: =VLOOKUP(DG33,BP32:CA33,8,FALSE) ->  | DJ33: =VLOOKUP(DG33,BP32:CA33,6,FALSE) ->  | DN33: =DG33 ->  | DO33: =VLOOKUP(DN33,BP32:CA33,2,FALSE) ->  | DP33: =VLOOKUP(DN33,BP32:CA33,3,FALSE) ->  | DQ33: =VLOOKUP(DN33,BP32:CA33,4,FALSE) ->  | DR33: =VLOOKUP(DN33,BP32:CA33,5,FALSE) ->  | DS33: =VLOOKUP(DN33,BP32:CA33,6,FALSE) ->  | DT33: =VLOOKUP(DN33,BP32:CA33,7,FALSE) ->  | DU33: =VLOOKUP(DN33,BP32:CA33,8,FALSE) ->  | DV33: =VLOOKUP(DN33,BP32:CA33,9,FALSE) ->  | DY33: =IF(T33<>"",IF(T33>#REF!,N33,IF(#REF!>T33,#REF!,"Empate")),"") ->  | DZ33: =IF(T33<>"",IF(T33<#REF!,N33,IF(#REF!<T33,#REF!,"Empate")),"") ->  | EE33: 22º | EH33: =IF(AH49=AH53,"",IF(AH49>AH53,AL53,AL49)) ->  | EI33: 2 | EL33: 22 | EW33: 106
F34: =IF(H34=H36,IF(L34="Bye",L36,IF(L36="Bye",L34)),(IF(ISBLANK(I34),"",IF(H34>H36,L34,L36)))) -> FALSE | H34: =IF(ISBLANK(I34),"",SUM(IF(I34>I36,1,0)+(IF(J34>J36,1,0)+(IF(K34>K36,1,0))))) ->  | L34: =IF(L33=FALSE,"",L33) ->  | P34: Apuramento | Q34: 7.º e 8.º Class. | S34: =IF(H34=H36,IF(L34="Bye",L36,IF(L36="Bye",L34)),(IF(ISBLANK(I34),"",IF(H34>H36,L36,L34)))) -> FALSE | Y34: =IF(CG11=CG19,IF(CC11="Bye",CC19,IF(CC19="Bye",CC19)),(IF(ISBLANK(CD11),"",IF(CG11>CG19,CC19,CC11)))) -> FALSE | AF34: =IF(AH33=AH37,IF(AL33="Bye",AL37,IF(AL37="Bye",AL33)),(IF(ISBLANK(AI33),"",IF(AH33>AH37,AL33,AL37)))) -> FALSE | AU34: =IF(ISBLANK(AV32),"",SUM(IF(AV34>AV32,1,0)+(IF(AW34>AW32,1,0)+(IF(AX34>AX32,1,0))))) ->  | AY34: =IF(AY33=FALSE,"",AY33) ->  | AZ34: (V7) | BB34: =IF(ISBLANK(BC32),"",SUM(IF(BC34>BC32,1,0)+(IF(BD34>BD32,1,0)+(IF(BE34>BE32,1,0))))) ->  | BF34: =IF(BF33=FALSE,"",BF33) ->  | BI34: 28 | BK34: 0 | BO34: =IF(ISBLANK(BL33),"",SUM(IF(BL34>BL33,1,0)+(IF(BM34>BM33,1,0)+(IF(BN34>BN33,1,0))))) ->  | BQ34: =IF(BQ33=FALSE,"",BQ33) ->  | BU34: =IF(ISBLANK(BR32),"",SUM(IF(BR34>BR32,1,0)+(IF(BS34>BS32,1,0)+(IF(BT34>BT32,1,0))))) ->  | CC34: =IF(CA33=CA37,IF(BW33="Bye",BW37,IF(BW37="Bye",BW37)),(IF(ISBLANK(BX33),"",IF(CA33>CA37,BW33,BW37)))) -> FALSE | EE34: 23º | EH34: =IF(AH57=AH61,"",IF(AH57>AH61,AL61,AL57)) ->  | EI34: 2 | EL34: 23 | EW34: 107
F35: =IF(F34=FALSE,"",F34) ->  | J35: P130 | L35: =IF(O47=O63,IF(S47="Bye",S63,IF(S63="Bye",S47)),(IF(ISBLANK(P47),"",IF(O47>O63,S63,S47)))) -> FALSE | S35: =IF(S34=FALSE,"",S34) ->  | U35: =IF(ISBLANK(V35),"",SUM(IF(V35>V27,1,0)+(IF(W35>W27,1,0)+(IF(X35>X27,1,0))))) ->  | Y35: =IF(Y34=FALSE,"",Y34) ->  | Z35: (V26) | AB35: =IF(ISBLANK(AC35),"",SUM(IF(AC35>AC27,1,0)+(IF(AD35>AD27,1,0)+(IF(AE35>AE27,1,0))))) ->  | AF35: =IF(AF34=FALSE,"",AF34) ->  | AH35: P104 | AO35: P92 | AY35: =IF(BB36=BB38,IF(BF36="Bye",BF38,IF(BF38="Bye",BF36)),(IF(ISBLANK(BC36),"",IF(BB36>BB38,BF36,BF38)))) -> FALSE | BF35: =IF(BO35=BO36,IF(BK35="Bye",BK36,IF(BK36="Bye",BK35)),(IF(ISBLANK(BL35),"",IF(BO35>BO36,BK36,BK35)))) -> FALSE | BI35: 29 | BK35: 0 | BO35: =IF(ISBLANK(BL35),"",SUM(IF(BL35>BL36,1,0)+(IF(BM35>BM36,1,0)+(IF(BN35>BN36,1,0))))) ->  | BP35: P15 | BQ35: =IF(BO35=BO36,IF(BK35="Bye",BK36,IF(BK36="Bye",BK35)),(IF(ISBLANK(BL35),"",IF(BO35>BO36,BK35,BK36)))) -> FALSE | BU35: P40 | BW35: (V19) | CC35: =IF(CC34=FALSE,"",CC34) ->  | CG35: =IF(ISBLANK(CD35),"",SUM(IF(CD35>CD27,1,0)+(IF(CE35>CE27,1,0)+(IF(CF35>CF27,1,0))))) ->  | DY35: =IF(#REF!<>"",IF(#REF!>L35,#REF!,IF(L35>#REF!,F35,"Empate")),"") ->  | DZ35: =IF(#REF!<>"",IF(#REF!<L35,#REF!,IF(L35<#REF!,F35,"Empate")),"") ->  | EE35: 24º | EH35: =IF(AH65=AH69,"",IF(AH65>AH69,AL69,AL65)) ->  | EI35: 2 | EL35: 24 | EW35: 108
F36: 7º Classificado | H36: =IF(ISBLANK(I36),"",SUM(IF(I36>I34,1,0)+(IF(J36>J34,1,0)+(IF(K36>K34,1,0))))) ->  | L36: =IF(L35=FALSE,"",L35) ->  | S36: 8º Classificado | AL36: =IF(CA25=CA29,IF(BW25="Bye",BW29,IF(BW29="Bye",BW29)),(IF(ISBLANK(BX25),"",IF(CA25>CA29,BW29,BW25)))) -> FALSE | AS36: =IF(AU36=AU38,IF(AY36="Bye",AY38,IF(AY38="Bye",AY36)),(IF(ISBLANK(AV36),"",IF(AU36>AU38,AY36,AY38)))) -> FALSE | AU36: =IF(ISBLANK(AV36),"",SUM(IF(AV36>AV38,1,0)+(IF(AW36>AW38,1,0)+(IF(AX36>AX38,1,0))))) ->  | AY36: =IF(AY35=FALSE,"",AY35) ->  | BB36: =IF(ISBLANK(BC36),"",SUM(IF(BC36>BC38,1,0)+(IF(BD36>BD38,1,0)+(IF(BE36>BE38,1,0))))) ->  | BF36: =IF(BF35=FALSE,"",BF35) ->  | BI36: 30 | BK36: 0 | BO36: =IF(ISBLANK(BL35),"",SUM(IF(BL36>BL35,1,0)+(IF(BM36>BM35,1,0)+(IF(BN36>BN35,1,0))))) ->  | BQ36: =IF(BQ35=FALSE,"",BQ35) ->  | BU36: =IF(ISBLANK(BR36),"",SUM(IF(BR36>BR38,1,0)+(IF(BS36>BS38,1,0)+(IF(BT36>BT38,1,0))))) ->  | BW36: =IF(BU36=BU38,IF(BQ36="Bye",BQ38,IF(BQ38="Bye",BQ36)),(IF(ISBLANK(BR36),"",IF(BU36>BU38,BQ36,BQ38)))) -> FALSE | CN36: P127 | CO36: QUADRO FINAL | CU36: =IF(AND(CS36=#REF!,#REF!>CT36),#REF!,CR36) ->  | CV36: =VLOOKUP(CU36,BP36:CA37,9,FALSE) ->  | CW36: =VLOOKUP(CU36,BP36:CA37,8,FALSE) ->  | CX36: =VLOOKUP(CU36,BP36:CA37,6,FALSE) ->  | CY36: =IF(AND(CV36=#REF!,CW36=#REF!,#REF!>CX36),#REF!,CU36) ->  | CZ36: =VLOOKUP(CY36,BP36:CA37,9,FALSE) ->  | DA36: =VLOOKUP(CY36,BP36:CA37,8,FALSE) ->  | DB36: =VLOOKUP(CY36,BP36:CA37,6,FALSE) ->  | DC36: =IF(AND(CZ36=CZ37,DA36=DA37,DB37>DB36),CY37,CY36) ->  | DD36: =VLOOKUP(DC36,BP36:CA37,9,FALSE) ->  | DE36: =VLOOKUP(DC36,BP36:CA37,8,FALSE) ->  | DF36: =VLOOKUP(DC36,BP36:CA37,6,FALSE) ->  | DG36: =IF(AND(DD36=#REF!,DE36=#REF!,#REF!>DF36),#REF!,DC36) ->  | DH36: =VLOOKUP(DG36,BP36:CA37,9,FALSE) ->  | DI36: =VLOOKUP(DG36,BP36:CA37,8,FALSE) ->  | DJ36: =VLOOKUP(DG36,BP36:CA37,6,FALSE) ->  | DN36: =DG36 ->  | DO36: =VLOOKUP(DN36,BP36:CA37,2,FALSE) ->  | DP36: =VLOOKUP(DN36,BP36:CA37,3,FALSE) ->  | DQ36: =VLOOKUP(DN36,BP36:CA37,4,FALSE) ->  | DR36: =VLOOKUP(DN36,BP36:CA37,5,FALSE) ->  | DS36: =VLOOKUP(DN36,BP36:CA37,6,FALSE) ->  | DT36: =VLOOKUP(DN36,BP36:CA37,7,FALSE) ->  | DU36: =VLOOKUP(DN36,BP36:CA37,8,FALSE) ->  | DV36: =VLOOKUP(DN36,BP36:CA37,9,FALSE) ->  | DY36: =IF(L36<>"",IF(L36>#REF!,F36,IF(#REF!>L36,#REF!,"Empate")),"") ->  | DZ36: =IF(L36<>"",IF(L36<#REF!,F36,IF(#REF!<L36,#REF!,"Empate")),"") ->  | EE36: 25º | EH36: =IF(AO9=AO13,"",IF(AO9>AO13,AS13,AS9)) ->  | EI36: 1 | EL36: 25 | EW36: 89
F37: =IF(B23=B55,IF(F23="Bye",F55,IF(F55="Bye",F23)),(IF(ISBLANK(C23),"",IF(B23>B55,F23,F55)))) -> FALSE | AH37: =IF(ISBLANK(AI33),"",SUM(IF(AI37>AI33,1,0)+(IF(AJ37>AJ33,1,0)+(IF(AK37>AK33,1,0))))) ->  | AL37: =IF(AL36=FALSE,"",AL36) ->  | AM37: (V20) | AO37: =IF(ISBLANK(AP37),"",SUM(IF(AP37>AP33,1,0)+(IF(AQ37>AQ33,1,0)+(IF(AR37>AR33,1,0))))) ->  | AS37: =IF(AS36=FALSE,"",AS36) ->  | AW37: P72 | AY37: =IF(BU32=BU34,IF(BQ32="Bye",BQ34,IF(BQ34="Bye",BQ32)),(IF(ISBLANK(BR32),"",IF(BU32>BU34,BQ34,BQ32)))) -> FALSE | BD37: P56 | BF37: =IF(BO37=BO38,IF(BK37="Bye",BK38,IF(BK38="Bye",BK37)),(IF(ISBLANK(BL37),"",IF(BO37>BO38,BK38,BK37)))) -> FALSE | BI37: 31 | BK37: 0 | BO37: =IF(ISBLANK(BL37),"",SUM(IF(BL37>BL38,1,0)+(IF(BM37>BM38,1,0)+(IF(BN37>BN38,1,0))))) ->  | BP37: P16 | BQ37: =IF(BO37=BO38,IF(BK37="Bye",BK38,IF(BK38="Bye",BK37)),(IF(ISBLANK(BL37),"",IF(BO37>BO38,BK37,BK38)))) -> FALSE | BS37: (V7) | BW37: =IF(BW36=FALSE,"",BW36) ->  | CA37: =IF(ISBLANK(BX37),"",SUM(IF(BX37>BX33,1,0)+(IF(BY37>BY33,1,0)+(IF(BZ37>BZ33,1,0))))) ->  | CO37: =IF(CS23=CS55,"",IF(CS23>CS55,CO23,CO55)) ->  | CS37: =IF(ISBLANK(CP37),"",SUM(IF(CP37>CP40,1,0)+(IF(CQ37>CQ40,1,0)+(IF(CR37>CR40,1,0))))) ->  | CU37: =IF(AND(#REF!=CS37,CT37>#REF!),#REF!,CR37) ->  | CV37: =VLOOKUP(CU37,BP36:CA37,9,FALSE) ->  | CW37: =VLOOKUP(CU37,BP36:CA37,8,FALSE) ->  | CX37: =VLOOKUP(CU37,BP36:CA37,6,FALSE) ->  | CY37: =IF(AND(CV37=#REF!,CW37=#REF!,#REF!>CX37),#REF!,CU37) ->  | CZ37: =VLOOKUP(CY37,BP36:CA37,9,FALSE) ->  | DA37: =VLOOKUP(CY37,BP36:CA37,8,FALSE) ->  | DB37: =VLOOKUP(CY37,BP36:CA37,6,FALSE) ->  | DC37: =IF(AND(CZ36=CZ37,DA36=DA37,#REF!>DB36),CY36,CY37) ->  | DD37: =VLOOKUP(DC37,BP36:CA37,9,FALSE) ->  | DE37: =VLOOKUP(DC37,BP36:CA37,8,FALSE) ->  | DF37: =VLOOKUP(DC37,BP36:CA37,6,FALSE) ->  | DG37: =IF(AND(#REF!=DD37,#REF!=DE37,DF37>#REF!),#REF!,DC37) ->  | DH37: =VLOOKUP(DG37,BP36:CA37,9,FALSE) ->  | DI37: =VLOOKUP(DG37,BP36:CA37,8,FALSE) ->  | DJ37: =VLOOKUP(DG37,BP36:CA37,6,FALSE) ->  | DN37: =DG37 ->  | DO37: =VLOOKUP(DN37,BP36:CA37,2,FALSE) ->  | DP37: =VLOOKUP(DN37,BP36:CA37,3,FALSE) ->  | DQ37: =VLOOKUP(DN37,BP36:CA37,4,FALSE) ->  | DR37: =VLOOKUP(DN37,BP36:CA37,5,FALSE) ->  | DS37: =VLOOKUP(DN37,BP36:CA37,6,FALSE) ->  | DT37: =VLOOKUP(DN37,BP36:CA37,7,FALSE) ->  | DU37: =VLOOKUP(DN37,BP36:CA37,8,FALSE) ->  | DV37: =VLOOKUP(DN37,BP36:CA37,9,FALSE) ->  | DY37: =IF(T37<>"",IF(T37>#REF!,N37,IF(#REF!>T37,#REF!,"Empate")),"") ->  | DZ37: =IF(T37<>"",IF(T37<#REF!,N37,IF(#REF!<T37,#REF!,"Empate")),"") ->  | EE37: 26º | EH37: =IF(AO17=AO21,"",IF(AO17>AO21,AS21,AS17)) ->  | EI37: 1 | EL37: 26 | EW37: 90
B38: =IF(ISBLANK(C38),"",SUM(IF(C38>C40,1,0)+(IF(D38>D40,1,0)+(IF(E38>E40,1,0))))) ->  | F38: =IF(F37=FALSE,"",F37) ->  | L38: =IF($B$38=$B$40,IF($F$38="Bye",$F$40,IF($F$40="Bye",$F$38)),(IF(ISBLANK($C$38),"",IF($B$38>$B$40,$F$38,$F$40)))) -> FALSE | S38: =IF(B38=B40,IF(F38="Bye",F40,IF(F40="Bye",F38)),(IF(ISBLANK(C38),"",IF(B38>B40,F40,F38)))) -> FALSE | Y38: =IF(B23=B55,IF(F23="Bye",F55,IF(F55="Bye",F23)),(IF(ISBLANK(C23),"",IF(B23>B55,F55,F23)))) -> FALSE | AU38: =IF(ISBLANK(AV36),"",SUM(IF(AV38>AV36,1,0)+(IF(AW38>AW36,1,0)+(IF(AX38>AX36,1,0))))) ->  | AY38: =IF(AY37=FALSE,"",AY37) ->  | AZ38: (V8) | BB38: =IF(ISBLANK(BC36),"",SUM(IF(BC38>BC36,1,0)+(IF(BD38>BD36,1,0)+(IF(BE38>BE36,1,0))))) ->  | BF38: =IF(BF37=FALSE,"",BF37) ->  | BI38: 32 | BK38: 0 | BO38: =IF(ISBLANK(BL37),"",SUM(IF(BL38>BL37,1,0)+(IF(BM38>BM37,1,0)+(IF(BN38>BN37,1,0))))) ->  | BQ38: =IF(BQ37=FALSE,"",BQ37) ->  | BU38: =IF(ISBLANK(BR36),"",SUM(IF(BR38>BR36,1,0)+(IF(BS38>BS36,1,0)+(IF(BT38>BT36,1,0))))) ->  | CO38: Resultado/Vencedor Jogo V31 do quadro principal | EE38: 27º | EH38: =IF(AO25=AO29,"",IF(AO25>AO29,AS29,AS25)) ->  | EI38: 1 | EL38: 27 | EW38: 91
F39: =IF(CS23=CS55,IF(CO23="Bye",CO55,IF(CO55="Bye",CO55)),(IF(ISBLANK(CP23),"",IF(CS23>CP55,CO55,CO23)))) -> FALSE | I39: =IF(L38=FALSE,"",L38) ->  | O39: =IF(S38=FALSE,"",S38) ->  | U39: =IF(Y38=FALSE,"",Y38) ->  | AY39: =IF(BB40=BB42,IF(BF40="Bye",BF42,IF(BF42="Bye",BF40)),(IF(ISBLANK(BC40),"",IF(BB40>BB42,BF40,BF42)))) -> FALSE | BF39: =IF(BO39=BO40,IF(BK39="Bye",BK40,IF(BK40="Bye",BK39)),(IF(ISBLANK(BL39),"",IF(BO39>BO40,BK40,BK39)))) -> FALSE | BI39: 33 | BK39: 0 | BO39: =IF(ISBLANK(BL39),"",SUM(IF(BL39>BL40,1,0)+(IF(BM39>BM40,1,0)+(IF(BN39>BN40,1,0))))) ->  | BP39: P17 | BQ39: =IF(BO39=BO40,IF(BK39="Bye",BK40,IF(BK40="Bye",BK39)),(IF(ISBLANK(BL39),"",IF(BO39>BO40,BK39,BK40)))) -> FALSE | BU39: P41 | CO39: =IF(B38=B40,IF(F38="Bye",F40,IF(F40="Bye",F38)),(IF(ISBLANK(C38),"",IF(B38>B40,F38,F40)))) -> FALSE | EE39: 28º | EH39: =IF(AO33=AO37,"",IF(AO33>AO37,AS37,AS33)) ->  | EI39: 1 | EL39: 28 | EW39: 92
B40: =IF(ISBLANK(C40),"",SUM(IF(C40>C38,1,0)+(IF(D40>D38,1,0)+(IF(E40>E38,1,0))))) ->  | F40: =IF(F39=FALSE,"",F39) ->  | G40: (V31) | I40: Apurado para a Final | O40: 3ºClassificado | U40: 4ºClassificado | AL40: =IF(AO41=AO45,IF(AS41="Bye",AS45,IF(AS45="Bye",AS41)),(IF(ISBLANK(AP41),"",IF(AO41>AO45,AS41,AS45)))) -> FALSE | AS40: =IF(AU40=AU42,IF(AY40="Bye",AY42,IF(AY42="Bye",AY40)),(IF(ISBLANK(AV40),"",IF(AU40>AU42,AY40,AY42)))) -> FALSE | AU40: =IF(ISBLANK(AV40),"",SUM(IF(AV40>AV42,1,0)+(IF(AW40>AW42,1,0)+(IF(AX40>AX42,1,0))))) ->  | AY40: =IF(AY39=FALSE,"",AY39) ->  | BB40: =IF(ISBLANK(BC40),"",SUM(IF(BC40>BC42,1,0)+(IF(BD40>BD42,1,0)+(IF(BE40>BE42,1,0))))) ->  | BF40: =IF(BF39=FALSE,"",BF39) ->  | BI40: 34 | BK40: 0 | BO40: =IF(ISBLANK(BL39),"",SUM(IF(BL40>BL39,1,0)+(IF(BM40>BM39,1,0)+(IF(BN40>BN39,1,0))))) ->  | BQ40: =IF(BQ39=FALSE,"",BQ39) ->  | BU40: =IF(ISBLANK(BR40),"",SUM(IF(BR40>BR42,1,0)+(IF(BS40>BS42,1,0)+(IF(BT40>BT42,1,0))))) ->  | BW40: =IF(BU40=BU42,IF(BQ40="Bye",BQ42,IF(BQ42="Bye",BQ40)),(IF(ISBLANK(BR40),"",IF(BU40>BU42,BQ40,BQ42)))) -> FALSE | CA40: P85 | CO40: =IF(CO39=FALSE,"",CO39) ->  | CS40: =IF(ISBLANK(CP40),"",SUM(IF(CP40>CP37,1,0)+(IF(CQ40>CQ37,1,0)+(IF(CR40>CR37,1,0))))) ->  | EE40: 29º | EH40: =IF(AO41=AO45,"",IF(AO41>AO45,AS45,AS41)) ->  | EI40: 1 | EL40: 29 | EW40: 93
L41: =IF(H15=H31,IF(L15="Bye",L31,IF(L31="Bye",L15)),(IF(ISBLANK(I15),"",IF(H15>H31,L31,L15)))) -> FALSE | AH41: =IF(ISBLANK(AI41),"",SUM(IF(AI41>AI45,1,0)+(IF(AJ41>AJ45,1,0)+(IF(AK41>AK45,1,0))))) ->  | AL41: =IF(AL40=FALSE,"",AL40) ->  | AO41: =IF(ISBLANK(AP41),"",SUM(IF(AP41>AP45,1,0)+(IF(AQ41>AQ45,1,0)+(IF(AR41>AR45,1,0))))) ->  | AS41: =IF(AS40=FALSE,"",AS40) ->  | AW41: P73 | AY41: =IF(BU44=BU46,IF(BQ44="Bye",BQ46,IF(BQ46="Bye",BQ44)),(IF(ISBLANK(BR44),"",IF(BU44>BU46,BQ46,BQ44)))) -> FALSE | BD41: P57 | BF41: =IF(BO41=BO42,IF(BK41="Bye",BK42,IF(BK42="Bye",BK41)),(IF(ISBLANK(BL41),"",IF(BO41>BO42,BK42,BK41)))) -> FALSE | BI41: 35 | BK41: 0 | BO41: =IF(ISBLANK(BL41),"",SUM(IF(BL41>BL42,1,0)+(IF(BM41>BM42,1,0)+(IF(BN41>BN42,1,0))))) ->  | BP41: P18 | BQ41: =IF(BO41=BO42,IF(BK41="Bye",BK42,IF(BK42="Bye",BK41)),(IF(ISBLANK(BL41),"",IF(BO41>BO42,BK41,BK42)))) -> FALSE | BS41: (V10) | BW41: =IF(BW40=FALSE,"",BW40) ->  | CA41: =IF(ISBLANK(BX41),"",SUM(IF(BX41>BX45,1,0)+(IF(BY41>BY45,1,0)+(IF(BZ41>BZ45,1,0))))) ->  | CO41: Vencedor Jogo V31 quadro dos vencidos | EE41: 30º | EH41: =IF(AO49=AO53,"",IF(AO49>AO53,AS53,AS49)) ->  | EI41: 1 | EL41: 30 | EW41: 94
F42: =IF(H42=H44,IF(L42="Bye",L44,IF(L44="Bye",L42)),(IF(ISBLANK(I42),"",IF(H42>H44,L42,L44)))) -> FALSE | H42: =IF(ISBLANK(I42),"",SUM(IF(I42>I44,1,0)+(IF(J42>J44,1,0)+(IF(K42>K44,1,0))))) ->  | L42: =IF(L41=FALSE,"",L41) ->  | M42: (V 29) | P42: Apuramento | Q42: 5.º e 6.º Class. | S42: =IF(H42=H44,IF(L42="Bye",L44,IF(L44="Bye",L42)),(IF(ISBLANK(I42),"",IF(H42>H44,L44,L42)))) -> FALSE | Y42: =IF(AB43=AB51,IF(AF43="Bye",AF51,IF(AF51="Bye",AF43)),(IF(ISBLANK(AC43),"",IF(AB43>AB51,AF43,AF51)))) -> FALSE | AF42: =IF(AH41=AH45,IF(AL41="Bye",AL45,IF(AL45="Bye",AL41)),(IF(ISBLANK(AI41),"",IF(AH41>AH45,AL41,AL45)))) -> FALSE | AU42: =IF(ISBLANK(AV40),"",SUM(IF(AV42>AV40,1,0)+(IF(AW42>AW40,1,0)+(IF(AX42>AX40,1,0))))) ->  | AY42: =IF(AY41=FALSE,"",AY41) ->  | AZ42: (V9) | BB42: =IF(ISBLANK(BC40),"",SUM(IF(BC42>BC40,1,0)+(IF(BD42>BD40,1,0)+(IF(BE42>BE40,1,0))))) ->  | BF42: =IF(BF41=FALSE,"",BF41) ->  | BI42: 36 | BK42: 0 | BO42: =IF(ISBLANK(BL41),"",SUM(IF(BL42>BL41,1,0)+(IF(BM42>BM41,1,0)+(IF(BN42>BN41,1,0))))) ->  | BQ42: =IF(BQ41=FALSE,"",BQ41) ->  | BU42: =IF(ISBLANK(BR40),"",SUM(IF(BR42>BR40,1,0)+(IF(BS42>BS40,1,0)+(IF(BT42>BT40,1,0))))) ->  | CC42: =IF(CA41=CA45,IF(BW41="Bye",BW45,IF(BW45="Bye",BW45)),(IF(ISBLANK(BX41),"",IF(CA41>CA45,BW41,BW45)))) -> FALSE | CG42: P99 | EE42: 31º | EH42: =IF(AO57=AO61,"",IF(AO57>AO61,AS61,AS57)) ->  | EI42: 1 | EL42: 31 | EW42: 95
F43: =IF(F42=FALSE,"",F42) ->  | J43: P129 | L43: =IF(H47=H63,IF(L47="Bye",L63,IF(L63="Bye",L47)),(IF(ISBLANK(I47),"",IF(H47>H63,L63,L47)))) -> FALSE | S43: =IF(S42=FALSE,"",S42) ->  | U43: =IF(ISBLANK(V43),"",SUM(IF(V43>V51,1,0)+(IF(W43>W51,1,0)+(IF(X43>X51,1,0))))) ->  | Y43: =IF(Y42=FALSE,"",Y42) ->  | AB43: =IF(ISBLANK(AC43),"",SUM(IF(AC43>AC51,1,0)+(IF(AD43>AD51,1,0)+(IF(AE43>AE51,1,0))))) ->  | AF43: =IF(AF42=FALSE,"",AF42) ->  | AH43: P105 | AO43: P93 | AY43: =IF(BB44=BB46,IF(BF44="Bye",BF46,IF(BF46="Bye",BF44)),(IF(ISBLANK(BC44),"",IF(BB44>BB46,BF44,BF46)))) -> FALSE | BF43: =IF(BO43=BO44,IF(BK43="Bye",BK44,IF(BK44="Bye",BK43)),(IF(ISBLANK(BL43),"",IF(BO43>BO44,BK44,BK43)))) -> FALSE | BI43: 37 | BK43: 0 | BO43: =IF(ISBLANK(BL43),"",SUM(IF(BL43>BL44,1,0)+(IF(BM43>BM44,1,0)+(IF(BN43>BN44,1,0))))) ->  | BP43: P19 | BQ43: =IF(BO43=BO44,IF(BK43="Bye",BK44,IF(BK44="Bye",BK43)),(IF(ISBLANK(BL43),"",IF(BO43>BO44,BK43,BK44)))) -> FALSE | BU43: P42 | BW43: (V22) | CC43: =IF(CC42=FALSE,"",CC42) ->  | CG43: =IF(ISBLANK(CD43),"",SUM(IF(CD43>CD51,1,0)+(IF(CE43>CE51,1,0)+(IF(CF43>CF51,1,0))))) ->  | EE43: 32º | EH43: =IF(AO65=AO69,"",IF(AO65>AO69,AS69,AS65)) ->  | EI43: 1 | EL43: 32 | EW43: 96
F44: 5ºClassificado | H44: =IF(ISBLANK(I44),"",SUM(IF(I44>I42,1,0)+(IF(J44>J42,1,0)+(IF(K44>K42,1,0))))) ->  | L44: =IF(L43=FALSE,"",L43) ->  | M44: (V 30) | S44: 6ºClassificado | AL44: =IF(CA49=CA53,IF(BW49="Bye",BW53,IF(BW53="Bye",BW53)),(IF(ISBLANK(BX49),"",IF(CA49>CA53,BW53,BW49)))) -> FALSE | AS44: =IF(AU44=AU46,IF(AY44="Bye",AY46,IF(AY46="Bye",AY44)),(IF(ISBLANK(AV44),"",IF(AU44>AU46,AY44,AY46)))) -> FALSE | AU44: =IF(ISBLANK(AV44),"",SUM(IF(AV44>AV46,1,0)+(IF(AW44>AW46,1,0)+(IF(AX44>AX46,1,0))))) ->  | AY44: =IF(AY43=FALSE,"",AY43) ->  | BB44: =IF(ISBLANK(BC44),"",SUM(IF(BC44>BC46,1,0)+(IF(BD44>BD46,1,0)+(IF(BE44>BE46,1,0))))) ->  | BF44: =IF(BF43=FALSE,"",BF43) ->  | BI44: 38 | BK44: 0 | BO44: =IF(ISBLANK(BL43),"",SUM(IF(BL44>BL43,1,0)+(IF(BM44>BM43,1,0)+(IF(BN44>BN43,1,0))))) ->  | BQ44: =IF(BQ43=FALSE,"",BQ43) ->  | BU44: =IF(ISBLANK(BR44),"",SUM(IF(BR44>BR46,1,0)+(IF(BS44>BS46,1,0)+(IF(BT44>BT46,1,0))))) ->  | BW44: =IF(BU44=BU46,IF(BQ44="Bye",BQ46,IF(BQ46="Bye",BQ44)),(IF(ISBLANK(BR44),"",IF(BU44>BU46,BQ44,BQ46)))) -> FALSE | EE44: 33º | EH44: =IF(AU8=AU10,"",IF(AU8>AU10,AY10,AY8)) ->  | EI44: 1 | EL44: 33 | EW44: 65
AH45: =IF(ISBLANK(AI41),"",SUM(IF(AI45>AI41,1,0)+(IF(AJ45>AJ41,1,0)+(IF(AK45>AK41,1,0))))) ->  | AL45: =IF(AL44=FALSE,"",AL44) ->  | AM45: (V21) | AO45: =IF(ISBLANK(AP45),"",SUM(IF(AP45>AP41,1,0)+(IF(AQ45>AQ41,1,0)+(IF(AR45>AR41,1,0))))) ->  | AS45: =IF(AS44=FALSE,"",AS44) ->  | AW45: P74 | AY45: =IF(BU40=BU42,IF(BQ40="Bye",BQ42,IF(BQ42="Bye",BQ40)),(IF(ISBLANK(BR40),"",IF(BU40>BU42,BQ42,BQ40)))) -> FALSE | BD45: P58 | BF45: =IF(BO45=BO46,IF(BK45="Bye",BK46,IF(BK46="Bye",BK45)),(IF(ISBLANK(BL45),"",IF(BO45>BO46,BK46,BK45)))) -> FALSE | BI45: 39 | BK45: 0 | BO45: =IF(ISBLANK(BL45),"",SUM(IF(BL45>BL46,1,0)+(IF(BM45>BM46,1,0)+(IF(BN45>BN46,1,0))))) ->  | BP45: P20 | BQ45: =IF(BO45=BO46,IF(BK45="Bye",BK46,IF(BK46="Bye",BK45)),(IF(ISBLANK(BL45),"",IF(BO45>BO46,BK45,BK46)))) -> FALSE | BS45: (V9) | BW45: =IF(BW44=FALSE,"",BW44) ->  | CA45: =IF(ISBLANK(BX45),"",SUM(IF(BX45>BX41,1,0)+(IF(BY45>BY41,1,0)+(IF(BZ45>BZ41,1,0))))) ->  | EE45: 34º | EH45: =IF(AU12=AU14,"",IF(AU12>AU14,AY14,AY12)) ->  | EI45: 1 | EL45: 34 | EW45: 66
L46: =IF(O47=O63,IF(S47="Bye",S63,IF(S63="Bye",S47)),(IF(ISBLANK(P47),"",IF(O47>O63,S47,S63)))) -> FALSE | S46: =IF(U43=U51,IF(Y43="Bye",Y51,IF(Y51="Bye",Y43)),(IF(ISBLANK(V43),"",IF(U43>U51,Y43,Y51)))) -> FALSE | U46: Vencedor | AB46: Vencedor | AU46: =IF(ISBLANK(AV44),"",SUM(IF(AV46>AV44,1,0)+(IF(AW46>AW44,1,0)+(IF(AX46>AX44,1,0))))) ->  | AY46: =IF(AY45=FALSE,"",AY45) ->  | AZ46: (V10) | BB46: =IF(ISBLANK(BC44),"",SUM(IF(BC46>BC44,1,0)+(IF(BD46>BD44,1,0)+(IF(BE46>BE44,1,0))))) ->  | BF46: =IF(BF45=FALSE,"",BF45) ->  | BI46: 40 | BK46: 0 | BO46: =IF(ISBLANK(BL45),"",SUM(IF(BL46>BL45,1,0)+(IF(BM46>BM45,1,0)+(IF(BN46>BN45,1,0))))) ->  | BQ46: =IF(BQ45=FALSE,"",BQ45) ->  | BU46: =IF(ISBLANK(BR44),"",SUM(IF(BR46>BR44,1,0)+(IF(BS46>BS44,1,0)+(IF(BT46>BT44,1,0))))) ->  | CI46: =IF(CG43=CG51,IF(CC43="Bye",CC51,IF(CC51="Bye",CC51)),(IF(ISBLANK(CD43),"",IF(CG43>CG51,CC43,CC51)))) -> FALSE | CM46: P114 | EE46: 35º | EH46: =IF(AU16=AU18,"",IF(AU16>AU18,AY18,AY16)) ->  | EI46: 1 | EL46: 35 | EW46: 67
H47: =IF(ISBLANK(I47),"",SUM(IF(I47>I63,1,0)+(IF(J47>J63,1,0)+(IF(K47>K63,1,0))))) ->  | L47: =IF(L46=FALSE,"",L46) ->  | O47: =IF(ISBLANK(P47),"",SUM(IF(P47>P63,1,0)+(IF(Q47>Q63,1,0)+(IF(R47>R63,1,0))))) ->  | S47: =IF(S46=FALSE,"",S46) ->  | Y47: P117 | AF47: P111 | AY47: =IF(BB48=BB50,IF(BF48="Bye",BF50,IF(BF50="Bye",BF48)),(IF(ISBLANK(BC48),"",IF(BB48>BB50,BF48,BF50)))) -> FALSE | BF47: =IF(BO47=BO48,IF(BK47="Bye",BK48,IF(BK48="Bye",BK47)),(IF(ISBLANK(BL47),"",IF(BO47>BO48,BK48,BK47)))) -> FALSE | BI47: 41 | BK47: 0 | BO47: =IF(ISBLANK(BL47),"",SUM(IF(BL47>BL48,1,0)+(IF(BM47>BM48,1,0)+(IF(BN47>BN48,1,0))))) ->  | BP47: P21 | BQ47: =IF(BO47=BO48,IF(BK47="Bye",BK48,IF(BK48="Bye",BK47)),(IF(ISBLANK(BL47),"",IF(BO47>BO48,BK47,BK48)))) -> FALSE | BU47: P43 | CC47: (V28) | CI47: =IF(CI46=FALSE,"",CI46) ->  | CM47: =IF(ISBLANK(CJ47),"",SUM(IF(CJ47>CJ63,1,0)+(IF(CK47>CK63,1,0)+(IF(CL47>CL63,1,0))))) ->  | EE47: 36º | EH47: =IF(AU20=AU22,"",IF(AU20>AU22,AY22,AY20)) ->  | EI47: 1 | EL47: 36 | EW47: 68
AL48: =IF(AO49=AO53,IF(AS49="Bye",AS53,IF(AS53="Bye",AS49)),(IF(ISBLANK(AP49),"",IF(AO49>AO53,AS49,AS53)))) -> FALSE | AS48: =IF(AU48=AU50,IF(AY48="Bye",AY50,IF(AY50="Bye",AY48)),(IF(ISBLANK(AV48),"",IF(AU48>AU50,AY48,AY50)))) -> FALSE | AU48: =IF(ISBLANK(AV48),"",SUM(IF(AV48>AV50,1,0)+(IF(AW48>AW50,1,0)+(IF(AX48>AX50,1,0))))) ->  | AY48: =IF(AY47=FALSE,"",AY47) ->  | BB48: =IF(ISBLANK(BC48),"",SUM(IF(BC48>BC50,1,0)+(IF(BD48>BD50,1,0)+(IF(BE48>BE50,1,0))))) ->  | BF48: =IF(BF47=FALSE,"",BF47) ->  | BI48: 42 | BK48: 0 | BO48: =IF(ISBLANK(BL47),"",SUM(IF(BL48>BL47,1,0)+(IF(BM48>BM47,1,0)+(IF(BN48>BN47,1,0))))) ->  | BQ48: =IF(BQ47=FALSE,"",BQ47) ->  | BU48: =IF(ISBLANK(BR48),"",SUM(IF(BR48>BR50,1,0)+(IF(BS48>BS50,1,0)+(IF(BT48>BT50,1,0))))) ->  | BW48: =IF(BU48=BU50,IF(BQ48="Bye",BQ50,IF(BQ50="Bye",BQ48)),(IF(ISBLANK(BR48),"",IF(BU48>BU50,BQ48,BQ50)))) -> FALSE | CA48: P86 | EE48: 37º | EH48: =IF(AU24=AU26,"",IF(AU24>AU26,AY26,AY24)) ->  | EI48: 1 | EL48: 37 | EW48: 69
AH49: =IF(ISBLANK(AI49),"",SUM(IF(AI49>AI53,1,0)+(IF(AJ49>AJ53,1,0)+(IF(AK49>AK53,1,0))))) ->  | AL49: =IF(AL48=FALSE,"",AL48) ->  | AO49: =IF(ISBLANK(AP49),"",SUM(IF(AP49>AP53,1,0)+(IF(AQ49>AQ53,1,0)+(IF(AR49>AR53,1,0))))) ->  | AS49: =IF(AS48=FALSE,"",AS48) ->  | AW49: P75 | AY49: =IF(BU52=BU54,IF(BQ52="Bye",BQ54,IF(BQ54="Bye",BQ52)),(IF(ISBLANK(BR52),"",IF(BU52>BU54,BQ54,BQ52)))) -> FALSE | BD49: P59 | BF49: =IF(BO49=BO50,IF(BK49="Bye",BK50,IF(BK50="Bye",BK49)),(IF(ISBLANK(BL49),"",IF(BO49>BO50,BK50,BK49)))) -> FALSE | BI49: 43 | BK49: 0 | BO49: =IF(ISBLANK(BL49),"",SUM(IF(BL49>BL50,1,0)+(IF(BM49>BM50,1,0)+(IF(BN49>BN50,1,0))))) ->  | BP49: P22 | BQ49: =IF(BO49=BO50,IF(BK49="Bye",BK50,IF(BK50="Bye",BK49)),(IF(ISBLANK(BL49),"",IF(BO49>BO50,BK49,BK50)))) -> FALSE | BS49: (V12) | BW49: =IF(BW48=FALSE,"",BW48) ->  | CA49: =IF(ISBLANK(BX49),"",SUM(IF(BX49>BX53,1,0)+(IF(BY49>BY53,1,0)+(IF(BZ49>BZ53,1,0))))) ->  | EE49: 38º | EH49: =IF(AU28=AU39,"",IF(AU28>AU30,AY30,AY28)) ->  | EI49: 1 | EL49: 38 | EW49: 70
Y50: =IF(CG59=CG67,IF(CC59="Bye",CC67,IF(CC67="Bye",CC67)),(IF(ISBLANK(CD59),"",IF(CG59>CG67,CC67,CC59)))) -> FALSE | AF50: =IF(AH49=AH53,IF(AL49="Bye",AL53,IF(AL53="Bye",AL49)),(IF(ISBLANK(AI49),"",IF(AH49>AH53,AL49,AL53)))) -> FALSE | AU50: =IF(ISBLANK(AV48),"",SUM(IF(AV50>AV48,1,0)+(IF(AW50>AW48,1,0)+(IF(AX50>AX48,1,0))))) ->  | AY50: =IF(AY49=FALSE,"",AY49) ->  | AZ50: (V11) | BB50: =IF(ISBLANK(BC48),"",SUM(IF(BC50>BC48,1,0)+(IF(BD50>BD48,1,0)+(IF(BE50>BE48,1,0))))) ->  | BF50: =IF(BF49=FALSE,"",BF49) ->  | BI50: 44 | BK50: 0 | BO50: =IF(ISBLANK(BL49),"",SUM(IF(BL50>BL49,1,0)+(IF(BM50>BM49,1,0)+(IF(BN50>BN49,1,0))))) ->  | BQ50: =IF(BQ49=FALSE,"",BQ49) ->  | BU50: =IF(ISBLANK(BR48),"",SUM(IF(BR50>BR48,1,0)+(IF(BS50>BS48,1,0)+(IF(BT50>BT48,1,0))))) ->  | CC50: =IF(CA49=CA53,IF(BW49="Bye",BW53,IF(BW53="Bye",BW53)),(IF(ISBLANK(BX49),"",IF(CA49>CA53,BW49,BW53)))) -> FALSE | EE50: 39º | EH50: =IF(AU32=AU34,"",IF(AU32>AU34,AY34,AY32)) ->  | EI50: 1 | EL50: 39 | EW50: 71
U51: =IF(ISBLANK(V51),"",SUM(IF(V51>V43,1,0)+(IF(W51>W43,1,0)+(IF(X51>X43,1,0))))) ->  | Y51: =IF(Y50=FALSE,"",Y50) ->  | Z51: (V27) | AB51: =IF(ISBLANK(AC51),"",SUM(IF(AC51>AC43,1,0)+(IF(AD51>AD43,1,0)+(IF(AE51>AE43,1,0))))) ->  | AF51: =IF(AF50=FALSE,"",AF50) ->  | AH51: P106 | AO51: P94 | AY51: =IF(BB52=BB54,IF(BF52="Bye",BF54,IF(BF54="Bye",BF52)),(IF(ISBLANK(BC52),"",IF(BB52>BB54,BF52,BF54)))) -> FALSE | BF51: =IF(BO51=BO52,IF(BK51="Bye",BK52,IF(BK52="Bye",BK51)),(IF(ISBLANK(BL51),"",IF(BO51>BO52,BK52,BK51)))) -> FALSE | BI51: 45 | BK51: 0 | BO51: =IF(ISBLANK(BL51),"",SUM(IF(BL51>BL52,1,0)+(IF(BM51>BM52,1,0)+(IF(BN51>BN52,1,0))))) ->  | BP51: P23 | BQ51: =IF(BO51=BO52,IF(BK51="Bye",BK52,IF(BK52="Bye",BK51)),(IF(ISBLANK(BL51),"",IF(BO51>BO52,BK51,BK52)))) -> FALSE | BU51: P44 | BW51: (V21) | CC51: =IF(CC50=FALSE,"",CC50) ->  | CG51: =IF(ISBLANK(CD51),"",SUM(IF(CD51>CD43,1,0)+(IF(CE51>CE43,1,0)+(IF(CF51>CF43,1,0))))) ->  | EE51: 40º | EH51: =IF(AU36=AU38,"",IF(AU36>AU38,AY38,AY36)) ->  | EI51: 1 | EL51: 40 | EW51: 72
AL52: =IF(CA41=CA45,IF(BW41="Bye",BW45,IF(BW45="Bye",BW45)),(IF(ISBLANK(BX41),"",IF(CA41>CA45,BW45,BW41)))) -> FALSE | AS52: =IF(AU52=AU54,IF(AY52="Bye",AY54,IF(AY54="Bye",AY52)),(IF(ISBLANK(AV52),"",IF(AU52>AU54,AY52,AY54)))) -> FALSE | AU52: =IF(ISBLANK(AV52),"",SUM(IF(AV52>AV54,1,0)+(IF(AW52>AW54,1,0)+(IF(AX52>AX54,1,0))))) ->  | AY52: =IF(AY51=FALSE,"",AY51) ->  | BB52: =IF(ISBLANK(BC52),"",SUM(IF(BC52>BC54,1,0)+(IF(BD52>BD54,1,0)+(IF(BE52>BE54,1,0))))) ->  | BF52: =IF(BF51=FALSE,"",BF51) ->  | BI52: 46 | BK52: 0 | BO52: =IF(ISBLANK(BL51),"",SUM(IF(BL52>BL51,1,0)+(IF(BM52>BM51,1,0)+(IF(BN52>BN51,1,0))))) ->  | BQ52: =IF(BQ51=FALSE,"",BQ51) ->  | BU52: =IF(ISBLANK(BR52),"",SUM(IF(BR52>BR54,1,0)+(IF(BS52>BS54,1,0)+(IF(BT52>BT54,1,0))))) ->  | BW52: =IF(BU52=BU54,IF(BQ52="Bye",BQ54,IF(BQ54="Bye",BQ52)),(IF(ISBLANK(BR52),"",IF(BU52>BU54,BQ52,BQ54)))) -> FALSE | EE52: 41º | EH52: =IF(AU40=AU42,"",IF(AU40>AU42,AY42,AY40)) ->  | EI52: 1 | EL52: 41 | EW52: 73
AH53: =IF(ISBLANK(AI49),"",SUM(IF(AI53>AI49,1,0)+(IF(AJ53>AJ49,1,0)+(IF(AK53>AK49,1,0))))) ->  | AL53: =IF(AL52=FALSE,"",AL52) ->  | AM53: (V22) | AO53: =IF(ISBLANK(AP53),"",SUM(IF(AP53>AP49,1,0)+(IF(AQ53>AQ49,1,0)+(IF(AR53>AR49,1,0))))) ->  | AS53: =IF(AS52=FALSE,"",AS52) ->  | AW53: P76 | AY53: =IF(BU48=BU50,IF(BQ48="Bye",BQ50,IF(BQ50="Bye",BQ48)),(IF(ISBLANK(BR48),"",IF(BU48>BU50,BQ50,BQ48)))) -> FALSE | BD53: P60 | BF53: =IF(BO53=BO54,IF(BK53="Bye",BK54,IF(BK54="Bye",BK53)),(IF(ISBLANK(BL53),"",IF(BO53>BO54,BK54,BK53)))) -> FALSE | BI53: 47 | BK53: 0 | BO53: =IF(ISBLANK(BL53),"",SUM(IF(BL53>BL54,1,0)+(IF(BM53>BM54,1,0)+(IF(BN53>BN54,1,0))))) ->  | BP53: P24 | BQ53: =IF(BO53=BO54,IF(BK53="Bye",BK54,IF(BK54="Bye",BK53)),(IF(ISBLANK(BL53),"",IF(BO53>BO54,BK53,BK54)))) -> FALSE | BS53: (V11) | BW53: =IF(BW52=FALSE,"",BW52) ->  | CA53: =IF(ISBLANK(BX53),"",SUM(IF(BX53>BX49,1,0)+(IF(BY53>BY49,1,0)+(IF(BZ53>BZ49,1,0))))) ->  | EE53: 42º | EH53: =IF(AU44=AU46,"",IF(AU44>AU46,AY46,AY44)) ->  | EI53: 1 | EL53: 42 | EW53: 74
F54: =IF(H47=H63,IF(L47="Bye",L63,IF(L71="Bye",L47)),(IF(ISBLANK(I47),"",IF(H47>H63,L47,L63)))) -> FALSE | H54: Vencedor | O54: Vencedor | AU54: =IF(ISBLANK(AV52),"",SUM(IF(AV54>AV52,1,0)+(IF(AW54>AW52,1,0)+(IF(AX54>AX52,1,0))))) ->  | AY54: =IF(AY53=FALSE,"",AY53) ->  | AZ54: (V12) | BB54: =IF(ISBLANK(BC52),"",SUM(IF(BC54>BC52,1,0)+(IF(BD54>BD52,1,0)+(IF(BE54>BE52,1,0))))) ->  | BF54: =IF(BF53=FALSE,"",BF53) ->  | BI54: 48 | BK54: 0 | BO54: =IF(ISBLANK(BL53),"",SUM(IF(BL54>BL53,1,0)+(IF(BM54>BM53,1,0)+(IF(BN54>BN53,1,0))))) ->  | BQ54: =IF(BQ53=FALSE,"",BQ53) ->  | BU54: =IF(ISBLANK(BR52),"",SUM(IF(BR54>BR52,1,0)+(IF(BS54>BS52,1,0)+(IF(BT54>BT52,1,0))))) ->  | EE54: 43º | EH54: =IF(AU48=AU50,"",IF(AU48>AU50,AY50,AY48)) ->  | EI54: 1 | EL54: 43 | EW54: 75
B55: =IF(ISBLANK(C55),"",SUM(IF(C55>C23,1,0)+(IF(D55>D23,1,0)+(IF(E55>E23,1,0))))) ->  | F55: =IF(F54=FALSE,"",F54) ->  | L55: P125 | S55: P120 | AY55: =IF(BB56=BB58,IF(BF56="Bye",BF58,IF(BF58="Bye",BF56)),(IF(ISBLANK(BC56),"",IF(BB56>BB58,BF56,BF58)))) -> FALSE | BF55: =IF(BO55=BO56,IF(BK55="Bye",BK56,IF(BK56="Bye",BK55)),(IF(ISBLANK(BL55),"",IF(BO55>BO56,BK56,BK55)))) -> FALSE | BI55: 49 | BK55: 0 | BO55: =IF(ISBLANK(BL55),"",SUM(IF(BL55>BL56,1,0)+(IF(BM55>BM56,1,0)+(IF(BN55>BN56,1,0))))) ->  | BP55: P25 | BQ55: =IF(BO55=BO56,IF(BK55="Bye",BK56,IF(BK56="Bye",BK55)),(IF(ISBLANK(BL55),"",IF(BO55>BO56,BK55,BK56)))) -> FALSE | BU55: P45 | CI55: (V29) | CO55: =IF(CM47=CM63,"",IF(CM47>CM63,CI47,CI63)) ->  | CS55: =IF(ISBLANK(CP55),"",SUM(IF(CP55>CP23,1,0)+(IF(CQ55>CQ23,1,0)+(IF(CR55>CR23,1,0))))) ->  | EE55: 44º | EH55: =IF(AU52=AU54,"",IF(AU52>AU54,AY54,AY52)) ->  | EI55: 1 | EL55: 44 | EW55: 76
F56: Vencedor do jogo V30 -V31 | AL56: =IF(AO57=AO61,IF(AS57="Bye",AS61,IF(AS61="Bye",AS57)),(IF(ISBLANK(AP57),"",IF(AO57>AO61,AS57,AS61)))) -> FALSE | AS56: =IF(AU56=AU58,IF(AY56="Bye",AY58,IF(AY58="Bye",AY56)),(IF(ISBLANK(AV56),"",IF(AU56>AU58,AY56,AY58)))) -> FALSE | AU56: =IF(ISBLANK(AV56),"",SUM(IF(AV56>AV58,1,0)+(IF(AW56>AW58,1,0)+(IF(AX56>AX58,1,0))))) ->  | AY56: =IF(AY55=FALSE,"",AY55) ->  | BB56: =IF(ISBLANK(BC56),"",SUM(IF(BC56>BC58,1,0)+(IF(BD56>BD58,1,0)+(IF(BE56>BE58,1,0))))) ->  | BF56: =IF(BF55=FALSE,"",BF55) ->  | BI56: 50 | BK56: 0 | BO56: =IF(ISBLANK(BL55),"",SUM(IF(BL56>BL55,1,0)+(IF(BM56>BM55,1,0)+(IF(BN56>BN55,1,0))))) ->  | BQ56: =IF(BQ55=FALSE,"",BQ55) ->  | BU56: =IF(ISBLANK(BR56),"",SUM(IF(BR56>BR58,1,0)+(IF(BS56>BS58,1,0)+(IF(BT56>BT58,1,0))))) ->  | BW56: =IF(BU56=BU58,IF(BQ56="Bye",BQ58,IF(BQ58="Bye",BQ56)),(IF(ISBLANK(BR56),"",IF(BU56>BU58,BQ56,BQ58)))) -> FALSE | CA56: P87 | CO56: (V31) | EE56: 45º | EH56: =IF(AU56=AU58,"",IF(AU56>AU58,AY58,AY56)) ->  | EI56: 1 | EL56: 45 | EW56: 77
AH57: =IF(ISBLANK(AI57),"",SUM(IF(AI57>AI61,1,0)+(IF(AJ57>AJ61,1,0)+(IF(AK57>AK61,1,0))))) ->  | AL57: =IF(AL56=FALSE,"",AL56) ->  | AO57: =IF(ISBLANK(AP57),"",SUM(IF(AP57>AP61,1,0)+(IF(AQ57>AQ61,1,0)+(IF(AR57>AR61,1,0))))) ->  | AS57: =IF(AS56=FALSE,"",AS56) ->  | AW57: P77 | AY57: =IF(BU60=BU62,IF(BQ60="Bye",BQ64,IF(BQ64="Bye",BQ60)),(IF(ISBLANK(BR60),"",IF(BU60>BU64,BQ64,BQ60)))) -> FALSE | BD57: P61 | BF57: =IF(BO57=BO58,IF(BK57="Bye",BK58,IF(BK58="Bye",BK57)),(IF(ISBLANK(BL57),"",IF(BO57>BO58,BK58,BK57)))) -> FALSE | BI57: 51 | BK57: 0 | BO57: =IF(ISBLANK(BL57),"",SUM(IF(BL57>BL58,1,0)+(IF(BM57>BM58,1,0)+(IF(BN57>BN58,1,0))))) ->  | BP57: P26 | BQ57: =IF(BO57=BO58,IF(BK57="Bye",BK58,IF(BK58="Bye",BK57)),(IF(ISBLANK(BL57),"",IF(BO57>BO58,BK57,BK58)))) -> FALSE | BS57: (V14) | BW57: =IF(BW56=FALSE,"",BW56) ->  | CA57: =IF(ISBLANK(BX57),"",SUM(IF(BX57>BX61,1,0)+(IF(BY57>BY61,1,0)+(IF(BZ57>BZ61,1,0))))) ->  | EE57: 46º | EH57: =IF(AU60=AU62,"",IF(AU60>AU62,AY62,AY60)) ->  | EI57: 1 | EL57: 46 | EW57: 78
Y58: =IF(AB59=AB67,IF(AF59="Bye",AF67,IF(AF67="Bye",AF59)),(IF(ISBLANK(AC59),"",IF(AB59>AB67,AF59,AF67)))) -> FALSE | AF58: =IF(AH57=AH61,IF(AL57="Bye",AL61,IF(AL61="Bye",AL57)),(IF(ISBLANK(AI57),"",IF(AH57>AH61,AL57,AL61)))) -> FALSE | AU58: =IF(ISBLANK(AV56),"",SUM(IF(AV58>AV56,1,0)+(IF(AW58>AW56,1,0)+(IF(AX58>AX56,1,0))))) ->  | AY58: =IF(AY57=FALSE,"",AY57) ->  | AZ58: (V13) | BB58: =IF(ISBLANK(BC56),"",SUM(IF(BC58>BC56,1,0)+(IF(BD58>BD56,1,0)+(IF(BE58>BE56,1,0))))) ->  | BF58: =IF(BF57=FALSE,"",BF57) ->  | BI58: 52 | BK58: 0 | BO58: =IF(ISBLANK(BL57),"",SUM(IF(BL58>BL57,1,0)+(IF(BM58>BM57,1,0)+(IF(BN58>BN57,1,0))))) ->  | BQ58: =IF(BQ57=FALSE,"",BQ57) ->  | BU58: =IF(ISBLANK(BR56),"",SUM(IF(BR58>BR56,1,0)+(IF(BS58>BS56,1,0)+(IF(BT58>BT56,1,0))))) ->  | CC58: =IF(CA57=CA61,IF(BW57="Bye",BW61,IF(BW61="Bye",BW61)),(IF(ISBLANK(BX57),"",IF(CA57>CA61,BW57,BW61)))) -> FALSE | CG58: P100 | EE58: 47º | EH58: =IF(AU64=AU66,"",IF(AU64>AU66,AY66,AY64)) ->  | EI58: 1 | EL58: 47 | EW58: 79
U59: =IF(ISBLANK(V59),"",SUM(IF(V59>V67,1,0)+(IF(W59>W67,1,0)+(IF(X59>X67,1,0))))) ->  | Y59: =IF(Y58=FALSE,"",Y58) ->  | AB59: =IF(ISBLANK(AC59),"",SUM(IF(AC59>AC67,1,0)+(IF(AD59>AD67,1,0)+(IF(AE59>AE67,1,0))))) ->  | AF59: =IF(AF58=FALSE,"",AF58) ->  | AH59: P107 | AO59: P95 | AY59: =IF(BB60=BB62,IF(BF60="Bye",BF62,IF(BF62="Bye",BF60)),(IF(ISBLANK(BC60),"",IF(BB60>BB62,BF60,BF62)))) -> FALSE | BF59: =IF(BO59=BO60,IF(BK59="Bye",BK60,IF(BK60="Bye",BK59)),(IF(ISBLANK(BL59),"",IF(BO59>BO60,BK60,BK59)))) -> FALSE | BI59: 53 | BK59: 0 | BO59: =IF(ISBLANK(BL59),"",SUM(IF(BL59>BL60,1,0)+(IF(BM59>BM60,1,0)+(IF(BN59>BN60,1,0))))) ->  | BP59: P27 | BQ59: =IF(BO59=BO60,IF(BK59="Bye",BK60,IF(BK60="Bye",BK59)),(IF(ISBLANK(BL59),"",IF(BO59>BO60,BK59,BK60)))) -> FALSE | BU59: P46 | BW59: (V24) | CC59: =IF(CC58=FALSE,"",CC58) ->  | CG59: =IF(ISBLANK(CD59),"",SUM(IF(CD59>CD67,1,0)+(IF(CE59>CE67,1,0)+(IF(CF59>CF67,1,0))))) ->  | EE59: 48º | EH59: =IF(AU68=AU70,"",IF(AU68>AU70,AY70,AY68)) ->  | EI59: 1 | EL59: 48 | EW59: 80
AL60: =IF(CA65=CA69,IF(BW65="Bye",BW69,IF(BW69="Bye",BW69)),(IF(ISBLANK(BX65),"",IF(CA65>CA69,BW69,BW65)))) -> FALSE | AS60: =IF(AU60=AU62,IF(AY60="Bye",AY62,IF(AY62="Bye",AY60)),(IF(ISBLANK(AV60),"",IF(AU60>AU62,AY60,AY62)))) -> FALSE | AU60: =IF(ISBLANK(AV60),"",SUM(IF(AV60>AV62,1,0)+(IF(AW60>AW62,1,0)+(IF(AX60>AX62,1,0))))) ->  | AY60: =IF(AY59=FALSE,"",AY59) ->  | BB60: =IF(ISBLANK(BC60),"",SUM(IF(BC60>BC62,1,0)+(IF(BD60>BD62,1,0)+(IF(BE60>BE62,1,0))))) ->  | BF60: =IF(BF59=FALSE,"",BF59) ->  | BI60: 54 | BK60: 0 | BO60: =IF(ISBLANK(BL59),"",SUM(IF(BL60>BL59,1,0)+(IF(BM60>BM59,1,0)+(IF(BN60>BN59,1,0))))) ->  | BQ60: =IF(BQ59=FALSE,"",BQ59) ->  | BU60: =IF(ISBLANK(BR60),"",SUM(IF(BR60>BR62,1,0)+(IF(BS60>BS62,1,0)+(IF(BT60>BT62,1,0))))) ->  | BW60: =IF(BU60=BU62,IF(BQ60="Bye",BQ62,IF(BQ62="Bye",BQ60)),(IF(ISBLANK(BR60),"",IF(BU60>BU62,BQ60,BQ62)))) -> FALSE | EE60: 49º | EH60: =IF(BB8=BB10,"",IF(BB8>BB10,BF10,BF8)) ->  | EI60: 1 | EL60: 49 | EW60: 49
AH61: =IF(ISBLANK(AI57),"",SUM(IF(AI61>AI57,1,0)+(IF(AJ61>AJ57,1,0)+(IF(AK61>AK57,1,0))))) ->  | AL61: =IF(AL60=FALSE,"",AL60) ->  | AM61: (V23) | AO61: =IF(ISBLANK(AP61),"",SUM(IF(AP61>AP57,1,0)+(IF(AQ61>AQ57,1,0)+(IF(AR61>AR57,1,0))))) ->  | AS61: =IF(AS60=FALSE,"",AS60) ->  | AW61: P78 | AY61: =IF(BU56=BU58,IF(BQ56="Bye",BQ58,IF(BQ58="Bye",BQ56)),(IF(ISBLANK(BR56),"",IF(BU56>BU58,BQ58,BQ56)))) -> FALSE | BD61: P62 | BF61: =IF(BO61=BO62,IF(BK61="Bye",BK62,IF(BK62="Bye",BK61)),(IF(ISBLANK(BL61),"",IF(BO61>BO62,BK62,BK61)))) -> FALSE | BI61: 55 | BK61: 0 | BO61: =IF(ISBLANK(BL61),"",SUM(IF(BL61>BL62,1,0)+(IF(BM61>BM62,1,0)+(IF(BN61>BN62,1,0))))) ->  | BP61: P28 | BQ61: =IF(BO61=BO62,IF(BK61="Bye",BK62,IF(BK62="Bye",BK61)),(IF(ISBLANK(BL61),"",IF(BO61>BO62,BK61,BK62)))) -> FALSE | BS61: (V13) | BW61: =IF(BW60=FALSE,"",BW60) ->  | CA61: =IF(ISBLANK(BX61),"",SUM(IF(BX61>BX57,1,0)+(IF(BY61>BY57,1,0)+(IF(BZ61>BZ57,1,0))))) ->  | EE61: 50º | EH61: =IF(BB12=BB14,"",IF(BB12>BB14,BF14,BF12)) ->  | EI61: 1 | EL61: 50 | EW61: 50
L62: =IF(CM15=CM31,IF(CI15="Bye",CI31,IF(CI31="Bye",CI31)),(IF(ISBLANK(CJ15),"",IF(CM15>CM31,CI31,CI15)))) -> FALSE | S62: =IF(U59=U67,IF(Y59="Bye",Y67,IF(Y67="Bye",Y59)),(IF(ISBLANK(V59),"",IF(U59>U67,Y59,Y67)))) -> FALSE | U62: Vencedor | AB62: Vencedor | AU62: =IF(ISBLANK(AV60),"",SUM(IF(AV62>AV60,1,0)+(IF(AW62>AW60,1,0)+(IF(AX62>AX60,1,0))))) ->  | AY62: =IF(AY61=FALSE,"",AY61) ->  | AZ62: (V14) | BB62: =IF(ISBLANK(BC60),"",SUM(IF(BC62>BC60,1,0)+(IF(BD62>BD60,1,0)+(IF(BE62>BE60,1,0))))) ->  | BF62: =IF(BF61=FALSE,"",BF61) ->  | BI62: 56 | BK62: 0 | BO62: =IF(ISBLANK(BL61),"",SUM(IF(BL62>BL61,1,0)+(IF(BM62>BM61,1,0)+(IF(BN62>BN61,1,0))))) ->  | BQ62: =IF(BQ61=FALSE,"",BQ61) ->  | BU62: =IF(ISBLANK(BR60),"",SUM(IF(BR62>BR60,1,0)+(IF(BS62>BS60,1,0)+(IF(BT62>BT60,1,0))))) ->  | CI62: =IF(CG59=CG67,IF(CC59="Bye",CC67,IF(CC67="Bye",CC67)),(IF(ISBLANK(CD59),"",IF(CG59>CG67,CC59,CC67)))) -> FALSE | EE62: 51º | EH62: =IF(BB16=BB18,"",IF(BB16>BB18,BF18,BF16)) ->  | EI62: 1 | EL62: 51 | EW62: 51
H63: =IF(ISBLANK(I63),"",SUM(IF(I63>I47,1,0)+(IF(J63>J47,1,0)+(IF(K63>K47,1,0))))) ->  | L63: =IF(L62=FALSE,"",L62) ->  | M63: (V30) | O63: =IF(ISBLANK(P63),"",SUM(IF(P63>P47,1,0)+(IF(Q63>Q47,1,0)+(IF(R63>R47,1,0))))) ->  | S63: =IF(S62=FALSE,"",S62) ->  | Y63: P118 | AF63: P112 | AY63: =IF(BB64=BB66,IF(BF64="Bye",BF66,IF(BF66="Bye",BF64)),(IF(ISBLANK(BC64),"",IF(BB64>BB66,BF64,BF66)))) -> FALSE | BF63: =IF(BO63=BO64,IF(BK63="Bye",BK64,IF(BK64="Bye",BK63)),(IF(ISBLANK(BL63),"",IF(BO63>BO64,BK64,BK63)))) -> FALSE | BI63: 57 | BK63: 0 | BO63: =IF(ISBLANK(BL63),"",SUM(IF(BL63>BL64,1,0)+(IF(BM63>BM64,1,0)+(IF(BN63>BN64,1,0))))) ->  | BP63: P29 | BQ63: =IF(BO63=BO64,IF(BK63="Bye",BK64,IF(BK64="Bye",BK63)),(IF(ISBLANK(BL63),"",IF(BO63>BO64,BK63,BK64)))) -> FALSE | BU63: P47 | CC63: (V27) | CI63: =IF(CI62=FALSE,"",CI62) ->  | CM63: =IF(ISBLANK(CJ63),"",SUM(IF(CJ63>CJ47,1,0)+(IF(CK63>CK47,1,0)+(IF(CL63>CL47,1,0))))) ->  | EE63: 52º | EH63: =IF(BB20=BB22,"",IF(BB20>BB22,BF22,BF20)) ->  | EI63: 1 | EL63: 52 | EW63: 52
AL64: =IF(AO65=AO69,IF(AS65="Bye",AS69,IF(AS69="Bye",AS65)),(IF(ISBLANK(AP65),"",IF(AO65>AO69,AS65,AS69)))) -> FALSE | AS64: =IF(AU64=AU66,IF(AY64="Bye",AY66,IF(AY66="Bye",AY64)),(IF(ISBLANK(AV64),"",IF(AU64>AU66,AY64,AY66)))) -> FALSE | AU64: =IF(ISBLANK(AV64),"",SUM(IF(AV64>AV66,1,0)+(IF(AW64>AW66,1,0)+(IF(AX64>AX66,1,0))))) ->  | AY64: =IF(AY63=FALSE,"",AY63) ->  | BB64: =IF(ISBLANK(BC64),"",SUM(IF(BC64>BC66,1,0)+(IF(BD64>BD66,1,0)+(IF(BE64>BE66,1,0))))) ->  | BF64: =IF(BF63=FALSE,"",BF63) ->  | BI64: 58 | BK64: 0 | BO64: =IF(ISBLANK(BL63),"",SUM(IF(BL64>BL63,1,0)+(IF(BM64>BM63,1,0)+(IF(BN64>BN63,1,0))))) ->  | BQ64: =IF(BQ63=FALSE,"",BQ63) ->  | BU64: =IF(ISBLANK(BR64),"",SUM(IF(BR64>BR66,1,0)+(IF(BS64>BS66,1,0)+(IF(BT64>BT66,1,0))))) ->  | BW64: =IF(BU64=BU66,IF(BQ64="Bye",BQ66,IF(BQ66="Bye",BQ64)),(IF(ISBLANK(BR64),"",IF(BU64>BU66,BQ64,BQ66)))) -> FALSE | CA64: P88 | EE64: 53º | EH64: =IF(BB24=BB26,"",IF(BB24>BB26,BF26,BF24)) ->  | EI64: 1 | EL64: 53 | EW64: 53
AH65: =IF(ISBLANK(AI65),"",SUM(IF(AI65>AI69,1,0)+(IF(AJ65>AJ69,1,0)+(IF(AK65>AK69,1,0))))) ->  | AL65: =IF(AL64=FALSE,"",AL64) ->  | AO65: =IF(ISBLANK(AP65),"",SUM(IF(AP65>AP69,1,0)+(IF(AQ65>AQ69,1,0)+(IF(AR65>AR69,1,0))))) ->  | AS65: =IF(AS64=FALSE,"",AS64) ->  | AW65: P79 | AY65: =IF(BU68=BU70,IF(BQ68="Bye",BQ70,IF(BQ70="Bye",BQ68)),(IF(ISBLANK(BR68),"",IF(BU68>BU70,BQ70,BQ68)))) -> FALSE | BD65: P63 | BF65: =IF(BO65=BO66,IF(BK65="Bye",BK66,IF(BK66="Bye",BK65)),(IF(ISBLANK(BL65),"",IF(BO65>BO66,BK66,BK65)))) -> FALSE | BI65: 59 | BK65: =EN70 -> 0 | BO65: =IF(ISBLANK(BL65),"",SUM(IF(BL65>BL66,1,0)+(IF(BM65>BM66,1,0)+(IF(BN65>BN66,1,0))))) ->  | BP65: P30 | BQ65: =IF(BO65=BO66,IF(BK65="Bye",BK66,IF(BK66="Bye",BK65)),(IF(ISBLANK(BL65),"",IF(BO65>BO66,BK65,BK66)))) -> FALSE | BS65: (V16) | BW65: =IF(BW64=FALSE,"",BW64) ->  | CA65: =IF(ISBLANK(BX65),"",SUM(IF(BX65>BX69,1,0)+(IF(BY65>BY69,1,0)+(IF(BZ65>BZ69,1,0))))) ->  | EE65: 54º | EH65: =IF(BB28=BB30,"",IF(BB28>BB30,BF30,BF28)) ->  | EI65: 1 | EL65: 54 | EW65: 54
Y66: =IF(CG43=CG51,IF(CC43="Bye",CC51,IF(CC51="Bye",CC51)),(IF(ISBLANK(CD43),"",IF(CG43>CG51,CC51,CC43)))) -> FALSE | AF66: =IF(AH65=AH69,IF(AL65="Bye",AL69,IF(AL69="Bye",AL65)),(IF(ISBLANK(AI65),"",IF(AH65>AH69,AL65,AL69)))) -> FALSE | AU66: =IF(ISBLANK(AV64),"",SUM(IF(AV66>AV64,1,0)+(IF(AW66>AW64,1,0)+(IF(AX66>AX64,1,0))))) ->  | AY66: =IF(AY65=FALSE,"",AY65) ->  | AZ66: (V15) | BB66: =IF(ISBLANK(BC64),"",SUM(IF(BC66>BC64,1,0)+(IF(BD66>BD64,1,0)+(IF(BE66>BE64,1,0))))) ->  | BF66: =IF(BF65=FALSE,"",BF65) ->  | BI66: 60 | BK66: 0 | BO66: =IF(ISBLANK(BL65),"",SUM(IF(BL66>BL65,1,0)+(IF(BM66>BM65,1,0)+(IF(BN66>BN65,1,0))))) ->  | BQ66: =IF(BQ65=FALSE,"",BQ65) ->  | BU66: =IF(ISBLANK(BR64),"",SUM(IF(BR66>BR64,1,0)+(IF(BS66>BS64,1,0)+(IF(BT66>BT64,1,0))))) ->  | CC66: =IF(CA65=CA69,IF(BW65="Bye",BW69,IF(BW69="Bye",BW69)),(IF(ISBLANK(BX65),"",IF(CA65>CA69,BW65,BW69)))) -> FALSE | EE66: 55º | EH66: =IF(BB32=BB34,"",IF(BB32>BB34,BF34,BF32)) ->  | EI66: 1 | EL66: 55 | EW66: 55
U67: =IF(ISBLANK(V67),"",SUM(IF(V67>V59,1,0)+(IF(W67>W59,1,0)+(IF(X67>X59,1,0))))) ->  | Y67: =IF(Y66=FALSE,"",Y66) ->  | Z67: (V28) | AB67: =IF(ISBLANK(AC67),"",SUM(IF(AC67>AC59,1,0)+(IF(AD67>AD59,1,0)+(IF(AE67>AE59,1,0))))) ->  | AF67: =IF(AF66=FALSE,"",AF66) ->  | AH67: P108 | AO67: P96 | AY67: =IF(BB68=BB70,IF(BF68="Bye",BF70,IF(BF70="Bye",BF68)),(IF(ISBLANK(BC68),"",IF(BB68>BB70,BF68,BF70)))) -> FALSE | BF67: =IF(BO67=BO68,IF(BK67="Bye",BK68,IF(BK68="Bye",BK67)),(IF(ISBLANK(BL67),"",IF(BO67>BO68,BK68,BK67)))) -> FALSE | BI67: 61 | BK67: 0 | BO67: =IF(ISBLANK(BL67),"",SUM(IF(BL67>BL68,1,0)+(IF(BM67>BM68,1,0)+(IF(BN67>BN68,1,0))))) ->  | BP67: P31 | BQ67: =IF(BO67=BO68,IF(BK67="Bye",BK68,IF(BK68="Bye",BK67)),(IF(ISBLANK(BL67),"",IF(BO67>BO68,BK67,BK68)))) -> FALSE | BU67: P48 | BW67: (V23) | CC67: =IF(CC66=FALSE,"",CC66) ->  | CG67: =IF(ISBLANK(CD67),"",SUM(IF(CD67>CD59,1,0)+(IF(CE67>CE59,1,0)+(IF(CF67>CF59,1,0))))) ->  | EE67: 56º | EH67: =IF(BB36=BB38,"",IF(BB36>BB38,BF38,BF36)) ->  | EI67: 1 | EL67: 56 | EW67: 56
AL68: =IF(CA57=CA61,IF(BW57="Bye",BW61,IF(BW61="Bye",BW61)),(IF(ISBLANK(BX57),"",IF(CA57>CA61,BW61,BW57)))) -> FALSE | AS68: =IF(AU68=AU70,IF(AY68="Bye",AY70,IF(AY70="Bye",AY68)),(IF(ISBLANK(AV68),"",IF(AU68>AU70,AY68,AY70)))) -> FALSE | AU68: =IF(ISBLANK(AV68),"",SUM(IF(AV68>AV70,1,0)+(IF(AW68>AW70,1,0)+(IF(AX68>AX70,1,0))))) ->  | AY68: =IF(AY67=FALSE,"",AY67) ->  | BB68: =IF(ISBLANK(BC68),"",SUM(IF(BC68>BC70,1,0)+(IF(BD68>BD70,1,0)+(IF(BE68>BE70,1,0))))) ->  | BF68: =IF(BF67=FALSE,"",BF67) ->  | BI68: 62 | BK68: 0 | BO68: =IF(ISBLANK(BL67),"",SUM(IF(BL68>BL67,1,0)+(IF(BM68>BM67,1,0)+(IF(BN68>BN67,1,0))))) ->  | BQ68: =IF(BQ67=FALSE,"",BQ67) ->  | BU68: =IF(ISBLANK(BR68),"",SUM(IF(BR68>BR70,1,0)+(IF(BS68>BS70,1,0)+(IF(BT68>BT70,1,0))))) ->  | BW68: =IF(BU68=BU70,IF(BQ68="Bye",BQ70,IF(BQ70="Bye",BQ68)),(IF(ISBLANK(BR68),"",IF(BU68>BU70,BQ68,BQ70)))) -> FALSE | EE68: 57º | EH68: =IF(BB40=BB42,"",IF(BB40>BB42,BF42,BF40)) ->  | EI68: 1 | EL68: 57 | EW68: 57
AH69: =IF(ISBLANK(AI65),"",SUM(IF(AI69>AI65,1,0)+(IF(AJ69>AJ65,1,0)+(IF(AK69>AK65,1,0))))) ->  | AL69: =IF(AL68=FALSE,"",AL68) ->  | AM69: (V24) | AO69: =IF(ISBLANK(AP69),"",SUM(IF(AP69>AP65,1,0)+(IF(AQ69>AQ65,1,0)+(IF(AR69>AR65,1,0))))) ->  | AS69: =IF(AS68=FALSE,"",AS68) ->  | AW69: P80 | AY69: =IF(BU64=BU66,IF(BQ64="Bye",BQ66,IF(BQ66="Bye",BQ64)),(IF(ISBLANK(BR64),"",IF(BU64>BU66,BQ66,BQ64)))) -> FALSE | BD69: P64 | BF69: =IF(BO69=BO70,IF(BK69="Bye",BK70,IF(BK70="Bye",BK69)),(IF(ISBLANK(BL69),"",IF(BO69>BO70,BK70,BK69)))) -> FALSE | BI69: 63 | BK69: 0 | BO69: =IF(ISBLANK(BL69),"",SUM(IF(BL69>BL70,1,0)+(IF(BM69>BM70,1,0)+(IF(BN69>BN70,1,0))))) ->  | BP69: P32 | BQ69: =IF(BO69=BO70,IF(BK69="Bye",BK70,IF(BK70="Bye",BK69)),(IF(ISBLANK(BL69),"",IF(BO69>BO70,BK69,BK70)))) -> FALSE | BS69: (V15) | BW69: =IF(BW68=FALSE,"",BW68) ->  | CA69: =IF(ISBLANK(BX69),"",SUM(IF(BX69>BX65,1,0)+(IF(BY69>BY65,1,0)+(IF(BZ69>BZ65,1,0))))) ->  | EE69: 58º | EH69: =IF(BB44=BB46,"",IF(BB44>BB46,BF46,BF44)) ->  | EI69: 1 | EL69: 58 | EW69: 58
AU70: =IF(ISBLANK(AV68),"",SUM(IF(AV70>AV68,1,0)+(IF(AW70>AW68,1,0)+(IF(AX70>AX68,1,0))))) ->  | AY70: =IF(AY69=FALSE,"",AY69) ->  | AZ70: (V16) | BB70: =IF(ISBLANK(BC68),"",SUM(IF(BC70>BC68,1,0)+(IF(BD70>BD68,1,0)+(IF(BE70>BE68,1,0))))) ->  | BF70: =IF(BF69=FALSE,"",BF69) ->  | BI70: 64 | BK70: 0 | BO70: =IF(ISBLANK(BL69),"",SUM(IF(BL70>BL69,1,0)+(IF(BM70>BM69,1,0)+(IF(BN70>BN69,1,0))))) ->  | BQ70: =IF(BQ69=FALSE,"",BQ69) ->  | BU70: =IF(ISBLANK(BR68),"",SUM(IF(BR70>BR68,1,0)+(IF(BS70>BS68,1,0)+(IF(BT70>BT68,1,0))))) ->  | EE70: 59º | EH70: =IF(BB48=BB50,"",IF(BB48>BB50,BF50,BF48)) ->  | EI70: 1 | EL70: 59 | EW70: 59
EE71: 60º | EH71: =IF(BB52=BB54,"",IF(BB52>BB54,BF54,BF52)) ->  | EI71: 1 | EL71: 60 | EW71: 60
EE72: 61º | EH72: =IF(BB56=BB58,"",IF(BB56>BB58,BF58,BF56)) ->  | EI72: 1 | EL72: 61 | EW72: 61
EE73: 62º | EH73: =IF(BB60=BB62,"",IF(BB60>BB62,BF62,BF60)) ->  | EI73: 1 | EL73: 62 | EW73: 62
EE74: 63º | EH74: =IF(BB64=BB66,"",IF(BB64>BB66,BF66,BF64)) ->  | EI74: 1 | EL74: 63 | EW74: 63
EE75: 64º | EH75: =IF(BB68=BB70,"",IF(BB68>BB70,BF70,BF68)) ->  | EI75: 1 | EL75: 64 | EW75: 64
EW76: 65

Sheet quadro82derrota (hidden)
D2: Direcção Regional de Educação do Algarve
D3: ="Ano Lectivo "&Apoio!F11 -> Ano Lectivo
A6: PS-InfA | C6: =LOOKUP(A6,Apoio!N11:N41,Apoio!O11:O41) -> Pares Senhoras - Infantis A | J6: ='Ficha de Inscrição'!$A$5 -> Torneio Nº 4 | L6: ="Escola: "&'Ficha de Inscrição'!$D$4 -> Escola: ACav.Silva | S6: ='Ficha de Inscrição'!$J$4 -> 2018-01-17
B10: 1 | C10: =IF(C48="","",IF(C48="Bye","Bye",CONCATENATE(C48," ","(",K48,")"))) -> 0 (ttt) | G10: =IF(ISBLANK(D10),"",SUM(IF(D10>D11,1,0)+(IF(E10>E11,1,0)+(IF(F10>F11,1,0))))) ->  | J10: =IF(G10=G11,IF(C10="Bye",C11,IF(C11="Bye",C10)),(IF(ISBLANK(D10),"",IF(G10>G11,C10,C11)))) -> FALSE
B11: 2 | C11: =IF(C49="","",IF(C49="Bye","Bye",CONCATENATE(C49," ","(",K49,")"))) -> 0 () | G11: =IF(ISBLANK(D10),"",SUM(IF(D11>D10,1,0)+(IF(E11>E10,1,0)+(IF(F11>F10,1,0))))) ->  | H11: (a) | J11: =IF(J10=FALSE,"",J10) ->  | N11: =IF(ISBLANK(K11),"",SUM(IF(K11>K13,1,0)+(IF(L11>L13,1,0)+(IF(M11>M13,1,0))))) ->  | O11: 24
J12: =IF(G13=G14,IF(C13="Bye",C14,IF(C14="Bye",C13)),(IF(ISBLANK(D13),"",IF(G13>G14,C13,C14)))) -> FALSE
B13: 3 | C13: =IF(C50="","",IF(C50="Bye","Bye",CONCATENATE(C50," ","(",K50,")"))) -> 0 (Par) | G13: =IF(ISBLANK(D13),"",SUM(IF(D13>D14,1,0)+(IF(E13>E14,1,0)+(IF(F13>F14,1,0))))) ->  | H13: (b) | J13: =IF(J12=FALSE,"",J12) ->  | N13: =IF(ISBLANK(K11),"",SUM(IF(K13>K11,1,0)+(IF(L13>L11,1,0)+(IF(M13>M11,1,0))))) ->  | O13: (e)
B14: 4 | C14: =IF(C51="","",IF(C51="Bye","Bye",CONCATENATE(C51," ","(",K51,")"))) -> 0 (JC-Est) | G14: =IF(ISBLANK(D13),"",SUM(IF(D14>D13,1,0)+(IF(E14>E13,1,0)+(IF(F14>F13,1,0))))) ->  | H14: 5 | Q14: =IF(N11=N13,"",IF(N11>N13,J11,J13)) ->  | U14: =IF(ISBLANK(R14),"",SUM(IF(R14>R16,1,0)+(IF(S14>S16,1,0)+(IF(T14>T16,1,0))))) ->  | V14: 68
B16: 5 | C16: =IF(C52="","",IF(C52="Bye","Bye",CONCATENATE(C52," ","(",K52,")"))) -> 0 (Par) | G16: =IF(ISBLANK(D16),"",SUM(IF(D16>D17,1,0)+(IF(E16>E17,1,0)+(IF(F16>F17,1,0))))) ->  | H16: =H14+1 -> 6 | J16: =IF(G16=G17,IF(C16="Bye",C17,IF(C17="Bye",C16)),(IF(ISBLANK(D16),"",IF(G16>G17,C16,C17)))) -> FALSE | Q16: =IF(N17=N19,"",IF(N17>N19,J17,J19)) ->  | U16: =IF(ISBLANK(R14),"",SUM(IF(R16>R14,1,0)+(IF(S16>S14,1,0)+(IF(T16>T14,1,0))))) ->  | V16: (g)
B17: 6 | C17: =IF(C53="","",IF(C53="Bye","Bye",CONCATENATE(C53," ","(",K53,")"))) -> 0 (JC-Est) | G17: =IF(ISBLANK(D16),"",SUM(IF(D17>D16,1,0)+(IF(E17>E16,1,0)+(IF(F17>F16,1,0))))) ->  | H17: (c) | J17: =IF(J16=FALSE,"",J16) ->  | N17: =IF(ISBLANK(K17),"",SUM(IF(K17>K19,1,0)+(IF(L17>L19,1,0)+(IF(M17>M19,1,0))))) ->  | O17: (f)
J18: =IF(G19=G20,IF(C19="Bye",C20,IF(C20="Bye",C19)),(IF(ISBLANK(D19),"",IF(G19>G20,C19,C20)))) -> FALSE
B19: 7 | C19: =IF(C54="","",IF(C54="Bye","Bye",CONCATENATE(C54," ","(",K54,")"))) -> 0 (JC-Est) | G19: =IF(ISBLANK(D19),"",SUM(IF(D19>D20,1,0)+(IF(E19>E20,1,0)+(IF(F19>F20,1,0))))) ->  | H19: (d) | J19: =IF(J18=FALSE,"",J18) ->  | N19: =IF(ISBLANK(K17),"",SUM(IF(K19>K17,1,0)+(IF(L19>L17,1,0)+(IF(M19>M17,1,0))))) ->  | O19: 25
B20: 8 | C20: =IF(C55="","",IF(C55="Bye","Bye",CONCATENATE(C55," ","(",K55,")"))) -> 0 (JC-Est) | G20: =IF(ISBLANK(D19),"",SUM(IF(D20>D19,1,0)+(IF(E20>E19,1,0)+(IF(F20>F19,1,0))))) ->  | H20: =H16+1 -> 7
Q22: Final
Q23: =IF(U14=U16,"",IF(U14>U16,Q14,Q16)) ->  | U23: =IF(ISBLANK(R23),"",SUM(IF(R23>R24,1,0)+(IF(S23>S24,1,0)+(IF(T23>T24,1,0))))) ->  | V23: 104
J24: 3º Classificado | K24: =IF(U20=#REF!,"",IF(U20<#REF!,Q20,#REF!)) ->  | Q24: =IF(N25=N26,"",IF(N25>N26,J25,J26)) ->  | U24: =IF(ISBLANK(R23),"",SUM(IF(R24>R23,1,0)+(IF(S24>S23,1,0)+(IF(T24>T23,1,0))))) -> 
J25: =IF(U14=U16,"Derrotado em (g)",IF(U14>U16,Q16,Q14)) -> Derrotado em (g) | N25: =IF(ISBLANK(K25),"",SUM(IF(K25>K26,1,0)+(IF(L25>L26,1,0)+(IF(M25>M26,1,0))))) -> 
J26: =IF(U36=U37,"",IF(U36>U37,Q36,Q37)) ->  | N26: =IF(ISBLANK(K25),"",SUM(IF(K26>K25,1,0)+(IF(L26>L25,1,0)+(IF(M26>M25,1,0))))) ->  | O26: 82 | Q26: Finalissima
Q27: =IF(U23=U24,"",IF(U23>U24,"",Q23)) ->  | U27: =IF(ISBLANK(R27),"",SUM(IF(R27>R28,1,0)+(IF(S27>S28,1,0)+(IF(T27>T28,1,0))))) -> 
Q28: =IF(U23=U24,"",IF(U23>U24,"",Q24)) ->  | U28: =IF(ISBLANK(R27),"",SUM(IF(R28>R27,1,0)+(IF(S28>S27,1,0)+(IF(T28>T27,1,0))))) ->  | V28: 121
Q29: Campeão
Q30: =IF(U23=U24,"",IF(U23>U24,Q23,IF(U27=U28,"",IF(U27<U28,Q28,Q27)))) -> 
B32: Quadro dos Vencidos | C32: =IF(H33=FALSE,"Derrotado em (a)",H33) -> Derrotado em (a) | G32: =IF(ISBLANK(D32),"",SUM(IF(D32>D33,1,0)+(IF(E32>E33,1,0)+(IF(F32>F33,1,0))))) ->  | J32: =IF(G32=G33,IF(C32="Bye",C33,IF(C33="Bye",C32)),(IF(ISBLANK(D32),"",IF(G32>G33,C32,C33)))) -> FALSE
C33: =IF(C34=FALSE,"Derrotado em (b)",C34) -> Derrotado em (b) | G33: =IF(ISBLANK(D32),"",SUM(IF(D33>D32,1,0)+(IF(E33>E32,1,0)+(IF(F33>F32,1,0))))) ->  | H33: =IF(G10=G11,IF(C10="Bye",C10,IF(C11="Bye",C11)),(IF(ISBLANK(D10),"",IF(G10>G11,C11,C10)))) -> FALSE | J33: =IF(J32=FALSE,"",J32) ->  | N33: =IF(ISBLANK(K33),"",SUM(IF(K33>K34,1,0)+(IF(L33>L34,1,0)+(IF(M33>M34,1,0))))) ->  | O33: 52
C34: =IF(G13=G14,IF(C13="Bye",C13,IF(C14="Bye",C14)),(IF(ISBLANK(D13),"",IF(G13>G14,C14,C13)))) -> FALSE | J34: =IF(J35="","Derrotado em (f)",J35) -> Derrotado em (f) | N34: =IF(ISBLANK(K33),"",SUM(IF(K34>K33,1,0)+(IF(L34>L33,1,0)+(IF(M34>M33,1,0))))) -> 
J35: =IF(N17=N19,"",IF(N17<N19,J17,J19)) ->  | Q35: 4º Classificado
Q36: =IF(N33=N34,"",IF(N33>N34,J33,J34)) ->  | U36: =IF(ISBLANK(R36),"",SUM(IF(R36>R37,1,0)+(IF(S36>S37,1,0)+(IF(T36>T37,1,0))))) ->  | V36: 65
Q37: =IF(N39=N40,"",IF(N39>N40,J39,J40)) ->  | U37: =IF(ISBLANK(R36),"",SUM(IF(R37>R36,1,0)+(IF(S37>S36,1,0)+(IF(T37>T36,1,0))))) -> 
J38: =IF(N11=N13,"",IF(N11<N13,J11,J13)) -> 
C39: =IF(G16=G17,IF(C16="Bye",C16,IF(C17="Bye",C17)),(IF(ISBLANK(D16),"",IF(G16>G17,C17,C16)))) -> FALSE | J39: =IF(J38="","Derrotado em (e)",J38) -> Derrotado em (e) | N39: =IF(ISBLANK(K39),"",SUM(IF(K39>K40,1,0)+(IF(L39>L40,1,0)+(IF(M39>M40,1,0))))) -> 
C40: =IF(C39=FALSE,"Derrotado em (c)",C39) -> Derrotado em (c) | G40: =IF(ISBLANK(D40),"",SUM(IF(D40>D41,1,0)+(IF(E40>E41,1,0)+(IF(F40>F41,1,0))))) ->  | H40: =IF(G19=G20,IF(C19="Bye",C19,IF(C20="Bye",C20)),(IF(ISBLANK(D19),"",IF(G19>G20,C20,C19)))) -> FALSE | J40: =IF(J41=FALSE,"",J41) ->  | N40: =IF(ISBLANK(K39),"",SUM(IF(K40>K39,1,0)+(IF(L40>L39,1,0)+(IF(M40>M39,1,0))))) ->  | O40: 53
C41: =IF(H40=FALSE,"Derrotado em (d)",H40) -> Derrotado em (d) | G41: =IF(ISBLANK(D40),"",SUM(IF(D41>D40,1,0)+(IF(E41>E40,1,0)+(IF(F41>F40,1,0))))) ->  | H41: 41 | J41: =IF(G40=G41,IF(C40="Bye",C41,IF(C41="Bye",C40)),(IF(ISBLANK(D40),"",IF(G40>G41,C40,C41)))) -> FALSE
B46: Lista de Participantes | E46: =B6 -> 0 | O46: Classificação
B47: Nº | C47: Nome (1º e último) | D47: Escola | K47: Abv.* | O47: Cl.
A48: 7 | B48: 1 | C48: =IF(ISERROR(VLOOKUP(CELL("contents",$A48),$B$64:$C$79,2,FALSE)),"",VLOOKUP(CELL("contents",$A48),$B$64:$C$79,2,FALSE)) -> 0 | D48: =IF(ISERROR(VLOOKUP(CELL("contents",$A48),$B$64:$D$79,3,FALSE)),"",VLOOKUP(CELL("contents",$A48),$B$64:$D$79,3,FALSE)) -> Escola E.B. 2,3 de Algoz | K48: ttt | O48: 1º | Q48: =Q30 -> 
A49: 8 | B49: 2 | C49: 0 | D49: Escola E.B. 2,3 de Algoz | O49: 2º | Q49: =IF(Q48=Q23,Q24,Q23) -> 
A50: 2 | B50: 3 | C50: 0 | D50: Escola E.B. 2,3 de Algoz | K50: Par | O50: 3º | Q50: =IF(N25=N26,"",IF(N25>N26,J26,J25)) -> 
A51: 6 | B51: 4 | C51: 0 | D51: Escola E.B. 2,3 de Algoz | K51: JC-Est | O51: 4º | Q51: =IF(U36=U37,"",IF(U36>U37,Q37,Q36)) -> 
A52: 3 | B52: 5 | C52: 0 | D52: Escola E.B. 2,3 de Algoz | K52: Par | O52: 5º | Q52: =IF(N39=N40,"",IF(N39<N40,J39,J40)) -> 
A53: 1 | B53: 6 | C53: 0 | D53: Escola E.B. 2,3 de Algoz | K53: JC-Est | O53: 6º
A54: 5 | B54: 7 | C54: 0 | D54: Escola E.B. 2,3 de Algoz | K54: JC-Est | O54: 7ºs
A55: 4 | B55: 8 | C55: 0 | D55: Escola E.B. 2,3 de Algoz | K55: JC-Est | O55: 8ºs
C57: Bye : coloca-se bye quando não existe atleta.
B63: Nº | C63: Nome (1º e último) | D63: Escola | K63: Abv.*
B64: 1 | D64: Escola E.B. 2,3 de Algoz | K64: Alg
B65: 2 | D65: Escola E.B. 2,3 de Algoz | K65: Alg
B66: 3 | D66: Escola E.B. 2,3 de Algoz | K66: Alg
B67: 4 | D67: Escola E.B. 2,3 de Algoz | K67: Alg
B68: 5 | D68: Escola E.B. 2,3 de Algoz | K68: Alg
B69: 6 | D69: Escola E.B. 2,3 de Algoz | K69: Alg
B70: 7 | D70: Escola E.B. 2,3 de Algoz | K70: Alg
B71: 8 | D71: Escola E.B. 2,3 de Algoz | K71: Alg

Sheet quadro162derrota (hidden)
D2: Direcção Regional de Educação do Algarve
D3: ="Ano Lectivo "&Apoio!F11 -> Ano Lectivo
A6: PH-Juv | C6: =LOOKUP(A6,Apoio!N11:N41,Apoio!O11:O41) -> Pares Homens - Juvenis | J6: ='Ficha de Inscrição'!$A$5 -> Torneio Nº 4 | L6: ="Escola: "&'Ficha de Inscrição'!$D$4 -> Escola: ACav.Silva | S6: ='Ficha de Inscrição'!$J$4 -> 2018-01-17
B10: 1 | C10: =IF(C68="","",IF(C68="Bye","Bye",CONCATENATE(C68," ","(",K68,")"))) -> Bye | G10: =IF(ISBLANK(D10),"",SUM(IF(D10>D11,1,0)+(IF(E10>E11,1,0)+(IF(F10>F11,1,0))))) ->  | J10: =IF(G10=G11,IF(C10="Bye",C11,IF(C11="Bye",C10)),(IF(ISBLANK(D10),"",IF(G10>G11,C10,C11)))) -> Ana Ferreira ()
B11: 2 | C11: =IF(C69="","",IF(C69="Bye","Bye",CONCATENATE(C69," ","(",K69,")"))) -> Ana Ferreira () | G11: =IF(ISBLANK(D10),"",SUM(IF(D11>D10,1,0)+(IF(E11>E10,1,0)+(IF(F11>F10,1,0))))) ->  | H11: (a) | J11: =IF(J10=FALSE,"",J10) -> Ana Ferreira () | N11: =IF(ISBLANK(K11),"",SUM(IF(K11>K13,1,0)+(IF(L11>L13,1,0)+(IF(M11>M13,1,0))))) ->  | O11: 111
J12: =IF(G13=G14,IF(C13="Bye",C14,IF(C14="Bye",C13)),(IF(ISBLANK(D13),"",IF(G13>G14,C13,C14)))) -> FALSE
B13: 3 | C13: =IF(C70="","",IF(C70="Bye","Bye",CONCATENATE(C70," ","(",K70,")"))) -> Dulce () | G13: =IF(ISBLANK(D13),"",SUM(IF(D13>D14,1,0)+(IF(E13>E14,1,0)+(IF(F13>F14,1,0))))) ->  | H13: (b) | J13: =IF(J12=FALSE,"",J12) ->  | N13: =IF(ISBLANK(K11),"",SUM(IF(K13>K11,1,0)+(IF(L13>L11,1,0)+(IF(M13>M11,1,0))))) ->  | O13: (i)
B14: 4 | C14: =IF(C71="","",IF(C71="Bye","Bye",CONCATENATE(C71," ","(",K71,")"))) -> Patrícia Pedro () | G14: =IF(ISBLANK(D13),"",SUM(IF(D14>D13,1,0)+(IF(E14>E13,1,0)+(IF(F14>F13,1,0))))) ->  | H14: 17 | Q14: =IF(N11=N13,"",IF(N11>N13,J11,J13)) ->  | U14: =IF(ISBLANK(R14),"",SUM(IF(R14>R16,1,0)+(IF(S14>S16,1,0)+(IF(T14>T16,1,0))))) ->  | V14: 245
B16: 5 | C16: =IF(C72="","",IF(C72="Bye","Bye",CONCATENATE(C72," ","(",K72,")"))) -> Débora Mendonça () | G16: =IF(ISBLANK(D16),"",SUM(IF(D16>D17,1,0)+(IF(E16>E17,1,0)+(IF(F16>F17,1,0))))) ->  | J16: =IF(G16=G17,IF(C16="Bye",C17,IF(C17="Bye",C16)),(IF(ISBLANK(D16),"",IF(G16>G17,C16,C17)))) -> Débora Mendonça () | Q16: =IF(N17=N19,"",IF(N17>N19,J17,J19)) ->  | U16: =IF(ISBLANK(R14),"",SUM(IF(R16>R14,1,0)+(IF(S16>S14,1,0)+(IF(T16>T14,1,0))))) ->  | V16: (n)
B17: 6 | C17: =IF(C73="","",IF(C73="Bye","Bye",CONCATENATE(C73," ","(",K73,")"))) -> Bye | G17: =IF(ISBLANK(D16),"",SUM(IF(D17>D16,1,0)+(IF(E17>E16,1,0)+(IF(F17>F16,1,0))))) ->  | H17: (c) | J17: =IF(J16=FALSE,"",J16) -> Débora Mendonça () | N17: =IF(ISBLANK(K17),"",SUM(IF(K17>K19,1,0)+(IF(L17>L19,1,0)+(IF(M17>M19,1,0))))) ->  | O17: (j)
J18: =IF(G19=G20,IF(C19="Bye",C20,IF(C20="Bye",C19)),(IF(ISBLANK(D19),"",IF(G19>G20,C19,C20)))) -> Raquel Cebola ()
B19: 7 | C19: =IF(C74="","",IF(C74="Bye","Bye",CONCATENATE(C74," ","(",K74,")"))) -> Bye | G19: =IF(ISBLANK(D19),"",SUM(IF(D19>D20,1,0)+(IF(E19>E20,1,0)+(IF(F19>F20,1,0))))) ->  | H19: (d) | J19: =IF(J18=FALSE,"",J18) -> Raquel Cebola () | N19: =IF(ISBLANK(K17),"",SUM(IF(K19>K17,1,0)+(IF(L19>L17,1,0)+(IF(M19>M17,1,0))))) ->  | O19: =O11+1 -> 112
B20: 8 | C20: =IF(C75="","",IF(C75="Bye","Bye",CONCATENATE(C75," ","(",K75,")"))) -> Raquel Cebola () | G20: =IF(ISBLANK(D19),"",SUM(IF(D20>D19,1,0)+(IF(E20>E19,1,0)+(IF(F20>F19,1,0))))) ->  | Q20: =IF(U14=U16,"",IF(U14>U16,Q14,Q16)) ->  | U20: =IF(ISBLANK(R20),"",SUM(IF(R20>R22,1,0)+(IF(S20>S22,1,0)+(IF(T20>T22,1,0))))) -> 
B22: 9 | C22: =IF(C76="","",IF(C76="Bye","Bye",CONCATENATE(C76," ","(",K76,")"))) -> Carina () | G22: =IF(ISBLANK(D22),"",SUM(IF(D22>D23,1,0)+(IF(E22>E23,1,0)+(IF(F22>F23,1,0))))) ->  | J22: =IF(G22=G23,IF(C22="Bye",C23,IF(C23="Bye",C22)),(IF(ISBLANK(D22),"",IF(G22>G23,C22,C23)))) -> Carina () | Q22: =IF(U26=U28,"",IF(U26>U28,Q26,Q28)) ->  | U22: =IF(ISBLANK(R20),"",SUM(IF(R22>R20,1,0)+(IF(S22>S20,1,0)+(IF(T22>T20,1,0))))) ->  | V22: (p)
B23: 10 | C23: =IF(C77="","",IF(C77="Bye","Bye",CONCATENATE(C77," ","(",K77,")"))) -> Bye | G23: =IF(ISBLANK(D22),"",SUM(IF(D23>D22,1,0)+(IF(E23>E22,1,0)+(IF(F23>F22,1,0))))) ->  | H23: (e) | J23: =IF(J22=FALSE,"",J22) -> Carina () | N23: =IF(ISBLANK(K23),"",SUM(IF(K23>K25,1,0)+(IF(L23>L25,1,0)+(IF(M23>M25,1,0))))) ->  | O23: =O19+1 -> 113
J24: =IF(G25=G26,IF(C25="Bye",C26,IF(C26="Bye",C25)),(IF(ISBLANK(D25),"",IF(G25>G26,C25,C26)))) -> Letycia ()
B25: 11 | C25: =IF(C78="","",IF(C78="Bye","Bye",CONCATENATE(C78," ","(",K78,")"))) -> Letycia () | G25: =IF(ISBLANK(D25),"",SUM(IF(D25>D26,1,0)+(IF(E25>E26,1,0)+(IF(F25>F26,1,0))))) ->  | H25: f) | J25: =IF(J24=FALSE,"",J24) -> Letycia () | N25: =IF(ISBLANK(K23),"",SUM(IF(K25>K23,1,0)+(IF(L25>L23,1,0)+(IF(M25>M23,1,0))))) ->  | O25: (l)
B26: 12 | C26: =IF(C79="","",IF(C79="Bye","Bye",CONCATENATE(C79," ","(",K79,")"))) -> Bye | G26: =IF(ISBLANK(D25),"",SUM(IF(D26>D25,1,0)+(IF(E26>E25,1,0)+(IF(F26>F25,1,0))))) ->  | Q26: =IF(N23=N25,"",IF(N23>N25,J23,J25)) ->  | U26: =IF(ISBLANK(R26),"",SUM(IF(R26>R28,1,0)+(IF(S26>S28,1,0)+(IF(T26>T28,1,0))))) ->  | V26: (o)
U27: \
B28: 13 | C28: =IF(C80="","",IF(C80="Bye","Bye",CONCATENATE(C80," ","(",K80,")"))) -> Daniela () | G28: =IF(ISBLANK(D28),"",SUM(IF(D28>D29,1,0)+(IF(E28>E29,1,0)+(IF(F28>F29,1,0))))) ->  | J28: =IF(G28=G29,IF(C28="Bye",C29,IF(C29="Bye",C28)),(IF(ISBLANK(D28),"",IF(G28>G29,C28,C29)))) -> Daniela () | Q28: =IF(N29=N31,"",IF(N29>N31,J29,J31)) ->  | U28: =IF(ISBLANK(R26),"",SUM(IF(R28>R26,1,0)+(IF(S28>S26,1,0)+(IF(T28>T26,1,0))))) ->  | V28: =V14+1 -> 246
B29: 14 | C29: =IF(C81="","",IF(C81="Bye","Bye",CONCATENATE(C81," ","(",K81,")"))) -> Bye | G29: =IF(ISBLANK(D28),"",SUM(IF(D29>D28,1,0)+(IF(E29>E28,1,0)+(IF(F29>F28,1,0))))) ->  | H29: (g) | J29: =IF(J28=FALSE,"",J28) -> Daniela () | N29: =IF(ISBLANK(K29),"",SUM(IF(K29>K31,1,0)+(IF(L29>L31,1,0)+(IF(M29>M31,1,0))))) ->  | O29: (m)
J30: =IF(G31=G32,IF(C31="Bye",C32,IF(C32="Bye",C31)),(IF(ISBLANK(D31),"",IF(G31>G32,C31,C32)))) -> FALSE
B31: 15 | C31: =IF(C82="","",IF(C82="Bye","Bye",CONCATENATE(C82," ","(",K82,")"))) -> Adriana () | G31: =IF(ISBLANK(D31),"",SUM(IF(D31>D32,1,0)+(IF(E31>E32,1,0)+(IF(F31>F32,1,0))))) ->  | H31: (h) | J31: =IF(J30=FALSE,"",J30) ->  | N31: =IF(ISBLANK(K29),"",SUM(IF(K31>K29,1,0)+(IF(L31>L29,1,0)+(IF(M31>M29,1,0))))) ->  | O31: =O23+1 -> 114
B32: 16 | C32: =IF(C83="","",IF(C83="Bye","Bye",CONCATENATE(C83," ","(",K83,")"))) -> Emily Pedroso () | G32: =IF(ISBLANK(D31),"",SUM(IF(D32>D31,1,0)+(IF(E32>E31,1,0)+(IF(F32>F31,1,0))))) ->  | H32: 18
Q33: Final
Q34: =IF(U20=U22,"",IF(U20>U22,Q20,Q22)) ->  | U34: =IF(ISBLANK(R34),"",SUM(IF(R34>R35,1,0)+(IF(S34>S35,1,0)+(IF(T34>T35,1,0))))) ->  | V34: 286
C35: Jogo 7º e 8º Classificado | D35: =IF(U45=U46,IF(Q45="Bye",Q45,IF(Q46="Bye",Q46)),(IF(ISBLANK(R45),"",IF(U45>U46,Q46,Q45)))) -> FALSE | E35: =IF(U59=U60,IF(Q59="Bye",Q59,IF(Q60="Bye",Q60)),(IF(ISBLANK(R59),"",IF(U59>U60,Q60,Q59)))) -> FALSE | J35: 3º Classificado | K35: =IF(U20=U22,"",IF(U20<U22,Q20,Q22)) ->  | Q35: =IF(N36=N37,"",IF(N36>N37,J36,J37)) ->  | U35: =IF(ISBLANK(R34),"",SUM(IF(R35>R34,1,0)+(IF(S35>S34,1,0)+(IF(T35>T34,1,0))))) -> 
C36: =IF(D35=FALSE,"Derrotado em (q)",D35) -> Derrotado em (q) | G36: =IF(ISBLANK(D36),"",SUM(IF(D36>D37,1,0)+(IF(E36>E37,1,0)+(IF(F36>F37,1,0))))) ->  | H36: 279 | J36: =IF(K35="","Derrotado em (p)",K35) -> Derrotado em (p) | N36: =IF(ISBLANK(K36),"",SUM(IF(K36>K37,1,0)+(IF(L36>L37,1,0)+(IF(M36>M37,1,0))))) ->  | O36: 284
C37: =IF(E35=FALSE,"Derrotado em (r)",E35) -> Derrotado em (r) | G37: =IF(ISBLANK(D36),"",SUM(IF(D37>D36,1,0)+(IF(E37>E36,1,0)+(IF(F37>F36,1,0))))) ->  | H37: =IF(U45=U46,IF(Q45="Bye",Q45,IF(Q46="Bye",Q46)),(IF(ISBLANK(R45),"",IF(U45>U46,Q46,Q45)))) -> FALSE | J37: =IF(J38=FALSE,"",J38) ->  | N37: =IF(ISBLANK(K36),"",SUM(IF(K37>K36,1,0)+(IF(L37>L36,1,0)+(IF(M37>M36,1,0))))) ->  | O37: 284 | Q37: Finalissima
C38: Jogo 5º e 6º Classificado | D38: =IF(U48=U49,IF(Q48="Bye",Q48,IF(Q49="Bye",Q49)),(IF(ISBLANK(R48),"",IF(U48>U49,Q49,Q48)))) -> FALSE | E38: =IF(U56=U57,IF(Q56="Bye",Q56,IF(Q57="Bye",Q57)),(IF(ISBLANK(R56),"",IF(U56>U57,Q57,Q56)))) -> FALSE | J38: =IF(U52=U53,"",IF(U52>U53,Q52,Q53)) ->  | Q38: =IF(U34=U35,"",IF(U34>U35,"",Q34)) ->  | U38: =IF(ISBLANK(R38),"",SUM(IF(R38>R39,1,0)+(IF(S38>S39,1,0)+(IF(T38>T39,1,0))))) -> 
C39: =IF(D38=FALSE,"Derrotado em (s)",D38) -> Derrotado em (s) | G39: =IF(ISBLANK(D39),"",SUM(IF(D39>D40,1,0)+(IF(E39>E40,1,0)+(IF(F39>F40,1,0))))) ->  | H39: 280 | Q39: =IF(U34=U35,"",IF(U34>U35,"",Q35)) ->  | U39: =IF(ISBLANK(R38),"",SUM(IF(R39>R38,1,0)+(IF(S39>S38,1,0)+(IF(T39>T38,1,0))))) -> 
C40: =IF(E38=FALSE,"Derrotado em (t)",E38) -> Derrotado em (t) | G40: =IF(ISBLANK(D39),"",SUM(IF(D40>D39,1,0)+(IF(E40>E39,1,0)+(IF(F40>F39,1,0))))) ->  | Q40: Campeão
Q41: =IF(U34=U35,"",IF(U34>U35,Q34,IF(U38=U39,"",IF(U38<U39,Q39,Q38)))) -> 
B43: Quadro dos Vencidos | C43: =IF(H44=FALSE,"Derrotado em (a)",H44) -> Bye | G43: =IF(ISBLANK(D43),"",SUM(IF(D43>D44,1,0)+(IF(E43>E44,1,0)+(IF(F43>F44,1,0))))) ->  | J43: =IF(G43=G44,IF(C43="Bye",C44,IF(C44="Bye",C43)),(IF(ISBLANK(D43),"",IF(G43>G44,C43,C44)))) -> Derrotado em (b)
C44: =IF(C45=FALSE,"Derrotado em (b)",C45) -> Derrotado em (b) | G44: =IF(ISBLANK(D43),"",SUM(IF(D44>D43,1,0)+(IF(E44>E43,1,0)+(IF(F44>F43,1,0))))) ->  | H44: =IF(G10=G11,IF(C10="Bye",C10,IF(C11="Bye",C11)),(IF(ISBLANK(D10),"",IF(G10>G11,C11,C10)))) -> Bye | J44: =IF(J43=FALSE,"",J43) -> Derrotado em (b) | N44: =IF(ISBLANK(K44),"",SUM(IF(K44>K45,1,0)+(IF(L44>L45,1,0)+(IF(M44>M45,1,0))))) ->  | O44: 150 | Q44: =IF(N44=N45,"",IF(N44>N45,J44,J45)) -> 
C45: =IF(G13=G14,IF(C13="Bye",C13,IF(C14="Bye",C14)),(IF(ISBLANK(D13),"",IF(G13>G14,C14,C13)))) -> FALSE | J45: =IF(J46="","Derrotado em (m)",J46) -> Derrotado em (m) | N45: =IF(ISBLANK(K44),"",SUM(IF(K45>K44,1,0)+(IF(L45>L44,1,0)+(IF(M45>M44,1,0))))) ->  | Q45: =IF(Q44=FALSE,"",Q44) ->  | U45: =IF(ISBLANK(R45),"",SUM(IF(R45>R46,1,0)+(IF(S45>S46,1,0)+(IF(T45>T46,1,0))))) ->  | V45: 198
J46: =IF(N29=N31,"",IF(N29<N31,J29,J31)) ->  | Q46: =IF(Q47=FALSE,"",Q47) ->  | U46: =IF(ISBLANK(R45),"",SUM(IF(R46>R45,1,0)+(IF(S46>S45,1,0)+(IF(T46>T45,1,0))))) ->  | V46: (q)
Q47: =IF(N49=N50,"",IF(N49>N50,J49,J50)) ->  | R47: =IF(U45=U46,"",IF(U45>U46,Q45,Q46)) -> 
Q48: =IF(R47=FALSE,"",R47) ->  | U48: =IF(ISBLANK(R48),"",SUM(IF(R48>R49,1,0)+(IF(S48>S49,1,0)+(IF(T48>T49,1,0))))) ->  | V48: (s)
C49: =IF(G16=G17,IF(C16="Bye",C16,IF(C17="Bye",C17)),(IF(ISBLANK(D16),"",IF(G16>G17,C17,C16)))) -> Bye | J49: =IF(O49="","Derrotado em (l)",O49) -> Derrotado em (l) | N49: =IF(ISBLANK(K49),"",SUM(IF(K49>K50,1,0)+(IF(L49>L50,1,0)+(IF(M49>M50,1,0))))) ->  | O49: =IF(N23=N25,"",IF(N23<N25,J23,J25)) ->  | Q49: =IF(Q50="","Derrotado em (n)",Q50) -> Derrotado em (n) | U49: =IF(ISBLANK(R48),"",SUM(IF(R49>R48,1,0)+(IF(S49>S48,1,0)+(IF(T49>T48,1,0))))) ->  | V49: 268
C50: =IF(C49=FALSE,"Derrotado em (c)",C49) -> Bye | G50: =IF(ISBLANK(D50),"",SUM(IF(D50>D51,1,0)+(IF(E50>E51,1,0)+(IF(F50>F51,1,0))))) ->  | H50: =IF(G19=G20,IF(C19="Bye",C19,IF(C20="Bye",C20)),(IF(ISBLANK(D19),"",IF(G19>G20,C20,C19)))) -> Bye | J50: =IF(J51=FALSE,"",J51) -> Bye | N50: =IF(ISBLANK(K49),"",SUM(IF(K50>K49,1,0)+(IF(L50>L49,1,0)+(IF(M50>M49,1,0))))) ->  | O50: =O44+1 -> 151 | Q50: =IF(U14=U16,"",IF(U14<U16,Q14,Q16)) -> 
C51: =IF(H50=FALSE,"Derrotado em (d)",H50) -> Bye | G51: =IF(ISBLANK(D50),"",SUM(IF(D51>D50,1,0)+(IF(E51>E50,1,0)+(IF(F51>F50,1,0))))) ->  | J51: =IF(G50=G51,IF(C50="Bye",C51,IF(C51="Bye",C50)),(IF(ISBLANK(D50),"",IF(G50>G51,C50,C51)))) -> Bye | Q51: 4º Classificado
Q52: =IF(V52=FALSE,"",V52) ->  | U52: =IF(ISBLANK(R52),"",SUM(IF(R52>R53,1,0)+(IF(S52>S53,1,0)+(IF(T52>T53,1,0))))) ->  | V52: =IF(U48=U49,"",IF(U48>U49,Q48,Q49)) -> 
Q53: =IF(Q54=FALSE,"",Q54) ->  | U53: =IF(ISBLANK(R52),"",SUM(IF(R53>R52,1,0)+(IF(S53>S52,1,0)+(IF(T53>T52,1,0))))) ->  | V53: 278
C54: =IF(H55=FALSE,"Derrotado em (e)",H55) -> Bye | G54: =IF(ISBLANK(D54),"",SUM(IF(D54>D55,1,0)+(IF(E54>E55,1,0)+(IF(F54>F55,1,0))))) ->  | Q54: =IF(U56=U57,"",IF(U56>U57,Q56,Q57)) -> 
C55: =IF(C56=FALSE,"Derrotado em (f)",C56) -> Bye | G55: =IF(ISBLANK(D54),"",SUM(IF(D55>D54,1,0)+(IF(E55>E54,1,0)+(IF(F55>F54,1,0))))) ->  | H55: =IF(G22=G23,IF(C22="Bye",C22,IF(C23="Bye",C23)),(IF(ISBLANK(D22),"",IF(G22>G23,C23,C22)))) -> Bye | J55: =IF(O56=FALSE,"",O56) -> Bye | N55: =IF(ISBLANK(K55),"",SUM(IF(K55>K56,1,0)+(IF(L55>L56,1,0)+(IF(M55>M56,1,0))))) ->  | O55: =O50+1 -> 152 | Q55: =IF(U26=U28,"",IF(U26<U28,Q26,Q28)) ->  | R55: =IF(U59=U60,"",IF(U59>U60,Q59,Q60)) -> 
C56: =IF(G25=G26,IF(C25="Bye",C25,IF(C26="Bye",C26)),(IF(ISBLANK(D25),"",IF(G25>G26,C26,C25)))) -> Bye | J56: =IF(J57="","Derrotado em (j)",J57) -> Derrotado em (j) | N56: =IF(ISBLANK(K55),"",SUM(IF(K56>K55,1,0)+(IF(L56>L55,1,0)+(IF(M56>M55,1,0))))) ->  | O56: =IF(G54=G55,IF(C54="Bye",C55,IF(C55="Bye",C54)),(IF(ISBLANK(D54),"",IF(G54>G55,C54,C55)))) -> Bye | Q56: =IF(Q55="","Derrotado em (o)",Q55) -> Derrotado em (o) | U56: =IF(ISBLANK(R56),"",SUM(IF(R56>R57,1,0)+(IF(S56>S57,1,0)+(IF(T56>T57,1,0))))) ->  | V56: 269
J57: =IF(N17=N19,"",IF(N17<N19,J17,J19)) ->  | O57: (j) | Q57: =IF(R55=FALSE,"",R55) ->  | U57: =IF(ISBLANK(R56),"",SUM(IF(R57>R56,1,0)+(IF(S57>S56,1,0)+(IF(T57>T56,1,0))))) ->  | V57: (t)
Q58: =IF(N55=N56,"",IF(N55>N56,J55,J56)) -> 
Q59: =IF(Q58=FALSE,"",Q58) ->  | U59: =IF(ISBLANK(R59),"",SUM(IF(R59>R60,1,0)+(IF(S59>S60,1,0)+(IF(T59>T60,1,0))))) ->  | V59: (r)
J60: =IF(O60="","Derrotado em (i)",O60) -> Derrotado em (i) | N60: =IF(ISBLANK(K60),"",SUM(IF(K60>K61,1,0)+(IF(L60>L61,1,0)+(IF(M60>M61,1,0))))) ->  | O60: =IF(N11=N13,"",IF(N11<N13,J11,J13)) ->  | Q60: =IF(Q61=FALSE,"",Q61) ->  | U60: =IF(ISBLANK(R59),"",SUM(IF(R60>R59,1,0)+(IF(S60>S59,1,0)+(IF(T60>T59,1,0))))) ->  | V60: 199
C61: =IF(H61=FALSE,"Derrotado em (g)",H61) -> Bye | G61: =IF(ISBLANK(D61),"",SUM(IF(D61>D62,1,0)+(IF(E61>E62,1,0)+(IF(F61>F62,1,0))))) ->  | H61: =IF(G28=G29,IF(C28="Bye",C28,IF(C29="Bye",C29)),(IF(ISBLANK(D28),"",IF(G28>G29,C29,C28)))) -> Bye | J61: =IF(J62=FALSE,"",J62) -> Derrotado em (h) | N61: =IF(ISBLANK(K60),"",SUM(IF(K61>K60,1,0)+(IF(L61>L60,1,0)+(IF(M61>M60,1,0))))) ->  | O61: (i) | Q61: =IF(N60=N61,"",IF(N60>N61,J60,J61)) -> 
C62: =IF(C63=FALSE,"Derrotado em (h)",C63) -> Derrotado em (h) | G62: =IF(ISBLANK(D61),"",SUM(IF(D62>D61,1,0)+(IF(E62>E61,1,0)+(IF(F62>F61,1,0))))) ->  | J62: =IF(G61=G62,IF(C61="Bye",C62,IF(C62="Bye",C61)),(IF(ISBLANK(D61),"",IF(G61>G62,C61,C62)))) -> Derrotado em (h) | O62: =O55+1 -> 153
C63: =IF(G31=G32,IF(C31="Bye",C31,IF(C32="Bye",C32)),(IF(ISBLANK(D31),"",IF(G31>G32,C32,C31)))) -> FALSE
B66: Lista de Participantes / Sorteio | E66: =B7 -> 0 | O66: Classificação
B67: Nº | C67: Nome (1º e último) | D67: Escola | K67: Abv.* | O67: Cl.
A68: 5 | B68: 1 | C68: =IF(ISERROR(VLOOKUP(CELL("contents",$A68),$B$89:$C$104,2,FALSE)),"",VLOOKUP(CELL("contents",$A68),$B$89:$C$104,2,FALSE)) -> bye | D68: =IF(ISERROR(VLOOKUP(CELL("contents",$A68),$B$89:$D$104,3,FALSE)),"",VLOOKUP(CELL("contents",$A68),$B$89:$D$104,3,FALSE)) -> 0 | O68: 1º | Q68: =Q41 -> 
A69: 13 | B69: 2 | C69: Ana Ferreira | D69: =IF(ISERROR(VLOOKUP(CELL("contents",$A69),$B$89:$D$104,3,FALSE)),"",VLOOKUP(CELL("contents",$A69),$B$89:$D$104,3,FALSE)) -> 0 | O69: 2º | Q69: =IF(Q68=Q34,Q35,Q34) -> 
A70: 4 | B70: 3 | C70: Dulce | D70: 0 | O70: 3º | Q70: =IF(N36=N37,"",IF(N36>N37,J37,J36)) -> 
A71: 15 | B71: 4 | C71: Patrícia Pedro | D71: 0 | O71: 4º | Q71: =IF(U52=U53,"",IF(U52>U53,Q53,Q52)) -> 
A72: 6 | B72: 5 | C72: Débora Mendonça | D72: 0 | O72: 5º | Q72: =IF(G39=G40,"",IF(G39>G40,C39,C40)) -> 
A73: 14 | B73: 6 | C73: bye | D73: 0 | O73: 6º | Q73: =IF(G39=G40,"",IF(G39>G40,C40,C39)) -> 
A74: 16 | B74: 7 | C74: bye | D74: 0 | O74: 7ºs | Q74: =IF(G36=G37,"",IF(G36>G37,C36,C37)) -> 
A75: 9 | B75: 8 | C75: Raquel Cebola | D75: 0 | O75: 8ºs | Q75: =IF(G36=G37,"",IF(G36>G37,C37,C36)) -> 
A76: 1 | B76: 9 | C76: Carina | D76: 0 | O76: 9ºs | Q76: =IF(N44=N45,"",IF(N44>N45,J45,J44)) -> 
A77: 12 | B77: 10 | C77: bye | D77: 0 | O77: 10ºs | Q77: =IF(N49=N50,"",IF(N49>N50,J50,J49)) -> 
A78: 3 | B78: 11 | C78: Letycia | D78: 0 | O78: 11ºs | Q78: =IF(N55=N56,"",IF(N55>N56,J56,J55)) -> 
A79: 8 | B79: 12 | C79: bye | D79: 0 | O79: 12ºs | Q79: =IF(N60=N61,"",IF(N60>N61,J61,J60)) -> 
A80: 11 | B80: 13 | C80: Daniela | D80: 0 | O80: 13ºs | Q80: =IF(G43=G44,"",IF(G43>G44,C44,C43)) -> 
A81: 2 | B81: 14 | C81: bye | D81: 0 | O81: 14ºs | Q81: =IF(G50=G51,"",IF(G50>G51,C51,C50)) -> 
A82: 10 | B82: 15 | C82: Adriana | D82: 0 | O82: 15ºs | Q82: =IF(G54=G55,"",IF(G54>G55,C55,C54)) -> 
A83: 7 | B83: 16 | C83: Emily Pedroso | D83: 0 | O83: 16ºs | Q83: =IF(G61=G62,"",IF(G61>G62,C62,C61)) -> 
B87: Lista de Participantes
B88: Nº | C88: Nome (1º e último) | D88: Escola | K88: Abv.*
B89: 1 | C89: Carina
B90: 2 | C90: bye
B91: 3 | C91: Letycia
B92: 4 | C92: Dulce
B93: 5 | C93: bye
B94: 6 | C94: Débora Mendonça
B95: 7 | C95: Emily Pedroso
B96: 8 | C96: bye
B97: 9 | C97: Raquel Cebola
B98: 10 | C98: Adriana
B99: 11 | C99: Daniela
B100: 12 | C100: bye
B101: 13 | C101: Ana Ferreira
B102: 14 | C102: bye
B103: 15 | C103: Patrícia Pedro
B104: 16 | C104: bye

Sheet 5 (hidden)
L1: Direcção Regional de Educação do Algarve
BV2: Lista de Participantes
M3: ="Ano Lectivo "&Apoio!F10 -> Ano Lectivo 2017/2018 | BV3: Ordem | BW3: Nº | BX3: Nome (1º e último) | BY3: Escola | BZ3: Abv. | CA3: Ano Nasc. | CB3: Escalão | CC3: Sexo | CD3: Observações | CE3: Insc. Prova | CG3: Pontos Rank
N4: Badminton | BV4: 1 | CG4: =IF(BX4="","",VLOOKUP(CH4,$CI$4:$CJ$8,2,FALSE)) ->  | CH4: =BX4&" ("&BZ4&")" -> () | CI4: =K39 ->  | CJ4: =AZ39 -> 12
BV5: 2 | CG5: =IF(BX5="","",VLOOKUP(CH5,$CI$4:$CJ$8,2,FALSE)) ->  | CH5: =BX5&" ("&BZ5&")" -> () | CI5: =K40 ->  | CJ5: =AZ40 -> 10
BV6: 3 | CG6: =IF(BX6="","",VLOOKUP(CH6,$CI$4:$CJ$8,2,FALSE)) ->  | CH6: =BX6&" ("&BZ6&")" -> () | CI6: =K41 ->  | CJ6: =AZ41 -> 8
A7: ="Escola: "&'Ficha de Inscrição'!$D$4 -> Escola: ACav.Silva | AN7: ='Ficha de Inscrição'!$A$5 -> Torneio Nº 4 | BV7: 4 | CG7: =IF(BX7="","",VLOOKUP(CH7,$CI$4:$CJ$8,2,FALSE)) ->  | CH7: =BX7&" ("&BZ7&")" -> () | CI7: =K42 ->  | CJ7: =AZ42 -> 6
BV8: 5 | CG8: =IF(BX8="","",VLOOKUP(CH8,$CI$4:$CJ$8,2,FALSE)) ->  | CH8: =BX8&" ("&BZ8&")" -> () | CI8: =K43 ->  | CJ8: =AZ43 -> 4
AI9: ='Ficha de Inscrição'!$J$4 -> 2018-01-17
BW10: Se pretender efectuar altrerações apague, e volte a introduzir os jogadores que pretender nos espaços disponíveis.
B11: SS-InfB | I11: =LOOKUP(B11,Apoio!N9:N39,Apoio!O9:O39) -> Singulares Senhoras - Infantis B
B13: I. Lista de Participantes | BW13: Para efectuar alterações à de colocações nos grupos dos jogadores, altere a coluna "ORDEM" dando uma nova ordem de nºs e depois clique em Ordenar.
O15: Participantes
O16: 1. | Q16: =IF(BX4="","",CONCATENATE(BX4," ","(",BZ4,")")) -> 
O17: 2. | Q17: =IF(BX5="","",CONCATENATE(BX5," ","(",BZ5,")")) -> 
O18: 3. | Q18: =IF(BX6="","",CONCATENATE(BX6," ","(",BZ6,")")) -> 
O19: 4. | Q19: =IF(BX7="","",CONCATENATE(BX7," ","(",BZ7,")")) -> 
O20: 5. | Q20: =IF(BX8="","",CONCATENATE(BX8," ","(",BZ8,")")) -> 
B22: II. Calendário de Jogos
B24: Nr. | D24: Nº Jogo | I24: Calendário | AN24: 1º Set | AQ24: 2º Set | AT24: 3º Set | AW24: Resultado | BF24: Pontos
B25: 1 | D25: =CONCATENATE($B$11," ",B25) -> SS-InfB 1 | I25: =$Q$16 ->  | X25: vs | Y25: =$Q$17 ->  | AO25: - | AR25: - | AU25: - | AW25: =IF(ISBLANK(AN25),"0",SUM(IF(AN25>AP25,1,0)+(IF(AQ25>AS25,1,0)+(IF(AT25>AV25,1,0))))) -> 0 | AY25: : | AZ25: =IF(ISBLANK(AN25),"0",SUM(IF(AN25<AP25,1,0)+(IF(AQ25<AS25,1,0)+(IF(AT25<AV25,1,0))))) -> 0 | BF25: =IF(ISBLANK(AW25),"0",IF(AW25>AZ25,2,IF(AW25=AZ25,0,1))) -> 0 | BG25: : | BH25: =IF(ISBLANK(AZ25),"0",IF(AZ25>AW25,2,IF(AZ25=AW25,0,1))) -> 0
B26: 2 | D26: SS-InfB 2 | I26: =$Q$18 ->  | X26: vs | Y26: =$Q$19 ->  | AO26: - | AR26: - | AU26: - | AW26: 0 | AY26: : | AZ26: 0 | BF26: 0 | BG26: : | BH26: 0
B27: 3 | D27: SS-InfB 3 | I27: =$Q$16 ->  | X27: vs | Y27: =$Q$18 ->  | AO27: - | AR27: - | AU27: - | AW27: 0 | AY27: : | AZ27: 0 | BF27: 0 | BG27: : | BH27: 0
B28: 4 | D28: SS-InfB 4 | I28: =$Q$17 ->  | X28: vs | Y28: =$Q$20 ->  | AO28: - | AR28: - | AU28: - | AW28: 0 | AY28: : | AZ28: 0 | BF28: 0 | BG28: : | BH28: 0
B29: 5 | D29: SS-InfB 5 | I29: =$Q$20 ->  | X29: vs | Y29: =$Q$16 ->  | AO29: - | AR29: - | AU29: - | AW29: 0 | AY29: : | AZ29: 0 | BF29: 0 | BG29: : | BH29: 0
B30: 6 | D30: SS-InfB 6 | I30: =$Q$17 ->  | X30: vs | Y30: =$Q$19 ->  | AO30: - | AR30: - | AU30: - | AW30: 0 | AY30: : | AZ30: 0 | BF30: 0 | BG30: : | BH30: 0
B31: 7 | D31: SS-InfB 7 | I31: =$Q$16 ->  | X31: vs | Y31: =$Q$19 ->  | AO31: - | AR31: - | AU31: - | AW31: 0 | AY31: : | AZ31: 0 | BF31: 0 | BG31: : | BH31: 0
B32: 8 | D32: SS-InfB 8 | I32: =$Q$18 ->  | X32: vs | Y32: =$Q$20 ->  | AO32: - | AR32: - | AU32: - | AW32: 0 | AY32: : | AZ32: 0 | BF32: 0 | BG32: : | BH32: 0
B33: 9 | D33: SS-InfB 9 | I33: =$Q$17 ->  | X33: vs | Y33: =$Q$18 ->  | AO33: - | AR33: - | AU33: - | AW33: 0 | AY33: : | AZ33: 0 | BF33: 0 | BG33: : | BH33: 0
B34: 10 | D34: SS-InfB 10 | I34: =$Q$19 ->  | X34: vs | Y34: =$Q$20 ->  | AO34: - | AR34: - | AU34: - | AW34: 0 | AY34: : | AZ34: 0 | BF34: 0 | BG34: : | BH34: 0
C36: III. Classificação | AZ36: Rank
K38: Classificação | AI38: Jogos | AL38: Pont. | AO38: Set's | AT38: Dif. | AZ38: Pts | BN38: J | BO38: Pts | BP38: M | BR38: S | BS38: Dif
I39: =I38+1 -> 1 | K39: =VLOOKUP($I39,$BL$39:$BS$43,2,FALSE) ->  | AI39: =VLOOKUP($I39,$BL$39:$BS$43,3,FALSE) -> 0 | AL39: =VLOOKUP($I39,$BL$39:$BS$43,4,FALSE) -> 0 | AO39: =VLOOKUP($I39,$BL$39:$BS$43,5,FALSE) -> 0 | AQ39: : | AR39: =VLOOKUP($I39,$BL$39:$BS$43,7,FALSE) -> 0 | AT39: =VLOOKUP($I39,$BL$39:$BS$43,8,FALSE) -> 0 | AZ39: 12 | BL39: =COUNTIF($BT$39:$BT$43,CONCATENATE(">=",BT39)) -> 1 | BM39: =Q17 ->  | BN39: =COUNT($AZ$25,$AW$28,$AW$30,$AW$33) -> 0 | BO39: =SUM($BH$25+$BF$28+$BF$30+$BF$33) -> 0 | BP39: =SUM($AZ$25+$AW$28+$AW$30+$AW$33) -> 0 | BQ39: : | BR39: =SUM($AW$25+$AZ$28+$AZ$30+$AZ$33) -> 0 | BS39: =SUM(BP39-BR39) -> 0 | BT39: =BO39*1000000+(BP39-BR39)*10000+BP39*100+BU39 -> 5 | BU39: 5
I40: =I39+1 -> 2 | K40: =VLOOKUP($I40,$BL$39:$BS$43,2,FALSE) ->  | AI40: =VLOOKUP($I40,$BL$39:$BS$43,3,FALSE) -> 0 | AL40: =VLOOKUP($I40,$BL$39:$BS$43,4,FALSE) -> 0 | AO40: =VLOOKUP($I40,$BL$39:$BS$43,5,FALSE) -> 0 | AQ40: : | AR40: =VLOOKUP($I40,$BL$39:$BS$43,7,FALSE) -> 0 | AT40: =VLOOKUP($I40,$BL$39:$BS$43,8,FALSE) -> 0 | AZ40: 10 | BL40: =COUNTIF($BT$39:$BT$43,CONCATENATE(">=",BT40)) -> 2 | BM40: =$Q$18 ->  | BN40: =COUNT($AW$26,$AZ$27,$AW$32,$AZ$33) -> 0 | BO40: =SUM($BF$26+$BH$27+$BF$32+$BH$33) -> 0 | BP40: =SUM($AW$26+$AZ$27+$AW$32+$AZ$33) -> 0 | BQ40: : | BR40: =SUM($AZ$26+$AW$27+$AZ$32+$AW$33) -> 0 | BS40: =SUM(BP40-BR40) -> 0 | BT40: =BO40*1000000+(BP40-BR40)*10000+BP40*100+BU40 -> 4 | BU40: 4
I41: =I40+1 -> 3 | K41: =VLOOKUP($I41,$BL$39:$BS$43,2,FALSE) ->  | AI41: =VLOOKUP($I41,$BL$39:$BS$43,3,FALSE) -> 0 | AL41: =VLOOKUP($I41,$BL$39:$BS$43,4,FALSE) -> 0 | AO41: =VLOOKUP($I41,$BL$39:$BS$43,5,FALSE) -> 0 | AQ41: : | AR41: =VLOOKUP($I41,$BL$39:$BS$43,7,FALSE) -> 0 | AT41: =VLOOKUP($I41,$BL$39:$BS$43,8,FALSE) -> 0 | AZ41: 8 | BL41: =COUNTIF($BT$39:$BT$43,CONCATENATE(">=",BT41)) -> 3 | BM41: =$Q$19 ->  | BN41: =COUNT($AZ$26,$AZ$30,$AZ$31,$AW$34) -> 0 | BO41: =SUM($BH$26+$BH$30+$BH$31+$BF$34) -> 0 | BP41: =SUM($AZ$26+$AZ$30+$AZ$31+$AW$34) -> 0 | BQ41: : | BR41: =SUM($AW$26+$AW$30+$AW$31+$AZ$34) -> 0 | BS41: =SUM(BP41-BR41) -> 0 | BT41: =BO41*1000000+(BP41-BR41)*10000+BP41*100+BU41 -> 3 | BU41: 3
I42: =I41+1 -> 4 | K42: =VLOOKUP($I42,$BL$39:$BS$43,2,FALSE) ->  | AI42: =VLOOKUP($I42,$BL$39:$BS$43,3,FALSE) -> 0 | AL42: =VLOOKUP($I42,$BL$39:$BS$43,4,FALSE) -> 0 | AO42: =VLOOKUP($I42,$BL$39:$BS$43,5,FALSE) -> 0 | AQ42: : | AR42: =VLOOKUP($I42,$BL$39:$BS$43,7,FALSE) -> 0 | AT42: =VLOOKUP($I42,$BL$39:$BS$43,8,FALSE) -> 0 | AZ42: 6 | BL42: =COUNTIF($BT$39:$BT$43,CONCATENATE(">=",BT42)) -> 4 | BM42: =$Q$16 ->  | BN42: =COUNT($AW$25,$AW$27,$AZ$29,$AW$31) -> 0 | BO42: =SUM($BF$25+$BF$27+$BH$29+$BF$31) -> 0 | BP42: =SUM($AW$25+$AW$27+$AZ$29+$AW$31) -> 0 | BQ42: : | BR42: =SUM($AZ$25+$AZ$27+$AW$29+$AZ$31) -> 0 | BS42: =SUM(BP42-BR42) -> 0 | BT42: =BO42*1000000+(BP42-BR42)*10000+BP42*100+BU42 -> 2 | BU42: 2
I43: =I42+1 -> 5 | K43: =VLOOKUP($I43,$BL$39:$BS$43,2,FALSE) ->  | AI43: =VLOOKUP($I43,$BL$39:$BS$43,3,FALSE) -> 0 | AL43: =VLOOKUP($I43,$BL$39:$BS$43,4,FALSE) -> 0 | AO43: =VLOOKUP($I43,$BL$39:$BS$43,5,FALSE) -> 0 | AQ43: : | AR43: =VLOOKUP($I43,$BL$39:$BS$43,7,FALSE) -> 0 | AT43: =VLOOKUP($I43,$BL$39:$BS$43,8,FALSE) -> 0 | AZ43: 4 | BL43: =COUNTIF($BT$39:$BT$43,CONCATENATE(">=",BT43)) -> 5 | BM43: =$Q$20 ->  | BN43: =COUNT($AZ$28,$AW$29,$AZ$32,$AZ$34) -> 0 | BO43: =SUM($BH$28+$BF$29+$BH$32+$BH$34) -> 0 | BP43: =SUM($AZ$28+$AW$29+$AZ$32+$AZ$34) -> 0 | BQ43: : | BR43: =SUM(+$AW$28+$AZ$29+$AW$32+$AW$34) -> 0 | BS43: =SUM(BP43-BR43) -> 0 | BT43: =BO43*1000000+(BP43-BR43)*10000+BP43*100+BU43 -> 1 | BU43: 1
A53: ABV | B53: Nome | T53: Lista
A54: EM-Juv | B54: Equipas Mistas - Juvenis | T54: 0
A55: PH-InfA | B55: Pares Homens - Infantis A | T55: 1
A56: PH-InfB | B56: Pares Homens - Infantis B | T56: 2
A57: PH-Ini | B57: Pares Homens - Iniciados | T57: 3
A58: PH-Jun | B58: Pares Homens - Juniores | T58: 4
A59: PH-Juv | B59: Pares Homens - Juvenis | T59: 5
A60: PM-Ini | B60: Pares Mistos - Iniciados | T60: 6
A61: PS-InfA | B61: Pares Senhoras - Infantis A | T61: 7
A62: PS-InfB | B62: Pares Senhoras - Infantis B | T62: 8
A63: PS-Ini | B63: Pares Senhoras - Iniciados | T63: 9
A64: PS-Jun | B64: Pares Senhoras - Juniores | T64: 10
A65: PS-Juv | B65: Pares Senhoras - Juvenis | T65: 11
A66: SH-InfA | B66: Singulares Homens - Infantis A | T66: 12
A67: SH-InfB | B67: Singulares Homens - Infantis B | T67: 13
A68: SH-Ini | B68: Singulares Homens - Iniciados | T68: 14
A69: SH-Jun | B69: Singulares Homens - Juniores | T69: 15
A70: SH-Juv | B70: Singulares Homens - Juvenis | T70: 16
A71: SS-InfA | B71: Singulares Senhoras - Infantis A | T71: 17
A72: SS-InfB | B72: Singulares Senhoras - Infantis B | T72: 18
A73: SS-Ini | B73: Singulares Senhoras - Iniciados | T73: 19
A74: SS-Jun | B74: Singulares Senhoras - Juniores | T74: 20
A75: SS-Juv | B75: Singulares Senhoras - Juvenis | T75: 21
T76: 22
T77: 23
T78: 24
T79: 25
T80: 26
T81: 27
T82: 28
T83: 29
T84: 30
T85: fc
T86: v

Sheet SS-InfA
D1: Direcção Regional de Educação do Algarve | O1: Badminton | AM1: =$C$4 -> Singulares Senhoras - Infantis A | DC1: ERRO de prenchimento da Lista de participantes
F2: ="Ano Lectivo "&Apoio!F10 -> Ano Lectivo 2017/2018 | DC2: =SUM(DC4:DC11) -> 0 | DD2: =IF(DC2>0,"ERRO DE PREENCHIMENTO","Lista de Participantes") -> Lista de Participantes
DC3: =SUM(DC4:DC11) -> 0 | DD3: Ordem | DE3: Nº | DF3: Nome (1º e último) | DG3: Escola | DH3: Abv. | DI3: Ano Nasc. | DJ3: Escalão | DK3: Sexo | DL3: Observações | DM3: Insc. Prova | DO3: Pontos Rank
A4: SS-InfA | C4: =LOOKUP(A4,Apoio!N9:N39,Apoio!O9:O39) -> Singulares Senhoras - Infantis A | I4: ='Ficha de Inscrição'!$A$5 -> Torneio Nº 4 | P4: ="Escola: "&'Ficha de Inscrição'!$D$4 -> Escola: ACav.Silva | X4: ='Ficha de Inscrição'!$J$4 -> 2018-01-17 | DC4: =IF(ISBLANK(DF4),COUNTA(DF5:$DG$11),0) -> 0 | DD4: 1 | DF4: Laura Grade | DG4: ACav.Silva | DH4: ACV | DI4: 2007 | DJ4: Infantis A | DK4: F | DM4: SS | DP4: =DF4&" ("&DH4&")" -> Laura Grade (ACV)
B5: 1ª FASE | D5: Set's | J5: Set's | P5: 2ª FASE | AM5: Classificação 1ª Fase | DC5: =IF(ISBLANK(DF5),COUNTA(DF6:$DG$11),0) -> 0 | DD5: 2 | DF5: Jessica Rochefort | DG5: DPacheco | DH5: DP | DI5: 2007 | DJ5: Infantis A | DK5: F | DM5: SS | DP5: =DF5&" ("&DH5&")" -> Jessica Rochefort (DP)
P6: 1/2 Final | W6: Final | AY6: Colocar Equipas | BH6: Ordenar p/ Pts 1 | BJ6: Ordenar p/ Pts 2 | BL6: Ordenar p/ Pts 3 | BO6: Ordenar p/ DG 1 | BR6: Ordenar p/ DG 2 | BU6: Ordenar p/ DG 3 | BY6: Ordenar p/ GM 1 | CC6: Ordenar p/ GM 2 | CG6: Ordenar p/ GM 3 | CY6: Vencedores | CZ6: Derrotados | DC6: =IF(ISBLANK(DF6),COUNTA(DF7:$DG$11),0) -> 0 | DD6: 3 | DF6: Leonor Guerreiro | DG6: DPacheco | DH6: DP | DI6: 2007 | DJ6: Infantis A | DK6: F | DM6: SS | DP6: Leonor Guerreiro (DP)
N7: 1 | AM7: Classificação Grupo A | AY7: Grupo A | CY7: =IF(G11<>"",IF(G11>G10,C11,IF(G10>G11,C10,"Empate")),"") -> Leonor Guerreiro (DP) | CZ7: =IF(G11<>"",IF(G11<G10,C11,IF(G10<G11,C10,"Empate")),"") -> Laura Grade (ACV) | DC7: =IF(ISBLANK(DF7),COUNTA(DF8:$DG$11),0) -> 0 | DD7: 4 | DF7: Maira Kaushik | DG7: DPacheco | DH7: DP | DI7: 2007 | DJ7: Infantis A | DK7: F | DM7: SS | DP7: Maira Kaushik (DP)
N8: 16 | AL8: Cl | AM8: =AY8 -> Jogadores | AN8: Jg | AO8: V | AP8: E | AQ8: D | AR8: PM | AS8: PS | AT8: DP | AU8: Pt. | AY8: Jogadores | AZ8: Jg | BA8: V | BB8: E | BC8: D | BD8: GM | BE8: GS | BF8: DG | BG8: Pts | BH8: Equipas | BI8: Pts | BJ8: Equipas | BK8: Pts | BL8: Equipas | BM8: Pts | BN8: DG | BO8: Equipas | BP8: Pts | BQ8: DG | BR8: Equipas | BS8: Pts | BT8: DG | BU8: Equipas | BV8: Pts | BW8: DG | BX8: GM | BY8: Equipas | BZ8: Pts | CA8: DG | CB8: GM | CC8: Equipas | CD8: Pts | CE8: DG | CF8: GM | CG8: Equipas | CH8: Pts | CI8: DG | CJ8: GM | CN8: Equipas | CO8: Jg | CP8: V | CQ8: D | CR8: E | CS8: GM | CT8: GS | CU8: DG | CV8: Pts | CY8: =IF(M10<>"",IF(M10>M11,I10,IF(M11>M10,I11,"Empate")),"") ->  | CZ8: =IF(M10<>"",IF(M10<M11,I10,IF(M11<M10,I11,"Empate")),"") ->  | DC8: =IF(ISBLANK(DF8),COUNTA(DF9:$DG$11),0) -> 0 | DD8: 5 | DF8: Polina Lesyuk | DG8: DPacheco | DH8: DP | DI8: 2007 | DJ8: Infantis A | DK8: F | DM8: SS | DP8: Polina Lesyuk (DP)
A9: Grupo A | B9: NºJ | C9: Jogadores | D9: 1 | E9: 2 | F9: 3 | G9: R | H9: NºJ | I9: Jogadores | J9: 1 | K9: 2 | L9: 3 | M9: R | AL9: =IF(AM9="","","1º") -> 1º | AM9: =CN9 -> Polina Lesyuk (DP) | AN9: =IF(AM9="","",CO9) -> 2 | AO9: =IF(AM9="","",CP9) -> 2 | AP9: =CQ9 -> 0 | AQ9: =IF(AM9="","",CR9) -> 0 | AR9: =IF(AM9="","",CS9) -> 60 | AS9: =IF(AM9="","",CT9) -> 40 | AT9: =IF(AM9="","",CU9) -> 20 | AU9: =IF(AM9="","",CV9) -> 4 | AV9: 1 | AW9: 1 | AX9: 1 | AY9: =IF(AY39="","",AY39) -> Laura Grade (ACV) | AZ9: =COUNT(G11,G12,M15) -> 2 | BA9: =COUNTIF(CY7:CY12,AY9) -> 0 | BB9: =AZ9-(BA9+BC9) -> 0 | BC9: =COUNTIF(CZ7:CZ12,AY9) -> 2 | BD9: =SUM(D11:F11,D12:F12,J15:L15) -> 40 | BE9: =SUM(D10:F10,D13:F13,J14:L14) -> 59 | BF9: =BD9-BE9 -> -19 | BG9: =IF(AZ9=0,0,BA9*2+BC9*1) -> 2 | BH9: =IF(BG9>=BG10,AY9,AY10) -> Leonor Guerreiro (DP) | BI9: =VLOOKUP(BH9,AY9:BG12,9,FALSE) -> 3 | BJ9: =IF(BI9>=BI11,BH9,BH11) -> Polina Lesyuk (DP) | BK9: =VLOOKUP(BJ9,AY9:BG12,9,FALSE) -> 4 | BL9: =IF(BK9>=BK12,BJ9,BJ12) -> Polina Lesyuk (DP) | BM9: =VLOOKUP(BL9,AY9:BG12,9,FALSE) -> 4 | BN9: =VLOOKUP(BL9,AY9:BG12,8,FALSE) -> 20 | BO9: =IF(AND(BM9=BM10,BN10>BN9),BL10,BL9) -> Polina Lesyuk (DP) | BP9: =VLOOKUP(BO9,AY9:BG12,9,FALSE) -> 4 | BQ9: =VLOOKUP(BO9,AY9:BG12,8,FALSE) -> 20 | BR9: =IF(AND(BP9=BP11,BQ11>BQ9),BO11,BO9) -> Polina Lesyuk (DP) | BS9: =VLOOKUP(BR9,AY9:BG12,9,FALSE) -> 4 | BT9: =VLOOKUP(BR9,AY9:BG12,8,FALSE) -> 20 | BU9: =IF(AND(BS9=BS12,BT12>BT9),BR12,BR9) -> Polina Lesyuk (DP) | BV9: =VLOOKUP(BU9,AY9:BG12,9,FALSE) -> 4 | BW9: =VLOOKUP(BU9,AY9:BG12,8,FALSE) -> 20 | BX9: =VLOOKUP(BU9,AY9:BG12,6,FALSE) -> 60 | BY9: =IF(AND(BV9=BV10,BW9=BW10,BX10>BX9),BU10,BU9) -> Polina Lesyuk (DP) | BZ9: =VLOOKUP(BY9,AY9:BG12,9,FALSE) -> 4 | CA9: =VLOOKUP(BY9,AY9:BG12,8,FALSE) -> 20 | CB9: =VLOOKUP(BY9,AY9:BG12,6,FALSE) -> 60 | CC9: =IF(AND(BZ9=BZ11,CA9=CA11,CB11>CB9),BY11,BY9) -> Polina Lesyuk (DP) | CD9: =VLOOKUP(CC9,AY9:BG12,9,FALSE) -> 4 | CE9: =VLOOKUP(CC9,AY9:BG12,8,FALSE) -> 20 | CF9: =VLOOKUP(CC9,AY9:BG12,6,FALSE) -> 60 | CG9: =IF(AND(CD9=CD12,CE9=CE12,CF12>CF9),CC12,CC9) -> Polina Lesyuk (DP) | CH9: =VLOOKUP(CG9,AY9:BG12,9,FALSE) -> 4 | CI9: =VLOOKUP(CG9,AY9:BG12,8,FALSE) -> 20 | CJ9: =VLOOKUP(CG9,AY9:BG12,6,FALSE) -> 60 | CN9: =CG9 -> Polina Lesyuk (DP) | CO9: =VLOOKUP(CN9,AY9:BG12,2,FALSE) -> 2 | CP9: =VLOOKUP(CN9,AY9:BG12,3,FALSE) -> 2 | CQ9: =VLOOKUP(CN9,AY9:BG12,4,FALSE) -> 0 | CR9: =VLOOKUP(CN9,AY9:BG12,5,FALSE) -> 0 | CS9: =VLOOKUP(CN9,AY9:BG12,6,FALSE) -> 60 | CT9: =VLOOKUP(CN9,AY9:BG12,7,FALSE) -> 40 | CU9: =VLOOKUP(CN9,AY9:BG12,8,FALSE) -> 20 | CV9: =VLOOKUP(CN9,AY9:BG12,9,FALSE) -> 4 | CY9: =IF(G12<>"",IF(G12>G13,C12,IF(G13>G12,C13,"Empate")),"") -> Polina Lesyuk (DP) | CZ9: =IF(G12<>"",IF(G12<G13,C12,IF(G13<G12,C13,"Empate")),"") -> Laura Grade (ACV) | DC9: =IF(ISBLANK(DF9),COUNTA(DF10:$DG$11),0) -> 0 | DD9: 6 | DF9: Violeta Pshenychnicova | DG9: DPacheco | DH9: DP | DI9: 2007 | DJ9: Infantis A | DK9: F | DM9: SS | DP9: Violeta Pshenychnicova (DP)
B10: =$A$4 -> SS-InfA | C10: =AY10 -> Leonor Guerreiro (DP) | D10: 11 | E10: 9 | F10: 9 | G10: =IF(ISBLANK(D10),"",SUM(IF(D10>D11,1,0)+(IF(E10>E11,1,0)+(IF(F10>F11,1,0))))) -> 2 | H10: =$A$4 -> SS-InfA | I10: =IF(I11="","",AY11) ->  | M10: =IF(ISBLANK(J10),"",SUM(IF(J10>J11,1,0)+(IF(K10>K11,1,0)+(IF(L10>L11,1,0))))) ->  | N10: 9 | P10: Jogo Nº | Q10: =CONCATENATE($A$4," ",SUM(H26+1)) -> SS-InfA 13 | AL10: =IF(AM10="","","2º") -> 2º | AM10: =CN10 -> Leonor Guerreiro (DP) | AN10: =IF(AM10="","",CO10) -> 2 | AO10: =IF(AM10="","",CP10) -> 1 | AP10: =CQ10 -> 0 | AQ10: =IF(AM10="","",CR10) -> 1 | AR10: =IF(AM10="","",CS10) -> 49 | AS10: =IF(AM10="","",CT10) -> 50 | AT10: =IF(AM10="","",CU10) -> -1 | AU10: =IF(AM10="","",CV10) -> 3 | AV10: 5 | AW10: 8 | AX10: 2 | AY10: =IF(AY41="","",AY41) -> Leonor Guerreiro (DP) | AZ10: =COUNT(G10,M13,G15) -> 2 | BA10: =COUNTIF(CY7:CY12,AY10) -> 1 | BB10: =AZ10-(BA10+BC10) -> 0 | BC10: =COUNTIF(CZ7:CZ12,AY10) -> 1 | BD10: =SUM(D10:F10,J13:L13,D15:F15) -> 49 | BE10: =SUM(D11:F11,J12:L12,D14:F14) -> 50 | BF10: =BD10-BE10 -> -1 | BG10: =IF(AZ10=0,0,BA10*2+BC10*1) -> 3 | BH10: =IF(BG10<=BG9,AY10,AY9) -> Laura Grade (ACV) | BI10: =VLOOKUP(BH10,AY9:BG12,9,FALSE) -> 2 | BJ10: =IF(BI10>=BI12,BH10,BH12) -> Laura Grade (ACV) | BK10: =VLOOKUP(BJ10,AY9:BG12,9,FALSE) -> 2 | BL10: =IF(BK10>=BK11,BJ10,BJ11) -> Leonor Guerreiro (DP) | BM10: =VLOOKUP(BL10,AY9:BG12,9,FALSE) -> 3 | BN10: =VLOOKUP(BL10,AY9:BG12,8,FALSE) -> -1 | BO10: =IF(AND(BM9=BM10,BN10>BN9),BL9,BL10) -> Leonor Guerreiro (DP) | BP10: =VLOOKUP(BO10,AY9:BG12,9,FALSE) -> 3 | BQ10: =VLOOKUP(BO10,AY9:BG12,8,FALSE) -> -1 | BR10: =IF(AND(BP10=BP12,BQ12>BQ10),BO12,BO10) -> Leonor Guerreiro (DP) | BS10: =VLOOKUP(BR10,AY9:BG12,9,FALSE) -> 3 | BT10: =VLOOKUP(BR10,AY9:BG12,8,FALSE) -> -1 | BU10: =IF(AND(BS10=BS11,BT11>BT10),BR11,BR10) -> Leonor Guerreiro (DP) | BV10: =VLOOKUP(BU10,AY9:BG12,9,FALSE) -> 3 | BW10: =VLOOKUP(BU10,AY9:BG12,8,FALSE) -> -1 | BX10: =VLOOKUP(BU10,AY9:BG12,6,FALSE) -> 49 | BY10: =IF(AND(BV9=BV10,BW9=BW10,BX10>BX9),BU9,BU10) -> Leonor Guerreiro (DP) | BZ10: =VLOOKUP(BY10,AY9:BG12,9,FALSE) -> 3 | CA10: =VLOOKUP(BY10,AY9:BG12,8,FALSE) -> -1 | CB10: =VLOOKUP(BY10,AY9:BG12,6,FALSE) -> 49 | CC10: =IF(AND(BZ10=BZ12,CA10=CA12,CB12>CB10),BY12,BY10) -> Leonor Guerreiro (DP) | CD10: =VLOOKUP(CC10,AY9:BG12,9,FALSE) -> 3 | CE10: =VLOOKUP(CC10,AY9:BG12,8,FALSE) -> -1 | CF10: =VLOOKUP(CC10,AY9:BG12,6,FALSE) -> 49 | CG10: =IF(AND(CD10=CD11,CE10=CE11,CF11>CF10),CC11,CC10) -> Leonor Guerreiro (DP) | CH10: =VLOOKUP(CG10,AY9:BG12,9,FALSE) -> 3 | CI10: =VLOOKUP(CG10,AY9:BG12,8,FALSE) -> -1 | CJ10: =VLOOKUP(CG10,AY9:BG12,6,FALSE) -> 49 | CN10: =CG10 -> Leonor Guerreiro (DP) | CO10: =VLOOKUP(CN10,AY9:BG12,2,FALSE) -> 2 | CP10: =VLOOKUP(CN10,AY9:BG12,3,FALSE) -> 1 | CQ10: =VLOOKUP(CN10,AY9:BG12,4,FALSE) -> 0 | CR10: =VLOOKUP(CN10,AY9:BG12,5,FALSE) -> 1 | CS10: =VLOOKUP(CN10,AY9:BG12,6,FALSE) -> 49 | CT10: =VLOOKUP(CN10,AY9:BG12,7,FALSE) -> 50 | CU10: =VLOOKUP(CN10,AY9:BG12,8,FALSE) -> -1 | CV10: =VLOOKUP(CN10,AY9:BG12,9,FALSE) -> 3 | CY10: =IF(M12<>"",IF(M12>M13,I12,IF(M13>M12,I13,"Empate")),"") ->  | CZ10: =IF(M12<>"",IF(M12<M13,I12,IF(M13<M12,I13,"Empate")),"") ->  | DC10: =IF(ISBLANK(DF10),COUNTA(DF11:$DG$11),0) -> 0 | DD10: 7 | DP10: ()
B11: 1 | C11: =AY9 -> Laura Grade (ACV) | D11: 6 | E11: 11 | F11: 3 | G11: =IF(ISBLANK(D10),"",SUM(IF(D11>D10,1,0)+(IF(E11>E10,1,0)+(IF(F11>F10,1,0))))) -> 1 | H11: =B11+1 -> 2 | I11: =AY12 ->  | M11: =IF(ISBLANK(J10),"",SUM(IF(J11>J10,1,0)+(IF(K11>K10,1,0)+(IF(L11>L10,1,0))))) ->  | N11: 8 | O11: 1 | P11: =VLOOKUP(O11,AX54:AY57,2,FALSE) -> Polina Lesyuk (DP) | Q11: 9 | R11: 9 | T11: =IF(ISBLANK(Q11),"",SUM(IF(Q11>Q12,1,0)+(IF(R11>R12,1,0)+(IF(S11>S12,1,0))))) -> 2 | AL11: =IF(AM11="","","3º") -> 3º | AM11: =CN11 -> Laura Grade (ACV) | AN11: =IF(AM11="","",CO11) -> 2 | AO11: =IF(AM11="","",CP11) -> 0 | AP11: =CQ11 -> 0 | AQ11: =IF(AM11="","",CR11) -> 2 | AR11: =IF(AM11="","",CS11) -> 40 | AS11: =IF(AM11="","",CT11) -> 59 | AT11: =IF(AM11="","",CU11) -> -19 | AU11: =IF(AM11="","",CV11) -> 2 | AV11: 7.8 | AW11: 5 | AX11: 3 | AY11: =IF(AY43="","",AY43) -> Polina Lesyuk (DP) | AZ11: =COUNT(M10,G13,G14) -> 2 | BA11: =COUNTIF(CY7:CY12,AY11) -> 2 | BB11: =AZ11-(BA11+BC11) -> 0 | BC11: =COUNTIF(CZ7:CZ12,AY11) -> 0 | BD11: =SUM(J10:L10,D13:F13,D14:F14) -> 60 | BE11: =SUM(J11:L11,D12:F12,D15:F15) -> 40 | BF11: =BD11-BE11 -> 20 | BG11: =IF(AZ11=0,0,BA11*2+BC11*1) -> 4 | BH11: =IF(BG11>=BG12,AY11,AY12) -> Polina Lesyuk (DP) | BI11: =VLOOKUP(BH11,AY9:BG12,9,FALSE) -> 4 | BJ11: =IF(BI11<=BI9,BH11,BH9) -> Leonor Guerreiro (DP) | BK11: =VLOOKUP(BJ11,AY9:BG12,9,FALSE) -> 3 | BL11: =IF(BK11<=BK10,BJ11,BJ10) -> Laura Grade (ACV) | BM11: =VLOOKUP(BL11,AY9:BG12,9,FALSE) -> 2 | BN11: =VLOOKUP(BL11,AY9:BG12,8,FALSE) -> -19 | BO11: =IF(AND(BM11=BM12,BN12>BN11),BL12,BL11) -> Laura Grade (ACV) | BP11: =VLOOKUP(BO11,AY9:BG12,9,FALSE) -> 2 | BQ11: =VLOOKUP(BO11,AY9:BG12,8,FALSE) -> -19 | BR11: =IF(AND(BP9=BP11,BQ11>BQ9),BO9,BO11) -> Laura Grade (ACV) | BS11: =VLOOKUP(BR11,AY9:BG12,9,FALSE) -> 2 | BT11: =VLOOKUP(BR11,AY9:BG12,8,FALSE) -> -19 | BU11: =IF(AND(BS10=BS11,BT11>BT10),BR10,BR11) -> Laura Grade (ACV) | BV11: =VLOOKUP(BU11,AY9:BG12,9,FALSE) -> 2 | BW11: =VLOOKUP(BU11,AY9:BG12,8,FALSE) -> -19 | BX11: =VLOOKUP(BU11,AY9:BG12,6,FALSE) -> 40 | BY11: =IF(AND(BV11=BV12,BW11=BW12,BX12>BX11),BU12,BU11) -> Laura Grade (ACV) | BZ11: =VLOOKUP(BY11,AY9:BG12,9,FALSE) -> 2 | CA11: =VLOOKUP(BY11,AY9:BG12,8,FALSE) -> -19 | CB11: =VLOOKUP(BY11,AY9:BG12,6,FALSE) -> 40 | CC11: =IF(AND(BZ9=BZ11,CA9=CA11,CB10>CB9),BY9,BY11) -> Laura Grade (ACV) | CD11: =VLOOKUP(CC11,AY9:BG12,9,FALSE) -> 2 | CE11: =VLOOKUP(CC11,AY9:BG12,8,FALSE) -> -19 | CF11: =VLOOKUP(CC11,AY9:BG12,6,FALSE) -> 40 | CG11: =IF(AND(CD10=CD11,CE10=CE11,CF11>CF10),CC10,CC11) -> Laura Grade (ACV) | CH11: =VLOOKUP(CG11,AY9:BG12,9,FALSE) -> 2 | CI11: =VLOOKUP(CG11,AY9:BG12,8,FALSE) -> -19 | CJ11: =VLOOKUP(CG11,AY9:BG12,6,FALSE) -> 40 | CN11: =CG11 -> Laura Grade (ACV) | CO11: =VLOOKUP(CN11,AY9:BG12,2,FALSE) -> 2 | CP11: =VLOOKUP(CN11,AY9:BG12,3,FALSE) -> 0 | CQ11: =VLOOKUP(CN11,AY9:BG12,4,FALSE) -> 0 | CR11: =VLOOKUP(CN11,AY9:BG12,5,FALSE) -> 2 | CS11: =VLOOKUP(CN11,AY9:BG12,6,FALSE) -> 40 | CT11: =VLOOKUP(CN11,AY9:BG12,7,FALSE) -> 59 | CU11: =VLOOKUP(CN11,AY9:BG12,8,FALSE) -> -19 | CV11: =VLOOKUP(CN11,AY9:BG12,9,FALSE) -> 2 | CY11: =IF(M14<>"",IF(M14>M15,I14,IF(M15>M14,I15,"Empate")),"") ->  | CZ11: =IF(M14<>"",IF(M14<M15,I14,IF(M15<M14,I15,"Empate")),"") ->  | DC11: =IF(ISBLANK(DF11),COUNTA(DF$11:$DG12),0) -> 0 | DD11: 8 | DP11: ()
B12: =$A$4 -> SS-InfA | C12: =AY9 -> Laura Grade (ACV) | D12: 11 | E12: 6 | F12: 3 | G12: =IF(ISBLANK(D12),"",SUM(IF(D12>D13,1,0)+(IF(E12>E13,1,0)+(IF(F12>F13,1,0))))) -> 1 | H12: =$A$4 -> SS-InfA | I12: =AY12 ->  | M12: =IF(ISBLANK(J12),"",SUM(IF(J12>J13,1,0)+(IF(K12>K13,1,0)+(IF(L12>L13,1,0))))) ->  | O12: 4 | P12: =VLOOKUP(O12,AX54:AY57,2,FALSE) -> Jessica Rochefort (DP) | Q12: 5 | R12: 3 | T12: =IF(ISBLANK(Q11),"",SUM(IF(Q12>Q11,1,0)+(IF(R12>R11,1,0)+(IF(S12>S11,1,0))))) -> 0 | AL12: =IF(AM12="","","4º") ->  | AM12: =CN12 ->  | AN12: =IF(AM12="","",CO12) ->  | AO12: =IF(AM12="","",CP12) ->  | AP12: =CQ12 -> -6 | AQ12: =IF(AM12="","",CR12) ->  | AR12: =IF(AM12="","",CS12) ->  | AS12: =IF(AM12="","",CT12) ->  | AT12: =IF(AM12="","",CU12) ->  | AU12: =IF(AM12="","",CV12) ->  | AW12: 4 | AX12: 4 | AY12: =IF(AY45="","",AY45) ->  | AZ12: =COUNT(M11,M12,M14) -> 0 | BA12: =COUNTIF(CY7:CY12,AY12) -> 3 | BB12: =AZ12-(BA12+BC12) -> -6 | BC12: =COUNTIF(CZ7:CZ12,AY12) -> 3 | BD12: =SUM(J11:L11,J12:L12,J14:L14) -> 0 | BE12: =SUM(J10:L10,J13:L13,J15:L15) -> 0 | BF12: =BD12-BE12 -> 0 | BG12: =IF(AZ12=0,0,BA12*2+BC12*1) -> 0 | BH12: =IF(BG12<=BG11,AY12,AY11) ->  | BI12: =VLOOKUP(BH12,AY9:BG12,9,FALSE) -> 0 | BJ12: =IF(BI12<=BI10,BH12,BH10) ->  | BK12: =VLOOKUP(BJ12,AY9:BG12,9,FALSE) -> 0 | BL12: =IF(BK12<=BK9,BJ12,BJ9) ->  | BM12: =VLOOKUP(BL12,AY9:BG12,9,FALSE) -> 0 | BN12: =VLOOKUP(BL12,AY9:BG12,8,FALSE) -> 0 | BO12: =IF(AND(BM11=BM12,BN12>BN11),BL11,BL12) ->  | BP12: =VLOOKUP(BO12,AY9:BG12,9,FALSE) -> 0 | BQ12: =VLOOKUP(BO12,AY9:BG12,8,FALSE) -> 0 | BR12: =IF(AND(BP10=BP12,BQ12>BQ10),BO10,BO12) ->  | BS12: =VLOOKUP(BR12,AY9:BG12,9,FALSE) -> 0 | BT12: =VLOOKUP(BR12,AY9:BG12,8,FALSE) -> 0 | BU12: =IF(AND(BS9=BS12,BT12>BT9),BR9,BR12) ->  | BV12: =VLOOKUP(BU12,AY9:BG12,9,FALSE) -> 0 | BW12: =VLOOKUP(BU12,AY9:BG12,8,FALSE) -> 0 | BX12: =VLOOKUP(BU12,AY9:BG12,6,FALSE) -> 0 | BY12: =IF(AND(BV11=BV12,BW11=BW12,BX12>BX11),BU11,BU12) ->  | BZ12: =VLOOKUP(BY12,AY9:BG12,9,FALSE) -> 0 | CA12: =VLOOKUP(BY12,AY9:BG12,8,FALSE) -> 0 | CB12: =VLOOKUP(BY12,AY9:BG12,6,FALSE) -> 0 | CC12: =IF(AND(BZ10=BZ12,CA10=CA12,CB12>CB10),BY10,BY12) ->  | CD12: =VLOOKUP(CC12,AY9:BG12,9,FALSE) -> 0 | CE12: =VLOOKUP(CC12,AY9:BG12,8,FALSE) -> 0 | CF12: =VLOOKUP(CC12,AY9:BG12,6,FALSE) -> 0 | CG12: =IF(AND(CD9=CD12,CE9=CE12,CF12>CF9),CC9,CC12) ->  | CH12: =VLOOKUP(CG12,AY9:BG12,9,FALSE) -> 0 | CI12: =VLOOKUP(CG12,AY9:BG12,8,FALSE) -> 0 | CJ12: =VLOOKUP(CG12,AY9:BG12,6,FALSE) -> 0 | CN12: =CG12 ->  | CO12: =VLOOKUP(CN12,AY9:BG12,2,FALSE) -> 0 | CP12: =VLOOKUP(CN12,AY9:BG12,3,FALSE) -> 3 | CQ12: =VLOOKUP(CN12,AY9:BG12,4,FALSE) -> -6 | CR12: =VLOOKUP(CN12,AY9:BG12,5,FALSE) -> 3 | CS12: =VLOOKUP(CN12,AY9:BG12,6,FALSE) -> 0 | CT12: =VLOOKUP(CN12,AY9:BG12,7,FALSE) -> 0 | CU12: =VLOOKUP(CN12,AY9:BG12,8,FALSE) -> 0 | CV12: =VLOOKUP(CN12,AY9:BG12,9,FALSE) -> 0 | CY12: =IF(G15<>"",IF(G15>G14,C15,IF(G14>G15,C14,"Empate")),"") -> Polina Lesyuk (DP) | CZ12: =IF(G15<>"",IF(G15<G14,C15,IF(G14<G15,C14,"Empate")),"") -> Leonor Guerreiro (DP) | DC12: Existe um erro no preenchimento na lista de participantes. PF elimine os espaços em branco entre os participantes, fazendo subir os jogadores abaixo, caso haja necesidade de eliminar jogadores por Falta de Comparência. | DH12: =IF(DC2>0,DC12,"") -> 
B13: =H22+1 -> 5 | C13: =AY11 -> Polina Lesyuk (DP) | D13: 10 | E13: 11 | F13: 9 | G13: =IF(ISBLANK(D12),"",SUM(IF(D13>D12,1,0)+(IF(E13>E12,1,0)+(IF(F13>F12,1,0))))) -> 2 | H13: =B13+1 -> 6 | I13: =IF(I12="","",AY10) ->  | M13: =IF(ISBLANK(J12),"",SUM(IF(J13>J12,1,0)+(IF(K13>K12,1,0)+(IF(L13>L12,1,0))))) ->  | N13: 5 | DE13: Se pretender efectuar altrerações apague, e volte a introduzir os jogadores que pretender nos espaços disponíveis.
B14: =$A$4 -> SS-InfA | C14: =AY11 -> Polina Lesyuk (DP) | D14: 11 | E14: 10 | F14: 9 | G14: =IF(ISBLANK(D14),"",SUM(IF(D14>D15,1,0)+(IF(E14>E15,1,0)+(IF(F14>F15,1,0))))) -> 2 | H14: =$A$4 -> SS-InfA | I14: =AY12 ->  | M14: =IF(ISBLANK(J14),"",SUM(IF(J14>J15,1,0)+(IF(K14>K15,1,0)+(IF(L14>L15,1,0))))) ->  | N14: 12 | AY14: Colocar Equipas | BH14: Ordenar p/ Pts 1 | BJ14: Ordenar p/ Pts 2 | BL14: Ordenar p/ Pts 3 | BO14: Ordenar p/ DG 1 | BR14: Ordenar p/ DG 2 | BU14: Ordenar p/ DG 3 | BY14: Ordenar p/ GM 1 | CC14: Ordenar p/ GM 2 | CG14: Ordenar p/ GM 3 | CY14: Vencedores | CZ14: Derrotados
B15: =H24+1 -> 9 | C15: =AY10 -> Leonor Guerreiro (DP) | D15: 6 | E15: 11 | F15: 3 | G15: =IF(ISBLANK(D14),"",SUM(IF(D15>D14,1,0)+(IF(E15>E14,1,0)+(IF(F15>F14,1,0))))) -> 1 | H15: =B15+1 -> 10 | I15: =IF(I14="","",AY9) ->  | M15: =IF(ISBLANK(J14),"",SUM(IF(J15>J14,1,0)+(IF(K15>K14,1,0)+(IF(L15>L14,1,0))))) ->  | AM15: Classificação Grupo B | AY15: Grupo B | CY15: =IF(G22<>"",IF(G22>G21,C22,IF(G21>G22,C21,"Empate")),"") -> Jessica Rochefort (DP) | CZ15: =IF(G22<>"",IF(G22<G21,C22,IF(G21<G22,C21,"Empate")),"") -> Maira Kaushik (DP)
N16: 13 | W16: Jogo Nº | X16: =CONCATENATE($A$4," ",SUM(H26+3)) -> SS-InfA 15 | AD16: Vencedor | AL16: Cl | AM16: =AY16 -> Jogadores | AN16: Jg | AO16: V | AP16: E | AQ16: D | AR16: PM | AS16: PS | AT16: DP | AU16: Pt. | AY16: Jogadores | AZ16: Jg | BA16: V | BB16: E | BC16: D | BD16: GM | BE16: GS | BF16: DG | BG16: Pts | BH16: Equipas | BI16: Pts | BJ16: Equipas | BK16: Pts | BL16: Equipas | BM16: Pts | BN16: DG | BO16: Equipas | BP16: Pts | BQ16: DG | BR16: Equipas | BS16: Pts | BT16: DG | BU16: Equipas | BV16: Pts | BW16: DG | BX16: GM | BY16: Equipas | BZ16: Pts | CA16: DG | CB16: GM | CC16: Equipas | CD16: Pts | CE16: DG | CF16: GM | CG16: Equipas | CH16: Pts | CI16: DG | CJ16: GM | CN16: Equipas | CO16: Jg | CP16: V | CQ16: D | CR16: E | CS16: GM | CT16: GS | CU16: DG | CV16: Pts | CY16: =IF(M21<>"",IF(M21>M22,I21,IF(M22>M21,I22,"Empate")),"") ->  | CZ16: =IF(M21<>"",IF(M21<M22,I21,IF(M22<M21,I22,"Empate")),"") ->  | DE16: Para efectuar alterações à de colocações nos grupos dos jogadores, altere a coluna "ORDEM" dando uma nova ordem de nºs e depois clique em Ordenar.
N17: 4 | P17: =IF(T11=T12,"",IF(T11<T12,P11,P12)) -> Jessica Rochefort (DP) | Q17: 5 | T17: =IF(ISBLANK(Q17),"",SUM(IF(Q17>Q18,1,0)+(IF(R17>R18,1,0)+(IF(S17>S18,1,0))))) -> 0 | W17: =IF(T11=T12,"",IF(T11>T12,P11,P12)) -> Polina Lesyuk (DP) | X17: 9 | Y17: 9 | AA17: =IF(ISBLANK(X17),"",SUM(IF(X17>X18,1,0)+(IF(Y17>Y18,1,0)+(IF(Z17>Z18,1,0))))) -> 2 | AD17: =IF(AA17=AA18,"",IF(AA17>AA18,W17,W18)) -> Polina Lesyuk (DP) | AL17: =IF(AM17="","","1º") -> 1º | AM17: =CN17 -> Violeta Pshenychnicova (DP) | AN17: =IF(AM17="","",CO17) -> 2 | AO17: =IF(AM17="","",CP17) -> 2 | AP17: =CQ17 -> 0 | AQ17: =IF(AM17="","",CR17) -> 0 | AR17: =IF(AM17="","",CS17) -> 51 | AS17: =IF(AM17="","",CT17) -> 43 | AT17: =IF(AM17="","",CU17) -> 8 | AU17: =IF(AM17="","",CV17) -> 4 | AV17: 2 | AW17: 3 | AX17: 5 | AY17: =IF(AY40="","",AY40) -> Jessica Rochefort (DP) | AZ17: =COUNT(G22,G23,M26) -> 2 | BA17: =COUNTIF(CY15:CY20,AY17) -> 1 | BB17: =AZ17-(BA17+BC17) -> 0 | BC17: =COUNTIF(CZ15:CZ20,AY17) -> 1 | BD17: =SUM(D22:F22,D23:F23,J26:L26) -> 58 | BE17: =SUM(D21:F21,D24:F24,J25:L25) -> 53 | BF17: =BD17-BE17 -> 5 | BG17: =IF(AZ17=0,0,BA17*2+BC17*1) -> 3 | BH17: =IF(BG17>=BG18,AY17,AY18) -> Jessica Rochefort (DP) | BI17: =VLOOKUP(BH17,AY17:BG20,9,FALSE) -> 3 | BJ17: =IF(BI17>=BI19,BH17,BH19) -> Violeta Pshenychnicova (DP) | BK17: =VLOOKUP(BJ17,AY17:BG20,9,FALSE) -> 4 | BL17: =IF(BK17>=BK20,BJ17,BJ20) -> Violeta Pshenychnicova (DP) | BM17: =VLOOKUP(BL17,AY17:BG20,9,FALSE) -> 4 | BN17: =VLOOKUP(BL17,AY17:BG20,8,FALSE) -> 8 | BO17: =IF(AND(BM17=BM18,BN18>BN17),BL18,BL17) -> Violeta Pshenychnicova (DP) | BP17: =VLOOKUP(BO17,AY17:BG20,9,FALSE) -> 4 | BQ17: =VLOOKUP(BO17,AY17:BG20,8,FALSE) -> 8 | BR17: =IF(AND(BP17=BP19,BQ19>BQ17),BO19,BO17) -> Violeta Pshenychnicova (DP) | BS17: =VLOOKUP(BR17,AY17:BG20,9,FALSE) -> 4 | BT17: =VLOOKUP(BR17,AY17:BG20,8,FALSE) -> 8 | BU17: =IF(AND(BS17=BS20,BT20>BT17),BR20,BR17) -> Violeta Pshenychnicova (DP) | BV17: =VLOOKUP(BU17,AY17:BG20,9,FALSE) -> 4 | BW17: =VLOOKUP(BU17,AY17:BG20,8,FALSE) -> 8 | BX17: =VLOOKUP(BU17,AY17:BG20,6,FALSE) -> 51 | BY17: =IF(AND(BV17=BV18,BW17=BW18,BX18>BX17),BU18,BU17) -> Violeta Pshenychnicova (DP) | BZ17: =VLOOKUP(BY17,AY17:BG20,9,FALSE) -> 4 | CA17: =VLOOKUP(BY17,AY17:BG20,8,FALSE) -> 8 | CB17: =VLOOKUP(BY17,AY17:BG20,6,FALSE) -> 51 | CC17: =IF(AND(BZ17=BZ19,CA17=CA19,CB19>CB17),BY19,BY17) -> Violeta Pshenychnicova (DP) | CD17: =VLOOKUP(CC17,AY17:BG20,9,FALSE) -> 4 | CE17: =VLOOKUP(CC17,AY17:BG20,8,FALSE) -> 8 | CF17: =VLOOKUP(CC17,AY17:BG20,6,FALSE) -> 51 | CG17: =IF(AND(CD17=CD20,CE17=CE20,CF20>CF17),CC20,CC17) -> Violeta Pshenychnicova (DP) | CH17: =VLOOKUP(CG17,AY17:BG20,9,FALSE) -> 4 | CI17: =VLOOKUP(CG17,AY17:BG20,8,FALSE) -> 8 | CJ17: =VLOOKUP(CG17,AY17:BG20,6,FALSE) -> 51 | CN17: =CG17 -> Violeta Pshenychnicova (DP) | CO17: =VLOOKUP(CN17,AY17:BG20,2,FALSE) -> 2 | CP17: =VLOOKUP(CN17,AY17:BG20,3,FALSE) -> 2 | CQ17: =VLOOKUP(CN17,AY17:BG20,4,FALSE) -> 0 | CR17: =VLOOKUP(CN17,AY17:BG20,5,FALSE) -> 0 | CS17: =VLOOKUP(CN17,AY17:BG20,6,FALSE) -> 51 | CT17: =VLOOKUP(CN17,AY17:BG20,7,FALSE) -> 43 | CU17: =VLOOKUP(CN17,AY17:BG20,8,FALSE) -> 8 | CV17: =VLOOKUP(CN17,AY17:BG20,9,FALSE) -> 4 | CY17: =IF(G23<>"",IF(G23>G24,C23,IF(G24>G23,C24,"Empate")),"") -> Violeta Pshenychnicova (DP) | CZ17: =IF(G23<>"",IF(G23<G24,C23,IF(G24<G23,C24,"Empate")),"") -> Jessica Rochefort (DP)
P18: =IF(T24=T25,"",IF(T24<T25,P24,P25)) -> Violeta Pshenychnicova (DP) | Q18: 11 | T18: =IF(ISBLANK(Q17),"",SUM(IF(Q18>Q17,1,0)+(IF(R18>R17,1,0)+(IF(S18>S17,1,0))))) -> 1 | W18: =IF(T24=T25,"",IF(T24>T25,P24,P25)) -> Leonor Guerreiro (DP) | X18: 3 | Y18: 4 | AA18: =IF(ISBLANK(X17),"",SUM(IF(X18>X17,1,0)+(IF(Y18>Y17,1,0)+(IF(Z18>Z17,1,0))))) -> 0 | AL18: =IF(AM18="","","2º") -> 2º | AM18: =CN18 -> Jessica Rochefort (DP) | AN18: =IF(AM18="","",CO18) -> 2 | AO18: =IF(AM18="","",CP18) -> 1 | AP18: =CQ18 -> 0 | AQ18: =IF(AM18="","",CR18) -> 1 | AR18: =IF(AM18="","",CS18) -> 58 | AS18: =IF(AM18="","",CT18) -> 53 | AT18: =IF(AM18="","",CU18) -> 5 | AU18: =IF(AM18="","",CV18) -> 3 | AV18: 6 | AW18: 6 | AX18: 6 | AY18: =IF(AY42="","",AY42) -> Maira Kaushik (DP) | AZ18: =COUNT(G21,M24,G26) -> 2 | BA18: =COUNTIF(CY15:CY20,AY18) -> 0 | BB18: =AZ18-(BA18+BC18) -> 0 | BC18: =COUNTIF(CZ15:CZ20,AY18) -> 2 | BD18: =SUM(D21:F21,J24:L24,D26:F26) -> 39 | BE18: =SUM(D22:F22,J23:L23,D25:F25) -> 52 | BF18: =BD18-BE18 -> -13 | BG18: =IF(AZ18=0,0,BA18*2+BC18*1) -> 2 | BH18: =IF(BG18<=BG17,AY18,AY17) -> Maira Kaushik (DP) | BI18: =VLOOKUP(BH18,AY17:BG20,9,FALSE) -> 2 | BJ18: =IF(BI18>=BI20,BH18,BH20) -> Maira Kaushik (DP) | BK18: =VLOOKUP(BJ18,AY17:BG20,9,FALSE) -> 2 | BL18: =IF(BK18>=BK19,BJ18,BJ19) -> Jessica Rochefort (DP) | BM18: =VLOOKUP(BL18,AY17:BG20,9,FALSE) -> 3 | BN18: =VLOOKUP(BL18,AY17:BG20,8,FALSE) -> 5 | BO18: =IF(AND(BM17=BM18,BN18>BN17),BL17,BL18) -> Jessica Rochefort (DP) | BP18: =VLOOKUP(BO18,AY17:BG20,9,FALSE) -> 3 | BQ18: =VLOOKUP(BO18,AY17:BG20,8,FALSE) -> 5 | BR18: =IF(AND(BP18=BP20,BQ20>BQ18),BO20,BO18) -> Jessica Rochefort (DP) | BS18: =VLOOKUP(BR18,AY17:BG20,9,FALSE) -> 3 | BT18: =VLOOKUP(BR18,AY17:BG20,8,FALSE) -> 5 | BU18: =IF(AND(BS18=BS19,BT19>BT18),BR19,BR18) -> Jessica Rochefort (DP) | BV18: =VLOOKUP(BU18,AY17:BG20,9,FALSE) -> 3 | BW18: =VLOOKUP(BU18,AY17:BG20,8,FALSE) -> 5 | BX18: =VLOOKUP(BU18,AY17:BG20,6,FALSE) -> 58 | BY18: =IF(AND(BV17=BV18,BW17=BW18,BX18>BX17),BU17,BU18) -> Jessica Rochefort (DP) | BZ18: =VLOOKUP(BY18,AY17:BG20,9,FALSE) -> 3 | CA18: =VLOOKUP(BY18,AY17:BG20,8,FALSE) -> 5 | CB18: =VLOOKUP(BY18,AY17:BG20,6,FALSE) -> 58 | CC18: =IF(AND(BZ18=BZ20,CA18=CA20,CB20>CB18),BY20,BY18) -> Jessica Rochefort (DP) | CD18: =VLOOKUP(CC18,AY17:BG20,9,FALSE) -> 3 | CE18: =VLOOKUP(CC18,AY17:BG20,8,FALSE) -> 5 | CF18: =VLOOKUP(CC18,AY17:BG20,6,FALSE) -> 58 | CG18: =IF(AND(CD18=CD19,CE18=CE19,CF19>CF18),CC19,CC18) -> Jessica Rochefort (DP) | CH18: =VLOOKUP(CG18,AY17:BG20,9,FALSE) -> 3 | CI18: =VLOOKUP(CG18,AY17:BG20,8,FALSE) -> 5 | CJ18: =VLOOKUP(CG18,AY17:BG20,6,FALSE) -> 58 | CN18: =CG18 -> Jessica Rochefort (DP) | CO18: =VLOOKUP(CN18,AY17:BG20,2,FALSE) -> 2 | CP18: =VLOOKUP(CN18,AY17:BG20,3,FALSE) -> 1 | CQ18: =VLOOKUP(CN18,AY17:BG20,4,FALSE) -> 0 | CR18: =VLOOKUP(CN18,AY17:BG20,5,FALSE) -> 1 | CS18: =VLOOKUP(CN18,AY17:BG20,6,FALSE) -> 58 | CT18: =VLOOKUP(CN18,AY17:BG20,7,FALSE) -> 53 | CU18: =VLOOKUP(CN18,AY17:BG20,8,FALSE) -> 5 | CV18: =VLOOKUP(CN18,AY17:BG20,9,FALSE) -> 3 | CY18: =IF(M23<>"",IF(M23>M24,I23,IF(M24>M23,I24,"Empate")),"") ->  | CZ18: =IF(M23<>"",IF(M23<M24,I23,IF(M24<M23,I24,"Empate")),"") -> 
N19: 3 | P19: 3º/4º | AL19: =IF(AM19="","","3º") -> 3º | AM19: =CN19 -> Maira Kaushik (DP) | AN19: =IF(AM19="","",CO19) -> 2 | AO19: =IF(AM19="","",CP19) -> 0 | AP19: =CQ19 -> 0 | AQ19: =IF(AM19="","",CR19) -> 2 | AR19: =IF(AM19="","",CS19) -> 39 | AS19: =IF(AM19="","",CT19) -> 52 | AT19: =IF(AM19="","",CU19) -> -13 | AU19: =IF(AM19="","",CV19) -> 2 | AV19: 7.8 | AW19: 7 | AX19: 7 | AY19: =IF(AY44="","",AY44) -> Violeta Pshenychnicova (DP) | AZ19: =COUNT(M21,G24,G25) -> 2 | BA19: =COUNTIF(CY15:CY20,AY19) -> 2 | BB19: =AZ19-(BA19+BC19) -> 0 | BC19: =COUNTIF(CZ15:CZ20,AY19) -> 0 | BD19: =SUM(J21:L21,D24:F24,D25:F25) -> 51 | BE19: =SUM(J22:L22,D23:F23,D26:F26) -> 43 | BF19: =BD19-BE19 -> 8 | BG19: =IF(AZ19=0,0,BA19*2+BC19*1) -> 4 | BH19: =IF(BG19>=BG20,AY19,AY20) -> Violeta Pshenychnicova (DP) | BI19: =VLOOKUP(BH19,AY17:BG20,9,FALSE) -> 4 | BJ19: =IF(BI19<=BI17,BH19,BH17) -> Jessica Rochefort (DP) | BK19: =VLOOKUP(BJ19,AY17:BG20,9,FALSE) -> 3 | BL19: =IF(BK19<=BK18,BJ19,BJ18) -> Maira Kaushik (DP) | BM19: =VLOOKUP(BL19,AY17:BG20,9,FALSE) -> 2 | BN19: =VLOOKUP(BL19,AY17:BG20,8,FALSE) -> -13 | BO19: =IF(AND(BM19=BM20,BN20>BN19),BL20,BL19) -> Maira Kaushik (DP) | BP19: =VLOOKUP(BO19,AY17:BG20,9,FALSE) -> 2 | BQ19: =VLOOKUP(BO19,AY17:BG20,8,FALSE) -> -13 | BR19: =IF(AND(BP17=BP19,BQ19>BQ17),BO17,BO19) -> Maira Kaushik (DP) | BS19: =VLOOKUP(BR19,AY17:BG20,9,FALSE) -> 2 | BT19: =VLOOKUP(BR19,AY17:BG20,8,FALSE) -> -13 | BU19: =IF(AND(BS18=BS19,BT19>BT18),BR18,BR19) -> Maira Kaushik (DP) | BV19: =VLOOKUP(BU19,AY17:BG20,9,FALSE) -> 2 | BW19: =VLOOKUP(BU19,AY17:BG20,8,FALSE) -> -13 | BX19: =VLOOKUP(BU19,AY17:BG20,6,FALSE) -> 39 | BY19: =IF(AND(BV19=BV20,BW19=BW20,BX20>BX19),BU20,BU19) -> Maira Kaushik (DP) | BZ19: =VLOOKUP(BY19,AY17:BG20,9,FALSE) -> 2 | CA19: =VLOOKUP(BY19,AY17:BG20,8,FALSE) -> -13 | CB19: =VLOOKUP(BY19,AY17:BG20,6,FALSE) -> 39 | CC19: =IF(AND(BZ17=BZ19,CA17=CA19,CB18>CB17),BY17,BY19) -> Maira Kaushik (DP) | CD19: =VLOOKUP(CC19,AY17:BG20,9,FALSE) -> 2 | CE19: =VLOOKUP(CC19,AY17:BG20,8,FALSE) -> -13 | CF19: =VLOOKUP(CC19,AY17:BG20,6,FALSE) -> 39 | CG19: =IF(AND(CD18=CD19,CE18=CE19,CF19>CF18),CC18,CC19) -> Maira Kaushik (DP) | CH19: =VLOOKUP(CG19,AY17:BG20,9,FALSE) -> 2 | CI19: =VLOOKUP(CG19,AY17:BG20,8,FALSE) -> -13 | CJ19: =VLOOKUP(CG19,AY17:BG20,6,FALSE) -> 39 | CN19: =CG19 -> Maira Kaushik (DP) | CO19: =VLOOKUP(CN19,AY17:BG20,2,FALSE) -> 2 | CP19: =VLOOKUP(CN19,AY17:BG20,3,FALSE) -> 0 | CQ19: =VLOOKUP(CN19,AY17:BG20,4,FALSE) -> 0 | CR19: =VLOOKUP(CN19,AY17:BG20,5,FALSE) -> 2 | CS19: =VLOOKUP(CN19,AY17:BG20,6,FALSE) -> 39 | CT19: =VLOOKUP(CN19,AY17:BG20,7,FALSE) -> 52 | CU19: =VLOOKUP(CN19,AY17:BG20,8,FALSE) -> -13 | CV19: =VLOOKUP(CN19,AY17:BG20,9,FALSE) -> 2 | CY19: =IF(M25<>"",IF(M25>M26,I25,IF(M26>M25,I26,"Empate")),"") ->  | CZ19: =IF(M25<>"",IF(M25<M26,I25,IF(M26<M25,I26,"Empate")),"") -> 
A20: Grupo B | B20: NºJ | C20: Jogadores | D20: 1 | E20: 2 | F20: 3 | G20: R | H20: NºJ | I20: Jogadores | J20: 1 | K20: 2 | L20: 3 | M20: R | N20: 14 | P20: =IF(T17=T18,"",IF(T17>T18,P17,P18)) -> Violeta Pshenychnicova (DP) | AL20: =IF(AM20="","","4º") ->  | AM20: =CN20 ->  | AN20: =IF(AM20="","",CO20) ->  | AO20: =IF(AM20="","",CP20) ->  | AP20: =CQ20 -> -6 | AQ20: =IF(AM20="","",CR20) ->  | AR20: =IF(AM20="","",CS20) ->  | AS20: =IF(AM20="","",CT20) ->  | AT20: =IF(AM20="","",CU20) ->  | AU20: =IF(AM20="","",CV20) ->  | AW20: 2 | AX20: 8 | AY20: =IF(AY46="","",AY46) ->  | AZ20: =COUNT(M22,M23,M25) -> 0 | BA20: =COUNTIF(CY15:CY20,AY20) -> 3 | BB20: =AZ20-(BA20+BC20) -> -6 | BC20: =COUNTIF(CZ15:CZ20,AY20) -> 3 | BD20: =SUM(J22:L22,J23:L23,J25:L25) -> 0 | BE20: =SUM(J18:L18,J21:L21,J23:L23) -> 0 | BF20: =BD20-BE20 -> 0 | BG20: =IF(AZ20=0,0,BA20*2+BC20*1) -> 0 | BH20: =IF(BG20<=BG19,AY20,AY19) ->  | BI20: =VLOOKUP(BH20,AY17:BG20,9,FALSE) -> 0 | BJ20: =IF(BI20<=BI18,BH20,BH18) ->  | BK20: =VLOOKUP(BJ20,AY17:BG20,9,FALSE) -> 0 | BL20: =IF(BK20<=BK17,BJ20,BJ17) ->  | BM20: =VLOOKUP(BL20,AY17:BG20,9,FALSE) -> 0 | BN20: =VLOOKUP(BL20,AY17:BG20,8,FALSE) -> 0 | BO20: =IF(AND(BM19=BM20,BN20>BN19),BL19,BL20) ->  | BP20: =VLOOKUP(BO20,AY17:BG20,9,FALSE) -> 0 | BQ20: =VLOOKUP(BO20,AY17:BG20,8,FALSE) -> 0 | BR20: =IF(AND(BP18=BP20,BQ20>BQ18),BO18,BO20) ->  | BS20: =VLOOKUP(BR20,AY17:BG20,9,FALSE) -> 0 | BT20: =VLOOKUP(BR20,AY17:BG20,8,FALSE) -> 0 | BU20: =IF(AND(BS17=BS20,BT20>BT17),BR17,BR20) ->  | BV20: =VLOOKUP(BU20,AY17:BG20,9,FALSE) -> 0 | BW20: =VLOOKUP(BU20,AY17:BG20,8,FALSE) -> 0 | BX20: =VLOOKUP(BU20,AY17:BG20,6,FALSE) -> 0 | BY20: =IF(AND(BV19=BV20,BW19=BW20,BX20>BX19),BU19,BU20) ->  | BZ20: =VLOOKUP(BY20,AY17:BG20,9,FALSE) -> 0 | CA20: =VLOOKUP(BY20,AY17:BG20,8,FALSE) -> 0 | CB20: =VLOOKUP(BY20,AY17:BG20,6,FALSE) -> 0 | CC20: =IF(AND(BZ18=BZ20,CA18=CA20,CB20>CB18),BY18,BY20) ->  | CD20: =VLOOKUP(CC20,AY17:BG20,9,FALSE) -> 0 | CE20: =VLOOKUP(CC20,AY17:BG20,8,FALSE) -> 0 | CF20: =VLOOKUP(CC20,AY17:BG20,6,FALSE) -> 0 | CG20: =IF(AND(CD17=CD20,CE17=CE20,CF20>CF17),CC17,CC20) ->  | CH20: =VLOOKUP(CG20,AY17:BG20,9,FALSE) -> 0 | CI20: =VLOOKUP(CG20,AY17:BG20,8,FALSE) -> 0 | CJ20: =VLOOKUP(CG20,AY17:BG20,6,FALSE) -> 0 | CN20: =CG20 ->  | CO20: =VLOOKUP(CN20,AY17:BG20,2,FALSE) -> 0 | CP20: =VLOOKUP(CN20,AY17:BG20,3,FALSE) -> 3 | CQ20: =VLOOKUP(CN20,AY17:BG20,4,FALSE) -> -6 | CR20: =VLOOKUP(CN20,AY17:BG20,5,FALSE) -> 3 | CS20: =VLOOKUP(CN20,AY17:BG20,6,FALSE) -> 0 | CT20: =VLOOKUP(CN20,AY17:BG20,7,FALSE) -> 0 | CU20: =VLOOKUP(CN20,AY17:BG20,8,FALSE) -> 0 | CV20: =VLOOKUP(CN20,AY17:BG20,9,FALSE) -> 0 | CY20: =IF(G26<>"",IF(G26>G25,C26,IF(G25>G26,C25,"Empate")),"") -> Violeta Pshenychnicova (DP) | CZ20: =IF(G26<>"",IF(G26<G25,C26,IF(G25<G26,C25,"Empate")),"") -> Maira Kaushik (DP)
B21: =$A$4 -> SS-InfA | C21: =AY18 -> Maira Kaushik (DP) | D21: 8 | E21: 11 | F21: 5 | G21: =IF(ISBLANK(D21),"",SUM(IF(D21>D22,1,0)+(IF(E21>E22,1,0)+(IF(F21>F22,1,0))))) -> 1 | H21: =$A$4 -> SS-InfA | I21: =IF(I22="","",AY19) ->  | M21: =IF(ISBLANK(J21),"",SUM(IF(J21>J22,1,0)+(IF(K21>K22,1,0)+(IF(L21>L22,1,0))))) -> 
B22: =H11+1 -> 3 | C22: =AY17 -> Jessica Rochefort (DP) | D22: 11 | E22: 10 | F22: 9 | G22: =IF(ISBLANK(D21),"",SUM(IF(D22>D21,1,0)+(IF(E22>E21,1,0)+(IF(F22>F21,1,0))))) -> 2 | H22: =B22+1 -> 4 | I22: =AY20 ->  | M22: =IF(ISBLANK(J21),"",SUM(IF(J22>J21,1,0)+(IF(K22>K21,1,0)+(IF(L22>L21,1,0))))) ->  | N22: 11
B23: =$A$4 -> SS-InfA | C23: =AY17 -> Jessica Rochefort (DP) | D23: 9 | E23: 11 | F23: 8 | G23: =IF(ISBLANK(D23),"",SUM(IF(D23>D24,1,0)+(IF(E23>E24,1,0)+(IF(F23>F24,1,0))))) -> 1 | H23: =$A$4 -> SS-InfA | I23: =AY20 ->  | M23: =IF(ISBLANK(J23),"",SUM(IF(J23>J24,1,0)+(IF(K23>K24,1,0)+(IF(L23>L24,1,0))))) ->  | N23: 6 | P23: Jogo Nº | Q23: =CONCATENATE($A$4," ",SUM(H26+2)) -> SS-InfA 14
B24: =H13+1 -> 7 | C24: =AY19 -> Violeta Pshenychnicova (DP) | D24: 11 | E24: 9 | F24: 9 | G24: =IF(ISBLANK(D23),"",SUM(IF(D24>D23,1,0)+(IF(E24>E23,1,0)+(IF(F24>F23,1,0))))) -> 2 | H24: =B24+1 -> 8 | I24: =IF(I23="","",AY18) ->  | M24: =IF(ISBLANK(J23),"",SUM(IF(J24>J23,1,0)+(IF(K24>K23,1,0)+(IF(L24>L23,1,0))))) ->  | O24: 3 | P24: =VLOOKUP(O24,AX54:AY57,2,FALSE) -> Leonor Guerreiro (DP) | Q24: 9 | R24: 9 | T24: =IF(ISBLANK(Q24),"",SUM(IF(Q24>Q25,1,0)+(IF(R24>R25,1,0)+(IF(S24>S25,1,0))))) -> 2
B25: =$A$4 -> SS-InfA | C25: =AY19 -> Violeta Pshenychnicova (DP) | D25: 11 | E25: 11 | G25: =IF(ISBLANK(D25),"",SUM(IF(D25>D26,1,0)+(IF(E25>E26,1,0)+(IF(F25>F26,1,0))))) -> 2 | H25: =$A$4 -> SS-InfA | I25: =AY20 ->  | M25: =IF(ISBLANK(J25),"",SUM(IF(J25>J26,1,0)+(IF(K25>K26,1,0)+(IF(L25>L26,1,0))))) ->  | N25: 7 | O25: 2 | P25: =VLOOKUP(O25,AX54:AY57,2,FALSE) -> Violeta Pshenychnicova (DP) | Q25: 6 | R25: 4 | T25: =IF(ISBLANK(Q24),"",SUM(IF(Q25>Q24,1,0)+(IF(R25>R24,1,0)+(IF(S25>S24,1,0))))) -> 0
B26: =H15+1 -> 11 | C26: =AY18 -> Maira Kaushik (DP) | D26: 6 | E26: 9 | G26: =IF(ISBLANK(D25),"",SUM(IF(D26>D25,1,0)+(IF(E26>E25,1,0)+(IF(F26>F25,1,0))))) -> 0 | H26: =B26+1 -> 12 | I26: =IF(I25="","",AY17) ->  | M26: =IF(ISBLANK(J25),"",SUM(IF(J26>J25,1,0)+(IF(K26>K25,1,0)+(IF(L26>L25,1,0))))) ->  | N26: 10
N28: 15
N29: 2
B31: Classificações 1ª Fase | P31: Jogadores | AD31: Ranking
M32: # | O32: NºJ | P32: Nome (1º e último) | W32: Escola | X32: Abv.* | AB32: Cl. | AD32: Jogadores | AE32: Pt.
B33: Grupo A | H33: Grupo B | M33: 1 | O33: =IF(DE4="","",DE4) ->  | P33: =IF(DF4="","",IF(DF4="Bye","Bye",CONCATENATE(DF4," ","(",DH4,")"))) -> Laura Grade (ACV) | W33: =IF(DG4="","",DG4) -> ACav.Silva | X33: ACV | AB33: 1º | AD33: =IF(AA17=AA18,"",IF(AA17>AA18,W17,W18)) -> Polina Lesyuk (DP) | AE33: 12
M34: 2 | P34: Jessica Rochefort (DP) | W34: DPacheco | X34: DP | Y34: 2007 | Z34: Infantis A | AB34: 2º | AD34: =IF(AA17=AA18,"",IF(AA17<AA18,W17,W18)) -> Leonor Guerreiro (DP) | AE34: 11
B35: =AL8 -> Cl | C35: Jogadores | D35: =AU8 -> Pt. | H35: =AL16 -> Cl | I35: Jogadores | J35: =AU16 -> Pt. | M35: 3 | P35: Leonor Guerreiro (DP) | W35: DPacheco | X35: DP | Y35: 2007 | Z35: Infantis A | AB35: 3º | AD35: =IF(T17=T18,"",IF(T18<T17,P17,P18)) -> Violeta Pshenychnicova (DP) | AE35: 10
B36: 1º | C36: Polina Lesyuk (DP) | D36: =AU9 -> 4 | H36: 1º | I36: Violeta Pshenychnicova (DP) | J36: =AU17 -> 4 | M36: 4 | P36: Maira Kaushik (DP) | W36: DPacheco | X36: DP | Y36: 2007 | Z36: Infantis A | AB36: 4º | AD36: =IF(T17=T18,"",IF(T18<T17,P18,P17)) -> Jessica Rochefort (DP) | AE36: 10
B37: 2º | C37: Leonor Guerreiro (DP) | D37: =AU10 -> 3 | H37: 2º | I37: Jessica Rochefort (DP) | J37: =AU18 -> 3 | M37: 5 | P37: Polina Lesyuk (DP) | W37: DPacheco | X37: DP | Y37: 2007 | Z37: Infantis A | AB37: 5º | AD37: =AY58 -> Laura Grade (ACV) | AE37: 8
B38: 3º | C38: Laura Grade (ACV) | D38: =AU11 -> 2 | H38: 3º | I38: Maira Kaushik (DP) | J38: =AU19 -> 2 | M38: 6 | P38: Violeta Pshenychnicova (DP) | W38: DPacheco | X38: DP | Y38: 2007 | Z38: Infantis A | AB38: 6º | AD38: =AY59 -> Maira Kaushik (DP) | AE38: 8 | AY38: 3 Grupos 6 a 8
D39: =AU12 ->  | J39: =AU20 ->  | M39: 7 | AB39: 7º | AD39: =AY60 ->  | AE39: 8 | AX39: A1 | AY39: =IF(DF4="","",CONCATENATE(DF4," (",DH4,")")) -> Laura Grade (ACV)
M40: 8 | AB40: 8º | AD40: =AY61 ->  | AE40: 8 | AX40: B1 | AY40: Jessica Rochefort (DP)
AX41: A2 | AY41: Leonor Guerreiro (DP)
AX42: B2 | AY42: Maira Kaushik (DP)
AX43: A3 | AY43: Polina Lesyuk (DP)
AX44: B3 | AY44: Violeta Pshenychnicova (DP)
AX45: A4
AX46: B4
AY47: =IF(DJ12="","",IF($DJ$15="",DJ12,"")) -> 
AY48: =IF(DJ13="","",IF($DJ$15="",DJ13,"")) -> 
AY49: =IF(DJ14="","",IF($DJ$15="",DJ14,"")) -> 
AY51: =COUNTA(DF4:DF11) -> 6 | BB51: ABV | BC51: Nome
BB52: EM-Juv | BC52: Equipas Mistas - Juvenis
AY53: Class 9 e 10 | BB53: PH-InfA | BC53: Pares Homens - Infantis A
AX54: 1 | AY54: =IF(D25="","1º Grupo A",AM9) -> Polina Lesyuk (DP) | BB54: PH-InfB | BC54: Pares Homens - Infantis B
AX55: 2 | AY55: =IF(D25="","1º Grupo B",AM17) -> Violeta Pshenychnicova (DP) | BB55: PH-Ini | BC55: Pares Homens - Iniciados
B56: Tabela para 8 a 16 Jogadores | AX56: 3 | AY56: =IF(D25="","2º Grupo A",AM10) -> Leonor Guerreiro (DP) | BB56: PH-Jun | BC56: Pares Homens - Juniores
B57: Nº Jog | C57: Grupos | D57: Apurados 2ª Fase | AX57: 4 | AY57: =IF(D25="","2º Grupo B",AM18) -> Jessica Rochefort (DP) | BB57: PH-Juv | BC57: Pares Homens - Juvenis
B58: 9 | C58: 3 Grupos: 3+3+3 | D58: 2 Primeiros + 2 melhores 3º | AX58: 5 | AY58: =IF(D25="","3º Grupo A",AM11) -> Laura Grade (ACV) | BB58: PM-Ini | BC58: Pares Mistos - Iniciados
B59: 10 | C59: 3 Grupos: 4+3+3 | D59: 2 Primeiros + 2 melhores 3º | AX59: 6 | AY59: =IF(D25="","3º Grupo B",AM19) -> Maira Kaushik (DP) | BB59: PS-InfA | BC59: Pares Senhoras - Infantis A
B60: 11 | C60: 3 Grupos: 4+4+3 | D60: 2 Primeiros + 3º grupos de 4 | AX60: 7 | AY60: =IF(D25="","4º Grupo A",AM12) ->  | BB60: PS-InfB | BC60: Pares Senhoras - Infantis B
B61: 12 | C61: 4 Grupos: 3+3+3+3 | D61: 2 Primeiros de cada Grupo | AX61: 8 | AY61: =IF(D25="","4º Grupo B",AM20) ->  | BB61: PS-Ini | BC61: Pares Senhoras - Iniciados
B62: 13 | C62: 4 Grupos: 4+3+3+3 | D62: 2 Primeiros de cada Grupo | BB62: PS-Jun | BC62: Pares Senhoras - Juniores
B63: 14 | C63: 4 Grupos: 4+4+3+3 | D63: 2 Primeiros de cada Grupo | BB63: PS-Juv | BC63: Pares Senhoras - Juvenis
B64: 15 | C64: 4 Grupos: 4+4+4+3 | D64: 2 Primeiros de cada Grupo | BB64: SH-InfA | BC64: Singulares Homens - Infantis A
B65: 16 | C65: 4 Grupos: 4+4+4+4 | D65: 2 Primeiros de cada Grupo | BB65: SH-InfB | BC65: Singulares Homens - Infantis B
BB66: SH-Ini | BC66: Singulares Homens - Iniciados
BB67: SH-Jun | BC67: Singulares Homens - Juniores
BB68: SH-Juv | BC68: Singulares Homens - Juvenis
BB69: SS-InfA | BC69: Singulares Senhoras - Infantis A
AY70: Lista | BB70: SS-InfB | BC70: Singulares Senhoras - Infantis B
AY71: 0 | BB71: SS-Ini | BC71: Singulares Senhoras - Iniciados
AY72: 1 | BB72: SS-Jun | BC72: Singulares Senhoras - Juniores
AY73: 2 | BB73: SS-Juv | BC73: Singulares Senhoras - Juvenis
AY74: 3
AY75: 4
AY76: 5
AY77: 6
AY78: 7
AY79: 8
AY80: 9
AY81: 10
AY82: 11
AY83: 12
AY84: 13
AY85: 14
AY86: 15
AY87: 16
AY88: 17
AY89: 18
AY90: 19
AY91: 20
AY92: 21
AY93: 22
AY94: 23
AY95: 24
AY96: 25
AY97: 26
AY98: 27
AY99: 28
AY100: 29
AY101: 30
AY102: fc
AY103: v

Sheet 8 (hidden)
D1: Direcção Regional de Educação do Algarve | O1: Badminton | AM1: =$C$4 -> Pares Senhoras - Juvenis | DC1: ERRO de prenchimento da Lista de participantes
F2: ="Ano Lectivo "&Apoio!F10 -> Ano Lectivo 2017/2018 | DC2: =SUM(DC4:DC11) -> 0 | DD2: =IF(DC2>0,"ERRO DE PREENCHIMENTO","Lista de Participantes") -> Lista de Participantes
DC3: =SUM(DC4:DC11) -> 0 | DD3: Ordem | DE3: Nº | DF3: Nome (1º e último) | DG3: Escola | DH3: Abv. | DI3: Ano Nasc. | DJ3: Escalão | DK3: Sexo | DL3: Observações | DM3: Insc. Prova | DO3: Pontos Rank
A4: PS-Juv | C4: =LOOKUP(A4,Apoio!N9:N39,Apoio!O9:O39) -> Pares Senhoras - Juvenis | I4: ='Ficha de Inscrição'!$A$5 -> Torneio Nº 4 | P4: ="Escola: "&'Ficha de Inscrição'!$D$4 -> Escola: ACav.Silva | X4: ='Ficha de Inscrição'!$J$4 -> 2018-01-17 | DC4: =IF(ISBLANK(DF4),COUNTA(DF5:$DG$11),0) -> 0 | DD4: 1 | DO4: =IF(DF4="","",VLOOKUP(DP4,$AD$33:$AE$40,2,FALSE)) ->  | DP4: =DF4&" ("&DH4&")" -> ()
B5: 1ª FASE | D5: Set's | J5: Set's | P5: 2ª FASE | AM5: Classificação 1ª Fase | DC5: =IF(ISBLANK(DF5),COUNTA(DF6:$DG$11),0) -> 0 | DD5: 2 | DO5: =IF(DF5="","",VLOOKUP(DP5,$AD$33:$AE$40,2,FALSE)) ->  | DP5: =DF5&" ("&DH5&")" -> ()
P6: 1/2 Final | W6: Final | AY6: Colocar Equipas | BH6: Ordenar p/ Pts 1 | BJ6: Ordenar p/ Pts 2 | BL6: Ordenar p/ Pts 3 | BO6: Ordenar p/ DG 1 | BR6: Ordenar p/ DG 2 | BU6: Ordenar p/ DG 3 | BY6: Ordenar p/ GM 1 | CC6: Ordenar p/ GM 2 | CG6: Ordenar p/ GM 3 | CY6: Vencedores | CZ6: Derrotados | DC6: =IF(ISBLANK(DF6),COUNTA(DF7:$DG$11),0) -> 0 | DD6: 3 | DP6: ()
N7: 1 | AM7: Classificação Grupo A | AY7: Grupo A | CY7: =IF(G11<>"",IF(G11>G10,C11,IF(G10>G11,C10,"Empate")),"") ->  | CZ7: =IF(G11<>"",IF(G11<G10,C11,IF(G10<G11,C10,"Empate")),"") ->  | DC7: =IF(ISBLANK(DF7),COUNTA(DF8:$DG$11),0) -> 0 | DD7: 4 | DP7: ()
N8: 16 | AL8: Cl | AM8: =AY8 -> Jogadores | AN8: Jg | AO8: V | AP8: E | AQ8: D | AR8: PM | AS8: PS | AT8: DP | AU8: Pt. | AY8: Jogadores | AZ8: Jg | BA8: V | BB8: E | BC8: D | BD8: GM | BE8: GS | BF8: DG | BG8: Pts | BH8: Equipas | BI8: Pts | BJ8: Equipas | BK8: Pts | BL8: Equipas | BM8: Pts | BN8: DG | BO8: Equipas | BP8: Pts | BQ8: DG | BR8: Equipas | BS8: Pts | BT8: DG | BU8: Equipas | BV8: Pts | BW8: DG | BX8: GM | BY8: Equipas | BZ8: Pts | CA8: DG | CB8: GM | CC8: Equipas | CD8: Pts | CE8: DG | CF8: GM | CG8: Equipas | CH8: Pts | CI8: DG | CJ8: GM | CN8: Equipas | CO8: Jg | CP8: V | CQ8: D | CR8: E | CS8: GM | CT8: GS | CU8: DG | CV8: Pts | CY8: =IF(M10<>"",IF(M10>M11,I10,IF(M11>M10,I11,"Empate")),"") ->  | CZ8: =IF(M10<>"",IF(M10<M11,I10,IF(M11<M10,I11,"Empate")),"") ->  | DC8: =IF(ISBLANK(DF8),COUNTA(DF9:$DG$11),0) -> 0 | DD8: 5 | DP8: ()
A9: Grupo A | B9: NºJ | C9: Jogadores | D9: 1 | E9: 2 | F9: 3 | G9: R | H9: NºJ | I9: Jogadores | J9: 1 | K9: 2 | L9: 3 | M9: R | AL9: =IF(AM9="","","1º") ->  | AM9: =CN9 ->  | AN9: =IF(AM9="","",CO9) ->  | AO9: =IF(AM9="","",CP9) ->  | AP9: =CQ9 -> -12 | AQ9: =IF(AM9="","",CR9) ->  | AR9: =IF(AM9="","",CS9) ->  | AS9: =IF(AM9="","",CT9) ->  | AT9: =IF(AM9="","",CU9) ->  | AU9: =IF(AM9="","",CV9) ->  | AV9: 1 | AW9: 1 | AX9: 1 | AY9: =IF(AY39="","",AY39) ->  | AZ9: =COUNT(G11,G12,M15) -> 0 | BA9: =COUNTIF(CY7:CY12,AY9) -> 6 | BB9: =AZ9-(BA9+BC9) -> -12 | BC9: =COUNTIF(CZ7:CZ12,AY9) -> 6 | BD9: =SUM(D11:F11,D12:F12,J15:L15) -> 0 | BE9: =SUM(D10:F10,D13:F13,J14:L14) -> 0 | BF9: =BD9-BE9 -> 0 | BG9: =IF(AZ9=0,0,BA9*2+BC9*1) -> 0 | BH9: =IF(BG9>=BG10,AY9,AY10) ->  | BI9: =VLOOKUP(BH9,AY9:BG12,9,FALSE) -> 0 | BJ9: =IF(BI9>=BI11,BH9,BH11) ->  | BK9: =VLOOKUP(BJ9,AY9:BG12,9,FALSE) -> 0 | BL9: =IF(BK9>=BK12,BJ9,BJ12) ->  | BM9: =VLOOKUP(BL9,AY9:BG12,9,FALSE) -> 0 | BN9: =VLOOKUP(BL9,AY9:BG12,8,FALSE) -> 0 | BO9: =IF(AND(BM9=BM10,BN10>BN9),BL10,BL9) ->  | BP9: =VLOOKUP(BO9,AY9:BG12,9,FALSE) -> 0 | BQ9: =VLOOKUP(BO9,AY9:BG12,8,FALSE) -> 0 | BR9: =IF(AND(BP9=BP11,BQ11>BQ9),BO11,BO9) ->  | BS9: =VLOOKUP(BR9,AY9:BG12,9,FALSE) -> 0 | BT9: =VLOOKUP(BR9,AY9:BG12,8,FALSE) -> 0 | BU9: =IF(AND(BS9=BS12,BT12>BT9),BR12,BR9) ->  | BV9: =VLOOKUP(BU9,AY9:BG12,9,FALSE) -> 0 | BW9: =VLOOKUP(BU9,AY9:BG12,8,FALSE) -> 0 | BX9: =VLOOKUP(BU9,AY9:BG12,6,FALSE) -> 0 | BY9: =IF(AND(BV9=BV10,BW9=BW10,BX10>BX9),BU10,BU9) ->  | BZ9: =VLOOKUP(BY9,AY9:BG12,9,FALSE) -> 0 | CA9: =VLOOKUP(BY9,AY9:BG12,8,FALSE) -> 0 | CB9: =VLOOKUP(BY9,AY9:BG12,6,FALSE) -> 0 | CC9: =IF(AND(BZ9=BZ11,CA9=CA11,CB11>CB9),BY11,BY9) ->  | CD9: =VLOOKUP(CC9,AY9:BG12,9,FALSE) -> 0 | CE9: =VLOOKUP(CC9,AY9:BG12,8,FALSE) -> 0 | CF9: =VLOOKUP(CC9,AY9:BG12,6,FALSE) -> 0 | CG9: =IF(AND(CD9=CD12,CE9=CE12,CF12>CF9),CC12,CC9) ->  | CH9: =VLOOKUP(CG9,AY9:BG12,9,FALSE) -> 0 | CI9: =VLOOKUP(CG9,AY9:BG12,8,FALSE) -> 0 | CJ9: =VLOOKUP(CG9,AY9:BG12,6,FALSE) -> 0 | CN9: =CG9 ->  | CO9: =VLOOKUP(CN9,AY9:BG12,2,FALSE) -> 0 | CP9: =VLOOKUP(CN9,AY9:BG12,3,FALSE) -> 6 | CQ9: =VLOOKUP(CN9,AY9:BG12,4,FALSE) -> -12 | CR9: =VLOOKUP(CN9,AY9:BG12,5,FALSE) -> 6 | CS9: =VLOOKUP(CN9,AY9:BG12,6,FALSE) -> 0 | CT9: =VLOOKUP(CN9,AY9:BG12,7,FALSE) -> 0 | CU9: =VLOOKUP(CN9,AY9:BG12,8,FALSE) -> 0 | CV9: =VLOOKUP(CN9,AY9:BG12,9,FALSE) -> 0 | CY9: =IF(G12<>"",IF(G12>G13,C12,IF(G13>G12,C13,"Empate")),"") ->  | CZ9: =IF(G12<>"",IF(G12<G13,C12,IF(G13<G12,C13,"Empate")),"") ->  | DC9: =IF(ISBLANK(DF9),COUNTA(DF10:$DG$11),0) -> 0 | DD9: 6 | DP9: ()
B10: =$A$4 -> PS-Juv | C10: =AY10 ->  | G10: =IF(ISBLANK(D10),"",SUM(IF(D10>D11,1,0)+(IF(E10>E11,1,0)+(IF(F10>F11,1,0))))) ->  | H10: =$A$4 -> PS-Juv | I10: =IF(I11="","",AY11) ->  | M10: =IF(ISBLANK(J10),"",SUM(IF(J10>J11,1,0)+(IF(K10>K11,1,0)+(IF(L10>L11,1,0))))) ->  | N10: 9 | P10: Jogo Nº | Q10: =CONCATENATE($A$4," ",SUM(H26+1)) -> PS-Juv 13 | AL10: =IF(AM10="","","2º") ->  | AM10: =CN10 ->  | AN10: =IF(AM10="","",CO10) ->  | AO10: =IF(AM10="","",CP10) ->  | AP10: =CQ10 -> -12 | AQ10: =IF(AM10="","",CR10) ->  | AR10: =IF(AM10="","",CS10) ->  | AS10: =IF(AM10="","",CT10) ->  | AT10: =IF(AM10="","",CU10) ->  | AU10: =IF(AM10="","",CV10) ->  | AV10: 5 | AW10: 8 | AX10: 2 | AY10: =IF(AY41="","",AY41) ->  | AZ10: =COUNT(G10,M13,G15) -> 0 | BA10: =COUNTIF(CY7:CY12,AY10) -> 6 | BB10: =AZ10-(BA10+BC10) -> -12 | BC10: =COUNTIF(CZ7:CZ12,AY10) -> 6 | BD10: =SUM(D10:F10,J13:L13,D15:F15) -> 0 | BE10: =SUM(D11:F11,J12:L12,D14:F14) -> 0 | BF10: =BD10-BE10 -> 0 | BG10: =IF(AZ10=0,0,BA10*2+BC10*1) -> 0 | BH10: =IF(BG10<=BG9,AY10,AY9) ->  | BI10: =VLOOKUP(BH10,AY9:BG12,9,FALSE) -> 0 | BJ10: =IF(BI10>=BI12,BH10,BH12) ->  | BK10: =VLOOKUP(BJ10,AY9:BG12,9,FALSE) -> 0 | BL10: =IF(BK10>=BK11,BJ10,BJ11) ->  | BM10: =VLOOKUP(BL10,AY9:BG12,9,FALSE) -> 0 | BN10: =VLOOKUP(BL10,AY9:BG12,8,FALSE) -> 0 | BO10: =IF(AND(BM9=BM10,BN10>BN9),BL9,BL10) ->  | BP10: =VLOOKUP(BO10,AY9:BG12,9,FALSE) -> 0 | BQ10: =VLOOKUP(BO10,AY9:BG12,8,FALSE) -> 0 | BR10: =IF(AND(BP10=BP12,BQ12>BQ10),BO12,BO10) ->  | BS10: =VLOOKUP(BR10,AY9:BG12,9,FALSE) -> 0 | BT10: =VLOOKUP(BR10,AY9:BG12,8,FALSE) -> 0 | BU10: =IF(AND(BS10=BS11,BT11>BT10),BR11,BR10) ->  | BV10: =VLOOKUP(BU10,AY9:BG12,9,FALSE) -> 0 | BW10: =VLOOKUP(BU10,AY9:BG12,8,FALSE) -> 0 | BX10: =VLOOKUP(BU10,AY9:BG12,6,FALSE) -> 0 | BY10: =IF(AND(BV9=BV10,BW9=BW10,BX10>BX9),BU9,BU10) ->  | BZ10: =VLOOKUP(BY10,AY9:BG12,9,FALSE) -> 0 | CA10: =VLOOKUP(BY10,AY9:BG12,8,FALSE) -> 0 | CB10: =VLOOKUP(BY10,AY9:BG12,6,FALSE) -> 0 | CC10: =IF(AND(BZ10=BZ12,CA10=CA12,CB12>CB10),BY12,BY10) ->  | CD10: =VLOOKUP(CC10,AY9:BG12,9,FALSE) -> 0 | CE10: =VLOOKUP(CC10,AY9:BG12,8,FALSE) -> 0 | CF10: =VLOOKUP(CC10,AY9:BG12,6,FALSE) -> 0 | CG10: =IF(AND(CD10=CD11,CE10=CE11,CF11>CF10),CC11,CC10) ->  | CH10: =VLOOKUP(CG10,AY9:BG12,9,FALSE) -> 0 | CI10: =VLOOKUP(CG10,AY9:BG12,8,FALSE) -> 0 | CJ10: =VLOOKUP(CG10,AY9:BG12,6,FALSE) -> 0 | CN10: =CG10 ->  | CO10: =VLOOKUP(CN10,AY9:BG12,2,FALSE) -> 0 | CP10: =VLOOKUP(CN10,AY9:BG12,3,FALSE) -> 6 | CQ10: =VLOOKUP(CN10,AY9:BG12,4,FALSE) -> -12 | CR10: =VLOOKUP(CN10,AY9:BG12,5,FALSE) -> 6 | CS10: =VLOOKUP(CN10,AY9:BG12,6,FALSE) -> 0 | CT10: =VLOOKUP(CN10,AY9:BG12,7,FALSE) -> 0 | CU10: =VLOOKUP(CN10,AY9:BG12,8,FALSE) -> 0 | CV10: =VLOOKUP(CN10,AY9:BG12,9,FALSE) -> 0 | CY10: =IF(M12<>"",IF(M12>M13,I12,IF(M13>M12,I13,"Empate")),"") ->  | CZ10: =IF(M12<>"",IF(M12<M13,I12,IF(M13<M12,I13,"Empate")),"") ->  | DC10: =IF(ISBLANK(DF10),COUNTA(DF11:$DG$11),0) -> 0 | DD10: 7 | DP10: ()
B11: 1 | C11: =AY9 ->  | G11: =IF(ISBLANK(D10),"",SUM(IF(D11>D10,1,0)+(IF(E11>E10,1,0)+(IF(F11>F10,1,0))))) ->  | H11: =B11+1 -> 2 | I11: =AY12 ->  | M11: =IF(ISBLANK(J10),"",SUM(IF(J11>J10,1,0)+(IF(K11>K10,1,0)+(IF(L11>L10,1,0))))) ->  | N11: 8 | O11: 1 | P11: =VLOOKUP(O11,AX54:AY57,2,FALSE) -> 1º Grupo A | T11: =IF(ISBLANK(Q11),"",SUM(IF(Q11>Q12,1,0)+(IF(R11>R12,1,0)+(IF(S11>S12,1,0))))) ->  | AL11: =IF(AM11="","","3º") ->  | AM11: =CN11 ->  | AN11: =IF(AM11="","",CO11) ->  | AO11: =IF(AM11="","",CP11) ->  | AP11: =CQ11 -> -12 | AQ11: =IF(AM11="","",CR11) ->  | AR11: =IF(AM11="","",CS11) ->  | AS11: =IF(AM11="","",CT11) ->  | AT11: =IF(AM11="","",CU11) ->  | AU11: =IF(AM11="","",CV11) ->  | AV11: 7.8 | AW11: 5 | AX11: 3 | AY11: =IF(AY43="","",AY43) ->  | AZ11: =COUNT(M10,G13,G14) -> 0 | BA11: =COUNTIF(CY7:CY12,AY11) -> 6 | BB11: =AZ11-(BA11+BC11) -> -12 | BC11: =COUNTIF(CZ7:CZ12,AY11) -> 6 | BD11: =SUM(J10:L10,D13:F13,D14:F14) -> 0 | BE11: =SUM(J11:L11,D12:F12,D15:F15) -> 0 | BF11: =BD11-BE11 -> 0 | BG11: =IF(AZ11=0,0,BA11*2+BC11*1) -> 0 | BH11: =IF(BG11>=BG12,AY11,AY12) ->  | BI11: =VLOOKUP(BH11,AY9:BG12,9,FALSE) -> 0 | BJ11: =IF(BI11<=BI9,BH11,BH9) ->  | BK11: =VLOOKUP(BJ11,AY9:BG12,9,FALSE) -> 0 | BL11: =IF(BK11<=BK10,BJ11,BJ10) ->  | BM11: =VLOOKUP(BL11,AY9:BG12,9,FALSE) -> 0 | BN11: =VLOOKUP(BL11,AY9:BG12,8,FALSE) -> 0 | BO11: =IF(AND(BM11=BM12,BN12>BN11),BL12,BL11) ->  | BP11: =VLOOKUP(BO11,AY9:BG12,9,FALSE) -> 0 | BQ11: =VLOOKUP(BO11,AY9:BG12,8,FALSE) -> 0 | BR11: =IF(AND(BP9=BP11,BQ11>BQ9),BO9,BO11) ->  | BS11: =VLOOKUP(BR11,AY9:BG12,9,FALSE) -> 0 | BT11: =VLOOKUP(BR11,AY9:BG12,8,FALSE) -> 0 | BU11: =IF(AND(BS10=BS11,BT11>BT10),BR10,BR11) ->  | BV11: =VLOOKUP(BU11,AY9:BG12,9,FALSE) -> 0 | BW11: =VLOOKUP(BU11,AY9:BG12,8,FALSE) -> 0 | BX11: =VLOOKUP(BU11,AY9:BG12,6,FALSE) -> 0 | BY11: =IF(AND(BV11=BV12,BW11=BW12,BX12>BX11),BU12,BU11) ->  | BZ11: =VLOOKUP(BY11,AY9:BG12,9,FALSE) -> 0 | CA11: =VLOOKUP(BY11,AY9:BG12,8,FALSE) -> 0 | CB11: =VLOOKUP(BY11,AY9:BG12,6,FALSE) -> 0 | CC11: =IF(AND(BZ9=BZ11,CA9=CA11,CB10>CB9),BY9,BY11) ->  | CD11: =VLOOKUP(CC11,AY9:BG12,9,FALSE) -> 0 | CE11: =VLOOKUP(CC11,AY9:BG12,8,FALSE) -> 0 | CF11: =VLOOKUP(CC11,AY9:BG12,6,FALSE) -> 0 | CG11: =IF(AND(CD10=CD11,CE10=CE11,CF11>CF10),CC10,CC11) ->  | CH11: =VLOOKUP(CG11,AY9:BG12,9,FALSE) -> 0 | CI11: =VLOOKUP(CG11,AY9:BG12,8,FALSE) -> 0 | CJ11: =VLOOKUP(CG11,AY9:BG12,6,FALSE) -> 0 | CN11: =CG11 ->  | CO11: =VLOOKUP(CN11,AY9:BG12,2,FALSE) -> 0 | CP11: =VLOOKUP(CN11,AY9:BG12,3,FALSE) -> 6 | CQ11: =VLOOKUP(CN11,AY9:BG12,4,FALSE) -> -12 | CR11: =VLOOKUP(CN11,AY9:BG12,5,FALSE) -> 6 | CS11: =VLOOKUP(CN11,AY9:BG12,6,FALSE) -> 0 | CT11: =VLOOKUP(CN11,AY9:BG12,7,FALSE) -> 0 | CU11: =VLOOKUP(CN11,AY9:BG12,8,FALSE) -> 0 | CV11: =VLOOKUP(CN11,AY9:BG12,9,FALSE) -> 0 | CY11: =IF(M14<>"",IF(M14>M15,I14,IF(M15>M14,I15,"Empate")),"") ->  | CZ11: =IF(M14<>"",IF(M14<M15,I14,IF(M15<M14,I15,"Empate")),"") ->  | DC11: =IF(ISBLANK(DF11),COUNTA(DF$11:$DG12),0) -> 0 | DD11: 8 | DP11: ()
B12: =$A$4 -> PS-Juv | C12: =AY9 ->  | G12: =IF(ISBLANK(D12),"",SUM(IF(D12>D13,1,0)+(IF(E12>E13,1,0)+(IF(F12>F13,1,0))))) ->  | H12: =$A$4 -> PS-Juv | I12: =AY12 ->  | M12: =IF(ISBLANK(J12),"",SUM(IF(J12>J13,1,0)+(IF(K12>K13,1,0)+(IF(L12>L13,1,0))))) ->  | O12: 4 | P12: =VLOOKUP(O12,AX54:AY57,2,FALSE) -> 2º Grupo B | T12: =IF(ISBLANK(Q11),"",SUM(IF(Q12>Q11,1,0)+(IF(R12>R11,1,0)+(IF(S12>S11,1,0))))) ->  | AL12: =IF(AM12="","","4º") ->  | AM12: =CN12 ->  | AN12: =IF(AM12="","",CO12) ->  | AO12: =IF(AM12="","",CP12) ->  | AP12: =CQ12 -> -12 | AQ12: =IF(AM12="","",CR12) ->  | AR12: =IF(AM12="","",CS12) ->  | AS12: =IF(AM12="","",CT12) ->  | AT12: =IF(AM12="","",CU12) ->  | AU12: =IF(AM12="","",CV12) ->  | AW12: 4 | AX12: 4 | AY12: =IF(AY45="","",AY45) ->  | AZ12: =COUNT(M11,M12,M14) -> 0 | BA12: =COUNTIF(CY7:CY12,AY12) -> 6 | BB12: =AZ12-(BA12+BC12) -> -12 | BC12: =COUNTIF(CZ7:CZ12,AY12) -> 6 | BD12: =SUM(J11:L11,J12:L12,J14:L14) -> 0 | BE12: =SUM(J10:L10,J13:L13,J15:L15) -> 0 | BF12: =BD12-BE12 -> 0 | BG12: =IF(AZ12=0,0,BA12*2+BC12*1) -> 0 | BH12: =IF(BG12<=BG11,AY12,AY11) ->  | BI12: =VLOOKUP(BH12,AY9:BG12,9,FALSE) -> 0 | BJ12: =IF(BI12<=BI10,BH12,BH10) ->  | BK12: =VLOOKUP(BJ12,AY9:BG12,9,FALSE) -> 0 | BL12: =IF(BK12<=BK9,BJ12,BJ9) ->  | BM12: =VLOOKUP(BL12,AY9:BG12,9,FALSE) -> 0 | BN12: =VLOOKUP(BL12,AY9:BG12,8,FALSE) -> 0 | BO12: =IF(AND(BM11=BM12,BN12>BN11),BL11,BL12) ->  | BP12: =VLOOKUP(BO12,AY9:BG12,9,FALSE) -> 0 | BQ12: =VLOOKUP(BO12,AY9:BG12,8,FALSE) -> 0 | BR12: =IF(AND(BP10=BP12,BQ12>BQ10),BO10,BO12) ->  | BS12: =VLOOKUP(BR12,AY9:BG12,9,FALSE) -> 0 | BT12: =VLOOKUP(BR12,AY9:BG12,8,FALSE) -> 0 | BU12: =IF(AND(BS9=BS12,BT12>BT9),BR9,BR12) ->  | BV12: =VLOOKUP(BU12,AY9:BG12,9,FALSE) -> 0 | BW12: =VLOOKUP(BU12,AY9:BG12,8,FALSE) -> 0 | BX12: =VLOOKUP(BU12,AY9:BG12,6,FALSE) -> 0 | BY12: =IF(AND(BV11=BV12,BW11=BW12,BX12>BX11),BU11,BU12) ->  | BZ12: =VLOOKUP(BY12,AY9:BG12,9,FALSE) -> 0 | CA12: =VLOOKUP(BY12,AY9:BG12,8,FALSE) -> 0 | CB12: =VLOOKUP(BY12,AY9:BG12,6,FALSE) -> 0 | CC12: =IF(AND(BZ10=BZ12,CA10=CA12,CB12>CB10),BY10,BY12) ->  | CD12: =VLOOKUP(CC12,AY9:BG12,9,FALSE) -> 0 | CE12: =VLOOKUP(CC12,AY9:BG12,8,FALSE) -> 0 | CF12: =VLOOKUP(CC12,AY9:BG12,6,FALSE) -> 0 | CG12: =IF(AND(CD9=CD12,CE9=CE12,CF12>CF9),CC9,CC12) ->  | CH12: =VLOOKUP(CG12,AY9:BG12,9,FALSE) -> 0 | CI12: =VLOOKUP(CG12,AY9:BG12,8,FALSE) -> 0 | CJ12: =VLOOKUP(CG12,AY9:BG12,6,FALSE) -> 0 | CN12: =CG12 ->  | CO12: =VLOOKUP(CN12,AY9:BG12,2,FALSE) -> 0 | CP12: =VLOOKUP(CN12,AY9:BG12,3,FALSE) -> 6 | CQ12: =VLOOKUP(CN12,AY9:BG12,4,FALSE) -> -12 | CR12: =VLOOKUP(CN12,AY9:BG12,5,FALSE) -> 6 | CS12: =VLOOKUP(CN12,AY9:BG12,6,FALSE) -> 0 | CT12: =VLOOKUP(CN12,AY9:BG12,7,FALSE) -> 0 | CU12: =VLOOKUP(CN12,AY9:BG12,8,FALSE) -> 0 | CV12: =VLOOKUP(CN12,AY9:BG12,9,FALSE) -> 0 | CY12: =IF(G15<>"",IF(G15>G14,C15,IF(G14>G15,C14,"Empate")),"") ->  | CZ12: =IF(G15<>"",IF(G15<G14,C15,IF(G14<G15,C14,"Empate")),"") ->  | DC12: Existe um erro no preenchimento na lista de participantes. PF elimine os espaços em branco entre os participantes, fazendo subir os jogadores abaixo, caso haja necesidade de eliminar jogadores por Falta de Comparência. | DH12: =IF(DC2>0,DC12,"") -> 
B13: =H22+1 -> 5 | C13: =AY11 ->  | G13: =IF(ISBLANK(D12),"",SUM(IF(D13>D12,1,0)+(IF(E13>E12,1,0)+(IF(F13>F12,1,0))))) ->  | H13: =B13+1 -> 6 | I13: =IF(I12="","",AY10) ->  | M13: =IF(ISBLANK(J12),"",SUM(IF(J13>J12,1,0)+(IF(K13>K12,1,0)+(IF(L13>L12,1,0))))) ->  | N13: 5 | DE13: Se pretender efectuar altrerações apague, e volte a introduzir os jogadores que pretender nos espaços disponíveis.
B14: =$A$4 -> PS-Juv | C14: =AY11 ->  | G14: =IF(ISBLANK(D14),"",SUM(IF(D14>D15,1,0)+(IF(E14>E15,1,0)+(IF(F14>F15,1,0))))) ->  | H14: =$A$4 -> PS-Juv | I14: =AY12 ->  | M14: =IF(ISBLANK(J14),"",SUM(IF(J14>J15,1,0)+(IF(K14>K15,1,0)+(IF(L14>L15,1,0))))) ->  | N14: 12 | AY14: Colocar Equipas | BH14: Ordenar p/ Pts 1 | BJ14: Ordenar p/ Pts 2 | BL14: Ordenar p/ Pts 3 | BO14: Ordenar p/ DG 1 | BR14: Ordenar p/ DG 2 | BU14: Ordenar p/ DG 3 | BY14: Ordenar p/ GM 1 | CC14: Ordenar p/ GM 2 | CG14: Ordenar p/ GM 3 | CY14: Vencedores | CZ14: Derrotados
B15: =H24+1 -> 9 | C15: =AY10 ->  | G15: =IF(ISBLANK(D14),"",SUM(IF(D15>D14,1,0)+(IF(E15>E14,1,0)+(IF(F15>F14,1,0))))) ->  | H15: =B15+1 -> 10 | I15: =IF(I14="","",AY9) ->  | M15: =IF(ISBLANK(J14),"",SUM(IF(J15>J14,1,0)+(IF(K15>K14,1,0)+(IF(L15>L14,1,0))))) ->  | AM15: Classificação Grupo B | AY15: Grupo B | CY15: =IF(G22<>"",IF(G22>G21,C22,IF(G21>G22,C21,"Empate")),"") ->  | CZ15: =IF(G22<>"",IF(G22<G21,C22,IF(G21<G22,C21,"Empate")),"") -> 
N16: 13 | W16: Jogo Nº | X16: =CONCATENATE($A$4," ",SUM(H26+3)) -> PS-Juv 15 | AD16: Vencedor | AL16: Cl | AM16: =AY16 -> Jogadores | AN16: Jg | AO16: V | AP16: E | AQ16: D | AR16: PM | AS16: PS | AT16: DP | AU16: Pt. | AY16: Jogadores | AZ16: Jg | BA16: V | BB16: E | BC16: D | BD16: GM | BE16: GS | BF16: DG | BG16: Pts | BH16: Equipas | BI16: Pts | BJ16: Equipas | BK16: Pts | BL16: Equipas | BM16: Pts | BN16: DG | BO16: Equipas | BP16: Pts | BQ16: DG | BR16: Equipas | BS16: Pts | BT16: DG | BU16: Equipas | BV16: Pts | BW16: DG | BX16: GM | BY16: Equipas | BZ16: Pts | CA16: DG | CB16: GM | CC16: Equipas | CD16: Pts | CE16: DG | CF16: GM | CG16: Equipas | CH16: Pts | CI16: DG | CJ16: GM | CN16: Equipas | CO16: Jg | CP16: V | CQ16: D | CR16: E | CS16: GM | CT16: GS | CU16: DG | CV16: Pts | CY16: =IF(M21<>"",IF(M21>M22,I21,IF(M22>M21,I22,"Empate")),"") ->  | CZ16: =IF(M21<>"",IF(M21<M22,I21,IF(M22<M21,I22,"Empate")),"") ->  | DE16: Para efectuar alterações à de colocações nos grupos dos jogadores, altere a coluna "ORDEM" dando uma nova ordem de nºs e depois clique em Ordenar.
N17: 4 | P17: =IF(T11=T12,"",IF(T11<T12,P11,P12)) ->  | T17: =IF(ISBLANK(Q17),"",SUM(IF(Q17>Q18,1,0)+(IF(R17>R18,1,0)+(IF(S17>S18,1,0))))) ->  | W17: =IF(T11=T12,"",IF(T11>T12,P11,P12)) ->  | AA17: =IF(ISBLANK(X17),"",SUM(IF(X17>X18,1,0)+(IF(Y17>Y18,1,0)+(IF(Z17>Z18,1,0))))) ->  | AD17: =IF(AA17=AA18,"",IF(AA17>AA18,W17,W18)) ->  | AL17: =IF(AM17="","","1º") ->  | AM17: =CN17 ->  | AN17: =IF(AM17="","",CO17) ->  | AO17: =IF(AM17="","",CP17) ->  | AP17: =CQ17 -> -12 | AQ17: =IF(AM17="","",CR17) ->  | AR17: =IF(AM17="","",CS17) ->  | AS17: =IF(AM17="","",CT17) ->  | AT17: =IF(AM17="","",CU17) ->  | AU17: =IF(AM17="","",CV17) ->  | AV17: 2 | AW17: 3 | AX17: 5 | AY17: =IF(AY40="","",AY40) ->  | AZ17: =COUNT(G22,G23,M26) -> 0 | BA17: =COUNTIF(CY15:CY20,AY17) -> 6 | BB17: =AZ17-(BA17+BC17) -> -12 | BC17: =COUNTIF(CZ15:CZ20,AY17) -> 6 | BD17: =SUM(D22:F22,D23:F23,J26:L26) -> 0 | BE17: =SUM(D21:F21,D24:F24,J25:L25) -> 0 | BF17: =BD17-BE17 -> 0 | BG17: =IF(AZ17=0,0,BA17*2+BC17*1) -> 0 | BH17: =IF(BG17>=BG18,AY17,AY18) ->  | BI17: =VLOOKUP(BH17,AY17:BG20,9,FALSE) -> 0 | BJ17: =IF(BI17>=BI19,BH17,BH19) ->  | BK17: =VLOOKUP(BJ17,AY17:BG20,9,FALSE) -> 0 | BL17: =IF(BK17>=BK20,BJ17,BJ20) ->  | BM17: =VLOOKUP(BL17,AY17:BG20,9,FALSE) -> 0 | BN17: =VLOOKUP(BL17,AY17:BG20,8,FALSE) -> 0 | BO17: =IF(AND(BM17=BM18,BN18>BN17),BL18,BL17) ->  | BP17: =VLOOKUP(BO17,AY17:BG20,9,FALSE) -> 0 | BQ17: =VLOOKUP(BO17,AY17:BG20,8,FALSE) -> 0 | BR17: =IF(AND(BP17=BP19,BQ19>BQ17),BO19,BO17) ->  | BS17: =VLOOKUP(BR17,AY17:BG20,9,FALSE) -> 0 | BT17: =VLOOKUP(BR17,AY17:BG20,8,FALSE) -> 0 | BU17: =IF(AND(BS17=BS20,BT20>BT17),BR20,BR17) ->  | BV17: =VLOOKUP(BU17,AY17:BG20,9,FALSE) -> 0 | BW17: =VLOOKUP(BU17,AY17:BG20,8,FALSE) -> 0 | BX17: =VLOOKUP(BU17,AY17:BG20,6,FALSE) -> 0 | BY17: =IF(AND(BV17=BV18,BW17=BW18,BX18>BX17),BU18,BU17) ->  | BZ17: =VLOOKUP(BY17,AY17:BG20,9,FALSE) -> 0 | CA17: =VLOOKUP(BY17,AY17:BG20,8,FALSE) -> 0 | CB17: =VLOOKUP(BY17,AY17:BG20,6,FALSE) -> 0 | CC17: =IF(AND(BZ17=BZ19,CA17=CA19,CB19>CB17),BY19,BY17) ->  | CD17: =VLOOKUP(CC17,AY17:BG20,9,FALSE) -> 0 | CE17: =VLOOKUP(CC17,AY17:BG20,8,FALSE) -> 0 | CF17: =VLOOKUP(CC17,AY17:BG20,6,FALSE) -> 0 | CG17: =IF(AND(CD17=CD20,CE17=CE20,CF20>CF17),CC20,CC17) ->  | CH17: =VLOOKUP(CG17,AY17:BG20,9,FALSE) -> 0 | CI17: =VLOOKUP(CG17,AY17:BG20,8,FALSE) -> 0 | CJ17: =VLOOKUP(CG17,AY17:BG20,6,FALSE) -> 0 | CN17: =CG17 ->  | CO17: =VLOOKUP(CN17,AY17:BG20,2,FALSE) -> 0 | CP17: =VLOOKUP(CN17,AY17:BG20,3,FALSE) -> 6 | CQ17: =VLOOKUP(CN17,AY17:BG20,4,FALSE) -> -12 | CR17: =VLOOKUP(CN17,AY17:BG20,5,FALSE) -> 6 | CS17: =VLOOKUP(CN17,AY17:BG20,6,FALSE) -> 0 | CT17: =VLOOKUP(CN17,AY17:BG20,7,FALSE) -> 0 | CU17: =VLOOKUP(CN17,AY17:BG20,8,FALSE) -> 0 | CV17: =VLOOKUP(CN17,AY17:BG20,9,FALSE) -> 0 | CY17: =IF(G23<>"",IF(G23>G24,C23,IF(G24>G23,C24,"Empate")),"") ->  | CZ17: =IF(G23<>"",IF(G23<G24,C23,IF(G24<G23,C24,"Empate")),"") -> 
P18: =IF(T24=T25,"",IF(T24<T25,P24,P25)) ->  | T18: =IF(ISBLANK(Q17),"",SUM(IF(Q18>Q17,1,0)+(IF(R18>R17,1,0)+(IF(S18>S17,1,0))))) ->  | W18: =IF(T24=T25,"",IF(T24>T25,P24,P25)) ->  | AA18: =IF(ISBLANK(X17),"",SUM(IF(X18>X17,1,0)+(IF(Y18>Y17,1,0)+(IF(Z18>Z17,1,0))))) ->  | AL18: =IF(AM18="","","2º") ->  | AM18: =CN18 ->  | AN18: =IF(AM18="","",CO18) ->  | AO18: =IF(AM18="","",CP18) ->  | AP18: =CQ18 -> -12 | AQ18: =IF(AM18="","",CR18) ->  | AR18: =IF(AM18="","",CS18) ->  | AS18: =IF(AM18="","",CT18) ->  | AT18: =IF(AM18="","",CU18) ->  | AU18: =IF(AM18="","",CV18) ->  | AV18: 6 | AW18: 6 | AX18: 6 | AY18: =IF(AY42="","",AY42) ->  | AZ18: =COUNT(G21,M24,G26) -> 0 | BA18: =COUNTIF(CY15:CY20,AY18) -> 6 | BB18: =AZ18-(BA18+BC18) -> -12 | BC18: =COUNTIF(CZ15:CZ20,AY18) -> 6 | BD18: =SUM(D21:F21,J24:L24,D26:F26) -> 0 | BE18: =SUM(D22:F22,J23:L23,D25:F25) -> 0 | BF18: =BD18-BE18 -> 0 | BG18: =IF(AZ18=0,0,BA18*2+BC18*1) -> 0 | BH18: =IF(BG18<=BG17,AY18,AY17) ->  | BI18: =VLOOKUP(BH18,AY17:BG20,9,FALSE) -> 0 | BJ18: =IF(BI18>=BI20,BH18,BH20) ->  | BK18: =VLOOKUP(BJ18,AY17:BG20,9,FALSE) -> 0 | BL18: =IF(BK18>=BK19,BJ18,BJ19) ->  | BM18: =VLOOKUP(BL18,AY17:BG20,9,FALSE) -> 0 | BN18: =VLOOKUP(BL18,AY17:BG20,8,FALSE) -> 0 | BO18: =IF(AND(BM17=BM18,BN18>BN17),BL17,BL18) ->  | BP18: =VLOOKUP(BO18,AY17:BG20,9,FALSE) -> 0 | BQ18: =VLOOKUP(BO18,AY17:BG20,8,FALSE) -> 0 | BR18: =IF(AND(BP18=BP20,BQ20>BQ18),BO20,BO18) ->  | BS18: =VLOOKUP(BR18,AY17:BG20,9,FALSE) -> 0 | BT18: =VLOOKUP(BR18,AY17:BG20,8,FALSE) -> 0 | BU18: =IF(AND(BS18=BS19,BT19>BT18),BR19,BR18) ->  | BV18: =VLOOKUP(BU18,AY17:BG20,9,FALSE) -> 0 | BW18: =VLOOKUP(BU18,AY17:BG20,8,FALSE) -> 0 | BX18: =VLOOKUP(BU18,AY17:BG20,6,FALSE) -> 0 | BY18: =IF(AND(BV17=BV18,BW17=BW18,BX18>BX17),BU17,BU18) ->  | BZ18: =VLOOKUP(BY18,AY17:BG20,9,FALSE) -> 0 | CA18: =VLOOKUP(BY18,AY17:BG20,8,FALSE) -> 0 | CB18: =VLOOKUP(BY18,AY17:BG20,6,FALSE) -> 0 | CC18: =IF(AND(BZ18=BZ20,CA18=CA20,CB20>CB18),BY20,BY18) ->  | CD18: =VLOOKUP(CC18,AY17:BG20,9,FALSE) -> 0 | CE18: =VLOOKUP(CC18,AY17:BG20,8,FALSE) -> 0 | CF18: =VLOOKUP(CC18,AY17:BG20,6,FALSE) -> 0 | CG18: =IF(AND(CD18=CD19,CE18=CE19,CF19>CF18),CC19,CC18) ->  | CH18: =VLOOKUP(CG18,AY17:BG20,9,FALSE) -> 0 | CI18: =VLOOKUP(CG18,AY17:BG20,8,FALSE) -> 0 | CJ18: =VLOOKUP(CG18,AY17:BG20,6,FALSE) -> 0 | CN18: =CG18 ->  | CO18: =VLOOKUP(CN18,AY17:BG20,2,FALSE) -> 0 | CP18: =VLOOKUP(CN18,AY17:BG20,3,FALSE) -> 6 | CQ18: =VLOOKUP(CN18,AY17:BG20,4,FALSE) -> -12 | CR18: =VLOOKUP(CN18,AY17:BG20,5,FALSE) -> 6 | CS18: =VLOOKUP(CN18,AY17:BG20,6,FALSE) -> 0 | CT18: =VLOOKUP(CN18,AY17:BG20,7,FALSE) -> 0 | CU18: =VLOOKUP(CN18,AY17:BG20,8,FALSE) -> 0 | CV18: =VLOOKUP(CN18,AY17:BG20,9,FALSE) -> 0 | CY18: =IF(M23<>"",IF(M23>M24,I23,IF(M24>M23,I24,"Empate")),"") ->  | CZ18: =IF(M23<>"",IF(M23<M24,I23,IF(M24<M23,I24,"Empate")),"") -> 
N19: 3 | P19: 3º/4º | AL19: =IF(AM19="","","3º") ->  | AM19: =CN19 ->  | AN19: =IF(AM19="","",CO19) ->  | AO19: =IF(AM19="","",CP19) ->  | AP19: =CQ19 -> -12 | AQ19: =IF(AM19="","",CR19) ->  | AR19: =IF(AM19="","",CS19) ->  | AS19: =IF(AM19="","",CT19) ->  | AT19: =IF(AM19="","",CU19) ->  | AU19: =IF(AM19="","",CV19) ->  | AV19: 7.8 | AW19: 7 | AX19: 7 | AY19: =IF(AY44="","",AY44) ->  | AZ19: =COUNT(M21,G24,G25) -> 0 | BA19: =COUNTIF(CY15:CY20,AY19) -> 6 | BB19: =AZ19-(BA19+BC19) -> -12 | BC19: =COUNTIF(CZ15:CZ20,AY19) -> 6 | BD19: =SUM(J21:L21,D24:F24,D25:F25) -> 0 | BE19: =SUM(J22:L22,D23:F23,D26:F26) -> 0 | BF19: =BD19-BE19 -> 0 | BG19: =IF(AZ19=0,0,BA19*2+BC19*1) -> 0 | BH19: =IF(BG19>=BG20,AY19,AY20) ->  | BI19: =VLOOKUP(BH19,AY17:BG20,9,FALSE) -> 0 | BJ19: =IF(BI19<=BI17,BH19,BH17) ->  | BK19: =VLOOKUP(BJ19,AY17:BG20,9,FALSE) -> 0 | BL19: =IF(BK19<=BK18,BJ19,BJ18) ->  | BM19: =VLOOKUP(BL19,AY17:BG20,9,FALSE) -> 0 | BN19: =VLOOKUP(BL19,AY17:BG20,8,FALSE) -> 0 | BO19: =IF(AND(BM19=BM20,BN20>BN19),BL20,BL19) ->  | BP19: =VLOOKUP(BO19,AY17:BG20,9,FALSE) -> 0 | BQ19: =VLOOKUP(BO19,AY17:BG20,8,FALSE) -> 0 | BR19: =IF(AND(BP17=BP19,BQ19>BQ17),BO17,BO19) ->  | BS19: =VLOOKUP(BR19,AY17:BG20,9,FALSE) -> 0 | BT19: =VLOOKUP(BR19,AY17:BG20,8,FALSE) -> 0 | BU19: =IF(AND(BS18=BS19,BT19>BT18),BR18,BR19) ->  | BV19: =VLOOKUP(BU19,AY17:BG20,9,FALSE) -> 0 | BW19: =VLOOKUP(BU19,AY17:BG20,8,FALSE) -> 0 | BX19: =VLOOKUP(BU19,AY17:BG20,6,FALSE) -> 0 | BY19: =IF(AND(BV19=BV20,BW19=BW20,BX20>BX19),BU20,BU19) ->  | BZ19: =VLOOKUP(BY19,AY17:BG20,9,FALSE) -> 0 | CA19: =VLOOKUP(BY19,AY17:BG20,8,FALSE) -> 0 | CB19: =VLOOKUP(BY19,AY17:BG20,6,FALSE) -> 0 | CC19: =IF(AND(BZ17=BZ19,CA17=CA19,CB18>CB17),BY17,BY19) ->  | CD19: =VLOOKUP(CC19,AY17:BG20,9,FALSE) -> 0 | CE19: =VLOOKUP(CC19,AY17:BG20,8,FALSE) -> 0 | CF19: =VLOOKUP(CC19,AY17:BG20,6,FALSE) -> 0 | CG19: =IF(AND(CD18=CD19,CE18=CE19,CF19>CF18),CC18,CC19) ->  | CH19: =VLOOKUP(CG19,AY17:BG20,9,FALSE) -> 0 | CI19: =VLOOKUP(CG19,AY17:BG20,8,FALSE) -> 0 | CJ19: =VLOOKUP(CG19,AY17:BG20,6,FALSE) -> 0 | CN19: =CG19 ->  | CO19: =VLOOKUP(CN19,AY17:BG20,2,FALSE) -> 0 | CP19: =VLOOKUP(CN19,AY17:BG20,3,FALSE) -> 6 | CQ19: =VLOOKUP(CN19,AY17:BG20,4,FALSE) -> -12 | CR19: =VLOOKUP(CN19,AY17:BG20,5,FALSE) -> 6 | CS19: =VLOOKUP(CN19,AY17:BG20,6,FALSE) -> 0 | CT19: =VLOOKUP(CN19,AY17:BG20,7,FALSE) -> 0 | CU19: =VLOOKUP(CN19,AY17:BG20,8,FALSE) -> 0 | CV19: =VLOOKUP(CN19,AY17:BG20,9,FALSE) -> 0 | CY19: =IF(M25<>"",IF(M25>M26,I25,IF(M26>M25,I26,"Empate")),"") ->  | CZ19: =IF(M25<>"",IF(M25<M26,I25,IF(M26<M25,I26,"Empate")),"") -> 
A20: Grupo B | B20: NºJ | C20: Jogadores | D20: 1 | E20: 2 | F20: 3 | G20: R | H20: NºJ | I20: Jogadores | J20: 1 | K20: 2 | L20: 3 | M20: R | N20: 14 | P20: =IF(T17=T18,"",IF(T17>T18,P17,P18)) ->  | AL20: =IF(AM20="","","4º") ->  | AM20: =CN20 ->  | AN20: =IF(AM20="","",CO20) ->  | AO20: =IF(AM20="","",CP20) ->  | AP20: =CQ20 -> -12 | AQ20: =IF(AM20="","",CR20) ->  | AR20: =IF(AM20="","",CS20) ->  | AS20: =IF(AM20="","",CT20) ->  | AT20: =IF(AM20="","",CU20) ->  | AU20: =IF(AM20="","",CV20) ->  | AW20: 2 | AX20: 8 | AY20: =IF(AY46="","",AY46) ->  | AZ20: =COUNT(M22,M23,M25) -> 0 | BA20: =COUNTIF(CY15:CY20,AY20) -> 6 | BB20: =AZ20-(BA20+BC20) -> -12 | BC20: =COUNTIF(CZ15:CZ20,AY20) -> 6 | BD20: =SUM(J22:L22,J23:L23,J25:L25) -> 0 | BE20: =SUM(J18:L18,J21:L21,J23:L23) -> 0 | BF20: =BD20-BE20 -> 0 | BG20: =IF(AZ20=0,0,BA20*2+BC20*1) -> 0 | BH20: =IF(BG20<=BG19,AY20,AY19) ->  | BI20: =VLOOKUP(BH20,AY17:BG20,9,FALSE) -> 0 | BJ20: =IF(BI20<=BI18,BH20,BH18) ->  | BK20: =VLOOKUP(BJ20,AY17:BG20,9,FALSE) -> 0 | BL20: =IF(BK20<=BK17,BJ20,BJ17) ->  | BM20: =VLOOKUP(BL20,AY17:BG20,9,FALSE) -> 0 | BN20: =VLOOKUP(BL20,AY17:BG20,8,FALSE) -> 0 | BO20: =IF(AND(BM19=BM20,BN20>BN19),BL19,BL20) ->  | BP20: =VLOOKUP(BO20,AY17:BG20,9,FALSE) -> 0 | BQ20: =VLOOKUP(BO20,AY17:BG20,8,FALSE) -> 0 | BR20: =IF(AND(BP18=BP20,BQ20>BQ18),BO18,BO20) ->  | BS20: =VLOOKUP(BR20,AY17:BG20,9,FALSE) -> 0 | BT20: =VLOOKUP(BR20,AY17:BG20,8,FALSE) -> 0 | BU20: =IF(AND(BS17=BS20,BT20>BT17),BR17,BR20) ->  | BV20: =VLOOKUP(BU20,AY17:BG20,9,FALSE) -> 0 | BW20: =VLOOKUP(BU20,AY17:BG20,8,FALSE) -> 0 | BX20: =VLOOKUP(BU20,AY17:BG20,6,FALSE) -> 0 | BY20: =IF(AND(BV19=BV20,BW19=BW20,BX20>BX19),BU19,BU20) ->  | BZ20: =VLOOKUP(BY20,AY17:BG20,9,FALSE) -> 0 | CA20: =VLOOKUP(BY20,AY17:BG20,8,FALSE) -> 0 | CB20: =VLOOKUP(BY20,AY17:BG20,6,FALSE) -> 0 | CC20: =IF(AND(BZ18=BZ20,CA18=CA20,CB20>CB18),BY18,BY20) ->  | CD20: =VLOOKUP(CC20,AY17:BG20,9,FALSE) -> 0 | CE20: =VLOOKUP(CC20,AY17:BG20,8,FALSE) -> 0 | CF20: =VLOOKUP(CC20,AY17:BG20,6,FALSE) -> 0 | CG20: =IF(AND(CD17=CD20,CE17=CE20,CF20>CF17),CC17,CC20) ->  | CH20: =VLOOKUP(CG20,AY17:BG20,9,FALSE) -> 0 | CI20: =VLOOKUP(CG20,AY17:BG20,8,FALSE) -> 0 | CJ20: =VLOOKUP(CG20,AY17:BG20,6,FALSE) -> 0 | CN20: =CG20 ->  | CO20: =VLOOKUP(CN20,AY17:BG20,2,FALSE) -> 0 | CP20: =VLOOKUP(CN20,AY17:BG20,3,FALSE) -> 6 | CQ20: =VLOOKUP(CN20,AY17:BG20,4,FALSE) -> -12 | CR20: =VLOOKUP(CN20,AY17:BG20,5,FALSE) -> 6 | CS20: =VLOOKUP(CN20,AY17:BG20,6,FALSE) -> 0 | CT20: =VLOOKUP(CN20,AY17:BG20,7,FALSE) -> 0 | CU20: =VLOOKUP(CN20,AY17:BG20,8,FALSE) -> 0 | CV20: =VLOOKUP(CN20,AY17:BG20,9,FALSE) -> 0 | CY20: =IF(G26<>"",IF(G26>G25,C26,IF(G25>G26,C25,"Empate")),"") ->  | CZ20: =IF(G26<>"",IF(G26<G25,C26,IF(G25<G26,C25,"Empate")),"") -> 
